{"text_format":"1","workbook":"xlsx","n_sheets":29,"sheets":["Cover Sheet","Important Information","Contents","Glossary","Sheet 1","Sheet 2","Sheet 3","Sheet 4","Sheet 5","Sheet 6","Sheet 7","Sheet 8","Sheet 9","Sheet 10","Sheet 11","Sheet 12","Sheet 13","Sheet 14","Sheet1","Sheet 15","Sheet 16","Sheet2","Sheet 17","Sheet 18","Sheet 19","Sheet 20","Sheet 21","List of Docs for submission","Validation Sheet"],"not_rendered":{"charts":0,"images":1,"macros":0,"external_links":0,"defined_names":48,"comments":2,"pivot_tables":0},"unopened":[],"bounds":{"document_bytes":16777216,"sheet_cells":100000,"rows_first":2000,"rows_last":500,"rows_between":2000,"halvings":0,"cell_chars":16384,"cell_head_chars":4096},"cells_cut":0,"cells_raw":0,"read":"whole","date_system":"1900"}

{"sheet":"Cover Sheet","index":0,"n_rows":104,"n_cols":11,"rows_kept":104,"cut":false,"hidden":false,"merged":[[28,0,28,8],[10,0,10,8],[11,0,11,8],[15,0,15,8],[23,0,23,3],[23,4,23,8],[24,0,24,8],[25,0,25,3],[25,4,25,8],[26,0,26,8],[27,0,27,3],[27,4,27,7],[38,0,38,3],[37,4,37,6],[38,4,38,6],[34,0,35,8],[30,9,32,9],[30,0,30,3],[31,0,31,8],[32,0,32,3],[37,0,37,3],[33,0,33,8]]}
[]
[]
[]
[]
[]
[]
[]
[]
[]
[]
["Company Service Providers Supervision"]
["Annual Compliance Return"]
[]
[]
[]
["Persons Authorised as Company Service Providers (CSPs) in terms of the Company Service Providers Act (Cap. 529)"]
[]
[]
[]
[]
[]
[]
[]
["Name of Authorised Entity / Individual",null,null,null,null,null,null,null,null,{"$f":"IF(ISTEXT(E24),1,0)","v":0},"a"]
[]
["Company Registration Number / ID Number",null,null,null,null,null,null,null,null,{"$f":"IF(ISTEXT(E26),1,0)","v":0},"b"]
[]
["Please choose 'class' of CSP authorisation:",null,null,null,null,null,null,null,null,{"$f":"IF(ISTEXT(E28),1,0)","v":0},"c"]
["Reporting Period "]
[null,null,null,null,"Day","Month","Year"]
["from:",null,null,null,null,null,null,null,null,{"$f":"IF(OR(E31=0,F31=0,G31=0,E33=0,F33=0,G33=0),0,IF(DATE(G33,F33,E33)>=DATE(G31,F31,E31),1,0))","v":0},"d"]
[]
["to:",null,null,null,null,null,null,null,{"$f":"IFERROR(IF(_xlfn.NUMBERVALUE(DATE($G$31,$F$31,$E$31)) > _xlfn.NUMBERVALUE(DATE($G$33,$F$33,$E$33)), \"'From' date must be less than 'to' date\",\"\"),\"\")","v":""},null,"e"]
[]
["Guidance: [With respect to individual CSPs, kindly ensure the reporting period covers a full calendar year ending 31 December]"]
[]
[]
["Last Updated",null,null,null,"2024-02-19",null,null,null,null,null,"f"]
["Ver",null,null,null,4,null,null,null,null,null,"g"]
[]
[]
[]
[]
[]
[]
[]
[]
[]
[]
[]
[]
[]
[]
[]
[]
[]
[]
[]
[]
[]
[]
[]
[]
[]
[]
[]
[]
[]
[]
[]
[]
[]
[]
[]
[]
[]
[]
[]
[]
[]
[]
[]
[]
[]
[]
[]
[]
[]
[]
[]
[]
[]
[]
[]
[]
[]
[]
[]
[]
[]
[]
[]
[]
[null,null,null,null,null,null,null,null,null,null,{"$f":"SUM(J24:J33)","v":0}]

{"sheet":"Important Information","index":1,"n_rows":9,"n_cols":1,"rows_kept":9,"cut":false,"hidden":false,"merged":[[0,0,0,8],[4,135,4,143],[4,144,4,152],[4,153,4,161],[4,162,4,170],[4,171,4,179],[4,180,4,188],[4,81,4,89],[4,90,4,98],[4,99,4,107],[4,108,4,116],[4,117,4,125],[4,126,4,134],[4,27,4,35],[4,36,4,44],[4,45,4,53],[4,54,4,62],[4,63,4,71],[4,72,4,80],[1,0,1,8],[2,0,2,8],[3,0,3,8],[4,0,4,8],[4,9,4,17],[4,18,4,26],[4,459,4,467],[4,468,4,476],[4,477,4,485],[4,486,4,494],[4,495,4,503],[4,504,4,512],[4,405,4,413],[4,414,4,422],[4,423,4,431],[4,432,4,440],[4,441,4,449],[4,450,4,458],[4,351,4,359],[4,360,4,368],[4,369,4,377],[4,378,4,386],[4,387,4,395],[4,396,4,404],[4,297,4,305],[4,306,4,314],[4,315,4,323],[4,324,4,332],[4,333,4,341],[4,342,4,350],[4,243,4,251],[4,252,4,260],[4,261,4,269],[4,270,4,278],[4,279,4,287],[4,288,4,296],[4,189,4,197],[4,198,4,206],[4,207,4,215],[4,216,4,224],[4,225,4,233],[4,234,4,242],[4,783,4,791],[4,792,4,800],[4,801,4,809],[4,810,4,818],[4,819,4,827],[4,828,4,836],[4,729,4,737],[4,738,4,746],[4,747,4,755],[4,756,4,764],[4,765,4,773],[4,774,4,782],[4,675,4,683],[4,684,4,692],[4,693,4,701],[4,702,4,710],[4,711,4,719],[4,720,4,728],[4,621,4,629],[4,630,4,638],[4,639,4,647],[4,648,4,656],[4,657,4,665],[4,666,4,674],[4,567,4,575],[4,576,4,584],[4,585,4,593],[4,594,4,602],[4,603,4,611],[4,612,4,620],[4,513,4,521],[4,522,4,530],[4,531,4,539],[4,540,4,548],[4,549,4,557],[4,558,4,566],[4,1107,4,1115],[4,1116,4,1124],[4,1125,4,1133],[4,1134,4,1142],[4,1143,4,1151],[4,1152,4,1160],[4,1053,4,1061],[4,1062,4,1070],[4,1071,4,1079],[4,1080,4,1088],[4,1089,4,1097],[4,1098,4,1106],[4,999,4,1007],[4,1008,4,1016],[4,1017,4,1025],[4,1026,4,1034],[4,1035,4,1043],[4,1044,4,1052],[4,945,4,953],[4,954,4,962],[4,963,4,971],[4,972,4,980],[4,981,4,989],[4,990,4,998],[4,891,4,899],[4,900,4,908],[4,909,4,917],[4,918,4,926],[4,927,4,935],[4,936,4,944],[4,837,4,845],[4,846,4,854],[4,855,4,863],[4,864,4,872],[4,873,4,881],[4,882,4,890],[4,1431,4,1439],[4,1440,4,1448],[4,1449,4,1457],[4,1458,4,1466],[4,1467,4,1475],[4,1476,4,1484],[4,1377,4,1385],[4,1386,4,1394],[4,1395,4,1403],[4,1404,4,1412],[4,1413,4,1421],[4,1422,4,1430],[4,1323,4,1331],[4,1332,4,1340],[4,1341,4,1349],[4,1350,4,1358],[4,1359,4,1367],[4,1368,4,1376],[4,1269,4,1277],[4,1278,4,1286],[4,1287,4,1295],[4,1296,4,1304],[4,1305,4,1313],[4,1314,4,1322],[4,1215,4,1223],[4,1224,4,1232],[4,1233,4,1241],[4,1242,4,1250],[4,1251,4,1259],[4,1260,4,1268],[4,1161,4,1169],[4,1170,4,1178],[4,1179,4,1187],[4,1188,4,1196],[4,1197,4,1205],[4,1206,4,1214],[4,1755,4,1763],[4,1764,4,1772],[4,1773,4,1781],[4,1782,4,1790],[4,1791,4,1799],[4,1800,4,1808],[4,1701,4,1709],[4,1710,4,1718],[4,1719,4,1727],[4,1728,4,1736],[4,1737,4,1745],[4,1746,4,1754],[4,1647,4,1655],[4,1656,4,1664],[4,1665,4,1673],[4,1674,4,1682],[4,1683,4,1691],[4,1692,4,1700],[4,1593,4,1601],[4,1602,4,1610],[4,1611,4,1619],[4,1620,4,1628],[4,1629,4,1637],[4,1638,4,1646],[4,1539,4,1547],[4,1548,4,1556],[4,1557,4,1565],[4,1566,4,1574],[4,1575,4,1583],[4,1584,4,1592],[4,1485,4,1493],[4,1494,4,1502],[4,1503,4,1511],[4,1512,4,1520],[4,1521,4,1529],[4,1530,4,1538],[4,2079,4,2087],[4,2088,4,2096],[4,2097,4,2105],[4,2106,4,2114],[4,2115,4,2123],[4,2124,4,2132],[4,2025,4,2033],[4,2034,4,2042],[4,2043,4,2051],[4,2052,4,2060],[4,2061,4,2069],[4,2070,4,2078],[4,1971,4,1979],[4,1980,4,1988],[4,1989,4,1997],[4,1998,4,2006],[4,2007,4,2015],[4,2016,4,2024],[4,1917,4,1925],[4,1926,4,1934],[4,1935,4,1943],[4,1944,4,1952],[4,1953,4,1961],[4,1962,4,1970],[4,1863,4,1871],[4,1872,4,1880],[4,1881,4,1889],[4,1890,4,1898],[4,1899,4,1907],[4,1908,4,1916],[4,1809,4,1817],[4,1818,4,1826],[4,1827,4,1835],[4,1836,4,1844],[4,1845,4,1853],[4,1854,4,1862],[4,2403,4,2411],[4,2412,4,2420],[4,2421,4,2429],[4,2430,4,2438],[4,2439,4,2447],[4,2448,4,2456],[4,2349,4,2357],[4,2358,4,2366],[4,2367,4,2375],[4,2376,4,2384],[4,2385,4,2393],[4,2394,4,2402],[4,2295,4,2303],[4,2304,4,2312],[4,2313,4,2321],[4,2322,4,2330],[4,2331,4,2339],[4,2340,4,2348],[4,2241,4,2249],[4,2250,4,2258],[4,2259,4,2267],[4,2268,4,2276],[4,2277,4,2285],[4,2286,4,2294],[4,2187,4,2195],[4,2196,4,2204],[4,2205,4,2213],[4,2214,4,2222],[4,2223,4,2231],[4,2232,4,2240],[4,2133,4,2141],[4,2142,4,2150],[4,2151,4,2159],[4,2160,4,2168],[4,2169,4,2177],[4,2178,4,2186],[4,2727,4,2735],[4,2736,4,2744],[4,2745,4,2753],[4,2754,4,2762],[4,2763,4,2771],[4,2772,4,2780],[4,2673,4,2681],[4,2682,4,2690],[4,2691,4,2699],[4,2700,4,2708],[4,2709,4,2717],[4,2718,4,2726],[4,2619,4,2627],[4,2628,4,2636],[4,2637,4,2645],[4,2646,4,2654],[4,2655,4,2663],[4,2664,4,2672],[4,2565,4,2573],[4,2574,4,2582],[4,2583,4,2591],[4,2592,4,2600],[4,2601,4,2609],[4,2610,4,2618],[4,2511,4,2519],[4,2520,4,2528],[4,2529,4,2537],[4,2538,4,2546],[4,2547,4,2555],[4,2556,4,2564],[4,2457,4,2465],[4,2466,4,2474],[4,2475,4,2483],[4,2484,4,2492],[4,2493,4,2501],[4,2502,4,2510],[4,3051,4,3059],[4,3060,4,3068],[4,3069,4,3077],[4,3078,4,3086],[4,3087,4,3095],[4,3096,4,3104],[4,2997,4,3005],[4,3006,4,3014],[4,3015,4,3023],[4,3024,4,3032],[4,3033,4,3041],[4,3042,4,3050],[4,2943,4,2951],[4,2952,4,2960],[4,2961,4,2969],[4,2970,4,2978],[4,2979,4,2987],[4,2988,4,2996],[4,2889,4,2897],[4,2898,4,2906],[4,2907,4,2915],[4,2916,4,2924],[4,2925,4,2933],[4,2934,4,2942],[4,2835,4,2843],[4,2844,4,2852],[4,2853,4,2861],[4,2862,4,2870],[4,2871,4,2879],[4,2880,4,2888],[4,2781,4,2789],[4,2790,4,2798],[4,2799,4,2807],[4,2808,4,2816],[4,2817,4,2825],[4,2826,4,2834],[4,3375,4,3383],[4,3384,4,3392],[4,3393,4,3401],[4,3402,4,3410],[4,3411,4,3419],[4,3420,4,3428],[4,3321,4,3329],[4,3330,4,3338],[4,3339,4,3347],[4,3348,4,3356],[4,3357,4,3365],[4,3366,4,3374],[4,3267,4,3275],[4,3276,4,3284],[4,3285,4,3293],[4,3294,4,3302],[4,3303,4,3311],[4,3312,4,3320],[4,3213,4,3221],[4,3222,4,3230],[4,3231,4,3239],[4,3240,4,3248],[4,3249,4,3257],[4,3258,4,3266],[4,3159,4,3167],[4,3168,4,3176],[4,3177,4,3185],[4,3186,4,3194],[4,3195,4,3203],[4,3204,4,3212],[4,3105,4,3113],[4,3114,4,3122],[4,3123,4,3131],[4,3132,4,3140],[4,3141,4,3149],[4,3150,4,3158],[4,3699,4,3707],[4,3708,4,3716],[4,3717,4,3725],[4,3726,4,3734],[4,3735,4,3743],[4,3744,4,3752],[4,3645,4,3653],[4,3654,4,3662],[4,3663,4,3671],[4,3672,4,3680],[4,3681,4,3689],[4,3690,4,3698],[4,3591,4,3599],[4,3600,4,3608],[4,3609,4,3617],[4,3618,4,3626],[4,3627,4,3635],[4,3636,4,3644],[4,3537,4,3545],[4,3546,4,3554],[4,3555,4,3563],[4,3564,4,3572],[4,3573,4,3581],[4,3582,4,3590],[4,3483,4,3491],[4,3492,4,3500],[4,3501,4,3509],[4,3510,4,3518],[4,3519,4,3527],[4,3528,4,3536],[4,3429,4,3437],[4,3438,4,3446],[4,3447,4,3455],[4,3456,4,3464],[4,3465,4,3473],[4,3474,4,3482],[4,4023,4,4031],[4,4032,4,4040],[4,4041,4,4049],[4,4050,4,4058],[4,4059,4,4067],[4,4068,4,4076],[4,3969,4,3977],[4,3978,4,3986],[4,3987,4,3995],[4,3996,4,4004],[4,4005,4,4013],[4,4014,4,4022],[4,3915,4,3923],[4,3924,4,3932],[4,3933,4,3941],[4,3942,4,3950],[4,3951,4,3959],[4,3960,4,3968],[4,3861,4,3869],[4,3870,4,3878],[4,3879,4,3887],[4,3888,4,3896],[4,3897,4,3905],[4,3906,4,3914],[4,3807,4,3815],[4,3816,4,3824],[4,3825,4,3833],[4,3834,4,3842],[4,3843,4,3851],[4,3852,4,3860],[4,3753,4,3761],[4,3762,4,3770],[4,3771,4,3779],[4,3780,4,3788],[4,3789,4,3797],[4,3798,4,3806],[4,4347,4,4355],[4,4356,4,4364],[4,4365,4,4373],[4,4374,4,4382],[4,4383,4,4391],[4,4392,4,4400],[4,4293,4,4301],[4,4302,4,4310],[4,4311,4,4319],[4,4320,4,4328],[4,4329,4,4337],[4,4338,4,4346],[4,4239,4,4247],[4,4248,4,4256],[4,4257,4,4265],[4,4266,4,4274],[4,4275,4,4283],[4,4284,4,4292],[4,4185,4,4193],[4,4194,4,4202],[4,4203,4,4211],[4,4212,4,4220],[4,4221,4,4229],[4,4230,4,4238],[4,4131,4,4139],[4,4140,4,4148],[4,4149,4,4157],[4,4158,4,4166],[4,4167,4,4175],[4,4176,4,4184],[4,4077,4,4085],[4,4086,4,4094],[4,4095,4,4103],[4,4104,4,4112],[4,4113,4,4121],[4,4122,4,4130],[4,4671,4,4679],[4,4680,4,4688],[4,4689,4,4697],[4,4698,4,4706],[4,4707,4,4715],[4,4716,4,4724],[4,4617,4,4625],[4,4626,4,4634],[4,4635,4,4643],[4,4644,4,4652],[4,4653,4,4661],[4,4662,4,4670],[4,4563,4,4571],[4,4572,4,4580],[4,4581,4,4589],[4,4590,4,4598],[4,4599,4,4607],[4,4608,4,4616],[4,4509,4,4517],[4,4518,4,4526],[4,4527,4,4535],[4,4536,4,4544],[4,4545,4,4553],[4,4554,4,4562],[4,4455,4,4463],[4,4464,4,4472],[4,4473,4,4481],[4,4482,4,4490],[4,4491,4,4499],[4,4500,4,4508],[4,4401,4,4409],[4,4410,4,4418],[4,4419,4,4427],[4,4428,4,4436],[4,4437,4,4445],[4,4446,4,4454],[4,4995,4,5003],[4,5004,4,5012],[4,5013,4,5021],[4,5022,4,5030],[4,5031,4,5039],[4,5040,4,5048],[4,4941,4,4949],[4,4950,4,4958],[4,4959,4,4967],[4,4968,4,4976],[4,4977,4,4985],[4,4986,4,4994],[4,4887,4,4895],[4,4896,4,4904],[4,4905,4,4913],[4,4914,4,4922],[4,4923,4,4931],[4,4932,4,4940],[4,4833,4,4841],[4,4842,4,4850],[4,4851,4,4859],[4,4860,4,4868],[4,4869,4,4877],[4,4878,4,4886],[4,4779,4,4787],[4,4788,4,4796],[4,4797,4,4805],[4,4806,4,4814],[4,4815,4,4823],[4,4824,4,4832],[4,4725,4,4733],[4,4734,4,4742],[4,4743,4,4751],[4,4752,4,4760],[4,4761,4,4769],[4,4770,4,4778],[4,5319,4,5327],[4,5328,4,5336],[4,5337,4,5345],[4,5346,4,5354],[4,5355,4,5363],[4,5364,4,5372],[4,5265,4,5273],[4,5274,4,5282],[4,5283,4,5291],[4,5292,4,5300],[4,5301,4,5309],[4,5310,4,5318],[4,5211,4,5219],[4,5220,4,5228],[4,5229,4,5237],[4,5238,4,5246],[4,5247,4,5255],[4,5256,4,5264],[4,5157,4,5165],[4,5166,4,5174],[4,5175,4,5183],[4,5184,4,5192],[4,5193,4,5201],[4,5202,4,5210],[4,5103,4,5111],[4,5112,4,5120],[4,5121,4,5129],[4,5130,4,5138],[4,5139,4,5147],[4,5148,4,5156],[4,5049,4,5057],[4,5058,4,5066],[4,5067,4,5075],[4,5076,4,5084],[4,5085,4,5093],[4,5094,4,5102],[4,5643,4,5651],[4,5652,4,5660],[4,5661,4,5669],[4,5670,4,5678],[4,5679,4,5687],[4,5688,4,5696],[4,5589,4,5597],[4,5598,4,5606],[4,5607,4,5615],[4,5616,4,5624],[4,5625,4,5633],[4,5634,4,5642],[4,5535,4,5543],[4,5544,4,5552],[4,5553,4,5561],[4,5562,4,5570],[4,5571,4,5579],[4,5580,4,5588],[4,5481,4,5489],[4,5490,4,5498],[4,5499,4,5507],[4,5508,4,5516],[4,5517,4,5525],[4,5526,4,5534],[4,5427,4,5435],[4,5436,4,5444],[4,5445,4,5453],[4,5454,4,5462],[4,5463,4,5471],[4,5472,4,5480],[4,5373,4,5381],[4,5382,4,5390],[4,5391,4,5399],[4,5400,4,5408],[4,5409,4,5417],[4,5418,4,5426],[4,5967,4,5975],[4,5976,4,5984],[4,5985,4,5993],[4,5994,4,6002],[4,6003,4,6011],[4,6012,4,6020],[4,5913,4,5921],[4,5922,4,5930],[4,5931,4,5939],[4,5940,4,5948],[4,5949,4,5957],[4,5958,4,5966],[4,5859,4,5867],[4,5868,4,5876],[4,5877,4,5885],[4,5886,4,5894],[4,5895,4,5903],[4,5904,4,5912],[4,5805,4,5813],[4,5814,4,5822],[4,5823,4,5831],[4,5832,4,5840],[4,5841,4,5849],[4,5850,4,5858],[4,5751,4,5759],[4,5760,4,5768],[4,5769,4,5777],[4,5778,4,5786],[4,5787,4,5795],[4,5796,4,5804],[4,5697,4,5705],[4,5706,4,5714],[4,5715,4,5723],[4,5724,4,5732],[4,5733,4,5741],[4,5742,4,5750],[4,6291,4,6299],[4,6300,4,6308],[4,6309,4,6317],[4,6318,4,6326],[4,6327,4,6335],[4,6336,4,6344],[4,6237,4,6245],[4,6246,4,6254],[4,6255,4,6263],[4,6264,4,6272],[4,6273,4,6281],[4,6282,4,6290],[4,6183,4,6191],[4,6192,4,6200],[4,6201,4,6209],[4,6210,4,6218],[4,6219,4,6227],[4,6228,4,6236],[4,6129,4,6137],[4,6138,4,6146],[4,6147,4,6155],[4,6156,4,6164],[4,6165,4,6173],[4,6174,4,6182],[4,6075,4,6083],[4,6084,4,6092],[4,6093,4,6101],[4,6102,4,6110],[4,6111,4,6119],[4,6120,4,6128],[4,6021,4,6029],[4,6030,4,6038],[4,6039,4,6047],[4,6048,4,6056],[4,6057,4,6065],[4,6066,4,6074],[4,6615,4,6623],[4,6624,4,6632],[4,6633,4,6641],[4,6642,4,6650],[4,6651,4,6659],[4,6660,4,6668],[4,6561,4,6569],[4,6570,4,6578],[4,6579,4,6587],[4,6588,4,6596],[4,6597,4,6605],[4,6606,4,6614],[4,6507,4,6515],[4,6516,4,6524],[4,6525,4,6533],[4,6534,4,6542],[4,6543,4,6551],[4,6552,4,6560],[4,6453,4,6461],[4,6462,4,6470],[4,6471,4,6479],[4,6480,4,6488],[4,6489,4,6497],[4,6498,4,6506],[4,6399,4,6407],[4,6408,4,6416],[4,6417,4,6425],[4,6426,4,6434],[4,6435,4,6443],[4,6444,4,6452],[4,6345,4,6353],[4,6354,4,6362],[4,6363,4,6371],[4,6372,4,6380],[4,6381,4,6389],[4,6390,4,6398],[4,6939,4,6947],[4,6948,4,6956],[4,6957,4,6965],[4,6966,4,6974],[4,6975,4,6983],[4,6984,4,6992],[4,6885,4,6893],[4,6894,4,6902],[4,6903,4,6911],[4,6912,4,6920],[4,6921,4,6929],[4,6930,4,6938],[4,6831,4,6839],[4,6840,4,6848],[4,6849,4,6857],[4,6858,4,6866],[4,6867,4,6875],[4,6876,4,6884],[4,6777,4,6785],[4,6786,4,6794],[4,6795,4,6803],[4,6804,4,6812],[4,6813,4,6821],[4,6822,4,6830],[4,6723,4,6731],[4,6732,4,6740],[4,6741,4,6749],[4,6750,4,6758],[4,6759,4,6767],[4,6768,4,6776],[4,6669,4,6677],[4,6678,4,6686],[4,6687,4,6695],[4,6696,4,6704],[4,6705,4,6713],[4,6714,4,6722],[4,7263,4,7271],[4,7272,4,7280],[4,7281,4,7289],[4,7290,4,7298],[4,7299,4,7307],[4,7308,4,7316],[4,7209,4,7217],[4,7218,4,7226],[4,7227,4,7235],[4,7236,4,7244],[4,7245,4,7253],[4,7254,4,7262],[4,7155,4,7163],[4,7164,4,7172],[4,7173,4,7181],[4,7182,4,7190],[4,7191,4,7199],[4,7200,4,7208],[4,7101,4,7109],[4,7110,4,7118],[4,7119,4,7127],[4,7128,4,7136],[4,7137,4,7145],[4,7146,4,7154],[4,7047,4,7055],[4,7056,4,7064],[4,7065,4,7073],[4,7074,4,7082],[4,7083,4,7091],[4,7092,4,7100],[4,6993,4,7001],[4,7002,4,7010],[4,7011,4,7019],[4,7020,4,7028],[4,7029,4,7037],[4,7038,4,7046],[4,7587,4,7595],[4,7596,4,7604],[4,7605,4,7613],[4,7614,4,7622],[4,7623,4,7631],[4,7632,4,7640],[4,7533,4,7541],[4,7542,4,7550],[4,7551,4,7559],[4,7560,4,7568],[4,7569,4,7577],[4,7578,4,7586],[4,7479,4,7487],[4,7488,4,7496],[4,7497,4,7505],[4,7506,4,7514],[4,7515,4,7523],[4,7524,4,7532],[4,7425,4,7433],[4,7434,4,7442],[4,7443,4,7451],[4,7452,4,7460],[4,7461,4,7469],[4,7470,4,7478],[4,7371,4,7379],[4,7380,4,7388],[4,7389,4,7397],[4,7398,4,7406],[4,7407,4,7415],[4,7416,4,7424],[4,7317,4,7325],[4,7326,4,7334],[4,7335,4,7343],[4,7344,4,7352],[4,7353,4,7361],[4,7362,4,7370],[4,7911,4,7919],[4,7920,4,7928],[4,7929,4,7937],[4,7938,4,7946],[4,7947,4,7955],[4,7956,4,7964],[4,7857,4,7865],[4,7866,4,7874],[4,7875,4,7883],[4,7884,4,7892],[4,7893,4,7901],[4,7902,4,7910],[4,7803,4,7811],[4,7812,4,7820],[4,7821,4,7829],[4,7830,4,7838],[4,7839,4,7847],[4,7848,4,7856],[4,7749,4,7757],[4,7758,4,7766],[4,7767,4,7775],[4,7776,4,7784],[4,7785,4,7793],[4,7794,4,7802],[4,7695,4,7703],[4,7704,4,7712],[4,7713,4,7721],[4,7722,4,7730],[4,7731,4,7739],[4,7740,4,7748],[4,7641,4,7649],[4,7650,4,7658],[4,7659,4,7667],[4,7668,4,7676],[4,7677,4,7685],[4,7686,4,7694],[4,8235,4,8243],[4,8244,4,8252],[4,8253,4,8261],[4,8262,4,8270],[4,8271,4,8279],[4,8280,4,8288],[4,8181,4,8189],[4,8190,4,8198],[4,8199,4,8207],[4,8208,4,8216],[4,8217,4,8225],[4,8226,4,8234],[4,8127,4,8135],[4,8136,4,8144],[4,8145,4,8153],[4,8154,4,8162],[4,8163,4,8171],[4,8172,4,8180],[4,8073,4,8081],[4,8082,4,8090],[4,8091,4,8099],[4,8100,4,8108],[4,8109,4,8117],[4,8118,4,8126],[4,8019,4,8027],[4,8028,4,8036],[4,8037,4,8045],[4,8046,4,8054],[4,8055,4,8063],[4,8064,4,8072],[4,7965,4,7973],[4,7974,4,7982],[4,7983,4,7991],[4,7992,4,8000],[4,8001,4,8009],[4,8010,4,8018],[4,8559,4,8567],[4,8568,4,8576],[4,8577,4,8585],[4,8586,4,8594],[4,8595,4,8603],[4,8604,4,8612],[4,8505,4,8513],[4,8514,4,8522],[4,8523,4,8531],[4,8532,4,8540],[4,8541,4,8549],[4,8550,4,8558],[4,8451,4,8459],[4,8460,4,8468],[4,8469,4,8477],[4,8478,4,8486],[4,8487,4,8495],[4,8496,4,8504],[4,8397,4,8405],[4,8406,4,8414],[4,8415,4,8423],[4,8424,4,8432],[4,8433,4,8441],[4,8442,4,8450],[4,8343,4,8351],[4,8352,4,8360],[4,8361,4,8369],[4,8370,4,8378],[4,8379,4,8387],[4,8388,4,8396],[4,8289,4,8297],[4,8298,4,8306],[4,8307,4,8315],[4,8316,4,8324],[4,8325,4,8333],[4,8334,4,8342],[4,8883,4,8891],[4,8892,4,8900],[4,8901,4,8909],[4,8910,4,8918],[4,8919,4,8927],[4,8928,4,8936],[4,8829,4,8837],[4,8838,4,8846],[4,8847,4,8855],[4,8856,4,8864],[4,8865,4,8873],[4,8874,4,8882],[4,8775,4,8783],[4,8784,4,8792],[4,8793,4,8801],[4,8802,4,8810],[4,8811,4,8819],[4,8820,4,8828],[4,8721,4,8729],[4,8730,4,8738],[4,8739,4,8747],[4,8748,4,8756],[4,8757,4,8765],[4,8766,4,8774],[4,8667,4,8675],[4,8676,4,8684],[4,8685,4,8693],[4,8694,4,8702],[4,8703,4,8711],[4,8712,4,8720],[4,8613,4,8621],[4,8622,4,8630],[4,8631,4,8639],[4,8640,4,8648],[4,8649,4,8657],[4,8658,4,8666],[4,9207,4,9215],[4,9216,4,9224],[4,9225,4,9233]],"merged_total":7287,"flags":["merged_cut"]}
["Important Information"]
["The Annual Compliance Return shall be completed by individuals and corporate entites  authorised under the Company Service Providers Act."]
["Completion of the Annual Compliance Return"]
["Please read the questions carefully before completing this form."]
["All questions should be answered and any questions which are \"Not Applicable\" shall be clearly indicated as \"Not Applicable\"."]
["If required, add additional information in the 'Comments' section provided"]
["The Declaration by the Directors [Sheet 20] shall be signed by two directors in the case of body corporate CSPs and by the Authorised Person himself in the case of individual CSPs. "]
["The Annual Compliance Return should be submitted electronically through the Licence Holder Portal within four months of the financial year end as reported on the Cover Sheet with respect to body corporate CSPs and by the end of April with respect to individual CSPs."]
["If the Return is signed with qualified electornic signatures, the hard copy is not required to be sent to the Authority. If not, Declaration by the Director, (Sheet 20) and  Statement of Solvency, (Sheet 21) where applicable, should be duly signed in wet ink by two directors (where applicable) and submitted in hard copy to the Authority by not later than two weeks after the submission through the LHPortal."]

{"sheet":"Contents","index":2,"n_rows":48,"n_cols":3,"rows_kept":48,"cut":false,"hidden":false,"merged":[[0,0,0,1]]}
["Contents"]
[]
[]
["Sheet 1",null,"Contact Details of the Body Corporate CSP/ Individual CSP"]
[]
["Sheet 2",null,"Directors, Controllers and Key Persons"]
[]
["Sheet 3",null,"The activities of the CSP"]
[]
["Sheet 4",null,"Client Base (CSP Services)"]
[]
["Sheet 5",null,"Organisation "]
[]
["Sheet 6",null,"Management "]
[]
["Sheet 7",null,"Risk Management "]
[]
["Sheet 8",null,"Compliance"]
[]
["Sheet 9",null,"Internal Complaints Procedure"]
[]
["Sheet 10",null,"Litigation/ Legal Proceedings"]
[]
["Sheet 11",null,"Breaches"]
[]
["Sheet 12",null,"Internal Controls"]
[]
["Sheet 13",null,"Outsourcing/Resource Sharing/Power of Attorney"]
[]
["Sheet 14 ",null,"Establishment of Business Relationship"]
[]
["Sheet 15",null,"Accounts and Record Keeping"]
[]
["Sheet 16",null,"Controls - Clients' Monies"]
[]
["Sheet 17",null,"Financial Resources"]
[]
["Sheet 18",null,"Financial Information "]
[]
["Sheet 19",null,"Completeness of Information "]
[]
["Sheet 20",null,"Declaration by the Individual CSP / Directors of the Body Corporate CSP"]
[]
["Sheet 21",null,"Statement of Solvency"]
[]
["List of Docs for submission",null,"List of Docs for submission"]
[]
["Validation Sheet",null,"Validation Sheet"]

{"sheet":"Glossary","index":3,"n_rows":20,"n_cols":3,"rows_kept":20,"cut":false,"hidden":false,"merged":[[16,2,16,3],[13,2,13,3],[10,0,10,1],[10,2,10,3],[4,0,4,1],[4,2,4,3],[5,0,5,1],[5,2,5,3],[15,2,15,3],[6,2,6,3],[7,2,7,3],[9,2,9,3],[6,0,9,1],[17,2,17,3],[19,2,19,3],[8,2,8,3],[11,0,11,1],[11,2,11,3],[12,0,12,1],[12,2,12,3],[13,0,13,1],[17,0,17,1],[19,0,19,1],[18,0,18,1],[18,2,18,3],[14,0,14,1],[14,2,14,3],[15,0,15,1],[16,0,16,1],[3,0,3,1],[3,2,3,3],[0,0,0,3],[1,0,1,1],[1,2,1,3],[2,0,2,1],[2,2,2,3]]}
["Glossary"]
["Term ",null,"Definition "]
["Client entities",null,"Companies where the CSP is involved or to which a service is being provided."]
["CO",null,"Compliance Officer"]
["CPI",null,"Corruption Perception Index"]
["CSP",null,"Company Service Provider as defined in the Company Service Providers Act [Cap. 529 of the Laws of Malta]."]
["Involvement (s)",null,"In the context of Under Threshold Class B CSPs as defined in the CSP Rulebook, the term 'Involvements' shall refer to individuals acting as director or company secretary of a company, a partner in a partnership or in a similar position in relation to other legal entities. "]
[null,null,"Please refer to the Company Service Provider (Exemption) Regulations 2021 and"]
[null,null," the MFSA Guidance on the Application of the Company Service Providers Act "]
[null,null,"as to whether specific directorship or company secretarial roles held by an individual would be deemed as acting by way of business to third parties and therefore would be considered an involvement. \n\nLastly, involvements of one individual within the same group of companies shall only count as one single involvement. In this regard please refer to the definition of Group of Companies below."]
["Group of Companies",null,"In relation to any company, means any body corporate which is that company's subsidiary or parent company, or a subsidiary of that parent company's parent company, and the term \"group\" shall be construed accordingly as well as meaning a parent undertaking and all its subsidiary undertakings."]
["LH",null,"Refers to Licence Holders authorised as Company Service Providers."]
["MLRO",null,"Money Laundering Reporting Officer"]
["PEP",null,"Politically Exposed Person"]
["Reporting Period ",null,"The period covered by this return i.e the Body Corporate CSP's financial year or the calendar year in case of Individual CSPs. "]
["Revenue",null,"The total amount of fees earned from the provision of licensable activities during the reporting period "]
["RO",null,"Risk Officer "]
["Threshold applicable to Under threshold Class A",null,"The Revenue from corporate services forms, or is forecast to form, in the upcoming year, not more than: [a] 35% of the combined total revenue in a calendar year from the provision of all professional services; or [b] EUR 100,000, whichever is the higher."]
["Threshold applicable to Under threshold Class B",null,"Holding an aggregate of not more than twenty (20) involvements, as defined above."]
["Ultimate Beneficial Owner (UBO)",null,"Ultimate Beneficial Owner refers to the natural person who ultimately owns or controls a customer and/or the natural person on whose behalf a transaction is being conducted. It also includes those persons who exercise ultimate effective control over a legal person or arrangement."]

{"sheet":"Sheet 1","index":4,"n_rows":1048576,"n_cols":11,"rows_kept":4500,"cut":true,"hidden":false,"merged":[[0,0,0,1],[2,0,2,1]],"bounds":{"rows_first":2000,"rows_last":500,"rows_between":2000,"halvings":0}}
["1. Contact details of the Body Corporate CSP / Individual CSP"]
[null,"Back to Contents"]
[]
["Registered address: ",null,{"$f":"IF(ISTEXT(B4),1,0)","v":0}]
[]
["Telephone number: ",null,{"$f":"IF(ISNUMBER(B6),1,0)","v":0}]
[]
["Mobile number (if applicable): ",null,{"$f":"IF(ISNUMBER(B8),1,0)","v":0}]
[]
["Email address:",null,{"$f":"IF(ISTEXT(B10),1,0)","v":0}]
[]
["Website:",null,{"$f":"IF(ISTEXT(B12),1,0)","v":0}]
[]
["Contact Person: ",null,{"$f":"IF(ISTEXT(B14),1,0)","v":0}]
[]
["Email Address of Contact Person:",null,{"$f":"IF(ISTEXT(B16),1,0)","v":0}]
[]
[null,null,null,"b"]
[null,null,null,"a"]
[]
[null,null,null,"b"]
[null,null,null,"a"]
[]
[null,null,null,"b"]
[null,null,null,"a"]
[]
[null,null,null,"b"]
[null,null,null,"a"]
[]
[null,null,null,"b"]
[null,null,null,"a"]
[]
[null,null,null,"b"]
[null,null,null,"a"]
[]
[null,null,null,"b"]
[null,null,null,"a"]
[]
[null,null,null,"b"]
[null,null,null,"a"]
[]
[null,null,null,"b"]
[null,null,null,"a"]
[]
[null,null,null,"b"]
[null,null,null,"a"]
[]
[null,null,null,"b"]
[null,null,null,"a"]
[]
[null,null,null,"b"]
[null,null,null,"a"]
[]
[null,null,null,"b"]
[null,null,null,"a"]
[]
[null,null,null,"b"]
[null,null,null,"a"]
[]
[null,null,null,"b"]
[null,null,null,"a"]
[]
[null,null,null,"b"]
[null,null,null,"a"]
[]
[null,null,null,"b"]
[null,null,null,"a"]
[]
[null,null,null,"b"]
[null,null,null,"a"]
[]
[null,null,null,"b"]
[null,null,null,"a"]
[]
[null,null,null,"b"]
[null,null,null,"a"]
[]
[null,null,null,"b"]
[null,null,null,"a"]
[]
[null,null,null,"b"]
[null,null,null,"a"]
[]
[null,null,null,"b"]
[null,null,null,"a"]
[]
[null,null,null,"b"]
[null,null,null,"a"]
[]
[null,null,null,"b"]
[null,null,null,"a"]
[]
[null,null,null,"b"]
[null,null,null,"a"]
[]
[null,null,null,"b"]
[null,null,null,"a"]
[]
[null,null,null,"b"]
[null,null,null,"a",null,null,null,null,null,null,{"$f":"SUM(C4:C16)","v":0}]
[]
[null,null,null,"b"]
[null,null,null,"a"]
[]
[null,null,null,"b"]
[null,null,null,"a"]
[]
[null,null,null,"b"]
[null,null,null,"a"]
[]
[null,null,null,"b"]
[null,null,null,"a"]
[]
[null,null,null,"b"]
[null,null,null,"a"]
[]
[null,null,null,"b"]
[null,null,null,"a"]
[]
[null,null,null,"b"]
[null,null,null,"a"]
[]
[null,null,null,"b"]
[null,null,null,"a"]
[]
[null,null,null,"b"]
[null,null,null,"a"]
[]
[null,null,null,"b"]
[null,null,null,"a"]
[]
[null,null,null,"b"]
[null,null,null,"a"]
[]
[null,null,null,"b"]
[null,null,null,"a"]
[]
[null,null,null,"b"]
[null,null,null,"a"]
[]
[null,null,null,"b"]
[null,null,null,"a"]
[]
[null,null,null,"b"]
[null,null,null,"a"]
[]
[null,null,null,"b"]
[null,null,null,"a"]
[]
[null,null,null,"b"]
[null,null,null,"a"]
[]
[null,null,null,"b"]
[null,null,null,"a"]
[]
[null,null,null,"b"]
[null,null,null,"a"]
[]
[null,null,null,"b"]
[null,null,null,"a"]
[]
[null,null,null,"b"]
[null,null,null,"a"]
[]
[null,null,null,"b"]
[null,null,null,"a"]
[]
[null,null,null,"b"]
[null,null,null,"a"]
[]
[null,null,null,"b"]
[null,null,null,"a"]
[]
[null,null,null,"b"]
[null,null,null,"a"]
[]
[null,null,null,"b"]
[null,null,null,"a"]
[]
[null,null,null,"b"]
[null,null,null,"a"]
[]
[null,null,null,"b"]
[null,null,null,"a"]
[]
[null,null,null,"b"]
[null,null,null,"a"]
[]
[null,null,null,"b"]
[null,null,null,"a"]
[]
[null,null,null,"b"]
[null,null,null,"a"]
[]
[null,null,null,"b"]
[null,null,null,"a"]
[]
[null,null,null,"b"]
[null,null,null,"a"]
[]
[null,null,null,"b"]
[null,null,null,"a"]
[]
[null,null,null,"b"]
[null,null,null,"a"]
[]
[null,null,null,"b"]
[null,null,null,"a"]
[]
[null,null,null,"b"]
[null,null,null,"a"]
[]
[null,null,null,"b"]
[null,null,null,"a"]
[]
[null,null,null,"b"]
[null,null,null,"a"]
[]
[null,null,null,"b"]
[null,null,null,"a"]
[]
[null,null,null,"b"]
[null,null,null,"a"]
[]
[null,null,null,"b"]
[null,null,null,"a"]
[]
[null,null,null,"b"]
[null,null,null,"a"]
[]
[null,null,null,"b"]
[null,null,null,"a"]
[]
[null,null,null,"b"]
[null,null,null,"a"]
[]
[null,null,null,"b"]
[null,null,null,"a"]
[]
[null,null,null,"b"]
[null,null,null,"a"]
[]
[null,null,null,"b"]
[null,null,null,"a"]
[]
[null,null,null,"b"]
[null,null,null,"a"]
[]
[null,null,null,"b"]
[null,null,null,"a"]
[]
[null,null,null,"b"]
[null,null,null,"a"]
[]
[null,null,null,"b"]
[null,null,null,"a"]
[]
[null,null,null,"b"]
[null,null,null,"a"]
[]
[null,null,null,"b"]
[null,null,null,"a"]
[]
[null,null,null,"b"]
[null,null,null,"a"]
[]
[null,null,null,"b"]
[null,null,null,"a"]
[]
[null,null,null,"b"]
[null,null,null,"a"]
[]
[null,null,null,"b"]
[null,null,null,"a"]
[]
[null,null,null,"b"]
[null,null,null,"a"]
[]
[null,null,null,"b"]
[null,null,null,"a"]
[]
[null,null,null,"b"]
[null,null,null,"a"]
[]
[null,null,null,"b"]
[null,null,null,"a"]
[]
[null,null,null,"b"]
[null,null,null,"a"]
[]
[null,null,null,"b"]
[null,null,null,"a"]
[]
[null,null,null,"b"]
[null,null,null,"a"]
[]
[null,null,null,"b"]
[null,null,null,"a"]
[]
[null,null,null,"b"]
[null,null,null,"a"]
[]
[null,null,null,"b"]
[null,null,null,"a"]
[]
[null,null,null,"b"]
[null,null,null,"a"]
[]
[null,null,null,"b"]
[null,null,null,"a"]
[]
[null,null,null,"b"]
[null,null,null,"a"]
[]
[null,null,null,"b"]
[null,null,null,"a"]
[]
[null,null,null,"b"]
[null,null,null,"a"]
[]
[null,null,null,"b"]
[null,null,null,"a"]
[]
[null,null,null,"b"]
[null,null,null,"a"]
[]
[null,null,null,"b"]
[null,null,null,"a"]
[]
[null,null,null,"b"]
[null,null,null,"a"]
[]
[null,null,null,"b"]
[null,null,null,"a"]
[]
[null,null,null,"b"]
[null,null,null,"a"]
[]
[null,null,null,"b"]
[null,null,null,"a"]
[]
[null,null,null,"b"]
[null,null,null,"a"]
[]
[null,null,null,"b"]
[null,null,null,"a"]
[]
[null,null,null,"b"]
[null,null,null,"a"]
[]
[null,null,null,"b"]
[null,null,null,"a"]
[]
[null,null,null,"b"]
[null,null,null,"a"]
[]
[null,null,null,"b"]
[null,null,null,"a"]
[]
[null,null,null,"b"]
[null,null,null,"a"]
[]
[null,null,null,"b"]
[null,null,null,"a"]
[]
[null,null,null,"b"]
[null,null,null,"a"]
[]
[null,null,null,"b"]
[null,null,null,"a"]
[]
[null,null,null,"b"]
[null,null,null,"a"]
[]
[null,null,null,"b"]
[null,null,null,"a"]
[]
[null,null,null,"b"]
[null,null,null,"a"]
[]
[null,null,null,"b"]
[null,null,null,"a"]
[]
[null,null,null,"b"]
[null,null,null,"a"]
[]
[null,null,null,"b"]
[null,null,null,"a"]
[]
[null,null,null,"b"]
[null,null,null,"a"]
[]
[null,null,null,"b"]
[null,null,null,"a"]
[]
[null,null,null,"b"]
[null,null,null,"a"]
[]
[null,null,null,"b"]
[null,null,null,"a"]
[]
[null,null,null,"b"]
[null,null,null,"a"]
[]
[null,null,null,"b"]
[null,null,null,"a"]
[]
[null,null,null,"b"]
[null,null,null,"a"]
[]
[null,null,null,"b"]
[null,null,null,"a"]
[]
[null,null,null,"b"]
[null,null,null,"a"]
[]
[null,null,null,"b"]
[null,null,null,"a"]
[]
[null,null,null,"b"]
[null,null,null,"a"]
[]
[null,null,null,"b"]
[null,null,null,"a"]
[]
[null,null,null,"b"]
[null,null,null,"a"]
[]
[null,null,null,"b"]
[null,null,null,"a"]
[]
[null,null,null,"b"]
[null,null,null,"a"]
[]
[null,null,null,"b"]
[null,null,null,"a"]
[]
[null,null,null,"b"]
[null,null,null,"a"]
[]
[null,null,null,"b"]
[null,null,null,"a"]
[]
[null,null,null,"b"]
[null,null,null,"a"]
[]
[null,null,null,"b"]
[null,null,null,"a"]
[]
[null,null,null,"b"]
[null,null,null,"a"]
[]
[null,null,null,"b"]
[null,null,null,"a"]
[]
[null,null,null,"b"]
[null,null,null,"a"]
[]
[null,null,null,"b"]
[null,null,null,"a"]
[]
[null,null,null,"b"]
[null,null,null,"a"]
[]
[null,null,null,"b"]
[null,null,null,"a"]
[]
[null,null,null,"b"]
[null,null,null,"a"]
[]
[null,null,null,"b"]
[null,null,null,"a"]
[]
[null,null,null,"b"]
[null,null,null,"a"]
[]
[null,null,null,"b"]
[null,null,null,"a"]
[]
[null,null,null,"b"]
[null,null,null,"a"]
[]
[null,null,null,"b"]
[null,null,null,"a"]
[]
[null,null,null,"b"]
[null,null,null,"a"]
[]
[null,null,null,"b"]
[null,null,null,"a"]
[]
[null,null,null,"b"]
[null,null,null,"a"]
[]
[null,null,null,"b"]
[null,null,null,"a"]
[]
[null,null,null,"b"]
[null,null,null,"a"]
[]
[null,null,null,"b"]
[null,null,null,"a"]
[]
[null,null,null,"b"]
[null,null,null,"a"]
[]
[null,null,null,"b"]
[null,null,null,"a"]
[]
[null,null,null,"b"]
[null,null,null,"a"]
[]
[null,null,null,"b"]
[null,null,null,"a"]
[]
[null,null,null,"b"]
[null,null,null,"a"]
[]
[null,null,null,"b"]
[null,null,null,"a"]
[]
[null,null,null,"b"]
[null,null,null,"a"]
[]
[null,null,null,"b"]
[null,null,null,"a"]
[]
[null,null,null,"b"]
[null,null,null,"a"]
[]
[null,null,null,"b"]
[null,null,null,"a"]
[]
[null,null,null,"b"]
[null,null,null,"a"]
[]
[null,null,null,"b"]
[null,null,null,"a"]
[]
[null,null,null,"b"]
[null,null,null,"a"]
[]
[null,null,null,"b"]
[null,null,null,"a"]
[]
[null,null,null,"b"]
[null,null,null,"a"]
[]
[null,null,null,"b"]
[null,null,null,"a"]
[]
[null,null,null,"b"]
[null,null,null,"a"]
[]
[null,null,null,"b"]
[null,null,null,"a"]
[]
[null,null,null,"b"]
[null,null,null,"a"]
[]
[null,null,null,"b"]
[null,null,null,"a"]
[]
[null,null,null,"b"]
[null,null,null,"a"]
[]
[null,null,null,"b"]
[null,null,null,"a"]
[]
[null,null,null,"b"]
[null,null,null,"a"]
[]
[null,null,null,"b"]
[null,null,null,"a"]
[]
[null,null,null,"b"]
[null,null,null,"a"]
[]
[null,null,null,"b"]
[null,null,null,"a"]
[]
[null,null,null,"b"]
[null,null,null,"a"]
[]
[null,null,null,"b"]
[null,null,null,"a"]
[]
[null,null,null,"b"]
[null,null,null,"a"]
[]
[null,null,null,"b"]
[null,null,null,"a"]
[]
[null,null,null,"b"]
[null,null,null,"a"]
[]
[null,null,null,"b"]
[null,null,null,"a"]
[]
[null,null,null,"b"]
[null,null,null,"a"]
[]
[null,null,null,"b"]
[null,null,null,"a"]
[]
[null,null,null,"b"]
[null,null,null,"a"]
[]
[null,null,null,"b"]
[null,null,null,"a"]
[]
[null,null,null,"b"]
[null,null,null,"a"]
[]
[null,null,null,"b"]
[null,null,null,"a"]
[]
[null,null,null,"b"]
[null,null,null,"a"]
[]
[null,null,null,"b"]
[null,null,null,"a"]
[]
[null,null,null,"b"]
[null,null,null,"a"]
[]
[null,null,null,"b"]
[null,null,null,"a"]
[]
[null,null,null,"b"]
[null,null,null,"a"]
[]
[null,null,null,"b"]
[null,null,null,"a"]
[]
[null,null,null,"b"]
[null,null,null,"a"]
[]
[null,null,null,"b"]
[null,null,null,"a"]
[]
[null,null,null,"b"]
[null,null,null,"a"]
[]
[null,null,null,"b"]
[null,null,null,"a"]
[]
[null,null,null,"b"]
[null,null,null,"a"]
[]
[null,null,null,"b"]
[null,null,null,"a"]
[]
[null,null,null,"b"]
[null,null,null,"a"]
[]
[null,null,null,"b"]
[null,null,null,"a"]
[]
[null,null,null,"b"]
[null,null,null,"a"]
[]
[null,null,null,"b"]
[null,null,null,"a"]
[]
[null,null,null,"b"]
[null,null,null,"a"]
[]
[null,null,null,"b"]
[null,null,null,"a"]
[]
[null,null,null,"b"]
[null,null,null,"a"]
[]
[null,null,null,"b"]
[null,null,null,"a"]
[]
[null,null,null,"b"]
[null,null,null,"a"]
[]
[null,null,null,"b"]
[null,null,null,"a"]
[]
[null,null,null,"b"]
[null,null,null,"a"]
[]
[null,null,null,"b"]
[null,null,null,"a"]
[]
[null,null,null,"b"]
[null,null,null,"a"]
[]
[null,null,null,"b"]
[null,null,null,"a"]
[]
[null,null,null,"b"]
[null,null,null,"a"]
[]
[null,null,null,"b"]
[null,null,null,"a"]
[]
[null,null,null,"b"]
[null,null,null,"a"]
[]
[null,null,null,"b"]
[null,null,null,"a"]
[]
[null,null,null,"b"]
[null,null,null,"a"]
[]
[null,null,null,"b"]
[null,null,null,"a"]
[]
[null,null,null,"b"]
[null,null,null,"a"]
[]
[null,null,null,"b"]
[null,null,null,"a"]
[]
[null,null,null,"b"]
[null,null,null,"a"]
[]
[null,null,null,"b"]
[null,null,null,"a"]
[]
[null,null,null,"b"]
[null,null,null,"a"]
[]
[null,null,null,"b"]
[null,null,null,"a"]
[]
[null,null,null,"b"]
[null,null,null,"a"]
[]
[null,null,null,"b"]
[null,null,null,"a"]
[]
[null,null,null,"b"]
[null,null,null,"a"]
[]
[null,null,null,"b"]
[null,null,null,"a"]
[]
[null,null,null,"b"]
[null,null,null,"a"]
[]
[null,null,null,"b"]
[null,null,null,"a"]
[]
[null,null,null,"b"]
[null,null,null,"a"]
[]
[null,null,null,"b"]
[null,null,null,"a"]
[]
[null,null,null,"b"]
[null,null,null,"a"]
[]
[null,null,null,"b"]
[null,null,null,"a"]
[]
[null,null,null,"b"]
[null,null,null,"a"]
[]
[null,null,null,"b"]
[null,null,null,"a"]
[]
[null,null,null,"b"]
[null,null,null,"a"]
[]
[null,null,null,"b"]
[null,null,null,"a"]
[]
[null,null,null,"b"]
[null,null,null,"a"]
[]
[null,null,null,"b"]
[null,null,null,"a"]
[]
[null,null,null,"b"]
[null,null,null,"a"]
[]
[null,null,null,"b"]
[null,null,null,"a"]
[]
[null,null,null,"b"]
[null,null,null,"a"]
[]
[null,null,null,"b"]
[null,null,null,"a"]
[]
[null,null,null,"b"]
[null,null,null,"a"]
[]
[null,null,null,"b"]
[null,null,null,"a"]
[]
[null,null,null,"b"]
[null,null,null,"a"]
[]
[null,null,null,"b"]
[null,null,null,"a"]
[]
[null,null,null,"b"]
[null,null,null,"a"]
[]
[null,null,null,"b"]
[null,null,null,"a"]
[]
[null,null,null,"b"]
[null,null,null,"a"]
[]
[null,null,null,"b"]
[null,null,null,"a"]
[]
[null,null,null,"b"]
[null,null,null,"a"]
[]
[null,null,null,"b"]
[null,null,null,"a"]
[]
[null,null,null,"b"]
[null,null,null,"a"]
[]
[null,null,null,"b"]
[null,null,null,"a"]
[]
[null,null,null,"b"]
[null,null,null,"a"]
[]
[null,null,null,"b"]
[null,null,null,"a"]
[]
[null,null,null,"b"]
[null,null,null,"a"]
[]
[null,null,null,"b"]
[null,null,null,"a"]
[]
[null,null,null,"b"]
[null,null,null,"a"]
[]
[null,null,null,"b"]
[null,null,null,"a"]
[]
[null,null,null,"b"]
[null,null,null,"a"]
[]
[null,null,null,"b"]
[null,null,null,"a"]
[]
[null,null,null,"b"]
[null,null,null,"a"]
[]
[null,null,null,"b"]
[null,null,null,"a"]
[]
[null,null,null,"b"]
[null,null,null,"a"]
[]
[null,null,null,"b"]
[null,null,null,"a"]
[]
[null,null,null,"b"]
[null,null,null,"a"]
[]
[null,null,null,"b"]
[null,null,null,"a"]
[]
[null,null,null,"b"]
[null,null,null,"a"]
[]
[null,null,null,"b"]
[null,null,null,"a"]
[]
[null,null,null,"b"]
[null,null,null,"a"]
[]
[null,null,null,"b"]
[null,null,null,"a"]
[]
[null,null,null,"b"]
[null,null,null,"a"]
[]
[null,null,null,"b"]
[null,null,null,"a"]
[]
[null,null,null,"b"]
[null,null,null,"a"]
[]
[null,null,null,"b"]
[null,null,null,"a"]
[]
[null,null,null,"b"]
[null,null,null,"a"]
[]
[null,null,null,"b"]
[null,null,null,"a"]
[]
[null,null,null,"b"]
[null,null,null,"a"]
[]
[null,null,null,"b"]
[null,null,null,"a"]
[]
[null,null,null,"b"]
[null,null,null,"a"]
[]
[null,null,null,"b"]
[null,null,null,"a"]
[]
[null,null,null,"b"]
[null,null,null,"a"]
[]
[null,null,null,"b"]
[null,null,null,"a"]
[]
[null,null,null,"b"]
[null,null,null,"a"]
[]
[null,null,null,"b"]
[null,null,null,"a"]
[]
[null,null,null,"b"]
[null,null,null,"a"]
[]
[null,null,null,"b"]
[null,null,null,"a"]
[]
[null,null,null,"b"]
[null,null,null,"a"]
[]
[null,null,null,"b"]
[null,null,null,"a"]
[]
[null,null,null,"b"]
[null,null,null,"a"]
[]
[null,null,null,"b"]
[null,null,null,"a"]
[]
[null,null,null,"b"]
[null,null,null,"a"]
[]
[null,null,null,"b"]
[null,null,null,"a"]
[]
[null,null,null,"b"]
[null,null,null,"a"]
[]
[null,null,null,"b"]
[null,null,null,"a"]
[]
[null,null,null,"b"]
[null,null,null,"a"]
[]
[null,null,null,"b"]
[null,null,null,"a"]
[]
[null,null,null,"b"]
[null,null,null,"a"]
[]
[null,null,null,"b"]
[null,null,null,"a"]
[]
[null,null,null,"b"]
[null,null,null,"a"]
[]
[null,null,null,"b"]
[null,null,null,"a"]
[]
[null,null,null,"b"]
[null,null,null,"a"]
[]
[null,null,null,"b"]
[null,null,null,"a"]
[]
[null,null,null,"b"]
[null,null,null,"a"]
[]
[null,null,null,"b"]
[null,null,null,"a"]
[]
[null,null,null,"b"]
[null,null,null,"a"]
[]
[null,null,null,"b"]
[null,null,null,"a"]
[]
[null,null,null,"b"]
[null,null,null,"a"]
[]
[null,null,null,"b"]
[null,null,null,"a"]
[]
[null,null,null,"b"]
[null,null,null,"a"]
[]
[null,null,null,"b"]
[null,null,null,"a"]
[]
[null,null,null,"b"]
[null,null,null,"a"]
[]
[null,null,null,"b"]
[null,null,null,"a"]
[]
[null,null,null,"b"]
[null,null,null,"a"]
[]
[null,null,null,"b"]
[null,null,null,"a"]
[]
[null,null,null,"b"]
[null,null,null,"a"]
[]
[null,null,null,"b"]
[null,null,null,"a"]
[]
[null,null,null,"b"]
[null,null,null,"a"]
[]
[null,null,null,"b"]
[null,null,null,"a"]
[]
[null,null,null,"b"]
[null,null,null,"a"]
[]
[null,null,null,"b"]
[null,null,null,"a"]
[]
[null,null,null,"b"]
[null,null,null,"a"]
[]
[null,null,null,"b"]
[null,null,null,"a"]
[]
[null,null,null,"b"]
[null,null,null,"a"]
[]
[null,null,null,"b"]
[null,null,null,"a"]
[]
[null,null,null,"b"]
[null,null,null,"a"]
[]
[null,null,null,"b"]
[null,null,null,"a"]
[]
[null,null,null,"b"]
[null,null,null,"a"]
[]
[null,null,null,"b"]
[null,null,null,"a"]
[]
[null,null,null,"b"]
[null,null,null,"a"]
[]
[null,null,null,"b"]
[null,null,null,"a"]
[]
[null,null,null,"b"]
[null,null,null,"a"]
[]
[null,null,null,"b"]
[null,null,null,"a"]
[]
[null,null,null,"b"]
[null,null,null,"a"]
[]
[null,null,null,"b"]
[null,null,null,"a"]
[]
[null,null,null,"b"]
[null,null,null,"a"]
[]
[null,null,null,"b"]
[null,null,null,"a"]
[]
[null,null,null,"b"]
[null,null,null,"a"]
[]
[null,null,null,"b"]
[null,null,null,"a"]
[]
[null,null,null,"b"]
[null,null,null,"a"]
[]
[null,null,null,"b"]
[null,null,null,"a"]
[]
[null,null,null,"b"]
[null,null,null,"a"]
[]
[null,null,null,"b"]
[null,null,null,"a"]
[]
[null,null,null,"b"]
[null,null,null,"a"]
[]
[null,null,null,"b"]
[null,null,null,"a"]
[]
[null,null,null,"b"]
[null,null,null,"a"]
[]
[null,null,null,"b"]
[null,null,null,"a"]
[]
[null,null,null,"b"]
[null,null,null,"a"]
[]
[null,null,null,"b"]
[null,null,null,"a"]
[]
[null,null,null,"b"]
[null,null,null,"a"]
[]
[null,null,null,"b"]
[null,null,null,"a"]
[]
[null,null,null,"b"]
[null,null,null,"a"]
[]
[null,null,null,"b"]
[null,null,null,"a"]
[]
[null,null,null,"b"]
[null,null,null,"a"]
[]
[null,null,null,"b"]
[null,null,null,"a"]
[]
[null,null,null,"b"]
[null,null,null,"a"]
[]
[null,null,null,"b"]
[null,null,null,"a"]
[]
[null,null,null,"b"]
[null,null,null,"a"]
[]
[null,null,null,"b"]
[null,null,null,"a"]
[]
[null,null,null,"b"]
[null,null,null,"a"]
[]
[null,null,null,"b"]
[null,null,null,"a"]
[]
[null,null,null,"b"]
[null,null,null,"a"]
[]
[null,null,null,"b"]
[null,null,null,"a"]
[]
[null,null,null,"b"]
[null,null,null,"a"]
[]
[null,null,null,"b"]
[null,null,null,"a"]
[]
[null,null,null,"b"]
[null,null,null,"a"]
[]
[null,null,null,"b"]
[null,null,null,"a"]
[]
[null,null,null,"b"]
[null,null,null,"a"]
[]
[null,null,null,"b"]
[null,null,null,"a"]
[]
[null,null,null,"b"]
[null,null,null,"a"]
[]
[null,null,null,"b"]
[null,null,null,"a"]
[]
[null,null,null,"b"]
[null,null,null,"a"]
[]
[null,null,null,"b"]
[null,null,null,"a"]
[]
[null,null,null,"b"]
[null,null,null,"a"]
[]
[null,null,null,"b"]
[null,null,null,"a"]
[]
[null,null,null,"b"]
[null,null,null,"a"]
[]
[null,null,null,"b"]
[null,null,null,"a"]
[]
[null,null,null,"b"]
[null,null,null,"a"]
[]
[null,null,null,"b"]
[null,null,null,"a"]
[]
[null,null,null,"b"]
[null,null,null,"a"]
[]
[null,null,null,"b"]
[null,null,null,"a"]
[]
[null,null,null,"b"]
[null,null,null,"a"]
[]
[null,null,null,"b"]
[null,null,null,"a"]
[]
[null,null,null,"b"]
[null,null,null,"a"]
[]
[null,null,null,"b"]
[null,null,null,"a"]
[]
[null,null,null,"b"]
[null,null,null,"a"]
[]
[null,null,null,"b"]
[null,null,null,"a"]
[]
[null,null,null,"b"]
[null,null,null,"a"]
[]
[null,null,null,"b"]
[null,null,null,"a"]
[]
[null,null,null,"b"]
[null,null,null,"a"]
[]
[null,null,null,"b"]
[null,null,null,"a"]
[]
[null,null,null,"b"]
[null,null,null,"a"]
[]
[null,null,null,"b"]
[null,null,null,"a"]
[]
[null,null,null,"b"]
[null,null,null,"a"]
[]
[null,null,null,"b"]
[null,null,null,"a"]
[]
[null,null,null,"b"]
[null,null,null,"a"]
[]
[null,null,null,"b"]
[null,null,null,"a"]
[]
[null,null,null,"b"]
[null,null,null,"a"]
[]
[null,null,null,"b"]
[null,null,null,"a"]
[]
[null,null,null,"b"]
[null,null,null,"a"]
[]
[null,null,null,"b"]
[null,null,null,"a"]
[]
[null,null,null,"b"]
[null,null,null,"a"]
[]
[null,null,null,"b"]
[null,null,null,"a"]
[]
[null,null,null,"b"]
[null,null,null,"a"]
[]
[null,null,null,"b"]
[null,null,null,"a"]
[]
[null,null,null,"b"]
[null,null,null,"a"]
[]
[null,null,null,"b"]
[null,null,null,"a"]
[]
[null,null,null,"b"]
[null,null,null,"a"]
[]
[null,null,null,"b"]
[null,null,null,"a"]
[]
[null,null,null,"b"]
[null,null,null,"a"]
[]
[null,null,null,"b"]
[null,null,null,"a"]
[]
[null,null,null,"b"]
[null,null,null,"a"]
[]
[null,null,null,"b"]
[null,null,null,"a"]
[]
[null,null,null,"b"]
[null,null,null,"a"]
[]
[null,null,null,"b"]
[null,null,null,"a"]
[]
[null,null,null,"b"]
[null,null,null,"a"]
[]
[null,null,null,"b"]
[null,null,null,"a"]
[]
[null,null,null,"b"]
[null,null,null,"a"]
[]
[null,null,null,"b"]
[null,null,null,"a"]
[]
[null,null,null,"b"]
[null,null,null,"a"]
[]
[null,null,null,"b"]
[null,null,null,"a"]
[]
[null,null,null,"b"]
[null,null,null,"a"]
[]
[null,null,null,"b"]
[null,null,null,"a"]
[]
[null,null,null,"b"]
[null,null,null,"a"]
[]
[null,null,null,"b"]
[null,null,null,"a"]
[]
[null,null,null,"b"]
[null,null,null,"a"]
[]
[null,null,null,"b"]
[null,null,null,"a"]
[]
[null,null,null,"b"]
[null,null,null,"a"]
[]
[null,null,null,"b"]
[null,null,null,"a"]
[]
[null,null,null,"b"]
[null,null,null,"a"]
[]
[null,null,null,"b"]
[null,null,null,"a"]
[]
[null,null,null,"b"]
[null,null,null,"a"]
[]
[null,null,null,"b"]
[null,null,null,"a"]
[]
[null,null,null,"b"]
[null,null,null,"a"]
[]
[null,null,null,"b"]
[null,null,null,"a"]
[]
[null,null,null,"b"]
[null,null,null,"a"]
[]
[null,null,null,"b"]
[null,null,null,"a"]
[]
[null,null,null,"b"]
[null,null,null,"a"]
[]
[null,null,null,"b"]
[null,null,null,"a"]
[]
[null,null,null,"b"]
[null,null,null,"a"]
[]
[null,null,null,"b"]
[null,null,null,"a"]
[]
[null,null,null,"b"]
[null,null,null,"a"]
[]
[null,null,null,"b"]
[null,null,null,"a"]
[]
[null,null,null,"b"]
[null,null,null,"a"]
[]
[null,null,null,"b"]
[null,null,null,"a"]
[]
[null,null,null,"b"]
[null,null,null,"a"]
[]
[null,null,null,"b"]
[null,null,null,"a"]
[]
[null,null,null,"b"]
[null,null,null,"a"]
[]
[null,null,null,"b"]
[null,null,null,"a"]
[]
[null,null,null,"b"]
[null,null,null,"a"]
[]
[null,null,null,"b"]
[null,null,null,"a"]
[]
[null,null,null,"b"]
[null,null,null,"a"]
[]
[null,null,null,"b"]
[null,null,null,"a"]
[]
[null,null,null,"b"]
[null,null,null,"a"]
[]
[null,null,null,"b"]
[null,null,null,"a"]
[]
[null,null,null,"b"]
[null,null,null,"a"]
[]
[null,null,null,"b"]
[null,null,null,"a"]
[]
[null,null,null,"b"]
[null,null,null,"a"]
[]
[null,null,null,"b"]
[null,null,null,"a"]
[]
[null,null,null,"b"]
[null,null,null,"a"]
[]
[null,null,null,"b"]
[null,null,null,"a"]
[]
[null,null,null,"b"]
[null,null,null,"a"]
[]
[null,null,null,"b"]
[null,null,null,"a"]
[]
[null,null,null,"b"]
[null,null,null,"a"]
[]
[null,null,null,"b"]
[null,null,null,"a"]
[]
[null,null,null,"b"]
[null,null,null,"a"]
[]
[null,null,null,"b"]
[null,null,null,"a"]
[]
[null,null,null,"b"]
[null,null,null,"a"]
[]
[null,null,null,"b"]
[null,null,null,"a"]
[]
[null,null,null,"b"]
[null,null,null,"a"]
[]
[null,null,null,"b"]
[null,null,null,"a"]
[]
[null,null,null,"b"]
[null,null,null,"a"]
[]
[null,null,null,"b"]
[null,null,null,"a"]
[]
[null,null,null,"b"]
[null,null,null,"a"]
[]
[null,null,null,"b"]
[null,null,null,"a"]
[]
[null,null,null,"b"]
[null,null,null,"a"]
[]
[null,null,null,"b"]
[null,null,null,"a"]
[]
[null,null,null,"b"]
[null,null,null,"a"]
[]
[null,null,null,"b"]
[null,null,null,"a"]
[]
[null,null,null,"b"]
[null,null,null,"a"]
[]
[null,null,null,"b"]
[null,null,null,"a"]
[]
[null,null,null,"b"]
[null,null,null,"a"]
[]
[null,null,null,"b"]
[null,null,null,"a"]
[]
[null,null,null,"b"]
[null,null,null,"a"]
[]
[null,null,null,"b"]
[null,null,null,"a"]
[]
[null,null,null,"b"]
[null,null,null,"a"]
[]
[null,null,null,"b"]
[null,null,null,"a"]
[]
[null,null,null,"b"]
[null,null,null,"a"]
[]
[null,null,null,"b"]
[null,null,null,"a"]
[]
[null,null,null,"b"]
[null,null,null,"a"]
[]
[null,null,null,"b"]
[null,null,null,"a"]
[]
[null,null,null,"b"]
[null,null,null,"a"]
[]
[null,null,null,"b"]
[null,null,null,"a"]
[]
[null,null,null,"b"]
[null,null,null,"a"]
[]
[null,null,null,"b"]
[null,null,null,"a"]
[]
[null,null,null,"b"]
[null,null,null,"a"]
[]
[null,null,null,"b"]
[null,null,null,"a"]
[]
[null,null,null,"b"]
[null,null,null,"a"]
[]
[null,null,null,"b"]
[null,null,null,"a"]
[]
[null,null,null,"b"]
[null,null,null,"a"]
[]
[null,null,null,"b"]
[null,null,null,"a"]
[]
[null,null,null,"b"]
[null,null,null,"a"]
[]
[null,null,null,"b"]
[null,null,null,"a"]
[]
[null,null,null,"b"]
[null,null,null,"a"]
[]
[null,null,null,"b"]
[null,null,null,"a"]
[]
[null,null,null,"b"]
[null,null,null,"a"]
[]
[null,null,null,"b"]
[null,null,null,"a"]
[]
[null,null,null,"b"]
[null,null,null,"a"]
[]
[null,null,null,"b"]
[null,null,null,"a"]
[]
[null,null,null,"b"]
[null,null,null,"a"]
[]
[null,null,null,"b"]
[null,null,null,"a"]
[]
[null,null,null,"b"]
[null,null,null,"a"]
[]
[null,null,null,"b"]
[null,null,null,"a"]
[]
[null,null,null,"b"]
[null,null,null,"a"]
[]
[null,null,null,"b"]
[null,null,null,"a"]
[]
[null,null,null,"b"]
[null,null,null,"a"]
[]
[null,null,null,"b"]
[null,null,null,"a"]
[]
[null,null,null,"b"]
[null,null,null,"a"]
[]
[null,null,null,"b"]
[null,null,null,"a"]
[]
[null,null,null,"b"]
[null,null,null,"a"]
[]
[null,null,null,"b"]
[null,null,null,"a"]
[]
[null,null,null,"b"]
[null,null,null,"a"]
[]
[null,null,null,"b"]
[null,null,null,"a"]
[]
[null,null,null,"b"]
[null,null,null,"a"]
[]
[null,null,null,"b"]
[null,null,null,"a"]
[]
[null,null,null,"b"]
[null,null,null,"a"]
[]
[null,null,null,"b"]
[null,null,null,"a"]
[]
[null,null,null,"b"]
[null,null,null,"a"]
[]
[null,null,null,"b"]
[null,null,null,"a"]
[]
[null,null,null,"b"]
[null,null,null,"a"]
[]
[null,null,null,"b"]
[null,null,null,"a"]
[]
[null,null,null,"b"]
[null,null,null,"a"]
[]
[null,null,null,"b"]
[null,null,null,"a"]
[]
[null,null,null,"b"]
[null,null,null,"a"]
[]
[null,null,null,"b"]
[null,null,null,"a"]
[]
[null,null,null,"b"]
[null,null,null,"a"]
[]
[null,null,null,"b"]
[null,null,null,"a"]
[]
[null,null,null,"b"]
[null,null,null,"a"]
[]
[null,null,null,"b"]
[null,null,null,"a"]
[]
[null,null,null,"b"]
[null,null,null,"a"]
[]
[null,null,null,"b"]
[null,null,null,"a"]
[]
[null,null,null,"b"]
[null,null,null,"a"]
[]
[null,null,null,"b"]
[null,null,null,"a"]
[]
[null,null,null,"b"]
[null,null,null,"a"]
[]
[null,null,null,"b"]
[null,null,null,"a"]
[]
[null,null,null,"b"]
[null,null,null,"a"]
[]
[null,null,null,"b"]
[null,null,null,"a"]
[]
[null,null,null,"b"]
[null,null,null,"a"]
[]
[null,null,null,"b"]
[null,null,null,"a"]
[]
[null,null,null,"b"]
[null,null,null,"a"]
[]
[null,null,null,"b"]
[null,null,null,"a"]
[]
[null,null,null,"b"]
[null,null,null,"a"]
[]
[null,null,null,"b"]
[null,null,null,"a"]
[]
[null,null,null,"b"]
[null,null,null,"a"]
[]
[null,null,null,"b"]
[null,null,null,"a"]
[]
[null,null,null,"b"]
[null,null,null,"a"]
[]
[null,null,null,"b"]
[null,null,null,"a"]
[]
[null,null,null,"b"]
[null,null,null,"a"]
[]
[null,null,null,"b"]
[null,null,null,"a"]
[]
[null,null,null,"b"]
[null,null,null,"a"]
[]
[null,null,null,"b"]
[null,null,null,"a"]
[]
[null,null,null,"b"]
[null,null,null,"a"]
[]
[null,null,null,"b"]
[null,null,null,"a"]
[]
[null,null,null,"b"]
[null,null,null,"a"]
[]
[null,null,null,"b"]
[null,null,null,"a"]
[]
[null,null,null,"b"]
[null,null,null,"a"]
[]
[null,null,null,"b"]
[null,null,null,"a"]
[]
[null,null,null,"b"]
[null,null,null,"a"]
[]
[null,null,null,"b"]
[null,null,null,"a"]
[]
[null,null,null,"b"]
[null,null,null,"a"]
[]
[null,null,null,"b"]
[null,null,null,"a"]
[]
[null,null,null,"b"]
[null,null,null,"a"]
[]
[null,null,null,"b"]
[null,null,null,"a"]
[]
[null,null,null,"b"]
[null,null,null,"a"]
[]
[null,null,null,"b"]
[null,null,null,"a"]
[]
[null,null,null,"b"]
[null,null,null,"a"]
[]
[null,null,null,"b"]
[null,null,null,"a"]
[]
[null,null,null,"b"]
[null,null,null,"a"]
[]
[null,null,null,"b"]
[null,null,null,"a"]
[]
[null,null,null,"b"]
[null,null,null,"a"]
[]
[null,null,null,"b"]
[null,null,null,"a"]
[]
[null,null,null,"b"]
[null,null,null,"a"]
[]
[null,null,null,"b"]
[null,null,null,"a"]
[]
[null,null,null,"b"]
[null,null,null,"a"]
[]
[null,null,null,"b"]
[null,null,null,"a"]
[]
[null,null,null,"b"]
[null,null,null,"a"]
[]
[null,null,null,"b"]
[null,null,null,"a"]
[]
[null,null,null,"b"]
[null,null,null,"a"]
[]
[null,null,null,"b"]
[null,null,null,"a"]
[]
[null,null,null,"b"]
[null,null,null,"a"]
[]
[null,null,null,"b"]
[null,null,null,"a"]
[]
[null,null,null,"b"]
[null,null,null,"a"]
[]
[null,null,null,"b"]
[null,null,null,"a"]
[]
[null,null,null,"b"]
[null,null,null,"a"]
[]
[null,null,null,"b"]
[null,null,null,"a"]
[]
[null,null,null,"b"]
[null,null,null,"a"]
[]
[null,null,null,"b"]
[null,null,null,"a"]
[]
[null,null,null,"b"]
[null,null,null,"a"]
[]
[null,null,null,"b"]
[null,null,null,"a"]
[]
[null,null,null,"b"]
[null,null,null,"a"]
[]
[null,null,null,"b"]
[null,null,null,"a"]
[]
[null,null,null,"b"]
[null,null,null,"a"]
[]
[null,null,null,"b"]
[null,null,null,"a"]
[]
[null,null,null,"b"]
[null,null,null,"a"]
[]
[null,null,null,"b"]
[null,null,null,"a"]
[]
[null,null,null,"b"]
[null,null,null,"a"]
[]
[null,null,null,"b"]
[null,null,null,"a"]
[]
[null,null,null,"b"]
[null,null,null,"a"]
[]
[null,null,null,"b"]
[null,null,null,"a"]
[]
[null,null,null,"b"]
[null,null,null,"a"]
[]
[null,null,null,"b"]
[null,null,null,"a"]
[]
[null,null,null,"b"]
[null,null,null,"a"]
[]
[null,null,null,"b"]
[null,null,null,"a"]
[]
[null,null,null,"b"]
[null,null,null,"a"]
[]
[null,null,null,"b"]
[null,null,null,"a"]
[]
[null,null,null,"b"]
[null,null,null,"a"]
[]
[null,null,null,"b"]
[null,null,null,"a"]
[]
[null,null,null,"b"]
[null,null,null,"a"]
[]
[null,null,null,"b"]
[null,null,null,"a"]
[]
[null,null,null,"b"]
[null,null,null,"a"]
[]
[null,null,null,"b"]
[null,null,null,"a"]
[]
[null,null,null,"b"]
[null,null,null,"a"]
[]
[null,null,null,"b"]
[null,null,null,"a"]
[]
[null,null,null,"b"]
[null,null,null,"a"]
[]
[null,null,null,"b"]
[null,null,null,"a"]
[]
[null,null,null,"b"]
[null,null,null,"a"]
[]
[null,null,null,"b"]
[null,null,null,"a"]
[]
[null,null,null,"b"]
[null,null,null,"a"]
[]
[null,null,null,"b"]
[null,null,null,"a"]
[]
[null,null,null,"b"]
[null,null,null,"a"]
[]
[null,null,null,"b"]
[null,null,null,"a"]
[]
[null,null,null,"b"]
[null,null,null,"a"]
[]
[null,null,null,"b"]
[null,null,null,"a"]
[]
[null,null,null,"b"]
[null,null,null,"a"]
[]
[null,null,null,"b"]
[null,null,null,"a"]
[]
[null,null,null,"b"]
[null,null,null,"a"]
[]
[null,null,null,"b"]
[null,null,null,"a"]
[]
[null,null,null,"b"]
[null,null,null,"a"]
[]
[null,null,null,"b"]
[null,null,null,"a"]
[]
[null,null,null,"b"]
[null,null,null,"a"]
[]
[null,null,null,"b"]
[null,null,null,"a"]
[]
[null,null,null,"b"]
[null,null,null,"a"]
[]
[null,null,null,"b"]
[null,null,null,"a"]
[]
[null,null,null,"b"]
[null,null,null,"a"]
[]
[null,null,null,"a"]
[null,null,null,"b"]
[]
[]
[null,null,null,"a"]
[null,null,null,"a"]
[null,null,null,"b"]
[]
[null,null,null,"a"]
[null,null,null,"a"]
[null,null,null,"b"]
[]
[]
[]
[null,null,null,"a"]
[null,null,null,"b"]
[]
[]
[null,null,null,"a"]
[null,null,null,"b"]
[null,null,null,"b"]
[]
[]
[null,null,null,"a"]
[null,null,null,"b"]
[null,null,null,"b"]
[null,null,null,"a"]
[]
[]
[null,null,null,"a"]
[null,null,null,"b"]
[null,null,null,"b"]
[]
[]
[null,null,null,"a"]
[null,null,null,"b"]
[null,null,null,"b"]
[]
[null,null,null,"a"]
[null,null,null,"a"]
[null,null,null,"b"]
[null,null,null,"b"]
[]
[null,null,null,"a"]
[null,null,null,"a"]
[null,null,null,"b"]
[]
[]
[null,null,null,"a"]
[null,null,null,"a"]
[null,null,null,"b"]
[]
[null,null,null,"a"]
[]
[null,null,null,"a"]
[null,null,null,"b"]
[null,null,null,"b"]
[]
[null,null,null,"a"]
[null,null,null,"a"]
[null,null,null,"a"]
[null,null,null,"b"]
[]
[null,null,null,"a"]
[null,null,null,"a"]
[null,null,null,"b"]
[]
[]
[]
[null,null,null,"a"]
[null,null,null,"b"]
[]
[]
[null,null,null,"a"]
[null,null,null,"b"]
[null,null,null,"b"]
[]
[null,null,null,"a"]
[null,null,null,"a"]
[null,null,null,"a"]
[null,null,null,"a"]
[null,null,null,"b"]
[]
[]
[null,null,null,"a"]
[null,null,null,"b"]
[null,null,null,"b"]
[]
[]
[null,null,null,"a"]
[null,null,null,"b"]
[null,null,null,"b"]
[]
[null,null,null,"a"]
[null,null,null,"a"]
[null,null,null,"b"]
[null,null,null,"b"]
[]
[null,null,null,"a"]
[null,null,null,"a"]
[null,null,null,"b"]
[]
[]
[null,null,null,"a"]
[null,null,null,"b"]
[null,null,null,"a"]
[null,null,null,"b"]
[null,null,null,"b"]
[]
[null,null,null,"a"]
[null,null,null,"b"]
[null,null,null,"b"]
[]
[null,null,null,"a"]
[null,null,null,"a"]
[null,null,null,"a"]
[null,null,null,"b"]
[]
[null,null,null,"a"]
[null,null,null,"a"]
[null,null,null,"b"]
[]
[]
[null,null,null,"a"]
[null,null,null,"a"]
[null,null,null,"b"]
[]
[]
[null,null,null,"a"]
[null,null,null,"b"]
[null,null,null,"b"]
[null,null,null,"a"]
[]
[]
[null,null,null,"a"]
[null,null,null,"a"]
[null,null,null,"b"]
[]
[]
[null,null,null,"a"]
[null,null,null,"b"]
[null,null,null,"b"]
[]
[]
[null,null,null,"a"]
[null,null,null,"b"]
[null,null,null,"b"]
[]
[null,null,null,"a"]
[null,null,null,"a"]
[null,null,null,"b"]
[]
[null,null,null,"a"]
[null,null,null,"a"]
[null,null,null,"a"]
[null,null,null,"b"]
[]
[]
[]
[null,null,null,"a"]
[null,null,null,"b"]
[null,null,null,"b"]
[null,null,null,"b"]
[]
[null,null,null,"a"]
[null,null,null,"b"]
[null,null,null,"b"]
[]
[null,null,null,"a"]
[null,null,null,"a"]
[null,null,null,"a"]
[null,null,null,"b"]
[]
[null,null,null,"a"]
[null,null,null,"a"]
[null,null,null,"b"]
[]
[]
[null,null,null,"a"]
[null,null,null,"b"]
[null,null,null,"b"]
[]
[]
[null,null,null,"a"]
[]
[null,null,null,"a"]
[null,null,null,"b"]
[]
[]
[null,null,null,"a"]
[null,null,null,"a"]
[null,null,null,"b"]
[]
[]
[null,null,null,"a"]
[null,null,null,"b"]
[null,null,null,"b"]
[]
[]
[null,null,null,"a"]
[null,null,null,"b"]
[null,null,null,"b"]
[]
[null,null,null,"a"]
[null,null,null,"a"]
[null,null,null,"b"]
[]
[null,null,null,"a"]
[null,null,null,"a"]
[null,null,null,"a"]
[]
[null,null,null,"b"]
[null,null,null,"b"]
[]
[null,null,null,"a"]
[null,null,null,"b"]
[null,null,null,"b"]
[null,null,null,"b"]
[]
[null,null,null,"a"]
[null,null,null,"b"]
[null,null,null,"b"]
[]
[null,null,null,"a"]
[null,null,null,"a"]
[null,null,null,"b"]
[]
[]
[null,null,null,"a"]
[null,null,null,"a"]
[null,null,null,"b"]
[]
[]
[null,null,null,"a"]
[null,null,null,"b"]
[null,null,null,"b"]
[]
[null,null,null,"b"]
[]
[null,null,null,"a"]
[null,null,null,"a"]
[null,null,null,"b"]
[]
[]
[null,null,null,"a"]
[null,null,null,"a"]
[null,null,null,"b"]
[]
[]
[null,null,null,"a"]
[null,null,null,"b"]
[null,null,null,"b"]
[]
[null,null,null,"a"]
[null,null,null,"b"]
[null,null,null,"b"]
[null,null,null,"b"]
[]
[null,null,null,"a"]
[null,null,null,"a"]
[null,null,null,"b"]
[]
[null,null,null,"a"]
[null,null,null,"b"]
[]
[null,null,null,"a"]
[null,null,null,"b"]
[null,null,null,"b"]
[]
[null,null,null,"a"]
[null,null,null,"b"]
[null,null,null,"b"]
[]
[]
[null,null,null,"a"]
[null,null,null,"b"]
[null,null,null,"b"]
[]
[null,null,null,"a"]
[null,null,null,"a"]
[null,null,null,"b"]
[]
[]
[null,null,null,"a"]
[null,null,null,"a"]
[null,null,null,"b"]
[]
[]
[null,null,null,"a"]
[null,null,null,"b"]
[null,null,null,"a"]
[null,null,null,"b"]
[null,null,null,"b"]
[]
[null,null,null,"a"]
[null,null,null,"a"]
[null,null,null,"b"]
[]
[]
[null,null,null,"a"]
[null,null,null,"b"]
[null,null,null,"b"]
[]
[]
[null,null,null,"a"]
[null,null,null,"b"]
[null,null,null,"b"]
[]
[null,null,null,"a"]
[null,null,null,"b"]
[null,null,null,"b"]
[null,null,null,"b"]
[]
[null,null,null,"a"]
[null,null,null,"a"]
[null,null,null,"b"]
[null,null,null,"b"]
[]
[]
[]
[null,null,null,"a"]
[null,null,null,"b"]
[null,null,null,"b"]
[]
[null,null,null,"a"]
[null,null,null,"b"]
[null,null,null,"b"]
[]
[null,null,null,"a"]
[null,null,null,"a"]
[null,null,null,"b"]
[null,null,null,"b"]
[]
[null,null,null,"a"]
[null,null,null,"a"]
[null,null,null,"b"]
[]
[]
[null,null,null,"a"]
[null,null,null,"a"]
[null,null,null,"b"]
[]
[null,null,null,"a"]
[]
[null,null,null,"a"]
[null,null,null,"a"]
[null,null,null,"b"]
[null,null,null,"b"]
[]
[null,null,null,"a"]
[null,null,null,"a"]
[null,null,null,"b"]
[]
[]
[null,null,null,"a"]
[null,null,null,"b"]
[null,null,null,"b"]
[]
[]
[null,null,null,"a"]
[null,null,null,"b"]
[null,null,null,"b"]
[]
[null,null,null,"a"]
[null,null,null,"b"]
[null,null,null,"b"]
[null,null,null,"b"]
[]
[null,null,null,"a"]
[]
[null,null,null,"a"]
[null,null,null,"b"]
[]
[]
[null,null,null,"a"]
[null,null,null,"b"]
[null,null,null,"b"]
[]
[]
[null,null,null,"a"]
[null,null,null,"b"]
[null,null,null,"b"]
[]
[null,null,null,"a"]
[null,null,null,"a"]
[null,null,null,"b"]
[null,null,null,"b"]
[]
[null,null,null,"a"]
[null,null,null,"a"]
[null,null,null,"b"]
[]
[]
[null,null,null,"a"]
[null,null,null,"a"]
[null,null,null,"a"]
[null,null,null,"b"]
[null,null,null,"b"]
[]
[null,null,null,"a"]
[null,null,null,"a"]
[null,null,null,"b"]
[]
[]
[null,null,null,"a"]
[null,null,null,"a"]
[null,null,null,"b"]
[]
[]
[null,null,null,"a"]
[null,null,null,"b"]
[null,null,null,"b"]
[]
[]
[null,null,null,"a"]
[null,null,null,"b"]
[null,null,null,"b"]
[]
[null,null,null,"a"]
[null,null,null,"b"]
[null,null,null,"b"]
[]
[null,null,null,"b"]
[]
[]
[null,null,null,"a"]
[null,null,null,"b"]
[]
[]
[null,null,null,"a"]
[null,null,null,"b"]
[null,null,null,"b"]
[]
[]
[null,null,null,"a"]
[null,null,null,"b"]
[null,null,null,"b"]
[]
[null,null,null,"a"]
[null,null,null,"a"]
[null,null,null,"b"]
[null,null,null,"b"]
[]
[null,null,null,"a"]
[null,null,null,"a"]
[null,null,null,"b"]
[]
[]
[]
[null,null,null,"a"]
[null,null,null,"a"]
[null,null,null,"b"]
[null,null,null,"b"]
[]
[null,null,null,"a"]
[null,null,null,"a"]
[null,null,null,"b"]
[]
[]
[null,null,null,"a"]
[null,null,null,"a"]
[null,null,null,"b"]
[]
[]
[null,null,null,"a"]
[null,null,null,"b"]
[null,null,null,"b"]
[]
[]
[null,null,null,"a"]
[null,null,null,"b"]
[null,null,null,"b"]
[]
[]
[null,null,null,"a"]
[null,null,null,"a"]
[null,null,null,"b"]
[]
[]
[]
[null,null,null,"a"]
[null,null,null,"b"]
[]
[]
[null,null,null,"a"]
[null,null,null,"b"]
[null,null,null,"b"]
[]
[]
[null,null,null,"a"]
[null,null,null,"b"]
[null,null,null,"b"]
[]
[null,null,null,"a"]
[null,null,null,"a"]
[null,null,null,"b"]
[]
[]
[null,null,null,"a"]
[]
[null,null,null,"a"]
[null,null,null,"b"]
[null,null,null,"b"]
[]
[null,null,null,"a"]
[null,null,null,"a"]
[null,null,null,"b"]
[null,null,null,"b"]
[]
[null,null,null,"a"]
[null,null,null,"a"]
[null,null,null,"b"]
[]
[]
[null,null,null,"a"]
[null,null,null,"a"]
[null,null,null,"b"]
[]
[]
[null,null,null,"a"]
[null,null,null,"b"]
[]
[]
[null,null,null,"a"]
[null,null,null,"b"]
[null,null,null,"b"]
[]
[null,null,null,"b"]
[]
[null,null,null,"a"]
[null,null,null,"a"]
[null,null,null,"b"]
[]
[]
[]
[null,null,null,"a"]
[null,null,null,"b"]
[]
[]
[null,null,null,"a"]
[null,null,null,"b"]
[null,null,null,"b"]
[]
[]
[null,null,null,"a"]
[null,null,null,"b"]
[null,null,null,"b"]
[]
[null,null,null,"a"]
[null,null,null,"a"]
[null,null,null,"b"]
[]
[null,null,null,"b"]
[]
[]
[null,null,null,"a"]
[null,null,null,"b"]
[null,null,null,"b"]
[]
[null,null,null,"a"]
[null,null,null,"a"]
[null,null,null,"b"]
[null,null,null,"b"]
[]
[null,null,null,"a"]
[null,null,null,"a"]
[null,null,null,"b"]
[]
[]
[null,null,null,"a"]
[null,null,null,"b"]
[null,null,null,"b"]
[]
[]
[null,null,null,"a"]
[null,null,null,"b"]
[]
[]
[null,null,null,"b"]
[null,null,null,"a"]
[null,null,null,"a"]
[null,null,null,"a"]
[null,null,null,"b"]
[]
[null,null,null,"a"]
[null,null,null,"a"]
[null,null,null,"b"]
[]
[]
[]
[null,null,null,"a"]
[null,null,null,"b"]
[]
[]
[null,null,null,"a"]
[null,null,null,"b"]
[null,null,null,"b"]
[]
[null,null,null,"a"]
[null,null,null,"a"]
[null,null,null,"b"]
[null,null,null,"b"]
[]
[null,null,null,"a"]
[null,null,null,"a"]
[null,null,null,"b"]
[null,null,null,"b"]
[null,null,null,"b"]
[]
[]
[null,null,null,"a"]
[null,null,null,"b"]
[null,null,null,"b"]
[]
[null,null,null,"a"]
[null,null,null,"a"]
[null,null,null,"b"]
[null,null,null,"b"]
[]
[null,null,null,"a"]
[null,null,null,"a"]
[null,null,null,"b"]
[]
[]
[null,null,null,"a"]
[null,null,null,"b"]
[]
[]
[]
[null,null,null,"a"]
[null,null,null,"b"]
[null,null,null,"b"]
[null,null,null,"b"]
[]
[null,null,null,"a"]
[null,null,null,"a"]
[null,null,null,"a"]
[null,null,null,"b"]
[]
[null,null,null,"a"]
[null,null,null,"a"]
[null,null,null,"b"]
[]
[]
[null,null,null,"a"]
[null,null,null,"b"]
[null,null,null,"b"]
[]
[]
[null,null,null,"a"]
[null,null,null,"b"]
[null,null,null,"b"]
[]
[null,null,null,"a"]
[null,null,null,"a"]
[null,null,null,"b"]
[null,null,null,"b"]
[null,null,null,"b"]
[]
[]
[null,null,null,"a"]
[null,null,null,"b"]
[null,null,null,"b"]
[]
[]
[null,null,null,"a"]
[null,null,null,"b"]
[null,null,null,"b"]
[]
[null,null,null,"a"]
[null,null,null,"a"]
[null,null,null,"b"]
[]
[null,null,null,"a"]
[null,null,null,"a"]
[null,null,null,"a"]
[null,null,null,"b"]
[]
[]
[null,null,null,"a"]
[null,null,null,"b"]
[]
[]
[]
[null,null,null,"a"]
[null,null,null,"a"]
[null,null,null,"b"]
[null,null,null,"b"]
[]
[null,null,null,"a"]
[null,null,null,"a"]
[null,null,null,"b"]
[null,null,null,"b"]
[]
[null,null,null,"a"]
[null,null,null,"a"]
[null,null,null,"b"]
[]
[]
[null,null,null,"a"]
[null,null,null,"b"]
[null,null,null,"b"]
[]
[]
[null,null,null,"a"]
[null,null,null,"b"]
[null,null,null,"b"]
[]
[null,null,null,"a"]
[null,null,null,"a"]
[null,null,null,"a"]
[null,null,null,"a"]
[null,null,null,"b"]
[]
[]
[null,null,null,"a"]
[null,null,null,"b"]
[null,null,null,"b"]
[]
[null,null,null,"a"]
[null,null,null,"b"]
[null,null,null,"b"]
[null,null,null,"b"]
[]
[null,null,null,"a"]
[null,null,null,"a"]
[null,null,null,"b"]
[]
[null,null,null,"a"]
[null,null,null,"a"]
[null,null,null,"a"]
[null,null,null,"b"]
[]
[]
[null,null,null,"a"]
[null,null,null,"b"]
[null,null,null,"a"]
[null,null,null,"b"]
[null,null,null,"b"]
[]
[null,null,null,"a"]
[null,null,null,"b"]
[null,null,null,"b"]
[]
[null,null,null,"a"]
[null,null,null,"a"]
[null,null,null,"b"]
[]
[]
[null,null,null,"a"]
[null,null,null,"a"]
[null,null,null,"b"]
[]
[]
[null,null,null,"a"]
[null,null,null,"b"]
[null,null,null,"b"]
[]
[]
[null,null,null,"a"]
[null,null,null,"b"]
[null,null,null,"b"]
[]
[null,null,null,"a"]
[]
[null,null,null,"a"]
[null,null,null,"a"]
[null,null,null,"b"]
[]
[]
[null,null,null,"a"]
[null,null,null,"b"]
[null,null,null,"b"]
[]
[null,null,null,"a"]
[null,null,null,"b"]
[null,null,null,"b"]
[null,null,null,"b"]
[]
[null,null,null,"a"]
[null,null,null,"a"]
[null,null,null,"b"]
[]
[null,null,null,"a"]
[null,null,null,"a"]
[null,null,null,"a"]
[null,null,null,"b"]
[]
[]
[null,null,null,"a"]
[null,null,null,"a"]
[null,null,null,"b"]
[null,null,null,"b"]
[]
[null,null,null,"a"]
[null,null,null,"a"]
[null,null,null,"b"]
[null,null,null,"b"]
[]
[null,null,null,"a"]
[null,null,null,"a"]
[null,null,null,"b"]
[]
[]
[null,null,null,"a"]
[null,null,null,"a"]
[null,null,null,"b"]
[]
[]
[null,null,null,"a"]
[null,null,null,"b"]
[null,null,null,"b"]
[]
[]
[null,null,null,"a"]
[null,null,null,"a"]
[null,null,null,"a"]
[null,null,null,"b"]
[]
[]
[null,null,null,"a"]
[null,null,null,"b"]
[null,null,null,"b"]
[]
[]
[null,null,null,"a"]
[null,null,null,"b"]
[null,null,null,"b"]
[]
[null,null,null,"a"]
[null,null,null,"b"]
[null,null,null,"b"]
[null,null,null,"b"]
[]
[null,null,null,"a"]
[null,null,null,"a"]
[null,null,null,"b"]
[]
[null,null,null,"a"]
[null,null,null,"a"]
[null,null,null,"b"]
[null,null,null,"b"]
[]
[null,null,null,"b"]
[]
[null,null,null,"a"]
[null,null,null,"b"]
[null,null,null,"b"]
[]
[null,null,null,"a"]
[null,null,null,"a"]
[null,null,null,"b"]
[null,null,null,"b"]
[]
[null,null,null,"a"]
[null,null,null,"a"]
[null,null,null,"b"]
[]
[]
[null,null,null,"a"]
[null,null,null,"a"]
[null,null,null,"b"]
[]
[]
[null,null,null,"a"]
[null,null,null,"b"]
[null,null,null,"b"]
[]
[]
[]
[null,null,null,"a"]
[null,null,null,"a"]
[null,null,null,"b"]
[]
[]
[null,null,null,"a"]
[null,null,null,"b"]
[null,null,null,"b"]
[]
[]
[null,null,null,"a"]
[null,null,null,"b"]
[null,null,null,"b"]
[]
[null,null,null,"a"]
[null,null,null,"b"]
[null,null,null,"b"]
[null,null,null,"b"]
[]
[null,null,null,"a"]
[null,null,null,"a"]
[null,null,null,"b"]
[]
[null,null,null,"a"]
[]
[null,null,null,"a"]
[null,null,null,"b"]
[null,null,null,"b"]
[]
[]
[null,null,null,"a"]
[null,null,null,"b"]
[null,null,null,"b"]
[]
[null,null,null,"a"]
[null,null,null,"a"]
[null,null,null,"b"]
[null,null,null,"b"]
[]
[null,null,null,"a"]
[null,null,null,"a"]
[null,null,null,"b"]
[]
[]
[null,null,null,"a"]
[null,null,null,"a"]
[null,null,null,"b"]
[]
[]
[null,null,null,"a"]
[null,null,null,"b"]
[null,null,null,"b"]
[null,null,null,"b"]
[]
[]
[null,null,null,"a"]
[null,null,null,"a"]
[null,null,null,"b"]
[]
[]
[null,null,null,"a"]
[null,null,null,"b"]
[null,null,null,"b"]
[]
[]
[null,null,null,"a"]
[null,null,null,"b"]
[null,null,null,"b"]
[]
[null,null,null,"a"]
[null,null,null,"b"]
[null,null,null,"b"]
[]
[null,null,null,"a"]
[null,null,null,"a"]
[null,null,null,"a"]
[null,null,null,"b"]
[null,null,null,"b"]
[]
[]
[null,null,null,"a"]
[null,null,null,"b"]
[null,null,null,"b"]
[]
[]
[null,null,null,"a"]
[null,null,null,"b"]
[null,null,null,"b"]
[]
[null,null,null,"a"]
[null,null,null,"a"]
[null,null,null,"b"]
[null,null,null,"b"]
[]
[null,null,null,"a"]
[null,null,null,"a"]
[null,null,null,"b"]
[]
[]
[null,null,null,"a"]
[null,null,null,"b"]
[null,null,null,"b"]
[]
[null,null,null,"b"]
[]
[null,null,null,"a"]
[null,null,null,"a"]
[null,null,null,"b"]
[]
[]
[null,null,null,"a"]
[null,null,null,"a"]
[null,null,null,"b"]
[]
[]
[null,null,null,"a"]
[null,null,null,"b"]
[]
[]
[null,null,null,"a"]
[null,null,null,"a"]
[null,null,null,"b"]
[null,null,null,"b"]
[]
[null,null,null,"a"]
[null,null,null,"b"]
[null,null,null,"b"]
[]
[null,null,null,"a"]
[null,null,null,"b"]
[]
[null,null,null,"a"]
[null,null,null,"b"]
[]
[]
[null,null,null,"a"]
[null,null,null,"b"]
[null,null,null,"b"]
[]
[]
[null,null,null,"a"]
[null,null,null,"b"]
[null,null,null,"b"]
[]
[null,null,null,"a"]
[null,null,null,"a"]
[null,null,null,"b"]
[]
[]
[null,null,null,"a"]
[null,null,null,"a"]
[null,null,null,"b"]
[]
[]
[null,null,null,"a"]
[null,null,null,"b"]
[null,null,null,"a"]
[null,null,null,"b"]
[null,null,null,"b"]
[]
[null,null,null,"a"]
[null,null,null,"a"]
[null,null,null,"b"]
[]
[]
[null,null,null,"a"]
[null,null,null,"a"]
[null,null,null,"b"]
[]
[]
[null,null,null,"a"]
[null,null,null,"b"]
[]
[]
[null,null,null,"a"]
[null,null,null,"b"]
[null,null,null,"b"]
[null,null,null,"b"]
[]
[null,null,null,"a"]
[null,null,null,"b"]
[null,null,null,"b"]
[null,null,null,"a"]
[]
[]
[]
[null,null,null,"a"]
[null,null,null,"b"]
[]
[]
[null,null,null,"a"]
[null,null,null,"b"]
[null,null,null,"b"]
[]
[null,null,null,"a"]
[null,null,null,"a"]
[null,null,null,"b"]
[null,null,null,"b"]
[]
[null,null,null,"a"]
[null,null,null,"a"]
[null,null,null,"b"]
[]
[]
[null,null,null,"a"]
[null,null,null,"a"]
[null,null,null,"b"]
[]
[null,null,null,"a"]
[]
[null,null,null,"a"]
[null,null,null,"a"]
[null,null,null,"b"]
[null,null,null,"b"]
[]
[null,null,null,"a"]
[null,null,null,"a"]
[null,null,null,"b"]
[]
[]
[null,null,null,"a"]
[null,null,null,"b"]
[]
[]
[]
[null,null,null,"a"]
[null,null,null,"b"]
[]
[]
[null,null,null,"a"]
[null,null,null,"b"]
[null,null,null,"b"]
[null,null,null,"b"]
[]
[null,null,null,"a"]
[null,null,null,"a"]
[null,null,null,"a"]
[null,null,null,"b"]
[]
[]
[]
[null,null,null,"a"]
[null,null,null,"b"]
[]
[]
[null,null,null,"a"]
[null,null,null,"b"]
[null,null,null,"b"]
[]
[null,null,null,"a"]
[null,null,null,"a"]
[null,null,null,"b"]
[null,null,null,"b"]
[]
[null,null,null,"a"]
[null,null,null,"a"]
[null,null,null,"b"]
[]
[]
[null,null,null,"a"]
[null,null,null,"a"]
[null,null,null,"a"]
[null,null,null,"b"]
[null,null,null,"b"]
[]
[null,null,null,"a"]
[null,null,null,"a"]
[null,null,null,"b"]
[]
[]
[null,null,null,"a"]
[null,null,null,"a"]
[null,null,null,"b"]
[]
[]
[null,null,null,"a"]
[null,null,null,"b"]
[]
[]
[]
[null,null,null,"a"]
[null,null,null,"b"]
[]
[]
[null,null,null,"a"]
[null,null,null,"b"]
[null,null,null,"b"]
[]
[null,null,null,"b"]
[]
[null,null,null,"a"]
[null,null,null,"a"]
[null,null,null,"b"]
[]
[]
[null,null,null,"a"]
[null,null,null,"b"]
[null,null,null,"b"]
[]
[]
[null,null,null,"a"]
[null,null,null,"b"]
[null,null,null,"b"]
[]
[null,null,null,"a"]
[null,null,null,"a"]
[null,null,null,"b"]
[null,null,null,"b"]
[]
[null,null,null,"a"]
[null,null,null,"a"]
[null,null,null,"b"]
[]
[]
[]
[]
[null,null,null,"a"]
[null,null,null,"b"]
[null,null,null,"b"]
[]
[null,null,null,"a"]
[null,null,null,"a"]
[null,null,null,"b"]
[]
[null,null,null,"a"]
[null,null,null,"a"]
[null,null,null,"a"]
[null,null,null,"b"]
[]
[]
[null,null,null,"a"]
[null,null,null,"b"]
[]
[]
[]
[null,null,null,"a"]
[null,null,null,"b"]
[]
[]
[null,null,null,"a"]
[]
[null,null,null,"a"]
[null,null,null,"b"]
[]
[]
[null,null,null,"a"]
[null,null,null,"a"]
[null,null,null,"b"]
[]
[]
[null,null,null,"a"]
[null,null,null,"b"]
[null,null,null,"b"]
[]
[]
[null,null,null,"a"]
[null,null,null,"b"]
[null,null,null,"b"]
[]
[null,null,null,"a"]
[null,null,null,"a"]
[null,null,null,"b"]
[null,null,null,"b"]
[]
[null,null,null,"a"]
[null,null,null,"a"]
[]
[null,null,null,"b"]
[null,null,null,"b"]
[]
[null,null,null,"a"]
[null,null,null,"b"]
[null,null,null,"b"]
[null,null,null,"b"]
[]
[null,null,null,"a"]
[null,null,null,"a"]
[null,null,null,"b"]
[]
[null,null,null,"a"]
[null,null,null,"a"]
[null,null,null,"a"]
[null,null,null,"b"]
[]
[]
[null,null,null,"a"]
[null,null,null,"b"]
[]
[]
[null,null,null,"a"]
[null,null,null,"a"]
[null,null,null,"b"]
[]
[null,null,null,"b"]
[]
[null,null,null,"a"]
[null,null,null,"a"]
[null,null,null,"b"]
[]
[]
[null,null,null,"a"]
[null,null,null,"a"]
[null,null,null,"b"]
[]
[]
[null,null,null,"a"]
[null,null,null,"b"]
[null,null,null,"b"]
[]
[]
[null,null,null,"a"]
[null,null,null,"b"]
[null,null,null,"b"]
[]
[null,null,null,"a"]
[null,null,null,"a"]
[null,null,null,"b"]
[]
[]
[null,null,null,"b"]
[]
[null,null,null,"a"]
[null,null,null,"b"]
[null,null,null,"b"]
[]
[null,null,null,"a"]
[null,null,null,"b"]
[null,null,null,"b"]
[null,null,null,"b"]
[]
[null,null,null,"a"]
[null,null,null,"a"]
[null,null,null,"b"]
[]
[null,null,null,"a"]
[null,null,null,"a"]
[null,null,null,"a"]
[null,null,null,"b"]
[]
[]
[null,null,null,"a"]
[null,null,null,"b"]
[]
[]
[null,null,null,"a"]
[null,null,null,"b"]
[null,null,null,"a"]
[null,null,null,"b"]
[null,null,null,"b"]
[]
[null,null,null,"a"]
[null,null,null,"a"]
[null,null,null,"b"]
[]
[]
[null,null,null,"a"]
[null,null,null,"a"]
[null,null,null,"b"]
[]
[]
[null,null,null,"a"]
[null,null,null,"b"]
[null,null,null,"b"]
[]
[]
[null,null,null,"a"]
[null,null,null,"b"]
[null,null,null,"b"]
[]
[null,null,null,"a"]
[null,null,null,"a"]
[null,null,null,"b"]
[null,null,null,"b"]
[null,null,null,"b"]
[]
[]
[null,null,null,"a"]
[null,null,null,"b"]
[null,null,null,"b"]
[]
[null,null,null,"a"]
[null,null,null,"b"]
[null,null,null,"b"]
[null,null,null,"b"]
[]
[null,null,null,"a"]
[null,null,null,"a"]
[null,null,null,"b"]
[]
[null,null,null,"a"]
[null,null,null,"a"]
[null,null,null,"b"]
[]
[]
[null,null,null,"a"]
[null,null,null,"a"]
[null,null,null,"b"]
[]
[null,null,null,"a"]
[]
[null,null,null,"a"]
[null,null,null,"a"]
[null,null,null,"b"]
[null,null,null,"b"]
[]
[null,null,null,"a"]
[null,null,null,"a"]
[null,null,null,"b"]
[]
[]
[null,null,null,"a"]
[null,null,null,"a"]
[null,null,null,"b"]
[]
[]
[null,null,null,"a"]
[null,null,null,"b"]
[null,null,null,"b"]
[]
[null,null,null,"a"]
[null,null,null,"a"]
[null,null,null,"b"]
[null,null,null,"b"]
[]
[null,null,null,"a"]
[]
[null,null,null,"a"]
[null,null,null,"b"]
[null,null,null,"b"]
[]
[]
[null,null,null,"a"]
[null,null,null,"b"]
[null,null,null,"b"]
[]
[null,null,null,"a"]
[null,null,null,"b"]
[null,null,null,"b"]
[]
[]
[null,null,null,"a"]
[null,null,null,"a"]
[null,null,null,"b"]
[]
[null,null,null,"a"]
[null,null,null,"a"]
[null,null,null,"b"]
[]
[]
[null,null,null,"a"]
[null,null,null,"a"]
[null,null,null,"a"]
[null,null,null,"b"]
[null,null,null,"b"]
[]
[null,null,null,"a"]
[null,null,null,"a"]
[null,null,null,"b"]
[null,null,null,"b"]
[]
[null,null,null,"a"]
[null,null,null,"a"]
[null,null,null,"b"]
[]
[]
[null,null,null,"a"]
[null,null,null,"b"]
[null,null,null,"b"]
[]
[]
[null,null,null,"a"]
[null,null,null,"b"]
[null,null,null,"b"]
[]
[null,null,null,"a"]
[null,null,null,"a"]
[null,null,null,"b"]
[null,null,null,"a"]
[null,null,null,"b"]
[]
[]
[null,null,null,"a"]
[null,null,null,"b"]
[null,null,null,"b"]
[]
[]
[null,null,null,"a"]
[null,null,null,"b"]
[null,null,null,"b"]
[]
[null,null,null,"a"]
[null,null,null,"b"]
[null,null,null,"b"]
[]
[null,null,null,"a"]
[null,null,null,"a"]
[null,null,null,"a"]
[null,null,null,"b"]
[]
[null,null,null,"a"]
[null,null,null,"a"]
[null,null,null,"b"]
[]
[null,null,null,"a"]
[]
[]
[null,null,null,"a"]
[null,null,null,"b"]
[null,null,null,"b"]
[]
[null,null,null,"a"]
[null,null,null,"a"]
[null,null,null,"b"]
[null,null,null,"b"]
[]
[null,null,null,"a"]
[null,null,null,"a"]
[null,null,null,"b"]
[]
[]
[null,null,null,"a"]
[null,null,null,"b"]
[null,null,null,"b"]
[]
[]
[null,null,null,"a"]
[null,null,null,"b"]
[null,null,null,"b"]
[]
[null,null,null,"a"]
[]
[null,null,null,"a"]
[null,null,null,"a"]
[null,null,null,"b"]
[]
[]
[null,null,null,"a"]
[null,null,null,"b"]
[]
[]
[null,null,null,"a"]
[null,null,null,"b"]
[null,null,null,"b"]
[null,null,null,"b"]
[]
[null,null,null,"a"]
[null,null,null,"b"]
[null,null,null,"b"]
[]
[null,null,null,"a"]
[null,null,null,"a"]
[null,null,null,"a"]
[null,null,null,"b"]
[]
[null,null,null,"a"]
[null,null,null,"a"]
[]
[null,null,null,"b"]
[null,null,null,"b"]
[]
[]
[null,null,null,"a"]
[null,null,null,"b"]
[null,null,null,"b"]
[]
[null,null,null,"a"]
[null,null,null,"a"]
[null,null,null,"b"]
[]
[]
[null,null,null,"a"]
[null,null,null,"a"]
[null,null,null,"b"]
[]
[]
[null,null,null,"a"]
[null,null,null,"b"]
[null,null,null,"b"]
[]
[]
[null,null,null,"a"]
[null,null,null,"b"]
[]
[null,null,null,"b"]
[]
[]
[null,null,null,"a"]
[null,null,null,"b"]
[null,null,null,"b"]
[]
[]
[null,null,null,"a"]
[null,null,null,"b"]
[]
[]
[null,null,null,"a"]
[null,null,null,"b"]
[null,null,null,"b"]
[null,null,null,"b"]
[]
[null,null,null,"a"]
[null,null,null,"b"]
[null,null,null,"b"]
[]
[null,null,null,"a"]
[null,null,null,"a"]
[null,null,null,"a"]
[null,null,null,"b"]
[]
[]
[]
[null,null,null,"a"]
[null,null,null,"b"]
[null,null,null,"b"]
[]
[null,null,null,"a"]
[null,null,null,"a"]
[null,null,null,"b"]
[null,null,null,"b"]
[]
[null,null,null,"a"]
[null,null,null,"a"]
[null,null,null,"b"]
[]
[]
[null,null,null,"a"]
[null,null,null,"a"]
[null,null,null,"b"]
[]
[]
[null,null,null,"a"]
[null,null,null,"b"]
[null,null,null,"b"]
[]
[]
[]
[null,null,null,"a"]
[null,null,null,"a"]
[null,null,null,"b"]
[]
[]
[null,null,null,"a"]
[null,null,null,"b"]
[]
[]
[]
[null,null,null,"a"]
[null,null,null,"b"]
[]
[]
[null,null,null,"a"]
[null,null,null,"b"]
[null,null,null,"b"]
[null,null,null,"b"]
[]
[null,null,null,"a"]
[null,null,null,"b"]
[null,null,null,"b"]
[]
[null,null,null,"a"]
[null,null,null,"a"]
[null,null,null,"b"]
[null,null,null,"b"]
[null,null,null,"b"]
[]
[]
[null,null,null,"a"]
[null,null,null,"b"]
[null,null,null,"b"]
[]
[null,null,null,"a"]
[null,null,null,"a"]
[null,null,null,"b"]
[null,null,null,"b"]
[]
[null,null,null,"a"]
[null,null,null,"a"]
[null,null,null,"b"]
[]
[]
[null,null,null,"a"]
[null,null,null,"a"]
[null,null,null,"b"]
[]
[]
[null,null,null,"a"]
[null,null,null,"b"]
[null,null,null,"b"]
[null,null,null,"b"]
[]
[null,null,null,"a"]
[null,null,null,"a"]
[null,null,null,"a"]
[null,null,null,"b"]
[]
[]
[null,null,null,"a"]
[null,null,null,"b"]
[]
[]
[]
[null,null,null,"a"]
[null,null,null,"b"]
[]
[]
[null,null,null,"a"]
[null,null,null,"b"]
[null,null,null,"b"]
[null,null,null,"b"]
[]
[null,null,null,"a"]
[null,null,null,"b"]
[null,null,null,"b"]
[]
[null,null,null,"b"]
[]
[null,null,null,"a"]
[null,null,null,"b"]
[null,null,null,"b"]
[]
[]
[null,null,null,"a"]
[null,null,null,"b"]
[null,null,null,"b"]
[]
[null,null,null,"a"]
[null,null,null,"a"]
[null,null,null,"b"]
[null,null,null,"b"]
[]
[null,null,null,"a"]
[null,null,null,"a"]
[null,null,null,"b"]
[]
[]
[null,null,null,"a"]
[null,null,null,"b"]
[null,null,null,"b"]
[]
[]
[null,null,null,"b"]
[null,null,null,"a"]
[null,null,null,"a"]
[null,null,null,"b"]
[]
[null,null,null,"a"]
[null,null,null,"a"]
[null,null,null,"a"]
[null,null,null,"b"]
[]
[]
[null,null,null,"a"]
[null,null,null,"b"]
[]
[]
[]
[null,null,null,"a"]
[null,null,null,"b"]
[]
[]
[null,null,null,"a"]
[null,null,null,"b"]
[null,null,null,"b"]
[]
[null,null,null,"a"]
[null,null,null,"a"]
[null,null,null,"b"]
[null,null,null,"a"]
[null,null,null,"b"]
[]
[]
[null,null,null,"a"]
[null,null,null,"b"]
[null,null,null,"b"]
[]
[]
[null,null,null,"a"]
[null,null,null,"b"]
[null,null,null,"b"]
[]
[null,null,null,"a"]
[null,null,null,"a"]
[null,null,null,"b"]
[null,null,null,"b"]
[]
[null,null,null,"a"]
[null,null,null,"a"]
[null,null,null,"b"]
[]
[]
[null,null,null,"a"]
[null,null,null,"b"]
[]
[null,null,null,"a"]
[null,null,null,"b"]
[]
[null,null,null,"a"]
[null,null,null,"a"]
[null,null,null,"b"]
[]
[null,null,null,"a"]
[null,null,null,"a"]
[null,null,null,"a"]
[null,null,null,"b"]
[]
[]
[null,null,null,"a"]
[null,null,null,"b"]
[]
[]
[null,null,null,"a"]
[null,null,null,"b"]
[null,null,null,"b"]
[]
[]
[null,null,null,"a"]
[null,null,null,"b"]
[null,null,null,"b"]
[]
[null,null,null,"a"]
[]
[null,null,null,"a"]
[null,null,null,"a"]
[null,null,null,"b"]
[]
[]
[null,null,null,"a"]
[null,null,null,"b"]
[null,null,null,"b"]
[]
[]
[null,null,null,"a"]
[null,null,null,"b"]
[null,null,null,"b"]
[]
[null,null,null,"a"]
[null,null,null,"a"]
[null,null,null,"b"]
[]
[]
[null,null,null,"a"]
[null,null,null,"a"]
[null,null,null,"b"]
[]
[]
[null,null,null,"a"]
[null,null,null,"a"]
[null,null,null,"b"]
[null,null,null,"b"]
[null,null,null,"b"]
[]
[null,null,null,"a"]
[null,null,null,"a"]
[null,null,null,"b"]
[]
[null,null,null,"a"]
[null,null,null,"a"]
[null,null,null,"b"]
[null,null,null,"b"]
[]
[]
[null,null,null,"a"]
[null,null,null,"b"]
[]
[]
[null,null,null,"a"]
[null,null,null,"b"]
[null,null,null,"b"]
[]
[]
[null,null,null,"a"]
[null,null,null,"b"]
[]
[null,null,null,"b"]
[]
[]
[null,null,null,"a"]
[null,null,null,"a"]
[null,null,null,"b"]
[]
[]
[null,null,null,"a"]
[null,null,null,"b"]
[null,null,null,"b"]
[]
[null,null,null,"a"]
[null,null,null,"a"]
[null,null,null,"b"]
[null,null,null,"b"]
[]
[null,null,null,"a"]
[null,null,null,"a"]
[null,null,null,"b"]
[]
[]
[null,null,null,"a"]
[null,null,null,"a"]
[null,null,null,"b"]
[]
[null,null,null,"b"]
[]
[null,null,null,"a"]
[null,null,null,"b"]
[null,null,null,"b"]
[null,null,null,"b"]
[]
[null,null,null,"a"]
[null,null,null,"a"]
[null,null,null,"b"]
[]
[null,null,null,"a"]
[null,null,null,"a"]
[null,null,null,"b"]
[]
[]
[null,null,null,"a"]
[null,null,null,"a"]
[null,null,null,"b"]
[]
[]
[null,null,null,"a"]
[null,null,null,"b"]
[null,null,null,"b"]
[]
[]
[]
[null,null,null,"a"]
[null,null,null,"a"]
[null,null,null,"b"]
[]
[]
[null,null,null,"a"]
[null,null,null,"a"]
[null,null,null,"b"]
[]
[]
[null,null,null,"a"]
[null,null,null,"b"]
[null,null,null,"b"]
[]
[null,null,null,"a"]
[null,null,null,"a"]
[null,null,null,"b"]
[null,null,null,"b"]
[]
[null,null,null,"a"]
[null,null,null,"a"]
[null,null,null,"b"]
[]
[]
[null,null,null,"a"]
[null,null,null,"b"]
[null,null,null,"a"]
[null,null,null,"b"]
[null,null,null,"b"]
[]
[null,null,null,"a"]
[null,null,null,"b"]
[null,null,null,"b"]
[]
[null,null,null,"a"]
[null,null,null,"a"]
[null,null,null,"a"]
[null,null,null,"b"]
[]
[null,null,null,"a"]
[null,null,null,"a"]
[null,null,null,"b"]
[]
[]
[null,null,null,"a"]
[null,null,null,"a"]
[null,null,null,"b"]
[]
[]
[null,null,null,"a"]
[null,null,null,"b"]
[null,null,null,"b"]
[null,null,null,"b"]
[null,null,null,"b"]
[]
[null,null,null,"a"]
[null,null,null,"a"]
[null,null,null,"b"]
[]
[]
[null,null,null,"a"]
[null,null,null,"b"]
[null,null,null,"b"]
[]
[]
[null,null,null,"a"]
[null,null,null,"b"]
[null,null,null,"b"]
[]
[null,null,null,"a"]
[null,null,null,"a"]
[null,null,null,"b"]
[null,null,null,"b"]
[]
[null,null,null,"a"]
[null,null,null,"a"]
[null,null,null,"b"]
[null,null,null,"b"]
[]
[]
[null,null,null,"a"]
[null,null,null,"a"]
[null,null,null,"b"]
[null,null,null,"b"]
[]
[null,null,null,"a"]
[null,null,null,"b"]
[null,null,null,"b"]
[]
[null,null,null,"a"]
[null,null,null,"a"]
[null,null,null,"a"]
[null,null,null,"b"]
[]
[null,null,null,"a"]
[null,null,null,"a"]
[null,null,null,"b"]
[]
[]
[null,null,null,"a"]
[null,null,null,"a"]
[null,null,null,"b"]
[]
[null,null,null,"b"]
[null,null,null,"b"]
[null,null,null,"a"]
[]
[null,null,null,"b"]
[null,null,null,"a"]
[]
[null,null,null,"b"]
[null,null,null,"a"]
[]
[null,null,null,"b"]
[null,null,null,"a"]
[]
[null,null,null,"b"]
[null,null,null,"a"]
[]
[null,null,null,"b"]
[null,null,null,"a"]
[]
[null,null,null,"b"]
[null,null,null,"a"]
[]
[null,null,null,"b"]
[null,null,null,"a"]
[]
[null,null,null,"b"]
[null,null,null,"a"]
[]
[null,null,null,"b"]
[null,null,null,"a"]
[]
[null,null,null,"b"]
[null,null,null,"a"]
[]
[null,null,null,"b"]
[null,null,null,"a"]
[]
[null,null,null,"b"]
[null,null,null,"a"]
[]
[null,null,null,"b"]
[null,null,null,"a"]
[]
[null,null,null,"b"]
[null,null,null,"a"]
[]
[null,null,null,"b"]
[null,null,null,"a"]
[]
[null,null,null,"b"]
[null,null,null,"a"]
[]
[null,null,null,"b"]
[null,null,null,"a"]
[]
[null,null,null,"b"]
[null,null,null,"a"]
[]
[null,null,null,"b"]
[null,null,null,"a"]
[]
[null,null,null,"b"]
[null,null,null,"a"]
[]
[null,null,null,"b"]
[null,null,null,"a"]
[]
[null,null,null,"b"]
[null,null,null,"a"]
[]
[null,null,null,"b"]
[null,null,null,"a"]
[]
[null,null,null,"b"]
[null,null,null,"a"]
[]
[null,null,null,"b"]
[null,null,null,"a"]
[]
[null,null,null,"b"]
[null,null,null,"a"]
[]
[null,null,null,"b"]
[null,null,null,"a"]
[]
[null,null,null,"b"]
[null,null,null,"a"]
[]
[null,null,null,"b"]
[null,null,null,"a"]
[]
[null,null,null,"b"]
[null,null,null,"a"]
[]
[null,null,null,"b"]
[null,null,null,"a"]
[]
[null,null,null,"b"]
[null,null,null,"a"]
[]
[null,null,null,"b"]
[null,null,null,"a"]
[]
[null,null,null,"b"]
[null,null,null,"a"]
[]
[null,null,null,"b"]
[null,null,null,"a"]
[]
[null,null,null,"b"]
[null,null,null,"a"]
[]
[null,null,null,"b"]
[null,null,null,"a"]
[]
[null,null,null,"b"]
[null,null,null,"a"]
[]
[null,null,null,"b"]
[null,null,null,"a"]
[]
[null,null,null,"b"]
[null,null,null,"a"]
[]
[null,null,null,"b"]
[null,null,null,"a"]
[]
[null,null,null,"b"]
[null,null,null,"a"]
[]
[null,null,null,"b"]
[null,null,null,"a"]
[]
[null,null,null,"b"]
[null,null,null,"a"]
[]
[null,null,null,"b"]
[null,null,null,"a"]
[]
[null,null,null,"b"]
[null,null,null,"a"]
[]
[null,null,null,"b"]
[null,null,null,"a"]
[]
[null,null,null,"b"]
[null,null,null,"a"]
[]
[null,null,null,"b"]
[null,null,null,"a"]
[]
[null,null,null,"b"]
[null,null,null,"a"]
[]
[null,null,null,"b"]
[null,null,null,"a"]
[]
[null,null,null,"b"]
[null,null,null,"a"]
[]
[null,null,null,"b"]
[null,null,null,"a"]
[]
[null,null,null,"b"]
[null,null,null,"a"]
[]
[null,null,null,"b"]
[null,null,null,"a"]
[]
[null,null,null,"b"]
[null,null,null,"a"]
[]
[null,null,null,"b"]
[null,null,null,"a"]
[]
[null,null,null,"b"]
[null,null,null,"a"]
[]
[null,null,null,"b"]
[null,null,null,"a"]
[]
[null,null,null,"b"]
[null,null,null,"a"]
[]
[null,null,null,"b"]
[null,null,null,"a"]
[]
[null,null,null,"b"]
[null,null,null,"a"]
[]
[null,null,null,"b"]
[null,null,null,"a"]
[]
[null,null,null,"b"]
[null,null,null,"a"]
[]
[null,null,null,"b"]
[null,null,null,"a"]
[]
[null,null,null,"b"]
[null,null,null,"a"]
[]
[null,null,null,"b"]
[null,null,null,"a"]
[]
[null,null,null,"b"]
[null,null,null,"a"]
[]
[null,null,null,"b"]
[null,null,null,"a"]
[]
[null,null,null,"b"]
[null,null,null,"a"]
[]
[null,null,null,"b"]
[null,null,null,"a"]
[]
[null,null,null,"b"]
[null,null,null,"a"]
[]
[null,null,null,"b"]
[null,null,null,"a"]
[]
[null,null,null,"b"]
[null,null,null,"a"]
[]
[null,null,null,"b"]
[null,null,null,"a"]
[]
[null,null,null,"b"]
[null,null,null,"a"]
[]
[null,null,null,"b"]
[null,null,null,"a"]
[]
[null,null,null,"b"]
[null,null,null,"a"]
[]
[null,null,null,"b"]
[null,null,null,"a"]
[]
[null,null,null,"b"]
[null,null,null,"a"]
[]
[null,null,null,"b"]
[null,null,null,"a"]
[]
[null,null,null,"b"]
[null,null,null,"a"]
[]
[null,null,null,"b"]
[null,null,null,"a"]
[]
[null,null,null,"b"]
[null,null,null,"a"]
[]
[null,null,null,"b"]
[null,null,null,"a"]
[]
[null,null,null,"b"]
[null,null,null,"a"]
[]
[null,null,null,"b"]
[null,null,null,"a"]
[]
[null,null,null,"b"]
[null,null,null,"a"]
[]
[null,null,null,"b"]
[null,null,null,"a"]
[]
[null,null,null,"b"]
[null,null,null,"a"]
[]
[null,null,null,"b"]
[null,null,null,"a"]
[]
[null,null,null,"b"]
[null,null,null,"a"]
[]
[null,null,null,"b"]
[null,null,null,"a"]
[]
[null,null,null,"b"]
[null,null,null,"a"]
[]
[null,null,null,"b"]
[null,null,null,"a"]
[]
[null,null,null,"b"]
[null,null,null,"a"]
[]
[null,null,null,"b"]
[null,null,null,"a"]
[]
[null,null,null,"b"]
[null,null,null,"a"]
[]
[null,null,null,"b"]
[null,null,null,"a"]
[]
[null,null,null,"b"]
[null,null,null,"a"]
[]
[null,null,null,"b"]
[null,null,null,"a"]
[]
[null,null,null,"b"]
[null,null,null,"a"]
[]
[null,null,null,"b"]
[null,null,null,"a"]
[]
[null,null,null,"b"]
[null,null,null,"a"]
[]
[null,null,null,"b"]
[null,null,null,"a"]
[]
[null,null,null,"b"]
[null,null,null,"a"]
[]
[null,null,null,"b"]
[null,null,null,"a"]
[]
[null,null,null,"b"]
[null,null,null,"a"]
[]
[null,null,null,"b"]
[null,null,null,"a"]
[]
[null,null,null,"b"]
[null,null,null,"a"]
[]
[null,null,null,"b"]
[null,null,null,"a"]
[]
[null,null,null,"b"]
[null,null,null,"a"]
[]
[null,null,null,"b"]
[null,null,null,"a"]
[]
[null,null,null,"b"]
[null,null,null,"a"]
[]
[null,null,null,"b"]
[null,null,null,"a"]
[]
[null,null,null,"b"]
[null,null,null,"a"]
[]
[null,null,null,"b"]
[null,null,null,"a"]
[]
[null,null,null,"b"]
[null,null,null,"a"]
[]
[null,null,null,"b"]
[null,null,null,"a"]
[]
[null,null,null,"b"]
[null,null,null,"a"]
[]
[null,null,null,"b"]
[null,null,null,"a"]
[]
[null,null,null,"b"]
[null,null,null,"a"]
[]
[null,null,null,"b"]
[null,null,null,"a"]
[]
[null,null,null,"b"]
[null,null,null,"a"]
[]
[null,null,null,"b"]
[null,null,null,"a"]
[]
[null,null,null,"b"]
[null,null,null,"a"]
[]
[null,null,null,"b"]
[null,null,null,"a"]
[]
[null,null,null,"b"]
[null,null,null,"a"]
[]
[null,null,null,"b"]
[null,null,null,"a"]
[]
[null,null,null,"b"]
[null,null,null,"a"]
[]
[null,null,null,"b"]
[null,null,null,"a"]
[]
[null,null,null,"b"]
[null,null,null,"a"]
[]
[null,null,null,"b"]
[null,null,null,"a"]
[]
[null,null,null,"b"]
[null,null,null,"a"]
[]
[null,null,null,"b"]
[null,null,null,"a"]
[]
[null,null,null,"b"]
[null,null,null,"a"]
[]
[null,null,null,"b"]
[null,null,null,"a"]
[]
[null,null,null,"b"]
[null,null,null,"a"]
[]
[null,null,null,"b"]
[null,null,null,"a"]
[]
[null,null,null,"b"]
[null,null,null,"a"]
[]
[null,null,null,"b"]
[null,null,null,"a"]
[]
[null,null,null,"b"]
[null,null,null,"a"]
[]
[null,null,null,"b"]
[null,null,null,"a"]
[]
[null,null,null,"b"]
[null,null,null,"a"]
[]
[null,null,null,"b"]
[null,null,null,"a"]
[]
[null,null,null,"b"]
[null,null,null,"a"]
[]
[null,null,null,"b"]
[null,null,null,"a"]
[]
[null,null,null,"b"]
[null,null,null,"a"]
[]
[null,null,null,"b"]
[null,null,null,"a"]
[]
[null,null,null,"b"]
[null,null,null,"a"]
[]
[null,null,null,"b"]
[null,null,null,"a"]
[]
[null,null,null,"b"]
[null,null,null,"a"]
[]
[null,null,null,"b"]
[null,null,null,"a"]
[]
[null,null,null,"b"]
[null,null,null,"a"]
[]
[null,null,null,"b"]
[null,null,null,"a"]
[]
[null,null,null,"b"]
[null,null,null,"a"]
[]
[null,null,null,"b"]
[null,null,null,"a"]
[]
[null,null,null,"b"]
[null,null,null,"a"]
[]
[null,null,null,"b"]
[null,null,null,"a"]
[]
[null,null,null,"b"]
[null,null,null,"a"]
[]
[null,null,null,"b"]
[null,null,null,"a"]
[]
[null,null,null,"b"]
[null,null,null,"a"]
[]
[null,null,null,"b"]
[null,null,null,"a"]
[]
[null,null,null,"b"]
[null,null,null,"a"]
[]
[null,null,null,"b"]
[null,null,null,"a"]
[]
[null,null,null,"b"]
[null,null,null,"a"]

{"sheet":"Sheet 2","index":5,"n_rows":100,"n_cols":11,"rows_kept":100,"cut":false,"hidden":false,"merged":[[0,0,0,2]]}
["2. Directors, Controllers and Key Persons"]
[null,null,"Back to Contents"]
[null,"Response","Comments"]
["a) Organisational chart \n\n[Guidance: Choose N/A only when the CSP has no staff]",null,null,{"$f":"IF('Cover Sheet'!$E$28=Sheet1!$U$16,1,IF(ISBLANK(B4),0,1))","v":0},"a"]
[]
["b) Is there any layering within the shareholding structure?\n\n[Guidance: Choose N/A only in the case of all Individual CSPs]",null,null,{"$f":"IF('Cover Sheet'!$E$28=Sheet1!$U$16,1,IF(ISBLANK(B6),0,1))","v":0},"b"]
[]
["c) Is the Company owned by domestic or foreign individuals?\n\n[Guidance: Choose N/A only in the case of all Individual CSPs]",null,null,{"$f":"IF(OR('Cover Sheet'!$E$28=\"Class B Under Threshold\",$B$6=\"N/A\"),1,IF(ISBLANK(B8),0,1))","v":0},"c"]
[]
["d) Where applicable, is the parent company domestic or foreign?\n\n[Guidance: Choose N/A only in the case of all Individual CSPs]",null,null,{"$f":"IF(OR('Cover Sheet'!$E$28=\"Class B Under Threshold\",$B$6=\"No\",$B$6=\"N/A\"),1,IF(ISBLANK(B10),0,1))","v":0},"d"]
[]
["e) Kindly provide names and information on the following: [as applicable]"]
["1) Directors, indicating which of the Directors are non-Executive Directors",null,null,{"$f":"IF(ISBLANK(B13),0,1)","v":0},"e.1"]
["2) Shareholders / Partners (in case of a civil partnership) \n-[In case of layering please include details of companies and of underlying ultimate beneficial owners]",null,null,{"$f":"IF('Cover Sheet'!$E$28=Sheet1!$U$16,1,IF(ISBLANK(B14),0,1))","v":0},"e.2"]
["3) Senior Managers reporting directly to the Board of Directors or to the Individual CSP",null,null,{"$f":"IF(ISBLANK(B15),0,1)","v":0},"e.3"]
["4) Company Secretary ",null,null,{"$f":"IF(ISBLANK(B16),0,1)","v":0},"e.4"]
["5) Money Laundering Reporting Officer (MLRO)",null,null,{"$f":"IF(ISBLANK(B17),0,1)","v":0},"e.5"]
["6) Compliance Officer",null,null,{"$f":"IF(ISBLANK(B18),0,1)","v":0},"e.6"]
["7) Risk Officer / Individual responsible for the Risk Function in case of derogation in terms of Rule R3-7.3 \n [Guidance: For Class C CSPs only]",null,null,{"$f":"IF(OR('Cover Sheet'!$E$28=Sheet1!$U$12,'Cover Sheet'!$E$28=Sheet1!$U$13,'Cover Sheet'!$E$28=Sheet1!$U$15, 'Cover Sheet'!$E$28=Sheet1!$U$16),1,IF(ISBLANK(B20),0,1))","v":0},"e.7"]
["8) External Auditor\n [Guidance: This is N/A in the case of all Individual CSPs]",null,null,{"$f":"IF(OR('Cover Sheet'!$E$28=Sheet1!$U$15, 'Cover Sheet'!$E$28=Sheet1!$U$16),1,IF(ISBLANK(B20),0,1))","v":0},"e.8"]
[]
[" f) Does the MLRO have any other role in the company - including any interest as a shareholder / beneficial owner?",null,null,{"$f":"IF(ISBLANK(B22),0,1)","v":0},"f"]
[]
["g) Was the FIAU informed of the appointment of the MLRO?",null,null,{"$f":"IF(ISBLANK(B24),0,1)","v":0},"g"]
[]
["h) Were there any changes during the reporting period to the Approved persons of the CSP? \n[Such as Directors, Shareholders, Compliance Officer, MLRO, the Risk Officer or any person responsible for the Risk Management Function \nGuidance: \n1: Risk Officer/ person responsible for the Risk Management Function is applicable only to Class C CSPs\n\n2: Choose N/A only in the case of all Individual CSPs]",null,null,{"$f":"IF(ISBLANK(B26),0,1)","v":0},"h"]
[]
["i) If not notified to the Authority, please explain the reason for not having notified the MFSA and provide details:\n[Guidance: Type N/A if the Authority was notified about the changes] ",null,null,{"$f":"IF(OR($B$26=Sheet1!$N$14,$B$26=Sheet1!$N$13),1,IF(ISBLANK(B28),0,1))","v":0},"i"]
[]
["j) Are there any designated employees or other staff members supporting the MLRO in his functions?\n[Guidance: Provide details in the Comments section if necessary]",null,null,{"$f":"IF(ISBLANK(B30),0,1)","v":0},"j"]
[]
["k) Staff complement - Please indicate: \n[Guidance: If not applicable, kindly enter 0]"]
["1) The number of full-time employees of the CSP;",null,null,{"$f":"IF(ISBLANK(B33),0,1)","v":0},"k.1"]
["2) The number of part-time employees, if any,of theCSP; ",null,null,{"$f":"IF(ISBLANK(B34),0,1)","v":0},"k.2"]
["3) The number of persons employed by other group/related companies and seconded to the CSP (if any).",null,null,{"$f":"IF(ISBLANK(B35),0,1)","v":0},"k.3"]
[]
["l)Has the Individual CSP and/or Approved Persons of the Body Corporate CSP undertaken any training in the reporting period? \n[example: directors, approved officials etc.\nGuidance: Please include details of areas covered and hours in the Comments section]",null,null,{"$f":"IF(ISBLANK(B37),0,1)","v":0},"l"]
[]
["m) Has training been provided to other staff during the reporting period ? \n\n[Guidance: Provide an overview in the Comments section as to the areas covered. Choose N/A only in case the CSP has no staff]",null,null,{"$f":"IF(ISBLANK(B39),0,1)","v":0},"m"]
[]
[]
[]
[]
[]
[]
[]
[]
[]
[]
[]
[]
[]
[]
[]
[]
[]
[]
[]
[]
[]
[]
[]
[]
[]
[]
[]
[]
[]
[]
[]
[]
[]
[]
[]
[]
[]
[]
[]
[]
[]
[]
[]
[]
[]
[]
[]
[]
[]
[]
[]
[]
[]
[]
[]
[]
[]
[]
[]
[]
[null,null,null,null,null,null,null,null,null,null,{"$f":"SUM(D4:D45)","v":0}]

{"sheet":"Sheet 3","index":6,"n_rows":1048576,"n_cols":11,"rows_kept":4500,"cut":true,"hidden":false,"merged":[[30,2,30,4],[27,2,27,4],[28,2,28,4],[6,2,6,4],[20,2,20,4],[22,2,22,4],[0,0,0,3],[1,2,1,4],[2,2,2,4],[4,2,4,4],[26,2,26,4],[23,2,23,4],[3,2,3,4],[5,2,5,4],[19,2,19,4],[40,2,40,4],[41,2,41,4],[42,2,42,4],[21,2,21,4],[36,2,36,4],[35,2,35,4],[37,2,37,4],[38,2,38,4],[39,2,39,4],[31,2,31,4],[32,2,32,4],[33,2,33,4],[34,2,34,4],[24,2,24,4],[25,2,25,4],[29,2,29,4]],"bounds":{"rows_first":2000,"rows_last":500,"rows_between":2000,"halvings":0}}
["3. The activities of the CSP ",null,null,null,"Back to Contents"]
[null,"Response","Comments"]
["a) In respect of the period under review, please describe the main regulated activities of the CSP:\n\n[Guidance: choose Yes/No from the drop down list for the following]",null,null,null,null,null,null,"sheet 3"]
["i) Formation of companies or other legal entities",null,null,null,null,{"$f":"IF(OR('Cover Sheet'!$E$28=Sheet1!$U$13,'Cover Sheet'!$E$28=Sheet1!$U$16),1,IF(ISBLANK(B4),0,1))","v":0},"a.1","sheet 3"]
["ii)Directorships or company secretary services",null,null,null,null,{"$f":"IF(OR('Cover Sheet'!$E$28=Sheet1!$U$12,'Cover Sheet'!$E$28=Sheet1!$U$15),1,IF(ISBLANK(B5),0,1))","v":0},"a.2","sheet 3"]
["iii) Provision of a registered office, a business correspondence or administrative address",null,null,null,null,{"$f":"IF(OR('Cover Sheet'!$E$28=Sheet1!$U$13,'Cover Sheet'!$E$28=Sheet1!$U$16, 'Cover Sheet'!$E$28=Sheet1!$U$15),1,IF(ISBLANK(B6),0,1))","v":0},"a.3","sheet 3"]
["iv) Arranging for another person to be Director/company secretary",null,null,null,null,{"$f":"IF(OR('Cover Sheet'!$E$28=Sheet1!$U$12,'Cover Sheet'!$E$28=Sheet1!$U$16, 'Cover Sheet'!$E$28=Sheet1!$U$15),1,IF(ISBLANK(B7),0,1))","v":0},"a.4","sheet 3"]
[null,null,null,null,null,null,null,"sheet 3"]
["b) Indicate all the individuals and their relation to the LH who are being arranged for to act as a director or company secretary in client entities \n\n[Guidance:\n1: Not Applicable to Class A, Class A under threshold and Class B under threshold\n\n2: Choose POSITION from the drop down list for the each person arranged for]","NAME of individual:","RELATION with CSP: ","POSITION arranged in client entities:","Comments",null,null,"sheet 3"]
[null,null,null,null,null,{"$f":"IF(OR('Cover Sheet'!$E$28=Sheet1!$U$12,'Cover Sheet'!$E$28=Sheet1!$U$16, 'Cover Sheet'!$E$28=Sheet1!$U$15, $B$7=Sheet1!$N$13),1,IF(ISBLANK(B10),0,1))","v":0},"b.1","sheet 3"]
[null,null,null,null,null,{"$f":"IF(OR('Cover Sheet'!$E$28=Sheet1!$U$12,'Cover Sheet'!$E$28=Sheet1!$U$16, 'Cover Sheet'!$E$28=Sheet1!$U$15, $B$7=Sheet1!$N$13),1,IF(ISBLANK(B11),0,1))","v":0},"b.2","sheet 3"]
[null,null,null,null,null,{"$f":"IF(OR('Cover Sheet'!$E$28=Sheet1!$U$12,'Cover Sheet'!$E$28=Sheet1!$U$16, 'Cover Sheet'!$E$28=Sheet1!$U$15, $B$7=Sheet1!$N$13),1,IF(ISBLANK(B12),0,1))","v":0},"b.3","sheet 3"]
[null,null,null,null,null,{"$f":"IF(OR('Cover Sheet'!$E$28=Sheet1!$U$12,'Cover Sheet'!$E$28=Sheet1!$U$16, 'Cover Sheet'!$E$28=Sheet1!$U$15, $B$7=Sheet1!$N$13),1,IF(ISBLANK(B13),0,1))","v":0},"b.4","sheet 3"]
[null,null,null,null,null,{"$f":"IF(OR('Cover Sheet'!$E$28=Sheet1!$U$12,'Cover Sheet'!$E$28=Sheet1!$U$16, 'Cover Sheet'!$E$28=Sheet1!$U$15, $B$7=Sheet1!$N$13),1,IF(ISBLANK(B14),0,1))","v":0},"b.5","sheet 3"]
[null,null,null,null,null,{"$f":"IF(OR('Cover Sheet'!$E$28=Sheet1!$U$12,'Cover Sheet'!$E$28=Sheet1!$U$16, 'Cover Sheet'!$E$28=Sheet1!$U$15, $B$7=Sheet1!$N$13),1,IF(ISBLANK(B15),0,1))","v":0},"b.6","sheet 3"]
[null,null,null,null,null,{"$f":"IF(OR('Cover Sheet'!$E$28=Sheet1!$U$12,'Cover Sheet'!$E$28=Sheet1!$U$16, 'Cover Sheet'!$E$28=Sheet1!$U$15, $B$7=Sheet1!$N$13),1,IF(ISBLANK(B16),0,1))","v":0},"b.7","sheet 3"]
[null,null,null,null,null,{"$f":"IF(OR('Cover Sheet'!$E$28=Sheet1!$U$12,'Cover Sheet'!$E$28=Sheet1!$U$16, 'Cover Sheet'!$E$28=Sheet1!$U$15, $B$7=Sheet1!$N$13),1,IF(ISBLANK(B17),0,1))","v":0},"b.8","sheet 3"]
[null,null,null,null,null,{"$f":"IF(OR('Cover Sheet'!$E$28=Sheet1!$U$12,'Cover Sheet'!$E$28=Sheet1!$U$16, 'Cover Sheet'!$E$28=Sheet1!$U$15, $B$7=Sheet1!$N$13),1,IF(ISBLANK(B18),0,1))","v":0},"b.9","sheet 3"]
[null,null,null,null,null,{"$f":"IF(OR('Cover Sheet'!$E$28=Sheet1!$U$12,'Cover Sheet'!$E$28=Sheet1!$U$16, 'Cover Sheet'!$E$28=Sheet1!$U$15, $B$7=Sheet1!$N$13),1,IF(ISBLANK(B19),0,1))","v":0},"b.10","sheet 3"]
[null,null,null,null,null,null,null,"sheet 3"]
["c) Provide details of the CSP's business plans for the next 12 months\n\n[Guidance: CSPs are expected to include details of any new or current activity the CSP intends to focus on, which sectors will be targeted with respect to marketing and whether the CSP is forecasting an increase in business in the next twelve months] ",null,null,null,null,{"$f":"IF(ISBLANK(B21),0,1)","v":0},"c","sheet 3"]
[null,null,null,null,null,null,null,"sheet 3"]
["d) As at the date of this return, please indicate the number of client entities to which the CSP provides: ",null,null,null,null,null,null,"sheet 3"]
["i) Formation of companies",null,null,null,null,{"$f":"IF('Cover Sheet'!$E$28=\"Class B\",1,IF(ISBLANK(B24),0,1))","v":0},"d.1","sheet 3"]
["ii) Directorship",null,null,null,null,{"$f":"IF(OR('Cover Sheet'!$E$28=Sheet1!$U$12,'Cover Sheet'!$E$28=Sheet1!$U$15),1,IF(ISBLANK(B25),0,1))","v":0},"d.2","sheet 3"]
["iii) Acting as Company Secretary",null,null,null,null,{"$f":"IF(OR('Cover Sheet'!$E$28=Sheet1!$U$12,'Cover Sheet'!$E$28=Sheet1!$U$15),1,IF(ISBLANK(B26),0,1))","v":0},"d.3","sheet 3"]
["iv) Arranging services \n[such as arranging for another person to act as a director of a company, partner in a partnership or in a similar position in relation to other legal entities]",null,null,null,null,{"$f":"IF(OR('Cover Sheet'!$E$28=Sheet1!$U$12,'Cover Sheet'!$E$28=Sheet1!$U$16, 'Cover Sheet'!$E$28=Sheet1!$U$15),1,IF(ISBLANK(B27),0,1))","v":0},"d.4","sheet 3"]
["v) Arranging for another person to act as a secretary of a company",null,null,null,null,{"$f":"IF(OR('Cover Sheet'!$E$28=Sheet1!$U$12,'Cover Sheet'!$E$28=Sheet1!$U$16, 'Cover Sheet'!$E$28=Sheet1!$U$15),1,IF(ISBLANK(B28),0,1))","v":0},"d.5","sheet 3"]
["vi) Provision of registered office, business correspondence or administrative address ",null,null,null,null,{"$f":"IF(OR('Cover Sheet'!$E$28=Sheet1!$U$13,'Cover Sheet'!$E$28=Sheet1!$U$16, 'Cover Sheet'!$E$28=Sheet1!$U$15),1,IF(ISBLANK(B29),0,1))","v":0},"d.6","sheet 3"]
[null,null,null,null,null,null,null,"sheet 3"]
["e) As at 31st December the total number of involvements (as defined in the Glossary) amounted to: ",null,null,null,null,{"$f":"IF(OR('Cover Sheet'!$E$28=\"Class A\",'Cover Sheet'!$E$28=\"Class A under threshold\"),1,IF(ISBLANK(B31),0,1))","v":0},"e.1","sheet 3"]
["f) Does the CSP carry out any other activity apart from the activity for which it is authorised in terms of the CSP Act?",null,null,null,null,{"$f":"IF(ISBLANK(B32),0,1)","v":0},"f.1","sheet 3"]
["Please provide the following:",null,null,null,null,null,"f.2","sheet 3"]
["i) List of non-CSP activities:\n\n[Guidance for Individual CSPs: Therefore including any exempt CSP services such as directorship/company secretary in licenced entities etc, as well as any other non-CSP related business activities]",null,null,null,null,{"$f":"IF($B$32=Sheet1!$N$13,1,IF(ISBLANK(B34),0,1))","v":0},"f.3","sheet 3"]
["ii) Total number of clients to whom non-CSP services are provided",null,null,null,null,{"$f":"IF($B$32=Sheet1!$N$13,1,IF(ISBLANK(B35),0,1))","v":0},"f.4","sheet 3"]
[null,null,null,null,null,null,null,"sheet 3"]
["g) What forms of advertising and marketing are currently being employed? ",null,null,null,null,{"$f":"IF(ISBLANK(B37),0,1)","v":0},"g","sheet 3"]
[null,null,null,null,null,null,null,"sheet 3"]
["h) Does the CSP have any arrangements with third parties to market its services?",null,null,null,null,{"$f":"IF(ISBLANK(B39),0,1)","v":0},"h.1","sheet 3"]
["1) Please indicate with whom",null,null,null,null,{"$f":"IF($B$39=Sheet1!$N$13,1,IF(ISBLANK(B40),0,1))","v":0},"h.2","sheet 3"]
["2) Please provide details as to the level of marketing undertaken by such third parties",null,null,null,null,{"$f":"IF($B$39=Sheet1!$N$13,1,IF(ISBLANK(B41),0,1))","v":0},"h.3","sheet 3"]
[null,null,null,null,null,null,null,"sheet 3"]
["i) What are the online facilities available for customers? \n\n[Guidance: If more than one applies, kindly tick the relevant ones and include others in the comments section]",null,null,null,null,{"$f":"IF(ISBLANK(B43),0,1)","v":0},"i","sheet 3"]
[null,null,null,null,null,null,null,"sheet 3"]
[null,null,null,null,null,null,null,"sheet 3"]
[null,null,null,null,null,null,null,"sheet 3"]
[null,null,null,null,null,null,null,"sheet 3"]
[null,null,null,null,null,null,null,"sheet 3"]
[null,null,null,null,null,null,null,"sheet 3"]
[null,null,null,null,null,null,null,"sheet 3"]
[null,null,null,null,null,null,null,"sheet 3"]
[null,null,null,null,null,null,null,"sheet 3"]
[null,null,null,null,null,null,null,"sheet 3"]
[null,null,null,null,null,null,null,"sheet 3"]
[null,null,null,null,null,null,null,"sheet 3"]
[null,null,null,null,null,null,null,"sheet 3"]
[null,null,null,null,null,null,null,"sheet 3"]
[null,null,null,null,null,null,null,"sheet 3"]
[null,null,null,null,null,null,null,"sheet 3"]
[null,null,null,null,null,null,null,"sheet 3"]
[null,null,null,null,null,null,null,"sheet 3"]
[null,null,null,null,null,null,null,"sheet 3"]
[null,null,null,null,null,null,null,"sheet 3"]
[null,null,null,null,null,null,null,"sheet 3"]
[null,null,null,null,null,null,null,"sheet 3"]
[null,null,null,null,null,null,null,"sheet 3"]
[null,null,null,null,null,null,null,"sheet 3"]
[null,null,null,null,null,null,null,"sheet 3"]
[null,null,null,null,null,null,null,"sheet 3"]
[null,null,null,null,null,null,null,"sheet 3"]
[null,null,null,null,null,null,null,"sheet 3"]
[null,null,null,null,null,null,null,"sheet 3"]
[null,null,null,null,null,null,null,"sheet 3"]
[null,null,null,null,null,null,null,"sheet 3"]
[null,null,null,null,null,null,null,"sheet 3"]
[null,null,null,null,null,null,null,"sheet 3"]
[null,null,null,null,null,null,null,"sheet 3"]
[null,null,null,null,null,null,null,"sheet 3"]
[null,null,null,null,null,null,null,"sheet 3"]
[null,null,null,null,null,null,null,"sheet 3"]
[null,null,null,null,null,null,null,"sheet 3"]
[null,null,null,null,null,null,null,"sheet 3"]
[null,null,null,null,null,null,null,"sheet 3"]
[null,null,null,null,null,null,null,"sheet 3"]
[null,null,null,null,null,null,null,"sheet 3"]
[null,null,null,null,null,null,null,"sheet 3"]
[null,null,null,null,null,null,null,"sheet 3"]
[null,null,null,null,null,null,null,"sheet 3"]
[null,null,null,null,null,null,null,"sheet 3"]
[null,null,null,null,null,null,null,"sheet 3"]
[null,null,null,null,null,null,null,"sheet 3"]
[null,null,null,null,null,null,null,"sheet 3"]
[null,null,null,null,null,null,null,"sheet 3"]
[null,null,null,null,null,null,null,"sheet 3"]
[null,null,null,null,null,null,null,"sheet 3"]
[null,null,null,null,null,null,null,"sheet 3"]
[null,null,null,null,null,null,null,"sheet 3"]
[null,null,null,null,null,null,null,"sheet 3"]
[null,null,null,null,null,null,null,"sheet 3"]
[null,null,null,null,null,null,null,"sheet 3",null,null,{"$f":"SUM(F3:F43)","v":0}]
[null,null,null,null,null,null,null,"sheet 3"]
[null,null,null,null,null,null,null,"sheet 3"]
[null,null,null,null,null,null,null,"sheet 3"]
[null,null,null,null,null,null,null,"sheet 3"]
[null,null,null,null,null,null,null,"sheet 3"]
[null,null,null,null,null,null,null,"sheet 3"]
[null,null,null,null,null,null,null,"sheet 3"]
[null,null,null,null,null,null,null,"sheet 3"]
[null,null,null,null,null,null,null,"sheet 3"]
[null,null,null,null,null,null,null,"sheet 3"]
[null,null,null,null,null,null,null,"sheet 3"]
[null,null,null,null,null,null,null,"sheet 3"]
[null,null,null,null,null,null,null,"sheet 3"]
[null,null,null,null,null,null,null,"sheet 3"]
[null,null,null,null,null,null,null,"sheet 3"]
[null,null,null,null,null,null,null,"sheet 3"]
[null,null,null,null,null,null,null,"sheet 3"]
[null,null,null,null,null,null,null,"sheet 3"]
[null,null,null,null,null,null,null,"sheet 3"]
[null,null,null,null,null,null,null,"sheet 3"]
[null,null,null,null,null,null,null,"sheet 3"]
[null,null,null,null,null,null,null,"sheet 3"]
[null,null,null,null,null,null,null,"sheet 3"]
[null,null,null,null,null,null,null,"sheet 3"]
[null,null,null,null,null,null,null,"sheet 3"]
[null,null,null,null,null,null,null,"sheet 3"]
[null,null,null,null,null,null,null,"sheet 3"]
[null,null,null,null,null,null,null,"sheet 3"]
[null,null,null,null,null,null,null,"sheet 3"]
[null,null,null,null,null,null,null,"sheet 3"]
[null,null,null,null,null,null,null,"sheet 3"]
[null,null,null,null,null,null,null,"sheet 3"]
[null,null,null,null,null,null,null,"sheet 3"]
[null,null,null,null,null,null,null,"sheet 3"]
[null,null,null,null,null,null,null,"sheet 3"]
[null,null,null,null,null,null,null,"sheet 3"]
[null,null,null,null,null,null,null,"sheet 3"]
[null,null,null,null,null,null,null,"sheet 3"]
[null,null,null,null,null,null,null,"sheet 3"]
[null,null,null,null,null,null,null,"sheet 3"]
[null,null,null,null,null,null,null,"sheet 3"]
[null,null,null,null,null,null,null,"sheet 3"]
[null,null,null,null,null,null,null,"sheet 3"]
[null,null,null,null,null,null,null,"sheet 3"]
[null,null,null,null,null,null,null,"sheet 3"]
[null,null,null,null,null,null,null,"sheet 3"]
[null,null,null,null,null,null,null,"sheet 3"]
[null,null,null,null,null,null,null,"sheet 3"]
[null,null,null,null,null,null,null,"sheet 3"]
[null,null,null,null,null,null,null,"sheet 3"]
[null,null,null,null,null,null,null,"sheet 3"]
[null,null,null,null,null,null,null,"sheet 3"]
[null,null,null,null,null,null,null,"sheet 3"]
[null,null,null,null,null,null,null,"sheet 3"]
[null,null,null,null,null,null,null,"sheet 3"]
[null,null,null,null,null,null,null,"sheet 3"]
[null,null,null,null,null,null,null,"sheet 3"]
[null,null,null,null,null,null,null,"sheet 3"]
[null,null,null,null,null,null,null,"sheet 3"]
[null,null,null,null,null,null,null,"sheet 3"]
[null,null,null,null,null,null,null,"sheet 3"]
[null,null,null,null,null,null,null,"sheet 3"]
[null,null,null,null,null,null,null,"sheet 3"]
[null,null,null,null,null,null,null,"sheet 3"]
[null,null,null,null,null,null,null,"sheet 3"]
[null,null,null,null,null,null,null,"sheet 3"]
[null,null,null,null,null,null,null,"sheet 3"]
[null,null,null,null,null,null,null,"sheet 3"]
[null,null,null,null,null,null,null,"sheet 3"]
[null,null,null,null,null,null,null,"sheet 3"]
[null,null,null,null,null,null,null,"sheet 3"]
[null,null,null,null,null,null,null,"sheet 3"]
[null,null,null,null,null,null,null,"sheet 3"]
[null,null,null,null,null,null,null,"sheet 3"]
[null,null,null,null,null,null,null,"sheet 3"]
[null,null,null,null,null,null,null,"sheet 3"]
[null,null,null,null,null,null,null,"sheet 3"]
[null,null,null,null,null,null,null,"sheet 3"]
[null,null,null,null,null,null,null,"sheet 3"]
[null,null,null,null,null,null,null,"sheet 3"]
[null,null,null,null,null,null,null,"sheet 3"]
[null,null,null,null,null,null,null,"sheet 3"]
[null,null,null,null,null,null,null,"sheet 3"]
[null,null,null,null,null,null,null,"sheet 3"]
[null,null,null,null,null,null,null,"sheet 3"]
[null,null,null,null,null,null,null,"sheet 3"]
[null,null,null,null,null,null,null,"sheet 3"]
[null,null,null,null,null,null,null,"sheet 3"]
[null,null,null,null,null,null,null,"sheet 3"]
[null,null,null,null,null,null,null,"sheet 3"]
[null,null,null,null,null,null,null,"sheet 3"]
[null,null,null,null,null,null,null,"sheet 3"]
[null,null,null,null,null,null,null,"sheet 3"]
[null,null,null,null,null,null,null,"sheet 3"]
[null,null,null,null,null,null,null,"sheet 3"]
[null,null,null,null,null,null,null,"sheet 3"]
[null,null,null,null,null,null,null,"sheet 3"]
[null,null,null,null,null,null,null,"sheet 3"]
[null,null,null,null,null,null,null,"sheet 3"]
[null,null,null,null,null,null,null,"sheet 3"]
[null,null,null,null,null,null,null,"sheet 3"]
[null,null,null,null,null,null,null,"sheet 3"]
[null,null,null,null,null,null,null,"sheet 3"]
[null,null,null,null,null,null,null,"sheet 3"]
[null,null,null,null,null,null,null,"sheet 3"]
[null,null,null,null,null,null,null,"sheet 3"]
[null,null,null,null,null,null,null,"sheet 3"]
[null,null,null,null,null,null,null,"sheet 3"]
[null,null,null,null,null,null,null,"sheet 3"]
[null,null,null,null,null,null,null,"sheet 3"]
[null,null,null,null,null,null,null,"sheet 3"]
[null,null,null,null,null,null,null,"sheet 3"]
[null,null,null,null,null,null,null,"sheet 3"]
[null,null,null,null,null,null,null,"sheet 3"]
[null,null,null,null,null,null,null,"sheet 3"]
[null,null,null,null,null,null,null,"sheet 3"]
[null,null,null,null,null,null,null,"sheet 3"]
[null,null,null,null,null,null,null,"sheet 3"]
[null,null,null,null,null,null,null,"sheet 3"]
[null,null,null,null,null,null,null,"sheet 3"]
[null,null,null,null,null,null,null,"sheet 3"]
[null,null,null,null,null,null,null,"sheet 3"]
[null,null,null,null,null,null,null,"sheet 3"]
[null,null,null,null,null,null,null,"sheet 3"]
[null,null,null,null,null,null,null,"sheet 3"]
[null,null,null,null,null,null,null,"sheet 3"]
[null,null,null,null,null,null,null,"sheet 3"]
[null,null,null,null,null,null,null,"sheet 3"]
[null,null,null,null,null,null,null,"sheet 3"]
[null,null,null,null,null,null,null,"sheet 3"]
[null,null,null,null,null,null,null,"sheet 3"]
[null,null,null,null,null,null,null,"sheet 3"]
[null,null,null,null,null,null,null,"sheet 3"]
[null,null,null,null,null,null,null,"sheet 3"]
[null,null,null,null,null,null,null,"sheet 3"]
[null,null,null,null,null,null,null,"sheet 3"]
[null,null,null,null,null,null,null,"sheet 3"]
[null,null,null,null,null,null,null,"sheet 3"]
[null,null,null,null,null,null,null,"sheet 3"]
[null,null,null,null,null,null,null,"sheet 3"]
[null,null,null,null,null,null,null,"sheet 3"]
[null,null,null,null,null,null,null,"sheet 3"]
[null,null,null,null,null,null,null,"sheet 3"]
[null,null,null,null,null,null,null,"sheet 3"]
[null,null,null,null,null,null,null,"sheet 3"]
[null,null,null,null,null,null,null,"sheet 3"]
[null,null,null,null,null,null,null,"sheet 3"]
[null,null,null,null,null,null,null,"sheet 3"]
[null,null,null,null,null,null,null,"sheet 3"]
[null,null,null,null,null,null,null,"sheet 3"]
[null,null,null,null,null,null,null,"sheet 3"]
[null,null,null,null,null,null,null,"sheet 3"]
[null,null,null,null,null,null,null,"sheet 3"]
[null,null,null,null,null,null,null,"sheet 3"]
[null,null,null,null,null,null,null,"sheet 3"]
[null,null,null,null,null,null,null,"sheet 3"]
[null,null,null,null,null,null,null,"sheet 3"]
[null,null,null,null,null,null,null,"sheet 3"]
[null,null,null,null,null,null,null,"sheet 3"]
[null,null,null,null,null,null,null,"sheet 3"]
[null,null,null,null,null,null,null,"sheet 3"]
[null,null,null,null,null,null,null,"sheet 3"]
[null,null,null,null,null,null,null,"sheet 3"]
[null,null,null,null,null,null,null,"sheet 3"]
[null,null,null,null,null,null,null,"sheet 3"]
[null,null,null,null,null,null,null,"sheet 3"]
[null,null,null,null,null,null,null,"sheet 3"]
[null,null,null,null,null,null,null,"sheet 3"]
[null,null,null,null,null,null,null,"sheet 3"]
[null,null,null,null,null,null,null,"sheet 3"]
[null,null,null,null,null,null,null,"sheet 3"]
[null,null,null,null,null,null,null,"sheet 3"]
[null,null,null,null,null,null,null,"sheet 3"]
[null,null,null,null,null,null,null,"sheet 3"]
[null,null,null,null,null,null,null,"sheet 3"]
[null,null,null,null,null,null,null,"sheet 3"]
[null,null,null,null,null,null,null,"sheet 3"]
[null,null,null,null,null,null,null,"sheet 3"]
[null,null,null,null,null,null,null,"sheet 3"]
[null,null,null,null,null,null,null,"sheet 3"]
[null,null,null,null,null,null,null,"sheet 3"]
[null,null,null,null,null,null,null,"sheet 3"]
[null,null,null,null,null,null,null,"sheet 3"]
[null,null,null,null,null,null,null,"sheet 3"]
[null,null,null,null,null,null,null,"sheet 3"]
[null,null,null,null,null,null,null,"sheet 3"]
[null,null,null,null,null,null,null,"sheet 3"]
[null,null,null,null,null,null,null,"sheet 3"]
[null,null,null,null,null,null,null,"sheet 3"]
[null,null,null,null,null,null,null,"sheet 3"]
[null,null,null,null,null,null,null,"sheet 3"]
[null,null,null,null,null,null,null,"sheet 3"]
[null,null,null,null,null,null,null,"sheet 3"]
[null,null,null,null,null,null,null,"sheet 3"]
[null,null,null,null,null,null,null,"sheet 3"]
[null,null,null,null,null,null,null,"sheet 3"]
[null,null,null,null,null,null,null,"sheet 3"]
[null,null,null,null,null,null,null,"sheet 3"]
[null,null,null,null,null,null,null,"sheet 3"]
[null,null,null,null,null,null,null,"sheet 3"]
[null,null,null,null,null,null,null,"sheet 3"]
[null,null,null,null,null,null,null,"sheet 3"]
[null,null,null,null,null,null,null,"sheet 3"]
[null,null,null,null,null,null,null,"sheet 3"]
[null,null,null,null,null,null,null,"sheet 3"]
[null,null,null,null,null,null,null,"sheet 3"]
[null,null,null,null,null,null,null,"sheet 3"]
[null,null,null,null,null,null,null,"sheet 3"]
[null,null,null,null,null,null,null,"sheet 3"]
[null,null,null,null,null,null,null,"sheet 3"]
[null,null,null,null,null,null,null,"sheet 3"]
[null,null,null,null,null,null,null,"sheet 3"]
[null,null,null,null,null,null,null,"sheet 3"]
[null,null,null,null,null,null,null,"sheet 3"]
[null,null,null,null,null,null,null,"sheet 3"]
[null,null,null,null,null,null,null,"sheet 3"]
[null,null,null,null,null,null,null,"sheet 3"]
[null,null,null,null,null,null,null,"sheet 3"]
[null,null,null,null,null,null,null,"sheet 3"]
[null,null,null,null,null,null,null,"sheet 3"]
[null,null,null,null,null,null,null,"sheet 3"]
[null,null,null,null,null,null,null,"sheet 3"]
[null,null,null,null,null,null,null,"sheet 3"]
[null,null,null,null,null,null,null,"sheet 3"]
[null,null,null,null,null,null,null,"sheet 3"]
[null,null,null,null,null,null,null,"sheet 3"]
[null,null,null,null,null,null,null,"sheet 3"]
[null,null,null,null,null,null,null,"sheet 3"]
[null,null,null,null,null,null,null,"sheet 3"]
[null,null,null,null,null,null,null,"sheet 3"]
[null,null,null,null,null,null,null,"sheet 3"]
[null,null,null,null,null,null,null,"sheet 3"]
[null,null,null,null,null,null,null,"sheet 3"]
[null,null,null,null,null,null,null,"sheet 3"]
[null,null,null,null,null,null,null,"sheet 3"]
[null,null,null,null,null,null,null,"sheet 3"]
[null,null,null,null,null,null,null,"sheet 3"]
[null,null,null,null,null,null,null,"sheet 3"]
[null,null,null,null,null,null,null,"sheet 3"]
[null,null,null,null,null,null,null,"sheet 3"]
[null,null,null,null,null,null,null,"sheet 3"]
[null,null,null,null,null,null,null,"sheet 3"]
[null,null,null,null,null,null,null,"sheet 3"]
[null,null,null,null,null,null,null,"sheet 3"]
[null,null,null,null,null,null,null,"sheet 3"]
[null,null,null,null,null,null,null,"sheet 3"]
[null,null,null,null,null,null,null,"sheet 3"]
[null,null,null,null,null,null,null,"sheet 3"]
[null,null,null,null,null,null,null,"sheet 3"]
[null,null,null,null,null,null,null,"sheet 3"]
[null,null,null,null,null,null,null,"sheet 3"]
[null,null,null,null,null,null,null,"sheet 3"]
[null,null,null,null,null,null,null,"sheet 3"]
[null,null,null,null,null,null,null,"sheet 3"]
[null,null,null,null,null,null,null,"sheet 3"]
[null,null,null,null,null,null,null,"sheet 3"]
[null,null,null,null,null,null,null,"sheet 3"]
[null,null,null,null,null,null,null,"sheet 3"]
[null,null,null,null,null,null,null,"sheet 3"]
[null,null,null,null,null,null,null,"sheet 3"]
[null,null,null,null,null,null,null,"sheet 3"]
[null,null,null,null,null,null,null,"sheet 3"]
[null,null,null,null,null,null,null,"sheet 3"]
[null,null,null,null,null,null,null,"sheet 3"]
[null,null,null,null,null,null,null,"sheet 3"]
[null,null,null,null,null,null,null,"sheet 3"]
[null,null,null,null,null,null,null,"sheet 3"]
[null,null,null,null,null,null,null,"sheet 3"]
[null,null,null,null,null,null,null,"sheet 3"]
[null,null,null,null,null,null,null,"sheet 3"]
[null,null,null,null,null,null,null,"sheet 3"]
[null,null,null,null,null,null,null,"sheet 3"]
[null,null,null,null,null,null,null,"sheet 3"]
[null,null,null,null,null,null,null,"sheet 3"]
[null,null,null,null,null,null,null,"sheet 3"]
[null,null,null,null,null,null,null,"sheet 3"]
[null,null,null,null,null,null,null,"sheet 3"]
[null,null,null,null,null,null,null,"sheet 3"]
[null,null,null,null,null,null,null,"sheet 3"]
[null,null,null,null,null,null,null,"sheet 3"]
[null,null,null,null,null,null,null,"sheet 3"]
[null,null,null,null,null,null,null,"sheet 3"]
[null,null,null,null,null,null,null,"sheet 3"]
[null,null,null,null,null,null,null,"sheet 3"]
[null,null,null,null,null,null,null,"sheet 3"]
[null,null,null,null,null,null,null,"sheet 3"]
[null,null,null,null,null,null,null,"sheet 3"]
[null,null,null,null,null,null,null,"sheet 3"]
[null,null,null,null,null,null,null,"sheet 3"]
[null,null,null,null,null,null,null,"sheet 3"]
[null,null,null,null,null,null,null,"sheet 3"]
[null,null,null,null,null,null,null,"sheet 3"]
[null,null,null,null,null,null,null,"sheet 3"]
[null,null,null,null,null,null,null,"sheet 3"]
[null,null,null,null,null,null,null,"sheet 3"]
[null,null,null,null,null,null,null,"sheet 3"]
[null,null,null,null,null,null,null,"sheet 3"]
[null,null,null,null,null,null,null,"sheet 3"]
[null,null,null,null,null,null,null,"sheet 3"]
[null,null,null,null,null,null,null,"sheet 3"]
[null,null,null,null,null,null,null,"sheet 3"]
[null,null,null,null,null,null,null,"sheet 3"]
[null,null,null,null,null,null,null,"sheet 3"]
[null,null,null,null,null,null,null,"sheet 3"]
[null,null,null,null,null,null,null,"sheet 3"]
[null,null,null,null,null,null,null,"sheet 3"]
[null,null,null,null,null,null,null,"sheet 3"]
[null,null,null,null,null,null,null,"sheet 3"]
[null,null,null,null,null,null,null,"sheet 3"]
[null,null,null,null,null,null,null,"sheet 3"]
[null,null,null,null,null,null,null,"sheet 3"]
[null,null,null,null,null,null,null,"sheet 3"]
[null,null,null,null,null,null,null,"sheet 3"]
[null,null,null,null,null,null,null,"sheet 3"]
[null,null,null,null,null,null,null,"sheet 3"]
[null,null,null,null,null,null,null,"sheet 3"]
[null,null,null,null,null,null,null,"sheet 3"]
[null,null,null,null,null,null,null,"sheet 3"]
[null,null,null,null,null,null,null,"sheet 3"]
[null,null,null,null,null,null,null,"sheet 3"]
[null,null,null,null,null,null,null,"sheet 3"]
[null,null,null,null,null,null,null,"sheet 3"]
[null,null,null,null,null,null,null,"sheet 3"]
[null,null,null,null,null,null,null,"sheet 3"]
[null,null,null,null,null,null,null,"sheet 3"]
[null,null,null,null,null,null,null,"sheet 3"]
[null,null,null,null,null,null,null,"sheet 3"]
[null,null,null,null,null,null,null,"sheet 3"]
[null,null,null,null,null,null,null,"sheet 3"]
[null,null,null,null,null,null,null,"sheet 3"]
[null,null,null,null,null,null,null,"sheet 3"]
[null,null,null,null,null,null,null,"sheet 3"]
[null,null,null,null,null,null,null,"sheet 3"]
[null,null,null,null,null,null,null,"sheet 3"]
[null,null,null,null,null,null,null,"sheet 3"]
[null,null,null,null,null,null,null,"sheet 3"]
[null,null,null,null,null,null,null,"sheet 3"]
[null,null,null,null,null,null,null,"sheet 3"]
[null,null,null,null,null,null,null,"sheet 3"]
[null,null,null,null,null,null,null,"sheet 3"]
[null,null,null,null,null,null,null,"sheet 3"]
[null,null,null,null,null,null,null,"sheet 3"]
[null,null,null,null,null,null,null,"sheet 3"]
[null,null,null,null,null,null,null,"sheet 3"]
[null,null,null,null,null,null,null,"sheet 3"]
[null,null,null,null,null,null,null,"sheet 3"]
[null,null,null,null,null,null,null,"sheet 3"]
[null,null,null,null,null,null,null,"sheet 3"]
[null,null,null,null,null,null,null,"sheet 3"]
[null,null,null,null,null,null,null,"sheet 3"]
[null,null,null,null,null,null,null,"sheet 3"]
[null,null,null,null,null,null,null,"sheet 3"]
[null,null,null,null,null,null,null,"sheet 3"]
[null,null,null,null,null,null,null,"sheet 3"]
[null,null,null,null,null,null,null,"sheet 3"]
[null,null,null,null,null,null,null,"sheet 3"]
[null,null,null,null,null,null,null,"sheet 3"]
[null,null,null,null,null,null,null,"sheet 3"]
[null,null,null,null,null,null,null,"sheet 3"]
[null,null,null,null,null,null,null,"sheet 3"]
[null,null,null,null,null,null,null,"sheet 3"]
[null,null,null,null,null,null,null,"sheet 3"]
[null,null,null,null,null,null,null,"sheet 3"]
[null,null,null,null,null,null,null,"sheet 3"]
[null,null,null,null,null,null,null,"sheet 3"]
[null,null,null,null,null,null,null,"sheet 3"]
[null,null,null,null,null,null,null,"sheet 3"]
[null,null,null,null,null,null,null,"sheet 3"]
[null,null,null,null,null,null,null,"sheet 3"]
[null,null,null,null,null,null,null,"sheet 3"]
[null,null,null,null,null,null,null,"sheet 3"]
[null,null,null,null,null,null,null,"sheet 3"]
[null,null,null,null,null,null,null,"sheet 3"]
[null,null,null,null,null,null,null,"sheet 3"]
[null,null,null,null,null,null,null,"sheet 3"]
[null,null,null,null,null,null,null,"sheet 3"]
[null,null,null,null,null,null,null,"sheet 3"]
[null,null,null,null,null,null,null,"sheet 3"]
[null,null,null,null,null,null,null,"sheet 3"]
[null,null,null,null,null,null,null,"sheet 3"]
[null,null,null,null,null,null,null,"sheet 3"]
[null,null,null,null,null,null,null,"sheet 3"]
[null,null,null,null,null,null,null,"sheet 3"]
[null,null,null,null,null,null,null,"sheet 3"]
[null,null,null,null,null,null,null,"sheet 3"]
[null,null,null,null,null,null,null,"sheet 3"]
[null,null,null,null,null,null,null,"sheet 3"]
[null,null,null,null,null,null,null,"sheet 3"]
[null,null,null,null,null,null,null,"sheet 3"]
[null,null,null,null,null,null,null,"sheet 3"]
[null,null,null,null,null,null,null,"sheet 3"]
[null,null,null,null,null,null,null,"sheet 3"]
[null,null,null,null,null,null,null,"sheet 3"]
[null,null,null,null,null,null,null,"sheet 3"]
[null,null,null,null,null,null,null,"sheet 3"]
[null,null,null,null,null,null,null,"sheet 3"]
[null,null,null,null,null,null,null,"sheet 3"]
[null,null,null,null,null,null,null,"sheet 3"]
[null,null,null,null,null,null,null,"sheet 3"]
[null,null,null,null,null,null,null,"sheet 3"]
[null,null,null,null,null,null,null,"sheet 3"]
[null,null,null,null,null,null,null,"sheet 3"]
[null,null,null,null,null,null,null,"sheet 3"]
[null,null,null,null,null,null,null,"sheet 3"]
[null,null,null,null,null,null,null,"sheet 3"]
[null,null,null,null,null,null,null,"sheet 3"]
[null,null,null,null,null,null,null,"sheet 3"]
[null,null,null,null,null,null,null,"sheet 3"]
[null,null,null,null,null,null,null,"sheet 3"]
[null,null,null,null,null,null,null,"sheet 3"]
[null,null,null,null,null,null,null,"sheet 3"]
[null,null,null,null,null,null,null,"sheet 3"]
[null,null,null,null,null,null,null,"sheet 3"]
[null,null,null,null,null,null,null,"sheet 3"]
[null,null,null,null,null,null,null,"sheet 3"]
[null,null,null,null,null,null,null,"sheet 3"]
[null,null,null,null,null,null,null,"sheet 3"]
[null,null,null,null,null,null,null,"sheet 3"]
[null,null,null,null,null,null,null,"sheet 3"]
[null,null,null,null,null,null,null,"sheet 3"]
[null,null,null,null,null,null,null,"sheet 3"]
[null,null,null,null,null,null,null,"sheet 3"]
[null,null,null,null,null,null,null,"sheet 3"]
[null,null,null,null,null,null,null,"sheet 3"]
[null,null,null,null,null,null,null,"sheet 3"]
[null,null,null,null,null,null,null,"sheet 3"]
[null,null,null,null,null,null,null,"sheet 3"]
[null,null,null,null,null,null,null,"sheet 3"]
[null,null,null,null,null,null,null,"sheet 3"]
[null,null,null,null,null,null,null,"sheet 3"]
[null,null,null,null,null,null,null,"sheet 3"]
[null,null,null,null,null,null,null,"sheet 3"]
[null,null,null,null,null,null,null,"sheet 3"]
[null,null,null,null,null,null,null,"sheet 3"]
[null,null,null,null,null,null,null,"sheet 3"]
[null,null,null,null,null,null,null,"sheet 3"]
[null,null,null,null,null,null,null,"sheet 3"]
[null,null,null,null,null,null,null,"sheet 3"]
[null,null,null,null,null,null,null,"sheet 3"]
[null,null,null,null,null,null,null,"sheet 3"]
[null,null,null,null,null,null,null,"sheet 3"]
[null,null,null,null,null,null,null,"sheet 3"]
[null,null,null,null,null,null,null,"sheet 3"]
[null,null,null,null,null,null,null,"sheet 3"]
[null,null,null,null,null,null,null,"sheet 3"]
[null,null,null,null,null,null,null,"sheet 3"]
[null,null,null,null,null,null,null,"sheet 3"]
[null,null,null,null,null,null,null,"sheet 3"]
[null,null,null,null,null,null,null,"sheet 3"]
[null,null,null,null,null,null,null,"sheet 3"]
[null,null,null,null,null,null,null,"sheet 3"]
[null,null,null,null,null,null,null,"sheet 3"]
[null,null,null,null,null,null,null,"sheet 3"]
[null,null,null,null,null,null,null,"sheet 3"]
[null,null,null,null,null,null,null,"sheet 3"]
[null,null,null,null,null,null,null,"sheet 3"]
[null,null,null,null,null,null,null,"sheet 3"]
[null,null,null,null,null,null,null,"sheet 3"]
[null,null,null,null,null,null,null,"sheet 3"]
[null,null,null,null,null,null,null,"sheet 3"]
[null,null,null,null,null,null,null,"sheet 3"]
[null,null,null,null,null,null,null,"sheet 3"]
[null,null,null,null,null,null,null,"sheet 3"]
[null,null,null,null,null,null,null,"sheet 3"]
[null,null,null,null,null,null,null,"sheet 3"]
[null,null,null,null,null,null,null,"sheet 3"]
[null,null,null,null,null,null,null,"sheet 3"]
[null,null,null,null,null,null,null,"sheet 3"]
[null,null,null,null,null,null,null,"sheet 3"]
[null,null,null,null,null,null,null,"sheet 3"]
[null,null,null,null,null,null,null,"sheet 3"]
[null,null,null,null,null,null,null,"sheet 3"]
[null,null,null,null,null,null,null,"sheet 3"]
[null,null,null,null,null,null,null,"sheet 3"]
[null,null,null,null,null,null,null,"sheet 3"]
[null,null,null,null,null,null,null,"sheet 3"]
[null,null,null,null,null,null,null,"sheet 3"]
[null,null,null,null,null,null,null,"sheet 3"]
[null,null,null,null,null,null,null,"sheet 3"]
[null,null,null,null,null,null,null,"sheet 3"]
[null,null,null,null,null,null,null,"sheet 3"]
[null,null,null,null,null,null,null,"sheet 3"]
[null,null,null,null,null,null,null,"sheet 3"]
[null,null,null,null,null,null,null,"sheet 3"]
[null,null,null,null,null,null,null,"sheet 3"]
[null,null,null,null,null,null,null,"sheet 3"]
[null,null,null,null,null,null,null,"sheet 3"]
[null,null,null,null,null,null,null,"sheet 3"]
[null,null,null,null,null,null,null,"sheet 3"]
[null,null,null,null,null,null,null,"sheet 3"]
[null,null,null,null,null,null,null,"sheet 3"]
[null,null,null,null,null,null,null,"sheet 3"]
[null,null,null,null,null,null,null,"sheet 3"]
[null,null,null,null,null,null,null,"sheet 3"]
[null,null,null,null,null,null,null,"sheet 3"]
[null,null,null,null,null,null,null,"sheet 3"]
[null,null,null,null,null,null,null,"sheet 3"]
[null,null,null,null,null,null,null,"sheet 3"]
[null,null,null,null,null,null,null,"sheet 3"]
[null,null,null,null,null,null,null,"sheet 3"]
[null,null,null,null,null,null,null,"sheet 3"]
[null,null,null,null,null,null,null,"sheet 3"]
[null,null,null,null,null,null,null,"sheet 3"]
[null,null,null,null,null,null,null,"sheet 3"]
[null,null,null,null,null,null,null,"sheet 3"]
[null,null,null,null,null,null,null,"sheet 3"]
[null,null,null,null,null,null,null,"sheet 3"]
[null,null,null,null,null,null,null,"sheet 3"]
[null,null,null,null,null,null,null,"sheet 3"]
[null,null,null,null,null,null,null,"sheet 3"]
[null,null,null,null,null,null,null,"sheet 3"]
[null,null,null,null,null,null,null,"sheet 3"]
[null,null,null,null,null,null,null,"sheet 3"]
[null,null,null,null,null,null,null,"sheet 3"]
[null,null,null,null,null,null,null,"sheet 3"]
[null,null,null,null,null,null,null,"sheet 3"]
[null,null,null,null,null,null,null,"sheet 3"]
[null,null,null,null,null,null,null,"sheet 3"]
[null,null,null,null,null,null,null,"sheet 3"]
[null,null,null,null,null,null,null,"sheet 3"]
[null,null,null,null,null,null,null,"sheet 3"]
[null,null,null,null,null,null,null,"sheet 3"]
[null,null,null,null,null,null,null,"sheet 3"]
[null,null,null,null,null,null,null,"sheet 3"]
[null,null,null,null,null,null,null,"sheet 3"]
[null,null,null,null,null,null,null,"sheet 3"]
[null,null,null,null,null,null,null,"sheet 3"]
[null,null,null,null,null,null,null,"sheet 3"]
[null,null,null,null,null,null,null,"sheet 3"]
[null,null,null,null,null,null,null,"sheet 3"]
[null,null,null,null,null,null,null,"sheet 3"]
[null,null,null,null,null,null,null,"sheet 3"]
[null,null,null,null,null,null,null,"sheet 3"]
[null,null,null,null,null,null,null,"sheet 3"]
[null,null,null,null,null,null,null,"sheet 3"]
[null,null,null,null,null,null,null,"sheet 3"]
[null,null,null,null,null,null,null,"sheet 3"]
[null,null,null,null,null,null,null,"sheet 3"]
[null,null,null,null,null,null,null,"sheet 3"]
[null,null,null,null,null,null,null,"sheet 3"]
[null,null,null,null,null,null,null,"sheet 3"]
[null,null,null,null,null,null,null,"sheet 3"]
[null,null,null,null,null,null,null,"sheet 3"]
[null,null,null,null,null,null,null,"sheet 3"]
[null,null,null,null,null,null,null,"sheet 3"]
[null,null,null,null,null,null,null,"sheet 3"]
[null,null,null,null,null,null,null,"sheet 3"]
[null,null,null,null,null,null,null,"sheet 3"]
[null,null,null,null,null,null,null,"sheet 3"]
[null,null,null,null,null,null,null,"sheet 3"]
[null,null,null,null,null,null,null,"sheet 3"]
[null,null,null,null,null,null,null,"sheet 3"]
[null,null,null,null,null,null,null,"sheet 3"]
[null,null,null,null,null,null,null,"sheet 3"]
[null,null,null,null,null,null,null,"sheet 3"]
[null,null,null,null,null,null,null,"sheet 3"]
[null,null,null,null,null,null,null,"sheet 3"]
[null,null,null,null,null,null,null,"sheet 3"]
[null,null,null,null,null,null,null,"sheet 3"]
[null,null,null,null,null,null,null,"sheet 3"]
[null,null,null,null,null,null,null,"sheet 3"]
[null,null,null,null,null,null,null,"sheet 3"]
[null,null,null,null,null,null,null,"sheet 3"]
[null,null,null,null,null,null,null,"sheet 3"]
[null,null,null,null,null,null,null,"sheet 3"]
[null,null,null,null,null,null,null,"sheet 3"]
[null,null,null,null,null,null,null,"sheet 3"]
[null,null,null,null,null,null,null,"sheet 3"]
[null,null,null,null,null,null,null,"sheet 3"]
[null,null,null,null,null,null,null,"sheet 3"]
[null,null,null,null,null,null,null,"sheet 3"]
[null,null,null,null,null,null,null,"sheet 3"]
[null,null,null,null,null,null,null,"sheet 3"]
[null,null,null,null,null,null,null,"sheet 3"]
[null,null,null,null,null,null,null,"sheet 3"]
[null,null,null,null,null,null,null,"sheet 3"]
[null,null,null,null,null,null,null,"sheet 3"]
[null,null,null,null,null,null,null,"sheet 3"]
[null,null,null,null,null,null,null,"sheet 3"]
[null,null,null,null,null,null,null,"sheet 3"]
[null,null,null,null,null,null,null,"sheet 3"]
[null,null,null,null,null,null,null,"sheet 3"]
[null,null,null,null,null,null,null,"sheet 3"]
[null,null,null,null,null,null,null,"sheet 3"]
[null,null,null,null,null,null,null,"sheet 3"]
[null,null,null,null,null,null,null,"sheet 3"]
[null,null,null,null,null,null,null,"sheet 3"]
[null,null,null,null,null,null,null,"sheet 3"]
[null,null,null,null,null,null,null,"sheet 3"]
[null,null,null,null,null,null,null,"sheet 3"]
[null,null,null,null,null,null,null,"sheet 3"]
[null,null,null,null,null,null,null,"sheet 3"]
[null,null,null,null,null,null,null,"sheet 3"]
[null,null,null,null,null,null,null,"sheet 3"]
[null,null,null,null,null,null,null,"sheet 3"]
[null,null,null,null,null,null,null,"sheet 3"]
[null,null,null,null,null,null,null,"sheet 3"]
[null,null,null,null,null,null,null,"sheet 3"]
[null,null,null,null,null,null,null,"sheet 3"]
[null,null,null,null,null,null,null,"sheet 3"]
[null,null,null,null,null,null,null,"sheet 3"]
[null,null,null,null,null,null,null,"sheet 3"]
[null,null,null,null,null,null,null,"sheet 3"]
[null,null,null,null,null,null,null,"sheet 3"]
[null,null,null,null,null,null,null,"sheet 3"]
[null,null,null,null,null,null,null,"sheet 3"]
[null,null,null,null,null,null,null,"sheet 3"]
[null,null,null,null,null,null,null,"sheet 3"]
[null,null,null,null,null,null,null,"sheet 3"]
[null,null,null,null,null,null,null,"sheet 3"]
[null,null,null,null,null,null,null,"sheet 3"]
[null,null,null,null,null,null,null,"sheet 3"]
[null,null,null,null,null,null,null,"sheet 3"]
[null,null,null,null,null,null,null,"sheet 3"]
[null,null,null,null,null,null,null,"sheet 3"]
[null,null,null,null,null,null,null,"sheet 3"]
[null,null,null,null,null,null,null,"sheet 3"]
[null,null,null,null,null,null,null,"sheet 3"]
[null,null,null,null,null,null,null,"sheet 3"]
[null,null,null,null,null,null,null,"sheet 3"]
[null,null,null,null,null,null,null,"sheet 3"]
[null,null,null,null,null,null,null,"sheet 3"]
[null,null,null,null,null,null,null,"sheet 3"]
[null,null,null,null,null,null,null,"sheet 3"]
[null,null,null,null,null,null,null,"sheet 3"]
[null,null,null,null,null,null,null,"sheet 3"]
[null,null,null,null,null,null,null,"sheet 3"]
[null,null,null,null,null,null,null,"sheet 3"]
[null,null,null,null,null,null,null,"sheet 3"]
[null,null,null,null,null,null,null,"sheet 3"]
[null,null,null,null,null,null,null,"sheet 3"]
[null,null,null,null,null,null,null,"sheet 3"]
[null,null,null,null,null,null,null,"sheet 3"]
[null,null,null,null,null,null,null,"sheet 3"]
[null,null,null,null,null,null,null,"sheet 3"]
[null,null,null,null,null,null,null,"sheet 3"]
[null,null,null,null,null,null,null,"sheet 3"]
[null,null,null,null,null,null,null,"sheet 3"]
[null,null,null,null,null,null,null,"sheet 3"]
[null,null,null,null,null,null,null,"sheet 3"]
[null,null,null,null,null,null,null,"sheet 3"]
[null,null,null,null,null,null,null,"sheet 3"]
[null,null,null,null,null,null,null,"sheet 3"]
[null,null,null,null,null,null,null,"sheet 3"]
[null,null,null,null,null,null,null,"sheet 3"]
[null,null,null,null,null,null,null,"sheet 3"]
[null,null,null,null,null,null,null,"sheet 3"]
[null,null,null,null,null,null,null,"sheet 3"]
[null,null,null,null,null,null,null,"sheet 3"]
[null,null,null,null,null,null,null,"sheet 3"]
[null,null,null,null,null,null,null,"sheet 3"]
[null,null,null,null,null,null,null,"sheet 3"]
[null,null,null,null,null,null,null,"sheet 3"]
[null,null,null,null,null,null,null,"sheet 3"]
[null,null,null,null,null,null,null,"sheet 3"]
[null,null,null,null,null,null,null,"sheet 3"]
[null,null,null,null,null,null,null,"sheet 3"]
[null,null,null,null,null,null,null,"sheet 3"]
[null,null,null,null,null,null,null,"sheet 3"]
[null,null,null,null,null,null,null,"sheet 3"]
[null,null,null,null,null,null,null,"sheet 3"]
[null,null,null,null,null,null,null,"sheet 3"]
[null,null,null,null,null,null,null,"sheet 3"]
[null,null,null,null,null,null,null,"sheet 3"]
[null,null,null,null,null,null,null,"sheet 3"]
[null,null,null,null,null,null,null,"sheet 3"]
[null,null,null,null,null,null,null,"sheet 3"]
[null,null,null,null,null,null,null,"sheet 3"]
[null,null,null,null,null,null,null,"sheet 3"]
[null,null,null,null,null,null,null,"sheet 3"]
[null,null,null,null,null,null,null,"sheet 3"]
[null,null,null,null,null,null,null,"sheet 3"]
[null,null,null,null,null,null,null,"sheet 3"]
[null,null,null,null,null,null,null,"sheet 3"]
[null,null,null,null,null,null,null,"sheet 3"]
[null,null,null,null,null,null,null,"sheet 3"]
[null,null,null,null,null,null,null,"sheet 3"]
[null,null,null,null,null,null,null,"sheet 3"]
[null,null,null,null,null,null,null,"sheet 3"]
[null,null,null,null,null,null,null,"sheet 3"]
[null,null,null,null,null,null,null,"sheet 3"]
[null,null,null,null,null,null,null,"sheet 3"]
[null,null,null,null,null,null,null,"sheet 3"]
[null,null,null,null,null,null,null,"sheet 3"]
[null,null,null,null,null,null,null,"sheet 3"]
[null,null,null,null,null,null,null,"sheet 3"]
[null,null,null,null,null,null,null,"sheet 3"]
[null,null,null,null,null,null,null,"sheet 3"]
[null,null,null,null,null,null,null,"sheet 3"]
[null,null,null,null,null,null,null,"sheet 3"]
[null,null,null,null,null,null,null,"sheet 3"]
[null,null,null,null,null,null,null,"sheet 3"]
[null,null,null,null,null,null,null,"sheet 3"]
[null,null,null,null,null,null,null,"sheet 3"]
[null,null,null,null,null,null,null,"sheet 3"]
[null,null,null,null,null,null,null,"sheet 3"]
[null,null,null,null,null,null,null,"sheet 3"]
[null,null,null,null,null,null,null,"sheet 3"]
[null,null,null,null,null,null,null,"sheet 3"]
[null,null,null,null,null,null,null,"sheet 3"]
[null,null,null,null,null,null,null,"sheet 3"]
[null,null,null,null,null,null,null,"sheet 3"]
[null,null,null,null,null,null,null,"sheet 3"]
[null,null,null,null,null,null,null,"sheet 3"]
[null,null,null,null,null,null,null,"sheet 3"]
[null,null,null,null,null,null,null,"sheet 3"]
[null,null,null,null,null,null,null,"sheet 3"]
[null,null,null,null,null,null,null,"sheet 3"]
[null,null,null,null,null,null,null,"sheet 3"]
[null,null,null,null,null,null,null,"sheet 3"]
[null,null,null,null,null,null,null,"sheet 3"]
[null,null,null,null,null,null,null,"sheet 3"]
[null,null,null,null,null,null,null,"sheet 3"]
[null,null,null,null,null,null,null,"sheet 3"]
[null,null,null,null,null,null,null,"sheet 3"]
[null,null,null,null,null,null,null,"sheet 3"]
[null,null,null,null,null,null,null,"sheet 3"]
[null,null,null,null,null,null,null,"sheet 3"]
[null,null,null,null,null,null,null,"sheet 3"]
[null,null,null,null,null,null,null,"sheet 3"]
[null,null,null,null,null,null,null,"sheet 3"]
[null,null,null,null,null,null,null,"sheet 3"]
[null,null,null,null,null,null,null,"sheet 3"]
[null,null,null,null,null,null,null,"sheet 3"]
[null,null,null,null,null,null,null,"sheet 3"]
[null,null,null,null,null,null,null,"sheet 3"]
[null,null,null,null,null,null,null,"sheet 3"]
[null,null,null,null,null,null,null,"sheet 3"]
[null,null,null,null,null,null,null,"sheet 3"]
[null,null,null,null,null,null,null,"sheet 3"]
[null,null,null,null,null,null,null,"sheet 3"]
[null,null,null,null,null,null,null,"sheet 3"]
[null,null,null,null,null,null,null,"sheet 3"]
[null,null,null,null,null,null,null,"sheet 3"]
[null,null,null,null,null,null,null,"sheet 3"]
[null,null,null,null,null,null,null,"sheet 3"]
[null,null,null,null,null,null,null,"sheet 3"]
[null,null,null,null,null,null,null,"sheet 3"]
[null,null,null,null,null,null,null,"sheet 3"]
[null,null,null,null,null,null,null,"sheet 3"]
[null,null,null,null,null,null,null,"sheet 3"]
[null,null,null,null,null,null,null,"sheet 3"]
[null,null,null,null,null,null,null,"sheet 3"]
[null,null,null,null,null,null,null,"sheet 3"]
[null,null,null,null,null,null,null,"sheet 3"]
[null,null,null,null,null,null,null,"sheet 3"]
[null,null,null,null,null,null,null,"sheet 3"]
[null,null,null,null,null,null,null,"sheet 3"]
[null,null,null,null,null,null,null,"sheet 3"]
[null,null,null,null,null,null,null,"sheet 3"]
[null,null,null,null,null,null,null,"sheet 3"]
[null,null,null,null,null,null,null,"sheet 3"]
[null,null,null,null,null,null,null,"sheet 3"]
[null,null,null,null,null,null,null,"sheet 3"]
[null,null,null,null,null,null,null,"sheet 3"]
[null,null,null,null,null,null,null,"sheet 3"]
[null,null,null,null,null,null,null,"sheet 3"]
[null,null,null,null,null,null,null,"sheet 3"]
[null,null,null,null,null,null,null,"sheet 3"]
[null,null,null,null,null,null,null,"sheet 3"]
[null,null,null,null,null,null,null,"sheet 3"]
[null,null,null,null,null,null,null,"sheet 3"]
[null,null,null,null,null,null,null,"sheet 3"]
[null,null,null,null,null,null,null,"sheet 3"]
[null,null,null,null,null,null,null,"sheet 3"]
[null,null,null,null,null,null,null,"sheet 3"]
[null,null,null,null,null,null,null,"sheet 3"]
[null,null,null,null,null,null,null,"sheet 3"]
[null,null,null,null,null,null,null,"sheet 3"]
[null,null,null,null,null,null,null,"sheet 3"]
[null,null,null,null,null,null,null,"sheet 3"]
[null,null,null,null,null,null,null,"sheet 3"]
[null,null,null,null,null,null,null,"sheet 3"]
[null,null,null,null,null,null,null,"sheet 3"]
[null,null,null,null,null,null,null,"sheet 3"]
[null,null,null,null,null,null,null,"sheet 3"]
[null,null,null,null,null,null,null,"sheet 3"]
[null,null,null,null,null,null,null,"sheet 3"]
[null,null,null,null,null,null,null,"sheet 3"]
[null,null,null,null,null,null,null,"sheet 3"]
[null,null,null,null,null,null,null,"sheet 3"]
[null,null,null,null,null,null,null,"sheet 3"]
[null,null,null,null,null,null,null,"sheet 3"]
[null,null,null,null,null,null,null,"sheet 3"]
[null,null,null,null,null,null,null,"sheet 3"]
[null,null,null,null,null,null,null,"sheet 3"]
[null,null,null,null,null,null,null,"sheet 3"]
[null,null,null,null,null,null,null,"sheet 3"]
[null,null,null,null,null,null,null,"sheet 3"]
[null,null,null,null,null,null,null,"sheet 3"]
[null,null,null,null,null,null,null,"sheet 3"]
[null,null,null,null,null,null,null,"sheet 3"]
[null,null,null,null,null,null,null,"sheet 3"]
[null,null,null,null,null,null,null,"sheet 3"]
[null,null,null,null,null,null,null,"sheet 3"]
[null,null,null,null,null,null,null,"sheet 3"]
[null,null,null,null,null,null,null,"sheet 3"]
[null,null,null,null,null,null,null,"sheet 3"]
[null,null,null,null,null,null,null,"sheet 3"]
[null,null,null,null,null,null,null,"sheet 3"]
[null,null,null,null,null,null,null,"sheet 3"]
[null,null,null,null,null,null,null,"sheet 3"]
[null,null,null,null,null,null,null,"sheet 3"]
[null,null,null,null,null,null,null,"sheet 3"]
[null,null,null,null,null,null,null,"sheet 3"]
[null,null,null,null,null,null,null,"sheet 3"]
[null,null,null,null,null,null,null,"sheet 3"]
[null,null,null,null,null,null,null,"sheet 3"]
[null,null,null,null,null,null,null,"sheet 3"]
[null,null,null,null,null,null,null,"sheet 3"]
[null,null,null,null,null,null,null,"sheet 3"]
[null,null,null,null,null,null,null,"sheet 3"]
[null,null,null,null,null,null,null,"sheet 3"]
[null,null,null,null,null,null,null,"sheet 3"]
[null,null,null,null,null,null,null,"sheet 3"]
[null,null,null,null,null,null,null,"sheet 3"]
[null,null,null,null,null,null,null,"sheet 3"]
[null,null,null,null,null,null,null,"sheet 3"]
[null,null,null,null,null,null,null,"sheet 3"]
[null,null,null,null,null,null,null,"sheet 3"]
[null,null,null,null,null,null,null,"sheet 3"]
[null,null,null,null,null,null,null,"sheet 3"]
[null,null,null,null,null,null,null,"sheet 3"]
[null,null,null,null,null,null,null,"sheet 3"]
[null,null,null,null,null,null,null,"sheet 3"]
[null,null,null,null,null,null,null,"sheet 3"]
[null,null,null,null,null,null,null,"sheet 3"]
[null,null,null,null,null,null,null,"sheet 3"]
[null,null,null,null,null,null,null,"sheet 3"]
[null,null,null,null,null,null,null,"sheet 3"]
[null,null,null,null,null,null,null,"sheet 3"]
[null,null,null,null,null,null,null,"sheet 3"]
[null,null,null,null,null,null,null,"sheet 3"]
[null,null,null,null,null,null,null,"sheet 3"]
[null,null,null,null,null,null,null,"sheet 3"]
[null,null,null,null,null,null,null,"sheet 3"]
[null,null,null,null,null,null,null,"sheet 3"]
[null,null,null,null,null,null,null,"sheet 3"]
[null,null,null,null,null,null,null,"sheet 3"]
[null,null,null,null,null,null,null,"sheet 3"]
[null,null,null,null,null,null,null,"sheet 3"]
[null,null,null,null,null,null,null,"sheet 3"]
[null,null,null,null,null,null,null,"sheet 3"]
[null,null,null,null,null,null,null,"sheet 3"]
[null,null,null,null,null,null,null,"sheet 3"]
[null,null,null,null,null,null,null,"sheet 3"]
[null,null,null,null,null,null,null,"sheet 3"]
[null,null,null,null,null,null,null,"sheet 3"]
[null,null,null,null,null,null,null,"sheet 3"]
[null,null,null,null,null,null,null,"sheet 3"]
[null,null,null,null,null,null,null,"sheet 3"]
[null,null,null,null,null,null,null,"sheet 3"]
[null,null,null,null,null,null,null,"sheet 3"]
[null,null,null,null,null,null,null,"sheet 3"]
[null,null,null,null,null,null,null,"sheet 3"]
[null,null,null,null,null,null,null,"sheet 3"]
[null,null,null,null,null,null,null,"sheet 3"]
[null,null,null,null,null,null,null,"sheet 3"]
[null,null,null,null,null,null,null,"sheet 3"]
[null,null,null,null,null,null,null,"sheet 3"]
[null,null,null,null,null,null,null,"sheet 3"]
[null,null,null,null,null,null,null,"sheet 3"]
[null,null,null,null,null,null,null,"sheet 3"]
[null,null,null,null,null,null,null,"sheet 3"]
[null,null,null,null,null,null,null,"sheet 3"]
[null,null,null,null,null,null,null,"sheet 3"]
[null,null,null,null,null,null,null,"sheet 3"]
[null,null,null,null,null,null,null,"sheet 3"]
[null,null,null,null,null,null,null,"sheet 3"]
[null,null,null,null,null,null,null,"sheet 3"]
[null,null,null,null,null,null,null,"sheet 3"]
[null,null,null,null,null,null,null,"sheet 3"]
[null,null,null,null,null,null,null,"sheet 3"]
[null,null,null,null,null,null,null,"sheet 3"]
[null,null,null,null,null,null,null,"sheet 3"]
[null,null,null,null,null,null,null,"sheet 3"]
[null,null,null,null,null,null,null,"sheet 3"]
[null,null,null,null,null,null,null,"sheet 3"]
[null,null,null,null,null,null,null,"sheet 3"]
[null,null,null,null,null,null,null,"sheet 3"]
[null,null,null,null,null,null,null,"sheet 3"]
[null,null,null,null,null,null,null,"sheet 3"]
[null,null,null,null,null,null,null,"sheet 3"]
[null,null,null,null,null,null,null,"sheet 3"]
[null,null,null,null,null,null,null,"sheet 3"]
[null,null,null,null,null,null,null,"sheet 3"]
[null,null,null,null,null,null,null,"sheet 3"]
[null,null,null,null,null,null,null,"sheet 3"]
[null,null,null,null,null,null,null,"sheet 3"]
[null,null,null,null,null,null,null,"sheet 3"]
[null,null,null,null,null,null,null,"sheet 3"]
[null,null,null,null,null,null,null,"sheet 3"]
[null,null,null,null,null,null,null,"sheet 3"]
[null,null,null,null,null,null,null,"sheet 3"]
[null,null,null,null,null,null,null,"sheet 3"]
[null,null,null,null,null,null,null,"sheet 3"]
[null,null,null,null,null,null,null,"sheet 3"]
[null,null,null,null,null,null,null,"sheet 3"]
[null,null,null,null,null,null,null,"sheet 3"]
[null,null,null,null,null,null,null,"sheet 3"]
[null,null,null,null,null,null,null,"sheet 3"]
[null,null,null,null,null,null,null,"sheet 3"]
[null,null,null,null,null,null,null,"sheet 3"]
[null,null,null,null,null,null,null,"sheet 3"]
[null,null,null,null,null,null,null,"sheet 3"]
[null,null,null,null,null,null,null,"sheet 3"]
[null,null,null,null,null,null,null,"sheet 3"]
[null,null,null,null,null,null,null,"sheet 3"]
[null,null,null,null,null,null,null,"sheet 3"]
[null,null,null,null,null,null,null,"sheet 3"]
[null,null,null,null,null,null,null,"sheet 3"]
[null,null,null,null,null,null,null,"sheet 3"]
[null,null,null,null,null,null,null,"sheet 3"]
[null,null,null,null,null,null,null,"sheet 3"]
[null,null,null,null,null,null,null,"sheet 3"]
[null,null,null,null,null,null,null,"sheet 3"]
[null,null,null,null,null,null,null,"sheet 3"]
[null,null,null,null,null,null,null,"sheet 3"]
[null,null,null,null,null,null,null,"sheet 3"]
[null,null,null,null,null,null,null,"sheet 3"]
[null,null,null,null,null,null,null,"sheet 3"]
[null,null,null,null,null,null,null,"sheet 3"]
[null,null,null,null,null,null,null,"sheet 3"]
[null,null,null,null,null,null,null,"sheet 3"]
[null,null,null,null,null,null,null,"sheet 3"]
[null,null,null,null,null,null,null,"sheet 3"]
[null,null,null,null,null,null,null,"sheet 3"]
[null,null,null,null,null,null,null,"sheet 3"]
[null,null,null,null,null,null,null,"sheet 3"]
[null,null,null,null,null,null,null,"sheet 3"]
[null,null,null,null,null,null,null,"sheet 3"]
[null,null,null,null,null,null,null,"sheet 3"]
[null,null,null,null,null,null,null,"sheet 3"]
[null,null,null,null,null,null,null,"sheet 3"]
[null,null,null,null,null,null,null,"sheet 3"]
[null,null,null,null,null,null,null,"sheet 3"]
[null,null,null,null,null,null,null,"sheet 3"]
[null,null,null,null,null,null,null,"sheet 3"]
[null,null,null,null,null,null,null,"sheet 3"]
[null,null,null,null,null,null,null,"sheet 3"]
[null,null,null,null,null,null,null,"sheet 3"]
[null,null,null,null,null,null,null,"sheet 3"]
[null,null,null,null,null,null,null,"sheet 3"]
[null,null,null,null,null,null,null,"sheet 3"]
[null,null,null,null,null,null,null,"sheet 3"]
[null,null,null,null,null,null,null,"sheet 3"]
[null,null,null,null,null,null,null,"sheet 3"]
[null,null,null,null,null,null,null,"sheet 3"]
[null,null,null,null,null,null,null,"sheet 3"]
[null,null,null,null,null,null,null,"sheet 3"]
[null,null,null,null,null,null,null,"sheet 3"]
[null,null,null,null,null,null,null,"sheet 3"]
[null,null,null,null,null,null,null,"sheet 3"]
[null,null,null,null,null,null,null,"sheet 3"]
[null,null,null,null,null,null,null,"sheet 3"]
[null,null,null,null,null,null,null,"sheet 3"]
[null,null,null,null,null,null,null,"sheet 3"]
[null,null,null,null,null,null,null,"sheet 3"]
[null,null,null,null,null,null,null,"sheet 3"]
[null,null,null,null,null,null,null,"sheet 3"]
[null,null,null,null,null,null,null,"sheet 3"]
[null,null,null,null,null,null,null,"sheet 3"]
[null,null,null,null,null,null,null,"sheet 3"]
[null,null,null,null,null,null,null,"sheet 3"]
[null,null,null,null,null,null,null,"sheet 3"]
[null,null,null,null,null,null,null,"sheet 3"]
[null,null,null,null,null,null,null,"sheet 3"]
[null,null,null,null,null,null,null,"sheet 3"]
[null,null,null,null,null,null,null,"sheet 3"]
[null,null,null,null,null,null,null,"sheet 3"]
[null,null,null,null,null,null,null,"sheet 3"]
[null,null,null,null,null,null,null,"sheet 3"]
[null,null,null,null,null,null,null,"sheet 3"]
[null,null,null,null,null,null,null,"sheet 3"]
[null,null,null,null,null,null,null,"sheet 3"]
[null,null,null,null,null,null,null,"sheet 3"]
[null,null,null,null,null,null,null,"sheet 3"]
[null,null,null,null,null,null,null,"sheet 3"]
[null,null,null,null,null,null,null,"sheet 3"]
[null,null,null,null,null,null,null,"sheet 3"]
[null,null,null,null,null,null,null,"sheet 3"]
[null,null,null,null,null,null,null,"sheet 3"]
[null,null,null,null,null,null,null,"sheet 3"]
[null,null,null,null,null,null,null,"sheet 3"]
[null,null,null,null,null,null,null,"sheet 3"]
[null,null,null,null,null,null,null,"sheet 3"]
[null,null,null,null,null,null,null,"sheet 3"]
[null,null,null,null,null,null,null,"sheet 3"]
[null,null,null,null,null,null,null,"sheet 3"]
[null,null,null,null,null,null,null,"sheet 3"]
[null,null,null,null,null,null,null,"sheet 3"]
[null,null,null,null,null,null,null,"sheet 3"]
[null,null,null,null,null,null,null,"sheet 3"]
[null,null,null,null,null,null,null,"sheet 3"]
[null,null,null,null,null,null,null,"sheet 3"]
[null,null,null,null,null,null,null,"sheet 3"]
[null,null,null,null,null,null,null,"sheet 3"]
[null,null,null,null,null,null,null,"sheet 3"]
[null,null,null,null,null,null,null,"sheet 3"]
[null,null,null,null,null,null,null,"sheet 3"]
[null,null,null,null,null,null,null,"sheet 3"]
[null,null,null,null,null,null,null,"sheet 3"]
[null,null,null,null,null,null,null,"sheet 3"]
[null,null,null,null,null,null,null,"sheet 3"]
[null,null,null,null,null,null,null,"sheet 3"]
[null,null,null,null,null,null,null,"sheet 3"]
[null,null,null,null,null,null,null,"sheet 3"]
[null,null,null,null,null,null,null,"sheet 3"]
[null,null,null,null,null,null,null,"sheet 3"]
[null,null,null,null,null,null,null,"sheet 3"]
[null,null,null,null,null,null,null,"sheet 3"]
[null,null,null,null,null,null,null,"sheet 3"]
[null,null,null,null,null,null,null,"sheet 3"]
[null,null,null,null,null,null,null,"sheet 3"]
[null,null,null,null,null,null,null,"sheet 3"]
[null,null,null,null,null,null,null,"sheet 3"]
[null,null,null,null,null,null,null,"sheet 3"]
[null,null,null,null,null,null,null,"sheet 3"]
[null,null,null,null,null,null,null,"sheet 3"]
[null,null,null,null,null,null,null,"sheet 3"]
[null,null,null,null,null,null,null,"sheet 3"]
[null,null,null,null,null,null,null,"sheet 3"]
[null,null,null,null,null,null,null,"sheet 3"]
[null,null,null,null,null,null,null,"sheet 3"]
[null,null,null,null,null,null,null,"sheet 3"]
[null,null,null,null,null,null,null,"sheet 3"]
[null,null,null,null,null,null,null,"sheet 3"]
[null,null,null,null,null,null,null,"sheet 3"]
[null,null,null,null,null,null,null,"sheet 3"]
[null,null,null,null,null,null,null,"sheet 3"]
[null,null,null,null,null,null,null,"sheet 3"]
[null,null,null,null,null,null,null,"sheet 3"]
[null,null,null,null,null,null,null,"sheet 3"]
[null,null,null,null,null,null,null,"sheet 3"]
[null,null,null,null,null,null,null,"sheet 3"]
[null,null,null,null,null,null,null,"sheet 3"]
[null,null,null,null,null,null,null,"sheet 3"]
[null,null,null,null,null,null,null,"sheet 3"]
[null,null,null,null,null,null,null,"sheet 3"]
[null,null,null,null,null,null,null,"sheet 3"]
[null,null,null,null,null,null,null,"sheet 3"]
[null,null,null,null,null,null,null,"sheet 3"]
[null,null,null,null,null,null,null,"sheet 3"]
[null,null,null,null,null,null,null,"sheet 3"]
[null,null,null,null,null,null,null,"sheet 3"]
[null,null,null,null,null,null,null,"sheet 3"]
[null,null,null,null,null,null,null,"sheet 3"]
[null,null,null,null,null,null,null,"sheet 3"]
[null,null,null,null,null,null,null,"sheet 3"]
[null,null,null,null,null,null,null,"sheet 3"]
[null,null,null,null,null,null,null,"sheet 3"]
[null,null,null,null,null,null,null,"sheet 3"]
[null,null,null,null,null,null,null,"sheet 3"]
[null,null,null,null,null,null,null,"sheet 3"]
[null,null,null,null,null,null,null,"sheet 3"]
[null,null,null,null,null,null,null,"sheet 3"]
[null,null,null,null,null,null,null,"sheet 3"]
[null,null,null,null,null,null,null,"sheet 3"]
[null,null,null,null,null,null,null,"sheet 3"]
[null,null,null,null,null,null,null,"sheet 3"]
[null,null,null,null,null,null,null,"sheet 3"]
[null,null,null,null,null,null,null,"sheet 3"]
[null,null,null,null,null,null,null,"sheet 3"]
[null,null,null,null,null,null,null,"sheet 3"]
[null,null,null,null,null,null,null,"sheet 3"]
[null,null,null,null,null,null,null,"sheet 3"]
[null,null,null,null,null,null,null,"sheet 3"]
[null,null,null,null,null,null,null,"sheet 3"]
[null,null,null,null,null,null,null,"sheet 3"]
[null,null,null,null,null,null,null,"sheet 3"]
[null,null,null,null,null,null,null,"sheet 3"]
[null,null,null,null,null,null,null,"sheet 3"]
[null,null,null,null,null,null,null,"sheet 3"]
[null,null,null,null,null,null,null,"sheet 3"]
[null,null,null,null,null,null,null,"sheet 3"]
[null,null,null,null,null,null,null,"sheet 3"]
[null,null,null,null,null,null,null,"sheet 3"]
[null,null,null,null,null,null,null,"sheet 3"]
[null,null,null,null,null,null,null,"sheet 3"]
[null,null,null,null,null,null,null,"sheet 3"]
[null,null,null,null,null,null,null,"sheet 3"]
[null,null,null,null,null,null,null,"sheet 3"]
[null,null,null,null,null,null,null,"sheet 3"]
[null,null,null,null,null,null,null,"sheet 3"]
[null,null,null,null,null,null,null,"sheet 3"]
[null,null,null,null,null,null,null,"sheet 3"]
[null,null,null,null,null,null,null,"sheet 3"]
[null,null,null,null,null,null,null,"sheet 3"]
[null,null,null,null,null,null,null,"sheet 3"]
[null,null,null,null,null,null,null,"sheet 3"]
[null,null,null,null,null,null,null,"sheet 3"]
[null,null,null,null,null,null,null,"sheet 3"]
[null,null,null,null,null,null,null,"sheet 3"]
[null,null,null,null,null,null,null,"sheet 3"]
[null,null,null,null,null,null,null,"sheet 3"]
[null,null,null,null,null,null,null,"sheet 3"]
[null,null,null,null,null,null,null,"sheet 3"]
[null,null,null,null,null,null,null,"sheet 3"]
[null,null,null,null,null,null,null,"sheet 3"]
[null,null,null,null,null,null,null,"sheet 3"]
[null,null,null,null,null,null,null,"sheet 3"]
[null,null,null,null,null,null,null,"sheet 3"]
[null,null,null,null,null,null,null,"sheet 3"]
[null,null,null,null,null,null,null,"sheet 3"]
[null,null,null,null,null,null,null,"sheet 3"]
[null,null,null,null,null,null,null,"sheet 3"]
[null,null,null,null,null,null,null,"sheet 3"]
[null,null,null,null,null,null,null,"sheet 3"]
[null,null,null,null,null,null,null,"sheet 3"]
[null,null,null,null,null,null,null,"sheet 3"]
[null,null,null,null,null,null,null,"sheet 3"]
[null,null,null,null,null,null,null,"sheet 3"]
[null,null,null,null,null,null,null,"sheet 3"]
[null,null,null,null,null,null,null,"sheet 3"]
[null,null,null,null,null,null,null,"sheet 3"]
[null,null,null,null,null,null,null,"sheet 3"]
[null,null,null,null,null,null,null,"sheet 3"]
[null,null,null,null,null,null,null,"sheet 3"]
[null,null,null,null,null,null,null,"sheet 3"]
[null,null,null,null,null,null,null,"sheet 3"]
[null,null,null,null,null,null,null,"sheet 3"]
[null,null,null,null,null,null,null,"sheet 3"]
[null,null,null,null,null,null,null,"sheet 3"]
[null,null,null,null,null,null,null,"sheet 3"]
[null,null,null,null,null,null,null,"sheet 3"]
[null,null,null,null,null,null,null,"sheet 3"]
[null,null,null,null,null,null,null,"sheet 3"]
[null,null,null,null,null,null,null,"sheet 3"]
[null,null,null,null,null,null,null,"sheet 3"]
[null,null,null,null,null,null,null,"sheet 3"]
[null,null,null,null,null,null,null,"sheet 3"]
[null,null,null,null,null,null,null,"sheet 3"]
[null,null,null,null,null,null,null,"sheet 3"]
[null,null,null,null,null,null,null,"sheet 3"]
[null,null,null,null,null,null,null,"sheet 3"]
[null,null,null,null,null,null,null,"sheet 3"]
[null,null,null,null,null,null,null,"sheet 3"]
[null,null,null,null,null,null,null,"sheet 3"]
[null,null,null,null,null,null,null,"sheet 3"]
[null,null,null,null,null,null,null,"sheet 3"]
[null,null,null,null,null,null,null,"sheet 3"]
[null,null,null,null,null,null,null,"sheet 3"]
[null,null,null,null,null,null,null,"sheet 3"]
[null,null,null,null,null,null,null,"sheet 3"]
[null,null,null,null,null,null,null,"sheet 3"]
[null,null,null,null,null,null,null,"sheet 3"]
[null,null,null,null,null,null,null,"sheet 3"]
[null,null,null,null,null,null,null,"sheet 3"]
[null,null,null,null,null,null,null,"sheet 3"]
[null,null,null,null,null,null,null,"sheet 3"]
[null,null,null,null,null,null,null,"sheet 3"]
[null,null,null,null,null,null,null,"sheet 3"]
[null,null,null,null,null,null,null,"sheet 3"]
[null,null,null,null,null,null,null,"sheet 3"]
[null,null,null,null,null,null,null,"sheet 3"]
[null,null,null,null,null,null,null,"sheet 3"]
[null,null,null,null,null,null,null,"sheet 3"]
[null,null,null,null,null,null,null,"sheet 3"]
[null,null,null,null,null,null,null,"sheet 3"]
[null,null,null,null,null,null,null,"sheet 3"]
[null,null,null,null,null,null,null,"sheet 3"]
[null,null,null,null,null,null,null,"sheet 3"]
[null,null,null,null,null,null,null,"sheet 3"]
[null,null,null,null,null,null,null,"sheet 3"]
[null,null,null,null,null,null,null,"sheet 3"]
[null,null,null,null,null,null,null,"sheet 3"]
[null,null,null,null,null,null,null,"sheet 3"]
[null,null,null,null,null,null,null,"sheet 3"]
[null,null,null,null,null,null,null,"sheet 3"]
[null,null,null,null,null,null,null,"sheet 3"]
[null,null,null,null,null,null,null,"sheet 3"]
[null,null,null,null,null,null,null,"sheet 3"]
[null,null,null,null,null,null,null,"sheet 3"]
[null,null,null,null,null,null,null,"sheet 3"]
[null,null,null,null,null,null,null,"sheet 3"]
[null,null,null,null,null,null,null,"sheet 3"]
[null,null,null,null,null,null,null,"sheet 3"]
[null,null,null,null,null,null,null,"sheet 3"]
[null,null,null,null,null,null,null,"sheet 3"]
[null,null,null,null,null,null,null,"sheet 3"]
[null,null,null,null,null,null,null,"sheet 3"]
[null,null,null,null,null,null,null,"sheet 3"]
[null,null,null,null,null,null,null,"sheet 3"]
[null,null,null,null,null,null,null,"sheet 3"]
[null,null,null,null,null,null,null,"sheet 3"]
[null,null,null,null,null,null,null,"sheet 3"]
[null,null,null,null,null,null,null,"sheet 3"]
[null,null,null,null,null,null,null,"sheet 3"]
[null,null,null,null,null,null,null,"sheet 3"]
[null,null,null,null,null,null,null,"sheet 3"]
[null,null,null,null,null,null,null,"sheet 3"]
[null,null,null,null,null,null,null,"sheet 3"]
[null,null,null,null,null,null,null,"sheet 3"]
[null,null,null,null,null,null,null,"sheet 3"]
[null,null,null,null,null,null,null,"sheet 3"]
[null,null,null,null,null,null,null,"sheet 3"]
[null,null,null,null,null,null,null,"sheet 3"]
[null,null,null,null,null,null,null,"sheet 3"]
[null,null,null,null,null,null,null,"sheet 3"]
[null,null,null,null,null,null,null,"sheet 3"]
[null,null,null,null,null,null,null,"sheet 3"]
[null,null,null,null,null,null,null,"sheet 3"]
[null,null,null,null,null,null,null,"sheet 3"]
[null,null,null,null,null,null,null,"sheet 3"]
[null,null,null,null,null,null,null,"sheet 3"]
[null,null,null,null,null,null,null,"sheet 3"]
[null,null,null,null,null,null,null,"sheet 3"]
[null,null,null,null,null,null,null,"sheet 3"]
[null,null,null,null,null,null,null,"sheet 3"]
[null,null,null,null,null,null,null,"sheet 3"]
[null,null,null,null,null,null,null,"sheet 3"]
[null,null,null,null,null,null,null,"sheet 3"]
[null,null,null,null,null,null,null,"sheet 3"]
[null,null,null,null,null,null,null,"sheet 3"]
[null,null,null,null,null,null,null,"sheet 3"]
[null,null,null,null,null,null,null,"sheet 3"]
[null,null,null,null,null,null,null,"sheet 3"]
[null,null,null,null,null,null,null,"sheet 3"]
[null,null,null,null,null,null,null,"sheet 3"]
[null,null,null,null,null,null,null,"sheet 3"]
[null,null,null,null,null,null,null,"sheet 3"]
[null,null,null,null,null,null,null,"sheet 3"]
[null,null,null,null,null,null,null,"sheet 3"]
[null,null,null,null,null,null,null,"sheet 3"]
[null,null,null,null,null,null,null,"sheet 3"]
[null,null,null,null,null,null,null,"sheet 3"]
[null,null,null,null,null,null,null,"sheet 3"]
[null,null,null,null,null,null,null,"sheet 3"]
[null,null,null,null,null,null,null,"sheet 3"]
[null,null,null,null,null,null,null,"sheet 3"]
[null,null,null,null,null,null,null,"sheet 3"]
[null,null,null,null,null,null,null,"sheet 3"]
[null,null,null,null,null,null,null,"sheet 3"]
[null,null,null,null,null,null,null,"sheet 3"]
[null,null,null,null,null,null,null,"sheet 3"]
[null,null,null,null,null,null,null,"sheet 3"]
[null,null,null,null,null,null,null,"sheet 3"]
[null,null,null,null,null,null,null,"sheet 3"]
[null,null,null,null,null,null,null,"sheet 3"]
[null,null,null,null,null,null,null,"sheet 3"]
[null,null,null,null,null,null,null,"sheet 3"]
[null,null,null,null,null,null,null,"sheet 3"]
[null,null,null,null,null,null,null,"sheet 3"]
[null,null,null,null,null,null,null,"sheet 3"]
[null,null,null,null,null,null,null,"sheet 3"]
[null,null,null,null,null,null,null,"sheet 3"]
[null,null,null,null,null,null,null,"sheet 3"]
[null,null,null,null,null,null,null,"sheet 3"]
[null,null,null,null,null,null,null,"sheet 3"]
[null,null,null,null,null,null,null,"sheet 3"]
[null,null,null,null,null,null,null,"sheet 3"]
[null,null,null,null,null,null,null,"sheet 3"]
[null,null,null,null,null,null,null,"sheet 3"]
[null,null,null,null,null,null,null,"sheet 3"]
[null,null,null,null,null,null,null,"sheet 3"]
[null,null,null,null,null,null,null,"sheet 3"]
[null,null,null,null,null,null,null,"sheet 3"]
[null,null,null,null,null,null,null,"sheet 3"]
[null,null,null,null,null,null,null,"sheet 3"]
[null,null,null,null,null,null,null,"sheet 3"]
[null,null,null,null,null,null,null,"sheet 3"]
[null,null,null,null,null,null,null,"sheet 3"]
[null,null,null,null,null,null,null,"sheet 3"]
[null,null,null,null,null,null,null,"sheet 3"]
[null,null,null,null,null,null,null,"sheet 3"]
[null,null,null,null,null,null,null,"sheet 3"]
[null,null,null,null,null,null,null,"sheet 3"]
[null,null,null,null,null,null,null,"sheet 3"]
[null,null,null,null,null,null,null,"sheet 3"]
[null,null,null,null,null,null,null,"sheet 3"]
[null,null,null,null,null,null,null,"sheet 3"]
[null,null,null,null,null,null,null,"sheet 3"]
[null,null,null,null,null,null,null,"sheet 3"]
[null,null,null,null,null,null,null,"sheet 3"]
[null,null,null,null,null,null,null,"sheet 3"]
[null,null,null,null,null,null,null,"sheet 3"]
[null,null,null,null,null,null,null,"sheet 3"]
[null,null,null,null,null,null,null,"sheet 3"]
[null,null,null,null,null,null,null,"sheet 3"]
[null,null,null,null,null,null,null,"sheet 3"]
[null,null,null,null,null,null,null,"sheet 3"]
[null,null,null,null,null,null,null,"sheet 3"]
[null,null,null,null,null,null,null,"sheet 3"]
[null,null,null,null,null,null,null,"sheet 3"]
[null,null,null,null,null,null,null,"sheet 3"]
[null,null,null,null,null,null,null,"sheet 3"]
[null,null,null,null,null,null,null,"sheet 3"]
[null,null,null,null,null,null,null,"sheet 3"]
[null,null,null,null,null,null,null,"sheet 3"]
[null,null,null,null,null,null,null,"sheet 3"]
[null,null,null,null,null,null,null,"sheet 3"]
[null,null,null,null,null,null,null,"sheet 3"]
[null,null,null,null,null,null,null,"sheet 3"]
[null,null,null,null,null,null,null,"sheet 3"]
[null,null,null,null,null,null,null,"sheet 3"]
[null,null,null,null,null,null,null,"sheet 3"]
[null,null,null,null,null,null,null,"sheet 3"]
[null,null,null,null,null,null,null,"sheet 3"]
[null,null,null,null,null,null,null,"sheet 3"]
[null,null,null,null,null,null,null,"sheet 3"]
[null,null,null,null,null,null,null,"sheet 3"]
[null,null,null,null,null,null,null,"sheet 3"]
[null,null,null,null,null,null,null,"sheet 3"]
[null,null,null,null,null,null,null,"sheet 3"]
[null,null,null,null,null,null,null,"sheet 3"]
[null,null,null,null,null,null,null,"sheet 3"]
[null,null,null,null,null,null,null,"sheet 3"]
[null,null,null,null,null,null,null,"sheet 3"]
[null,null,null,null,null,null,null,"sheet 3"]
[null,null,null,null,null,null,null,"sheet 3"]
[null,null,null,null,null,null,null,"sheet 3"]
[null,null,null,null,null,null,null,"sheet 3"]
[null,null,null,null,null,null,null,"sheet 3"]
[null,null,null,null,null,null,null,"sheet 3"]
[null,null,null,null,null,null,null,"sheet 3"]
[null,null,null,null,null,null,null,"sheet 3"]
[null,null,null,null,null,null,null,"sheet 3"]
[null,null,null,null,null,null,null,"sheet 3"]
[null,null,null,null,null,null,null,"sheet 3"]
[null,null,null,null,null,null,null,"sheet 3"]
[null,null,null,null,null,null,null,"sheet 3"]
[null,null,null,null,null,null,null,"sheet 3"]
[null,null,null,null,null,null,null,"sheet 3"]
[null,null,null,null,null,null,null,"sheet 3"]
[null,null,null,null,null,null,null,"sheet 3"]
[null,null,null,null,null,null,null,"sheet 3"]
[null,null,null,null,null,null,null,"sheet 3"]
[null,null,null,null,null,null,null,"sheet 3"]
[null,null,null,null,null,null,null,"sheet 3"]
[null,null,null,null,null,null,null,"sheet 3"]
[null,null,null,null,null,null,null,"sheet 3"]
[null,null,null,null,null,null,null,"sheet 3"]
[null,null,null,null,null,null,null,"sheet 3"]
[null,null,null,null,null,null,null,"sheet 3"]
[null,null,null,null,null,null,null,"sheet 3"]
[null,null,null,null,null,null,null,"sheet 3"]
[null,null,null,null,null,null,null,"sheet 3"]
[null,null,null,null,null,null,null,"sheet 3"]
[null,null,null,null,null,null,null,"sheet 3"]
[null,null,null,null,null,null,null,"sheet 3"]
[null,null,null,null,null,null,null,"sheet 3"]
[null,null,null,null,null,null,null,"sheet 3"]
[null,null,null,null,null,null,null,"sheet 3"]
[null,null,null,null,null,null,null,"sheet 3"]
[null,null,null,null,null,null,null,"sheet 3"]
[null,null,null,null,null,null,null,"sheet 3"]
[null,null,null,null,null,null,null,"sheet 3"]
[null,null,null,null,null,null,null,"sheet 3"]
[null,null,null,null,null,null,null,"sheet 3"]
[null,null,null,null,null,null,null,"sheet 3"]
[null,null,null,null,null,null,null,"sheet 3"]
[null,null,null,null,null,null,null,"sheet 3"]
[null,null,null,null,null,null,null,"sheet 3"]
[null,null,null,null,null,null,null,"sheet 3"]
[null,null,null,null,null,null,null,"sheet 3"]
[null,null,null,null,null,null,null,"sheet 3"]
[null,null,null,null,null,null,null,"sheet 3"]
[null,null,null,null,null,null,null,"sheet 3"]
[null,null,null,null,null,null,null,"sheet 3"]
[null,null,null,null,null,null,null,"sheet 3"]
[null,null,null,null,null,null,null,"sheet 3"]
[null,null,null,null,null,null,null,"sheet 3"]
[null,null,null,null,null,null,null,"sheet 3"]
[null,null,null,null,null,null,null,"sheet 3"]
[null,null,null,null,null,null,null,"sheet 3"]
[null,null,null,null,null,null,null,"sheet 3"]
[null,null,null,null,null,null,null,"sheet 3"]
[null,null,null,null,null,null,null,"sheet 3"]
[null,null,null,null,null,null,null,"sheet 3"]
[null,null,null,null,null,null,null,"sheet 3"]
[null,null,null,null,null,null,null,"sheet 3"]
[null,null,null,null,null,null,null,"sheet 3"]
[null,null,null,null,null,null,null,"sheet 3"]
[null,null,null,null,null,null,null,"sheet 3"]
[null,null,null,null,null,null,null,"sheet 3"]
[null,null,null,null,null,null,null,"sheet 3"]
[null,null,null,null,null,null,null,"sheet 3"]
[null,null,null,null,null,null,null,"sheet 3"]
[null,null,null,null,null,null,null,"sheet 3"]
[null,null,null,null,null,null,null,"sheet 3"]
[null,null,null,null,null,null,null,"sheet 3"]
[null,null,null,null,null,null,null,"sheet 3"]
[null,null,null,null,null,null,null,"sheet 3"]
[null,null,null,null,null,null,null,"sheet 3"]
[null,null,null,null,null,null,null,"sheet 3"]
[null,null,null,null,null,null,null,"sheet 3"]
[null,null,null,null,null,null,null,"sheet 3"]
[null,null,null,null,null,null,null,"sheet 3"]
[null,null,null,null,null,null,null,"sheet 3"]
[null,null,null,null,null,null,null,"sheet 3"]
[null,null,null,null,null,null,null,"sheet 3"]
[null,null,null,null,null,null,null,"sheet 3"]
[null,null,null,null,null,null,null,"sheet 3"]
[null,null,null,null,null,null,null,"sheet 3"]
[null,null,null,null,null,null,null,"sheet 3"]
[null,null,null,null,null,null,null,"sheet 3"]
[null,null,null,null,null,null,null,"sheet 3"]
[null,null,null,null,null,null,null,"sheet 3"]
[null,null,null,null,null,null,null,"sheet 3"]
[null,null,null,null,null,null,null,"sheet 3"]
[null,null,null,null,null,null,null,"sheet 3"]
[null,null,null,null,null,null,null,"sheet 3"]
[null,null,null,null,null,null,null,"sheet 3"]
[null,null,null,null,null,null,null,"sheet 3"]
[null,null,null,null,null,null,null,"sheet 3"]
[null,null,null,null,null,null,null,"sheet 3"]
[null,null,null,null,null,null,null,"sheet 3"]
[null,null,null,null,null,null,null,"sheet 3"]
[null,null,null,null,null,null,null,"sheet 3"]
[null,null,null,null,null,null,null,"sheet 3"]
[null,null,null,null,null,null,null,"sheet 3"]
[null,null,null,null,null,null,null,"sheet 3"]
[null,null,null,null,null,null,null,"sheet 3"]
[null,null,null,null,null,null,null,"sheet 3"]
[null,null,null,null,null,null,null,"sheet 3"]
[null,null,null,null,null,null,null,"sheet 3"]
[null,null,null,null,null,null,null,"sheet 3"]
[null,null,null,null,null,null,null,"sheet 3"]
[null,null,null,null,null,null,null,"sheet 3"]
[null,null,null,null,null,null,null,"sheet 3"]
[null,null,null,null,null,null,null,"sheet 3"]
[null,null,null,null,null,null,null,"sheet 3"]
[null,null,null,null,null,null,null,"sheet 3"]
[null,null,null,null,null,null,null,"sheet 3"]
[null,null,null,null,null,null,null,"sheet 3"]
[null,null,null,null,null,null,null,"sheet 3"]
[null,null,null,null,null,null,null,"sheet 3"]
[null,null,null,null,null,null,null,"sheet 3"]
[null,null,null,null,null,null,null,"sheet 3"]
[null,null,null,null,null,null,null,"sheet 3"]
[null,null,null,null,null,null,null,"sheet 3"]
[null,null,null,null,null,null,null,"sheet 3"]
[null,null,null,null,null,null,null,"sheet 3"]
[null,null,null,null,null,null,null,"sheet 3"]
[null,null,null,null,null,null,null,"sheet 3"]
[null,null,null,null,null,null,null,"sheet 3"]
[null,null,null,null,null,null,null,"sheet 3"]
[null,null,null,null,null,null,null,"sheet 3"]
[null,null,null,null,null,null,null,"sheet 3"]
[null,null,null,null,null,null,null,"sheet 3"]
[null,null,null,null,null,null,null,"sheet 3"]
[null,null,null,null,null,null,null,"sheet 3"]
[null,null,null,null,null,null,null,"sheet 3"]
[null,null,null,null,null,null,null,"sheet 3"]
[null,null,null,null,null,null,null,"sheet 3"]
[null,null,null,null,null,null,null,"sheet 3"]
[null,null,null,null,null,null,null,"sheet 3"]
[null,null,null,null,null,null,null,"sheet 3"]
[null,null,null,null,null,null,null,"sheet 3"]
[null,null,null,null,null,null,null,"sheet 3"]
[null,null,null,null,null,null,null,"sheet 3"]
[null,null,null,null,null,null,null,"sheet 3"]
[null,null,null,null,null,null,null,"sheet 3"]
[null,null,null,null,null,null,null,"sheet 3"]
[null,null,null,null,null,null,null,"sheet 3"]
[null,null,null,null,null,null,null,"sheet 3"]
[null,null,null,null,null,null,null,"sheet 3"]
[null,null,null,null,null,null,null,"sheet 3"]
[null,null,null,null,null,null,null,"sheet 3"]
[null,null,null,null,null,null,null,"sheet 3"]
[null,null,null,null,null,null,null,"sheet 3"]
[null,null,null,null,null,null,null,"sheet 3"]
[null,null,null,null,null,null,null,"sheet 3"]
[null,null,null,null,null,null,null,"sheet 3"]
[null,null,null,null,null,null,null,"sheet 3"]
[null,null,null,null,null,null,null,"sheet 3"]
[null,null,null,null,null,null,null,"sheet 3"]
[null,null,null,null,null,null,null,"sheet 3"]
[null,null,null,null,null,null,null,"sheet 3"]
[null,null,null,null,null,null,null,"sheet 3"]
[null,null,null,null,null,null,null,"sheet 3"]
[null,null,null,null,null,null,null,"sheet 3"]
[null,null,null,null,null,null,null,"sheet 3"]
[null,null,null,null,null,null,null,"sheet 3"]
[null,null,null,null,null,null,null,"sheet 3"]
[null,null,null,null,null,null,null,"sheet 3"]
[null,null,null,null,null,null,null,"sheet 3"]
[null,null,null,null,null,null,null,"sheet 3"]
[null,null,null,null,null,null,null,"sheet 3"]
[null,null,null,null,null,null,null,"sheet 3"]
[null,null,null,null,null,null,null,"sheet 3"]
[null,null,null,null,null,null,null,"sheet 3"]
[null,null,null,null,null,null,null,"sheet 3"]
[null,null,null,null,null,null,null,"sheet 3"]
[null,null,null,null,null,null,null,"sheet 3"]
[null,null,null,null,null,null,null,"sheet 3"]
[null,null,null,null,null,null,null,"sheet 3"]
[null,null,null,null,null,null,null,"sheet 3"]
[null,null,null,null,null,null,null,"sheet 3"]
[null,null,null,null,null,null,null,"sheet 3"]
[null,null,null,null,null,null,null,"sheet 3"]
[null,null,null,null,null,null,null,"sheet 3"]
[null,null,null,null,null,null,null,"sheet 3"]
[null,null,null,null,null,null,null,"sheet 3"]
[null,null,null,null,null,null,null,"sheet 3"]
[null,null,null,null,null,null,null,"sheet 3"]
[null,null,null,null,null,null,null,"sheet 3"]
[null,null,null,null,null,null,null,"sheet 3"]
[null,null,null,null,null,null,null,"sheet 3"]
[null,null,null,null,null,null,null,"sheet 3"]
[null,null,null,null,null,null,null,"sheet 3"]
[null,null,null,null,null,null,null,"sheet 3"]
[null,null,null,null,null,null,null,"sheet 3"]
[null,null,null,null,null,null,null,"sheet 3"]
[null,null,null,null,null,null,null,"sheet 3"]
[null,null,null,null,null,null,null,"sheet 3"]
[null,null,null,null,null,null,null,"sheet 3"]
[null,null,null,null,null,null,null,"sheet 3"]
[null,null,null,null,null,null,null,"sheet 3"]
[null,null,null,null,null,null,null,"sheet 3"]
[null,null,null,null,null,null,null,"sheet 3"]
[null,null,null,null,null,null,null,"sheet 3"]
[null,null,null,null,null,null,null,"sheet 3"]
[null,null,null,null,null,null,null,"sheet 3"]
[null,null,null,null,null,null,null,"sheet 3"]
[null,null,null,null,null,null,null,"sheet 3"]
[null,null,null,null,null,null,null,"sheet 3"]
[null,null,null,null,null,null,null,"sheet 3"]
[null,null,null,null,null,null,null,"sheet 3"]
[null,null,null,null,null,null,null,"sheet 3"]
[null,null,null,null,null,null,null,"sheet 3"]
[null,null,null,null,null,null,null,"sheet 3"]
[null,null,null,null,null,null,null,"sheet 3"]
[null,null,null,null,null,null,null,"sheet 3"]
[null,null,null,null,null,null,null,"sheet 3"]
[null,null,null,null,null,null,null,"sheet 3"]
[null,null,null,null,null,null,null,"sheet 3"]
[null,null,null,null,null,null,null,"sheet 3"]
[null,null,null,null,null,null,null,"sheet 3"]
[null,null,null,null,null,null,null,"sheet 3"]
[null,null,null,null,null,null,null,"sheet 3"]
[null,null,null,null,null,null,null,"sheet 3"]
[null,null,null,null,null,null,null,"sheet 3"]
[null,null,null,null,null,null,null,"sheet 3"]
[null,null,null,null,null,null,null,"sheet 3"]
[null,null,null,null,null,null,null,"sheet 3"]
[null,null,null,null,null,null,null,"sheet 3"]
[null,null,null,null,null,null,null,"sheet 3"]
[null,null,null,null,null,null,null,"sheet 3"]
[null,null,null,null,null,null,null,"sheet 3"]
[null,null,null,null,null,null,null,"sheet 3"]
[null,null,null,null,null,null,null,"sheet 3"]
[null,null,null,null,null,null,null,"sheet 3"]
[null,null,null,null,null,null,null,"sheet 3"]
[null,null,null,null,null,null,null,"sheet 3"]
[null,null,null,null,null,null,null,"sheet 3"]
[null,null,null,null,null,null,null,"sheet 3"]
[null,null,null,null,null,null,null,"sheet 3"]
[null,null,null,null,null,null,null,"sheet 3"]
[null,null,null,null,null,null,null,"sheet 3"]
[null,null,null,null,null,null,null,"sheet 3"]
[null,null,null,null,null,null,null,"sheet 3"]
[null,null,null,null,null,null,null,"sheet 3"]
[null,null,null,null,null,null,null,"sheet 3"]
[null,null,null,null,null,null,null,"sheet 3"]
[null,null,null,null,null,null,null,"sheet 3"]
[null,null,null,null,null,null,null,"sheet 3"]
[null,null,null,null,null,null,null,"sheet 3"]
[null,null,null,null,null,null,null,"sheet 3"]
[null,null,null,null,null,null,null,"sheet 3"]
[null,null,null,null,null,null,null,"sheet 3"]
[null,null,null,null,null,null,null,"sheet 3"]
[null,null,null,null,null,null,null,"sheet 3"]
[null,null,null,null,null,null,null,"sheet 3"]
[null,null,null,null,null,null,null,"sheet 3"]
[null,null,null,null,null,null,null,"sheet 3"]
[null,null,null,null,null,null,null,"sheet 3"]
[null,null,null,null,null,null,null,"sheet 3"]
[null,null,null,null,null,null,null,"sheet 3"]
[null,null,null,null,null,null,null,"sheet 3"]
[null,null,null,null,null,null,null,"sheet 3"]
[null,null,null,null,null,null,null,"sheet 3"]
[null,null,null,null,null,null,null,"sheet 3"]
[null,null,null,null,null,null,null,"sheet 3"]
[null,null,null,null,null,null,null,"sheet 3"]
[null,null,null,null,null,null,null,"sheet 3"]
[null,null,null,null,null,null,null,"sheet 3"]
[null,null,null,null,null,null,null,"sheet 3"]
[null,null,null,null,null,null,null,"sheet 3"]
[null,null,null,null,null,null,null,"sheet 3"]
[null,null,null,null,null,null,null,"sheet 3"]
[null,null,null,null,null,null,null,"sheet 3"]
[null,null,null,null,null,null,null,"sheet 3"]
[null,null,null,null,null,null,null,"sheet 3"]
[null,null,null,null,null,null,null,"sheet 3"]
[null,null,null,null,null,null,null,"sheet 3"]
[null,null,null,null,null,null,null,"sheet 3"]
[null,null,null,null,null,null,null,"sheet 3"]
[null,null,null,null,null,null,null,"sheet 3"]
[null,null,null,null,null,null,null,"sheet 3"]
[null,null,null,null,null,null,null,"sheet 3"]
[null,null,null,null,null,null,null,"sheet 3"]
[null,null,null,null,null,null,null,"sheet 3"]
[null,null,null,null,null,null,null,"sheet 3"]
[null,null,null,null,null,null,null,"sheet 3"]
[null,null,null,null,null,null,null,"sheet 3"]
[null,null,null,null,null,null,null,"sheet 3"]
[null,null,null,null,null,null,null,"sheet 3"]
[null,null,null,null,null,null,null,"sheet 3"]
[null,null,null,null,null,null,null,"sheet 3"]
[null,null,null,null,null,null,null,"sheet 3"]
[null,null,null,null,null,null,null,"sheet 3"]
[null,null,null,null,null,null,null,"sheet 3"]
[null,null,null,null,null,null,null,"sheet 3"]
[null,null,null,null,null,null,null,"sheet 3"]
[null,null,null,null,null,null,null,"sheet 3"]
[null,null,null,null,null,null,null,"sheet 3"]
[null,null,null,null,null,null,null,"sheet 3"]
[null,null,null,null,null,null,null,"sheet 3"]
[null,null,null,null,null,null,null,"sheet 3"]
[null,null,null,null,null,null,null,"sheet 3"]
[null,null,null,null,null,null,null,"sheet 3"]
[null,null,null,null,null,null,null,"sheet 3"]
[null,null,null,null,null,null,null,"sheet 3"]
[null,null,null,null,null,null,null,"sheet 3"]
[null,null,null,null,null,null,null,"sheet 3"]
[null,null,null,null,null,null,null,"sheet 3"]
[null,null,null,null,null,null,null,"sheet 3"]
[null,null,null,null,null,null,null,"sheet 3"]
[null,null,null,null,null,null,null,"sheet 3"]
[null,null,null,null,null,null,null,"sheet 3"]
[null,null,null,null,null,null,null,"sheet 3"]
[null,null,null,null,null,null,null,"sheet 3"]
[null,null,null,null,null,null,null,"sheet 3"]
[null,null,null,null,null,null,null,"sheet 3"]
[null,null,null,null,null,null,null,"sheet 3"]
[null,null,null,null,null,null,null,"sheet 3"]
[null,null,null,null,null,null,null,"sheet 3"]
[null,null,null,null,null,null,null,"sheet 3"]
[null,null,null,null,null,null,null,"sheet 3"]
[null,null,null,null,null,null,null,"sheet 3"]
[null,null,null,null,null,null,null,"sheet 3"]
[null,null,null,null,null,null,null,"sheet 3"]
[null,null,null,null,null,null,null,"sheet 3"]
[null,null,null,null,null,null,null,"sheet 3"]
[null,null,null,null,null,null,null,"sheet 3"]
[null,null,null,null,null,null,null,"sheet 3"]
[null,null,null,null,null,null,null,"sheet 3"]
[null,null,null,null,null,null,null,"sheet 3"]
[null,null,null,null,null,null,null,"sheet 3"]
[null,null,null,null,null,null,null,"sheet 3"]
[null,null,null,null,null,null,null,"sheet 3"]
[null,null,null,null,null,null,null,"sheet 3"]
[null,null,null,null,null,null,null,"sheet 3"]
[null,null,null,null,null,null,null,"sheet 3"]
[null,null,null,null,null,null,null,"sheet 3"]
[null,null,null,null,null,null,null,"sheet 3"]
[null,null,null,null,null,null,null,"sheet 3"]
[null,null,null,null,null,null,null,"sheet 3"]
[null,null,null,null,null,null,null,"sheet 3"]
[null,null,null,null,null,null,null,"sheet 3"]
[null,null,null,null,null,null,null,"sheet 3"]
[null,null,null,null,null,null,null,"sheet 3"]
[null,null,null,null,null,null,null,"sheet 3"]
[null,null,null,null,null,null,null,"sheet 3"]
[null,null,null,null,null,null,null,"sheet 3"]
[null,null,null,null,null,null,null,"sheet 3"]
[null,null,null,null,null,null,null,"sheet 3"]
[null,null,null,null,null,null,null,"sheet 3"]
[null,null,null,null,null,null,null,"sheet 3"]
[null,null,null,null,null,null,null,"sheet 3"]
[null,null,null,null,null,null,null,"sheet 3"]
[null,null,null,null,null,null,null,"sheet 3"]
[null,null,null,null,null,null,null,"sheet 3"]
[null,null,null,null,null,null,null,"sheet 3"]
[null,null,null,null,null,null,null,"sheet 3"]
[null,null,null,null,null,null,null,"sheet 3"]
[null,null,null,null,null,null,null,"sheet 3"]
[null,null,null,null,null,null,null,"sheet 3"]
[null,null,null,null,null,null,null,"sheet 3"]
[null,null,null,null,null,null,null,"sheet 3"]
[null,null,null,null,null,null,null,"sheet 3"]
[null,null,null,null,null,null,null,"sheet 3"]
[null,null,null,null,null,null,null,"sheet 3"]
[null,null,null,null,null,null,null,"sheet 3"]
[null,null,null,null,null,null,null,"sheet 3"]
[null,null,null,null,null,null,null,"sheet 3"]
[null,null,null,null,null,null,null,"sheet 3"]
[null,null,null,null,null,null,null,"sheet 3"]
[null,null,null,null,null,null,null,"sheet 3"]
[null,null,null,null,null,null,null,"sheet 3"]
[null,null,null,null,null,null,null,"sheet 3"]
[null,null,null,null,null,null,null,"sheet 3"]
[null,null,null,null,null,null,null,"sheet 3"]
[null,null,null,null,null,null,null,"sheet 3"]
[null,null,null,null,null,null,null,"sheet 3"]
[null,null,null,null,null,null,null,"sheet 3"]
[null,null,null,null,null,null,null,"sheet 3"]
[null,null,null,null,null,null,null,"sheet 3"]
[null,null,null,null,null,null,null,"sheet 3"]
[null,null,null,null,null,null,null,"sheet 3"]
[null,null,null,null,null,null,null,"sheet 3"]
[null,null,null,null,null,null,null,"sheet 3"]
[null,null,null,null,null,null,null,"sheet 3"]
[null,null,null,null,null,null,null,"sheet 3"]
[null,null,null,null,null,null,null,"sheet 3"]
[null,null,null,null,null,null,null,"sheet 3"]
[null,null,null,null,null,null,null,"sheet 3"]
[null,null,null,null,null,null,null,"sheet 3"]
[null,null,null,null,null,null,null,"sheet 3"]
[null,null,null,null,null,null,null,"sheet 3"]
[null,null,null,null,null,null,null,"sheet 3"]
[null,null,null,null,null,null,null,"sheet 3"]
[null,null,null,null,null,null,null,"sheet 3"]
[null,null,null,null,null,null,null,"sheet 3"]
[null,null,null,null,null,null,null,"sheet 3"]
[null,null,null,null,null,null,null,"sheet 3"]
[null,null,null,null,null,null,null,"sheet 3"]
[null,null,null,null,null,null,null,"sheet 3"]
[null,null,null,null,null,null,null,"sheet 3"]
[null,null,null,null,null,null,null,"sheet 3"]
[null,null,null,null,null,null,null,"sheet 3"]
[null,null,null,null,null,null,null,"sheet 3"]
[null,null,null,null,null,null,null,"sheet 3"]
[null,null,null,null,null,null,null,"sheet 3"]
[null,null,null,null,null,null,null,"sheet 3"]
[null,null,null,null,null,null,null,"sheet 3"]
[null,null,null,null,null,null,null,"sheet 3"]
[null,null,null,null,null,null,null,"sheet 3"]
[null,null,null,null,null,null,null,"sheet 3"]
[null,null,null,null,null,null,null,"sheet 3"]
[null,null,null,null,null,null,null,"sheet 3"]
[null,null,null,null,null,null,null,"sheet 3"]
[null,null,null,null,null,null,null,"sheet 3"]
[null,null,null,null,null,null,null,"sheet 3"]
[null,null,null,null,null,null,null,"sheet 3"]
[null,null,null,null,null,null,null,"sheet 3"]
[null,null,null,null,null,null,null,"sheet 3"]
[null,null,null,null,null,null,null,"sheet 3"]
[null,null,null,null,null,null,null,"sheet 3"]
[null,null,null,null,null,null,null,"sheet 3"]
[null,null,null,null,null,null,null,"sheet 3"]
[null,null,null,null,null,null,null,"sheet 3"]
[null,null,null,null,null,null,null,"sheet 3"]
[null,null,null,null,null,null,null,"sheet 3"]
[null,null,null,null,null,null,null,"sheet 3"]
[null,null,null,null,null,null,null,"sheet 3"]
[null,null,null,null,null,null,null,"sheet 3"]
[null,null,null,null,null,null,null,"sheet 3"]
[null,null,null,null,null,null,null,"sheet 3"]
[null,null,null,null,null,null,null,"sheet 3"]
[null,null,null,null,null,null,null,"sheet 3"]
[null,null,null,null,null,null,null,"sheet 3"]
[null,null,null,null,null,null,null,"sheet 3"]
[null,null,null,null,null,null,null,"sheet 3"]
[null,null,null,null,null,null,null,"sheet 3"]
[null,null,null,null,null,null,null,"sheet 3"]
[null,null,null,null,null,null,null,"sheet 3"]
[null,null,null,null,null,null,null,"sheet 3"]
[null,null,null,null,null,null,null,"sheet 3"]
[null,null,null,null,null,null,null,"sheet 3"]
[null,null,null,null,null,null,null,"sheet 3"]
[null,null,null,null,null,null,null,"sheet 3"]
[null,null,null,null,null,null,null,"sheet 3"]
[null,null,null,null,null,null,null,"sheet 3"]
[null,null,null,null,null,null,null,"sheet 3"]
[null,null,null,null,null,null,null,"sheet 3"]
[null,null,null,null,null,null,null,"sheet 3"]
[null,null,null,null,null,null,null,"sheet 3"]
[null,null,null,null,null,null,null,"sheet 3"]
[null,null,null,null,null,null,null,"sheet 3"]
[null,null,null,null,null,null,null,"sheet 3"]
[null,null,null,null,null,null,null,"sheet 3"]
[null,null,null,null,null,null,null,"sheet 3"]
[null,null,null,null,null,null,null,"sheet 3"]
[null,null,null,null,null,null,null,"sheet 3"]
[null,null,null,null,null,null,null,"sheet 3"]
[null,null,null,null,null,null,null,"sheet 3"]
[null,null,null,null,null,null,null,"sheet 3"]
[null,null,null,null,null,null,null,"sheet 3"]
[null,null,null,null,null,null,null,"sheet 3"]
[null,null,null,null,null,null,null,"sheet 3"]
[null,null,null,null,null,null,null,"sheet 3"]
[null,null,null,null,null,null,null,"sheet 3"]
[null,null,null,null,null,null,null,"sheet 3"]
[null,null,null,null,null,null,null,"sheet 3"]
[null,null,null,null,null,null,null,"sheet 3"]
[null,null,null,null,null,null,null,"sheet 3"]
[null,null,null,null,null,null,null,"sheet 3"]
[null,null,null,null,null,null,null,"sheet 3"]
[null,null,null,null,null,null,null,"sheet 3"]
[null,null,null,null,null,null,null,"sheet 3"]
[null,null,null,null,null,null,null,"sheet 3"]
[null,null,null,null,null,null,null,"sheet 3"]
[null,null,null,null,null,null,null,"sheet 3"]
[null,null,null,null,null,null,null,"sheet 3"]
[null,null,null,null,null,null,null,"sheet 3"]
[null,null,null,null,null,null,null,"sheet 3"]
[null,null,null,null,null,null,null,"sheet 3"]
[null,null,null,null,null,null,null,"sheet 3"]
[null,null,null,null,null,null,null,"sheet 3"]
[null,null,null,null,null,null,null,"sheet 3"]
[null,null,null,null,null,null,null,"sheet 3"]
[null,null,null,null,null,null,null,"sheet 3"]
[null,null,null,null,null,null,null,"sheet 3"]
[null,null,null,null,null,null,null,"sheet 3"]
[null,null,null,null,null,null,null,"sheet 3"]
[null,null,null,null,null,null,null,"sheet 3"]
[null,null,null,null,null,null,null,"sheet 3"]
[null,null,null,null,null,null,null,"sheet 3"]
[null,null,null,null,null,null,null,"sheet 3"]
[null,null,null,null,null,null,null,"sheet 3"]
[null,null,null,null,null,null,null,"sheet 3"]
[null,null,null,null,null,null,null,"sheet 3"]
[null,null,null,null,null,null,null,"sheet 3"]
[null,null,null,null,null,null,null,"sheet 3"]
[null,null,null,null,null,null,null,"sheet 3"]
[null,null,null,null,null,null,null,"sheet 3"]
[null,null,null,null,null,null,null,"sheet 3"]
[null,null,null,null,null,null,null,"sheet 3"]
[null,null,null,null,null,null,null,"sheet 3"]
[null,null,null,null,null,null,null,"sheet 3"]
[null,null,null,null,null,null,null,"sheet 3"]
[null,null,null,null,null,null,null,"sheet 3"]
[null,null,null,null,null,null,null,"sheet 3"]
[null,null,null,null,null,null,null,"sheet 3"]
[null,null,null,null,null,null,null,"sheet 3"]
[null,null,null,null,null,null,null,"sheet 3"]
[null,null,null,null,null,null,null,"sheet 3"]
[null,null,null,null,null,null,null,"sheet 3"]
[null,null,null,null,null,null,null,"sheet 3"]
[null,null,null,null,null,null,null,"sheet 3"]
[null,null,null,null,null,null,null,"sheet 3"]
[null,null,null,null,null,null,null,"sheet 3"]
[null,null,null,null,null,null,null,"sheet 3"]
[null,null,null,null,null,null,null,"sheet 3"]
[null,null,null,null,null,null,null,"sheet 3"]
[null,null,null,null,null,null,null,"sheet 3"]
[null,null,null,null,null,null,null,"sheet 3"]
[null,null,null,null,null,null,null,"sheet 3"]
[null,null,null,null,null,null,null,"sheet 3"]
[null,null,null,null,null,null,null,"sheet 3"]
[null,null,null,null,null,null,null,"sheet 3"]
[null,null,null,null,null,null,null,"sheet 3"]
[null,null,null,null,null,null,null,"sheet 3"]
[null,null,null,null,null,null,null,"sheet 3"]
[null,null,null,null,null,null,null,"sheet 3"]
[null,null,null,null,null,null,null,"sheet 3"]
[null,null,null,null,null,null,null,"sheet 3"]
[null,null,null,null,null,null,null,"sheet 3"]
[null,null,null,null,null,null,null,"sheet 3"]
[null,null,null,null,null,null,null,"sheet 3"]
[null,null,null,null,null,null,null,"sheet 3"]
[null,null,null,null,null,null,null,"sheet 3"]
[null,null,null,null,null,null,null,"sheet 3"]
[null,null,null,null,null,null,null,"sheet 3"]
[null,null,null,null,null,null,null,"sheet 3"]
[null,null,null,null,null,null,null,"sheet 3"]
[null,null,null,null,null,null,null,"sheet 3"]
[null,null,null,null,null,null,null,"sheet 3"]
[null,null,null,null,null,null,null,"sheet 3"]
[null,null,null,null,null,null,null,"sheet 3"]
[null,null,null,null,null,null,null,"sheet 3"]
[null,null,null,null,null,null,null,"sheet 3"]
[null,null,null,null,null,null,null,"sheet 3"]
[null,null,null,null,null,null,null,"sheet 3"]
[null,null,null,null,null,null,null,"sheet 3"]
[null,null,null,null,null,null,null,"sheet 3"]
[null,null,null,null,null,null,null,"sheet 3"]
[null,null,null,null,null,null,null,"sheet 3"]
[null,null,null,null,null,null,null,"sheet 3"]
[null,null,null,null,null,null,null,"sheet 3"]
[null,null,null,null,null,null,null,"sheet 3"]
[null,null,null,null,null,null,null,"sheet 3"]
[null,null,null,null,null,null,null,"sheet 3"]
[null,null,null,null,null,null,null,"sheet 3"]
[null,null,null,null,null,null,null,"sheet 3"]
[null,null,null,null,null,null,null,"sheet 3"]
[null,null,null,null,null,null,null,"sheet 3"]
[null,null,null,null,null,null,null,"sheet 3"]
[null,null,null,null,null,null,null,"sheet 3"]
[null,null,null,null,null,null,null,"sheet 3"]
[null,null,null,null,null,null,null,"sheet 3"]
[null,null,null,null,null,null,null,"sheet 3"]
[null,null,null,null,null,null,null,"sheet 3"]
[null,null,null,null,null,null,null,"sheet 3"]
[null,null,null,null,null,null,null,"sheet 3"]
[null,null,null,null,null,null,null,"sheet 3"]
[null,null,null,null,null,null,null,"sheet 3"]
[null,null,null,null,null,null,null,"sheet 3"]
[null,null,null,null,null,null,null,"sheet 3"]
[null,null,null,null,null,null,null,"sheet 3"]
[null,null,null,null,null,null,null,"sheet 3"]
[null,null,null,null,null,null,null,"sheet 3"]
[null,null,null,null,null,null,null,"sheet 3"]
[null,null,null,null,null,null,null,"sheet 3"]
[null,null,null,null,null,null,null,"sheet 3"]
[null,null,null,null,null,null,null,"sheet 3"]
[null,null,null,null,null,null,null,"sheet 3"]
[null,null,null,null,null,null,null,"sheet 3"]
[null,null,null,null,null,null,null,"sheet 3"]
[null,null,null,null,null,null,null,"sheet 3"]
[null,null,null,null,null,null,null,"sheet 3"]
[null,null,null,null,null,null,null,"sheet 3"]
[null,null,null,null,null,null,null,"sheet 3"]
[null,null,null,null,null,null,null,"sheet 3"]
[null,null,null,null,null,null,null,"sheet 3"]
[null,null,null,null,null,null,null,"sheet 3"]
[null,null,null,null,null,null,null,"sheet 3"]
[null,null,null,null,null,null,null,"sheet 3"]
[null,null,null,null,null,null,null,"sheet 3"]
[null,null,null,null,null,null,null,"sheet 3"]
[null,null,null,null,null,null,null,"sheet 3"]
[null,null,null,null,null,null,null,"sheet 3"]
[null,null,null,null,null,null,null,"sheet 3"]
[null,null,null,null,null,null,null,"sheet 3"]
[null,null,null,null,null,null,null,"sheet 3"]
[null,null,null,null,null,null,null,"sheet 3"]
[null,null,null,null,null,null,null,"sheet 3"]
[null,null,null,null,null,null,null,"sheet 3"]
[null,null,null,null,null,null,null,"sheet 3"]
[null,null,null,null,null,null,null,"sheet 3"]
[null,null,null,null,null,null,null,"sheet 3"]
[null,null,null,null,null,null,null,"sheet 3"]
[null,null,null,null,null,null,null,"sheet 3"]
[null,null,null,null,null,null,null,"sheet 3"]
[null,null,null,null,null,null,null,"sheet 3"]
[null,null,null,null,null,null,null,"sheet 3"]
[null,null,null,null,null,null,null,"sheet 3"]
[null,null,null,null,null,null,null,"sheet 3"]
[null,null,null,null,null,null,null,"sheet 3"]
[null,null,null,null,null,null,null,"sheet 3"]
[null,null,null,null,null,null,null,"sheet 3"]
[null,null,null,null,null,null,null,"sheet 3"]
[null,null,null,null,null,null,null,"sheet 3"]
[null,null,null,null,null,null,null,"sheet 3"]
[null,null,null,null,null,null,null,"sheet 3"]
[null,null,null,null,null,null,null,"sheet 3"]
[null,null,null,null,null,null,null,"sheet 3"]
[null,null,null,null,null,null,null,"sheet 3"]
[null,null,null,null,null,null,null,"sheet 3"]
[null,null,null,null,null,null,null,"sheet 3"]
[null,null,null,null,null,null,null,"sheet 3"]
[null,null,null,null,null,null,null,"sheet 3"]
[null,null,null,null,null,null,null,"sheet 3"]
[null,null,null,null,null,null,null,"sheet 3"]
[null,null,null,null,null,null,null,"sheet 3"]
[null,null,null,null,null,null,null,"sheet 3"]
[null,null,null,null,null,null,null,"sheet 3"]
[null,null,null,null,null,null,null,"sheet 3"]
[null,null,null,null,null,null,null,"sheet 3"]
[null,null,null,null,null,null,null,"sheet 3"]
[null,null,null,null,null,null,null,"sheet 3"]
[null,null,null,null,null,null,null,"sheet 3"]
[null,null,null,null,null,null,null,"sheet 3"]
[null,null,null,null,null,null,null,"sheet 3"]
[null,null,null,null,null,null,null,"sheet 3"]
[null,null,null,null,null,null,null,"sheet 3"]
[null,null,null,null,null,null,null,"sheet 3"]
[null,null,null,null,null,null,null,"sheet 3"]
[null,null,null,null,null,null,null,"sheet 3"]
[null,null,null,null,null,null,null,"sheet 3"]
[null,null,null,null,null,null,null,"sheet 3"]
[null,null,null,null,null,null,null,"sheet 3"]
[null,null,null,null,null,null,null,"sheet 3"]
[null,null,null,null,null,null,null,"sheet 3"]
[null,null,null,null,null,null,null,"sheet 3"]
[null,null,null,null,null,null,null,"sheet 3"]
[null,null,null,null,null,null,null,"sheet 3"]
[null,null,null,null,null,null,null,"sheet 3"]
[null,null,null,null,null,null,null,"sheet 3"]
[null,null,null,null,null,null,null,"sheet 3"]
[null,null,null,null,null,null,null,"sheet 3"]
[null,null,null,null,null,null,null,"sheet 3"]
[null,null,null,null,null,null,null,"sheet 3"]
[null,null,null,null,null,null,null,"sheet 3"]
[null,null,null,null,null,null,null,"sheet 3"]
[null,null,null,null,null,null,null,"sheet 3"]
[null,null,null,null,null,null,null,"sheet 3"]
[null,null,null,null,null,null,null,"sheet 3"]
[null,null,null,null,null,null,null,"sheet 3"]
[null,null,null,null,null,null,null,"sheet 3"]
[null,null,null,null,null,null,null,"sheet 3"]
[null,null,null,null,null,null,null,"sheet 3"]
[null,null,null,null,null,null,null,"sheet 3"]
[null,null,null,null,null,null,null,"sheet 3"]
[null,null,null,null,null,null,null,"sheet 3"]
[null,null,null,null,null,null,null,"sheet 3"]
[null,null,null,null,null,null,null,"sheet 3"]
[null,null,null,null,null,null,null,"sheet 3"]
[null,null,null,null,null,null,null,"sheet 3"]
[null,null,null,null,null,null,null,"sheet 3"]
[null,null,null,null,null,null,null,"sheet 3"]
[null,null,null,null,null,null,null,"sheet 3"]
[null,null,null,null,null,null,null,"sheet 3"]
[null,null,null,null,null,null,null,"sheet 3"]
[null,null,null,null,null,null,null,"sheet 3"]
[null,null,null,null,null,null,null,"sheet 3"]
[null,null,null,null,null,null,null,"sheet 3"]
[null,null,null,null,null,null,null,"sheet 3"]
[null,null,null,null,null,null,null,"sheet 3"]
[null,null,null,null,null,null,null,"sheet 3"]
[null,null,null,null,null,null,null,"sheet 3"]
[null,null,null,null,null,null,null,"sheet 3"]
[null,null,null,null,null,null,null,"sheet 3"]
[null,null,null,null,null,null,null,"sheet 3"]
[null,null,null,null,null,null,null,"sheet 3"]
[null,null,null,null,null,null,null,"sheet 3"]
[null,null,null,null,null,null,null,"sheet 3"]
[null,null,null,null,null,null,null,"sheet 3"]
[null,null,null,null,null,null,null,"sheet 3"]
[null,null,null,null,null,null,null,"sheet 3"]
[null,null,null,null,null,null,null,"sheet 3"]
[null,null,null,null,null,null,null,"sheet 3"]
[null,null,null,null,null,null,null,"sheet 3"]
[null,null,null,null,null,null,null,"sheet 3"]
[null,null,null,null,null,null,null,"sheet 3"]
[null,null,null,null,null,null,null,"sheet 3"]
[null,null,null,null,null,null,null,"sheet 3"]
[null,null,null,null,null,null,null,"sheet 3"]
[null,null,null,null,null,null,null,"sheet 3"]
[null,null,null,null,null,null,null,"sheet 3"]
[null,null,null,null,null,null,null,"sheet 3"]
[null,null,null,null,null,null,null,"sheet 3"]
[null,null,null,null,null,null,null,"sheet 3"]
[null,null,null,null,null,null,null,"sheet 3"]
[null,null,null,null,null,null,null,"sheet 3"]
[null,null,null,null,null,null,null,"sheet 3"]
[null,null,null,null,null,null,null,"sheet 3"]
[null,null,null,null,null,null,null,"sheet 3"]
[null,null,null,null,null,null,null,"sheet 3"]
[null,null,null,null,null,null,null,"sheet 3"]
[null,null,null,null,null,null,null,"sheet 3"]
[null,null,null,null,null,null,null,"sheet 3"]
[null,null,null,null,null,null,null,"sheet 3"]
[null,null,null,null,null,null,null,"sheet 3"]
[null,null,null,null,null,null,null,"sheet 3"]
[null,null,null,null,null,null,null,"sheet 3"]
[null,null,null,null,null,null,null,"sheet 3"]
[null,null,null,null,null,null,null,"sheet 3"]
[null,null,null,null,null,null,null,"sheet 3"]
[null,null,null,null,null,null,null,"sheet 3"]
[null,null,null,null,null,null,null,"sheet 3"]
[null,null,null,null,null,null,null,"sheet 3"]
[null,null,null,null,null,null,null,"sheet 3"]
[null,null,null,null,null,null,null,"sheet 3"]
[null,null,null,null,null,null,null,"sheet 3"]
[null,null,null,null,null,null,null,"sheet 3"]
[null,null,null,null,null,null,null,"sheet 3"]
[null,null,null,null,null,null,null,"sheet 3"]
[null,null,null,null,null,null,null,"sheet 3"]
[null,null,null,null,null,null,null,"sheet 3"]
[null,null,null,null,null,null,null,"sheet 3"]
[null,null,null,null,null,null,null,"sheet 3"]
[null,null,null,null,null,null,null,"sheet 3"]
[null,null,null,null,null,null,null,"sheet 3"]
[null,null,null,null,null,null,null,"sheet 3"]
[null,null,null,null,null,null,null,"sheet 3"]
[null,null,null,null,null,null,null,"sheet 3"]
[null,null,null,null,null,null,null,"sheet 3"]
[null,null,null,null,null,null,null,"sheet 3"]
[null,null,null,null,null,null,null,"sheet 3"]
[null,null,null,null,null,null,null,"sheet 3"]
[null,null,null,null,null,null,null,"sheet 3"]
[null,null,null,null,null,null,null,"sheet 3"]
[null,null,null,null,null,null,null,"sheet 3"]
[null,null,null,null,null,null,null,"sheet 3"]
[null,null,null,null,null,null,null,"sheet 3"]
[null,null,null,null,null,null,null,"sheet 3"]
[null,null,null,null,null,null,null,"sheet 3"]
[null,null,null,null,null,null,null,"sheet 3"]
[null,null,null,null,null,null,null,"sheet 3"]
[null,null,null,null,null,null,null,"sheet 3"]
[null,null,null,null,null,null,null,"sheet 3"]
[null,null,null,null,null,null,null,"sheet 3"]
[null,null,null,null,null,null,null,"sheet 3"]
[null,null,null,null,null,null,null,"sheet 3"]
[null,null,null,null,null,null,null,"sheet 3"]
[null,null,null,null,null,null,null,"sheet 3"]
[null,null,null,null,null,null,null,"sheet 3"]
[null,null,null,null,null,null,null,"sheet 3"]
[null,null,null,null,null,null,null,"sheet 3"]
[null,null,null,null,null,null,null,"sheet 3"]
[null,null,null,null,null,null,null,"sheet 3"]
[null,null,null,null,null,null,null,"sheet 3"]
[null,null,null,null,null,null,null,"sheet 3"]
[null,null,null,null,null,null,null,"sheet 3"]
[null,null,null,null,null,null,null,"sheet 3"]
[null,null,null,null,null,null,null,"sheet 3"]
[null,null,null,null,null,null,null,"sheet 3"]
[null,null,null,null,null,null,null,"sheet 3"]
[null,null,null,null,null,null,null,"sheet 3"]
[null,null,null,null,null,null,null,"sheet 3"]
[null,null,null,null,null,null,null,"sheet 3"]
[null,null,null,null,null,null,null,"sheet 3"]
[null,null,null,null,null,null,null,"sheet 3"]
[null,null,null,null,null,null,null,"sheet 3"]
[null,null,null,null,null,null,null,"sheet 3"]
[null,null,null,null,null,null,null,"sheet 3"]
[null,null,null,null,null,null,null,"sheet 3"]
[null,null,null,null,null,null,null,"sheet 3"]
[null,null,null,null,null,null,null,"sheet 3"]
[null,null,null,null,null,null,null,"sheet 3"]
[null,null,null,null,null,null,null,"sheet 3"]
[null,null,null,null,null,null,null,"sheet 3"]
[null,null,null,null,null,null,null,"sheet 3"]
[null,null,null,null,null,null,null,"sheet 3"]
[null,null,null,null,null,null,null,"sheet 3"]
[null,null,null,null,null,null,null,"sheet 3"]
[null,null,null,null,null,null,null,"sheet 3"]
[null,null,null,null,null,null,null,"sheet 3"]
[null,null,null,null,null,null,null,"sheet 3"]
[null,null,null,null,null,null,null,"sheet 3"]
[null,null,null,null,null,null,null,"sheet 3"]
[null,null,null,null,null,null,null,"sheet 3"]
[null,null,null,null,null,null,null,"sheet 3"]
[null,null,null,null,null,null,null,"sheet 3"]
[null,null,null,null,null,null,null,"sheet 3"]
[null,null,null,null,null,null,null,"sheet 3"]
[null,null,null,null,null,null,null,"sheet 3"]
[null,null,null,null,null,null,null,"sheet 3"]
[null,null,null,null,null,null,null,"sheet 3"]
[null,null,null,null,null,null,null,"sheet 3"]
[null,null,null,null,null,null,null,"sheet 3"]
[null,null,null,null,null,null,null,"sheet 3"]
[null,null,null,null,null,null,null,"sheet 3"]
[null,null,null,null,null,null,null,"sheet 3"]
[null,null,null,null,null,null,null,"sheet 3"]
[null,null,null,null,null,null,null,"sheet 3"]
[null,null,null,null,null,null,null,"sheet 3"]
[null,null,null,null,null,null,null,"sheet 3"]
[null,null,null,null,null,null,null,"sheet 3"]
[null,null,null,null,null,null,null,"sheet 3"]
[null,null,null,null,null,null,null,"sheet 3"]
[null,null,null,null,null,null,null,"sheet 3"]
[null,null,null,null,null,null,null,"sheet 3"]
[null,null,null,null,null,null,null,"sheet 3"]
[null,null,null,null,null,null,null,"sheet 3"]
[null,null,null,null,null,null,null,"sheet 3"]
[null,null,null,null,null,null,null,"sheet 3"]
[null,null,null,null,null,null,null,"sheet 3"]
[null,null,null,null,null,null,null,"sheet 3"]
[null,null,null,null,null,null,null,"sheet 3"]
[null,null,null,null,null,null,null,"sheet 3"]
[null,null,null,null,null,null,null,"sheet 3"]
[null,null,null,null,null,null,null,"sheet 3"]
[null,null,null,null,null,null,null,"sheet 3"]
[null,null,null,null,null,null,null,"sheet 3"]
[null,null,null,null,null,null,null,"sheet 3"]
[null,null,null,null,null,null,null,"sheet 3"]
[null,null,null,null,null,null,null,"sheet 3"]
[null,null,null,null,null,null,null,"sheet 3"]
[null,null,null,null,null,null,null,"sheet 3"]
[null,null,null,null,null,null,null,"sheet 3"]
[null,null,null,null,null,null,null,"sheet 3"]
[null,null,null,null,null,null,null,"sheet 3"]
[null,null,null,null,null,null,null,"sheet 3"]
[null,null,null,null,null,null,null,"sheet 3"]
[null,null,null,null,null,null,null,"sheet 3"]
[null,null,null,null,null,null,null,"sheet 3"]
[null,null,null,null,null,null,null,"sheet 3"]
[null,null,null,null,null,null,null,"sheet 3"]
[null,null,null,null,null,null,null,"sheet 3"]
[null,null,null,null,null,null,null,"sheet 3"]
[null,null,null,null,null,null,null,"sheet 3"]
[null,null,null,null,null,null,null,"sheet 3"]
[null,null,null,null,null,null,null,"sheet 3"]
[null,null,null,null,null,null,null,"sheet 3"]
[null,null,null,null,null,null,null,"sheet 3"]
[null,null,null,null,null,null,null,"sheet 3"]
[null,null,null,null,null,null,null,"sheet 3"]
[null,null,null,null,null,null,null,"sheet 3"]
[null,null,null,null,null,null,null,"sheet 3"]
[null,null,null,null,null,null,null,"sheet 3"]
[null,null,null,null,null,null,null,"sheet 3"]
[null,null,null,null,null,null,null,"sheet 3"]
[null,null,null,null,null,null,null,"sheet 3"]
[null,null,null,null,null,null,null,"sheet 3"]
[null,null,null,null,null,null,null,"sheet 3"]
[null,null,null,null,null,null,null,"sheet 3"]
[null,null,null,null,null,null,null,"sheet 3"]
[null,null,null,null,null,null,null,"sheet 3"]
[null,null,null,null,null,null,null,"sheet 3"]
[null,null,null,null,null,null,null,"sheet 3"]
[null,null,null,null,null,null,null,"sheet 3"]
[null,null,null,null,null,null,null,"sheet 3"]
[null,null,null,null,null,null,null,"sheet 3"]
[null,null,null,null,null,null,null,"sheet 3"]
[null,null,null,null,null,null,null,"sheet 3"]
[null,null,null,null,null,null,null,"sheet 3"]
[null,null,null,null,null,null,null,"sheet 3"]
[null,null,null,null,null,null,null,"sheet 3"]
[null,null,null,null,null,null,null,"sheet 3"]
[null,null,null,null,null,null,null,"sheet 3"]
[null,null,null,null,null,null,null,"sheet 3"]
[null,null,null,null,null,null,null,"sheet 3"]
[null,null,null,null,null,null,null,"sheet 3"]
[null,null,null,null,null,null,null,"sheet 3"]
[null,null,null,null,null,null,null,"sheet 3"]
[null,null,null,null,null,null,null,"sheet 3"]
[null,null,null,null,null,null,null,"sheet 3"]
[null,null,null,null,null,null,null,"sheet 3"]
[null,null,null,null,null,null,null,"sheet 3"]
[null,null,null,null,null,null,null,"sheet 3"]
[null,null,null,null,null,null,null,"sheet 3"]
[null,null,null,null,null,null,null,"sheet 3"]
[null,null,null,null,null,null,null,"sheet 3"]
[null,null,null,null,null,null,null,"sheet 3"]
[null,null,null,null,null,null,null,"sheet 3"]
[null,null,null,null,null,null,null,"sheet 3"]
[null,null,null,null,null,null,null,"sheet 3"]
[null,null,null,null,null,null,null,"sheet 3"]
[null,null,null,null,null,null,null,"sheet 3"]
[null,null,null,null,null,null,null,"sheet 3"]
[null,null,null,null,null,null,null,"sheet 3"]
[null,null,null,null,null,null,null,"sheet 3"]
[null,null,null,null,null,null,null,"sheet 3"]
[null,null,null,null,null,null,null,"sheet 3"]
[null,null,null,null,null,null,null,"sheet 3"]
[null,null,null,null,null,null,null,"sheet 3"]
[null,null,null,null,null,null,null,"sheet 3"]
[null,null,null,null,null,null,null,"sheet 3"]
[null,null,null,null,null,null,null,"sheet 3"]
[null,null,null,null,null,null,null,"sheet 3"]
[null,null,null,null,null,null,null,"sheet 3"]
[null,null,null,null,null,null,null,"sheet 3"]
[null,null,null,null,null,null,null,"sheet 3"]
[null,null,null,null,null,null,null,"sheet 3"]
[null,null,null,null,null,null,null,"sheet 3"]
[null,null,null,null,null,null,null,"sheet 3"]
[null,null,null,null,null,null,null,"sheet 3"]
[null,null,null,null,null,null,null,"sheet 3"]
[null,null,null,null,null,null,null,"sheet 3"]
[null,null,null,null,null,null,null,"sheet 3"]
[null,null,null,null,null,null,null,"sheet 3"]
[null,null,null,null,null,null,null,"sheet 3"]
[null,null,null,null,null,null,null,"sheet 3"]
[null,null,null,null,null,null,null,"sheet 3"]
[null,null,null,null,null,null,null,"sheet 3"]
[null,null,null,null,null,null,null,"sheet 3"]
[null,null,null,null,null,null,null,"sheet 3"]
[null,null,null,null,null,null,null,"sheet 3"]
[null,null,null,null,null,null,null,"sheet 3"]
[null,null,null,null,null,null,null,"sheet 3"]
[null,null,null,null,null,null,null,"sheet 3"]
[null,null,null,null,null,null,null,"sheet 3"]
[null,null,null,null,null,null,null,"sheet 3"]
[null,null,null,null,null,null,null,"sheet 3"]
[null,null,null,null,null,null,null,"sheet 3"]
[null,null,null,null,null,null,null,"sheet 3"]
[null,null,null,null,null,null,null,"sheet 3"]
[null,null,null,null,null,null,null,"sheet 3"]
[null,null,null,null,null,null,null,"sheet 3"]
[null,null,null,null,null,null,null,"sheet 3"]
[null,null,null,null,null,null,null,"sheet 3"]
[null,null,null,null,null,null,null,"sheet 3"]
[null,null,null,null,null,null,null,"sheet 3"]
[null,null,null,null,null,null,null,"sheet 3"]
[null,null,null,null,null,null,null,"sheet 3"]
[null,null,null,null,null,null,null,"sheet 3"]
[null,null,null,null,null,null,null,"sheet 3"]
[null,null,null,null,null,null,null,"sheet 3"]
[null,null,null,null,null,null,null,"sheet 3"]
[null,null,null,null,null,null,null,"sheet 3"]
[null,null,null,null,null,null,null,"sheet 3"]
[null,null,null,null,null,null,null,"sheet 3"]
[null,null,null,null,null,null,null,"sheet 3"]
[null,null,null,null,null,null,null,"sheet 3"]
[null,null,null,null,null,null,null,"sheet 3"]
[null,null,null,null,null,null,null,"sheet 3"]
[null,null,null,null,null,null,null,"sheet 3"]
[null,null,null,null,null,null,null,"sheet 3"]
[null,null,null,null,null,null,null,"sheet 3"]
[null,null,null,null,null,null,null,"sheet 3"]
[null,null,null,null,null,null,null,"sheet 3"]
[null,null,null,null,null,null,null,"sheet 3"]
[null,null,null,null,null,null,null,"sheet 3"]
[null,null,null,null,null,null,null,"sheet 3"]
[null,null,null,null,null,null,null,"sheet 3"]
[null,null,null,null,null,null,null,"sheet 3"]
[null,null,null,null,null,null,null,"sheet 3"]
[null,null,null,null,null,null,null,"sheet 3"]
[null,null,null,null,null,null,null,"sheet 3"]
[null,null,null,null,null,null,null,"sheet 3"]
[null,null,null,null,null,null,null,"sheet 3"]
[null,null,null,null,null,null,null,"sheet 3"]
[null,null,null,null,null,null,null,"sheet 3"]
[null,null,null,null,null,null,null,"sheet 3"]
[null,null,null,null,null,null,null,"sheet 3"]
[null,null,null,null,null,null,null,"sheet 3"]
[null,null,null,null,null,null,null,"sheet 3"]
[null,null,null,null,null,null,null,"sheet 3"]
[null,null,null,null,null,null,null,"sheet 3"]
[null,null,null,null,null,null,null,"sheet 3"]
[null,null,null,null,null,null,null,"sheet 3"]
[null,null,null,null,null,null,null,"sheet 3"]
[null,null,null,null,null,null,null,"sheet 3"]
[null,null,null,null,null,null,null,"sheet 3"]
[null,null,null,null,null,null,null,"sheet 3"]
[null,null,null,null,null,null,null,"sheet 3"]
[null,null,null,null,null,null,null,"sheet 3"]
[null,null,null,null,null,null,null,"sheet 3"]
[null,null,null,null,null,null,null,"sheet 3"]
[null,null,null,null,null,null,null,"sheet 3"]
[null,null,null,null,null,null,null,"sheet 3"]
[null,null,null,null,null,null,null,"sheet 3"]
[null,null,null,null,null,null,null,"sheet 3"]
[null,null,null,null,null,null,null,"sheet 3"]
[null,null,null,null,null,null,null,"sheet 3"]
[null,null,null,null,null,null,null,"sheet 3"]
[null,null,null,null,null,null,null,"sheet 3"]
[null,null,null,null,null,null,null,"sheet 3"]
[null,null,null,null,null,null,null,"sheet 3"]
[null,null,null,null,null,null,null,"sheet 3"]
[null,null,null,null,null,null,null,"sheet 3"]
[null,null,null,null,null,null,null,"sheet 3"]
[null,null,null,null,null,null,null,"sheet 3"]
[null,null,null,null,null,null,null,"sheet 3"]
[null,null,null,null,null,null,null,"sheet 3"]
[null,null,null,null,null,null,null,"sheet 3"]
[null,null,null,null,null,null,null,"sheet 3"]
[null,null,null,null,null,null,null,"sheet 3"]
[null,null,null,null,null,null,null,"sheet 3"]
[null,null,null,null,null,null,null,"sheet 3"]
[null,null,null,null,null,null,null,"sheet 3"]
[null,null,null,null,null,null,null,"sheet 3"]
[null,null,null,null,null,null,null,"sheet 3"]
[null,null,null,null,null,null,null,"sheet 3"]
[null,null,null,null,null,null,null,"sheet 3"]
[null,null,null,null,null,null,null,"sheet 3"]
[null,null,null,null,null,null,null,"sheet 3"]
[null,null,null,null,null,null,null,"sheet 3"]
[null,null,null,null,null,null,null,"sheet 3"]
[null,null,null,null,null,null,null,"sheet 3"]
[null,null,null,null,null,null,null,"sheet 3"]
[null,null,null,null,null,null,null,"sheet 3"]
[null,null,null,null,null,null,null,"sheet 3"]
[null,null,null,null,null,null,null,"sheet 3"]
[null,null,null,null,null,null,null,"sheet 3"]
[null,null,null,null,null,null,null,"sheet 3"]
[null,null,null,null,null,null,null,"sheet 3"]
[null,null,null,null,null,null,null,"sheet 3"]
[null,null,null,null,null,null,null,"sheet 3"]
[null,null,null,null,null,null,null,"sheet 3"]
[null,null,null,null,null,null,null,"sheet 3"]
[null,null,null,null,null,null,null,"sheet 3"]
[null,null,null,null,null,null,null,"sheet 3"]
[null,null,null,null,null,null,null,"sheet 3"]
[null,null,null,null,null,null,null,"sheet 3"]
[null,null,null,null,null,null,null,"sheet 3"]
[null,null,null,null,null,null,null,"sheet 3"]
[null,null,null,null,null,null,null,"sheet 3"]
[null,null,null,null,null,null,null,"sheet 3"]
[null,null,null,null,null,null,null,"sheet 3"]
[null,null,null,null,null,null,null,"sheet 3"]
[null,null,null,null,null,null,null,"sheet 3"]
[null,null,null,null,null,null,null,"sheet 3"]
[null,null,null,null,null,null,null,"sheet 3"]
[null,null,null,null,null,null,null,"sheet 3"]
[null,null,null,null,null,null,null,"sheet 3"]
[null,null,null,null,null,null,null,"sheet 3"]
[null,null,null,null,null,null,null,"sheet 3"]
[null,null,null,null,null,null,null,"sheet 3"]
[null,null,null,null,null,null,null,"sheet 3"]
[null,null,null,null,null,null,null,"sheet 3"]
[null,null,null,null,null,null,null,"sheet 3"]
[null,null,null,null,null,null,null,"sheet 3"]
[null,null,null,null,null,null,null,"sheet 3"]
[null,null,null,null,null,null,null,"sheet 3"]
[null,null,null,null,null,null,null,"sheet 3"]
[null,null,null,null,null,null,null,"sheet 3"]
[null,null,null,null,null,null,null,"sheet 3"]
[null,null,null,null,null,null,null,"sheet 3"]
[null,null,null,null,null,null,null,"sheet 3"]
[null,null,null,null,null,null,null,"sheet 3"]
[null,null,null,null,null,null,null,"sheet 3"]
[null,null,null,null,null,null,null,"sheet 3"]
[null,null,null,null,null,null,null,"sheet 3"]
[null,null,null,null,null,null,null,"sheet 3"]
[null,null,null,null,null,null,null,"sheet 3"]
[null,null,null,null,null,null,null,"sheet 3"]
[null,null,null,null,null,null,null,"sheet 3"]
[null,null,null,null,null,null,null,"sheet 3"]
[null,null,null,null,null,null,null,"sheet 3"]
[null,null,null,null,null,null,null,"sheet 3"]
[null,null,null,null,null,null,null,"sheet 3"]
[null,null,null,null,null,null,null,"sheet 3"]
[null,null,null,null,null,null,null,"sheet 3"]
[null,null,null,null,null,null,null,"sheet 3"]
[null,null,null,null,null,null,null,"sheet 3"]
[null,null,null,null,null,null,null,"sheet 3"]
[null,null,null,null,null,null,null,"sheet 3"]
[null,null,null,null,null,null,null,"sheet 3"]
[null,null,null,null,null,null,null,"sheet 3"]
[null,null,null,null,null,null,null,"sheet 3"]
[null,null,null,null,null,null,null,"sheet 3"]
[null,null,null,null,null,null,null,"sheet 3"]
[null,null,null,null,null,null,null,"sheet 3"]
[null,null,null,null,null,null,null,"sheet 3"]
[null,null,null,null,null,null,null,"sheet 3"]
[null,null,null,null,null,null,null,"sheet 3"]
[null,null,null,null,null,null,null,"sheet 3"]
[null,null,null,null,null,null,null,"sheet 3"]
[null,null,null,null,null,null,null,"sheet 3"]
[null,null,null,null,null,null,null,"sheet 3"]
[null,null,null,null,null,null,null,"sheet 3"]
[null,null,null,null,null,null,null,"sheet 3"]
[null,null,null,null,null,null,null,"sheet 3"]
[null,null,null,null,null,null,null,"sheet 3"]
[null,null,null,null,null,null,null,"sheet 3"]
[null,null,null,null,null,null,null,"sheet 3"]
[null,null,null,null,null,null,null,"sheet 3"]
[null,null,null,null,null,null,null,"sheet 3"]
[null,null,null,null,null,null,null,"sheet 3"]
[null,null,null,null,null,null,null,"sheet 3"]
[null,null,null,null,null,null,null,"sheet 3"]
[null,null,null,null,null,null,null,"sheet 3"]
[null,null,null,null,null,null,null,"sheet 3"]
[null,null,null,null,null,null,null,"sheet 3"]
[null,null,null,null,null,null,null,"sheet 3"]
[null,null,null,null,null,null,null,"sheet 3"]
[null,null,null,null,null,null,null,"sheet 3"]
[null,null,null,null,null,null,null,"sheet 3"]
[null,null,null,null,null,null,null,"sheet 3"]
[null,null,null,null,null,null,null,"sheet 3"]
[null,null,null,null,null,null,null,"sheet 3"]
[null,null,null,null,null,null,null,"sheet 3"]
[null,null,null,null,null,null,null,"sheet 3"]
[null,null,null,null,null,null,null,"sheet 3"]
[null,null,null,null,null,null,null,"sheet 3"]
[null,null,null,null,null,null,null,"sheet 3"]
[null,null,null,null,null,null,null,"sheet 3"]
[null,null,null,null,null,null,null,"sheet 3"]
[null,null,null,null,null,null,null,"sheet 3"]
[null,null,null,null,null,null,null,"sheet 3"]
[null,null,null,null,null,null,null,"sheet 3"]
[null,null,null,null,null,null,null,"sheet 3"]
[null,null,null,null,null,null,null,"sheet 3"]
[null,null,null,null,null,null,null,"sheet 3"]
[null,null,null,null,null,null,null,"sheet 3"]
[null,null,null,null,null,null,null,"sheet 3"]
[null,null,null,null,null,null,null,"sheet 3"]
[null,null,null,null,null,null,null,"sheet 3"]
[null,null,null,null,null,null,null,"sheet 3"]
[null,null,null,null,null,null,null,"sheet 3"]
[null,null,null,null,null,null,null,"sheet 3"]
[null,null,null,null,null,null,null,"sheet 3"]
[null,null,null,null,null,null,null,"sheet 3"]
[null,null,null,null,null,null,null,"sheet 3"]
[null,null,null,null,null,null,null,"sheet 3"]
[null,null,null,null,null,null,null,"sheet 3"]
[null,null,null,null,null,null,null,"sheet 3"]
[null,null,null,null,null,null,null,"sheet 3"]
[null,null,null,null,null,null,null,"sheet 3"]
[null,null,null,null,null,null,null,"sheet 3"]
[null,null,null,null,null,null,null,"sheet 3"]
[null,null,null,null,null,null,null,"sheet 3"]
[null,null,null,null,null,null,null,"sheet 3"]
[null,null,null,null,null,null,null,"sheet 3"]
[null,null,null,null,null,null,null,"sheet 3"]
[null,null,null,null,null,null,null,"sheet 3"]
[null,null,null,null,null,null,null,"sheet 3"]
[null,null,null,null,null,null,null,"sheet 3"]
[null,null,null,null,null,null,null,"sheet 3"]
[null,null,null,null,null,null,null,"sheet 3"]
[null,null,null,null,null,null,null,"sheet 3"]
[null,null,null,null,null,null,null,"sheet 3"]
[null,null,null,null,null,null,null,"sheet 3"]
[null,null,null,null,null,null,null,"sheet 3"]
[null,null,null,null,null,null,null,"sheet 3"]
[null,null,null,null,null,null,null,"sheet 3"]
[null,null,null,null,null,null,null,"sheet 3"]
[null,null,null,null,null,null,null,"sheet 3"]
[null,null,null,null,null,null,null,"sheet 3"]
[null,null,null,null,null,null,null,"sheet 3"]
[null,null,null,null,null,null,null,"sheet 3"]
[null,null,null,null,null,null,null,"sheet 3"]
[null,null,null,null,null,null,null,"sheet 3"]
[null,null,null,null,null,null,null,"sheet 3"]
[null,null,null,null,null,null,null,"sheet 3"]
[null,null,null,null,null,null,null,"sheet 3"]
[null,null,null,null,null,null,null,"sheet 3"]
[null,null,null,null,null,null,null,"sheet 3"]
[null,null,null,null,null,null,null,"sheet 3"]
[null,null,null,null,null,null,null,"sheet 3"]
[null,null,null,null,null,null,null,"sheet 3"]
[null,null,null,null,null,null,null,"sheet 3"]
[null,null,null,null,null,null,null,"sheet 3"]
[null,null,null,null,null,null,null,"sheet 3"]
[null,null,null,null,null,null,null,"sheet 3"]
[null,null,null,null,null,null,null,"sheet 3"]
[null,null,null,null,null,null,null,"sheet 3"]
[null,null,null,null,null,null,null,"sheet 3"]
[null,null,null,null,null,null,null,"sheet 3"]
[null,null,null,null,null,null,null,"sheet 3"]
[null,null,null,null,null,null,null,"sheet 3"]
[null,null,null,null,null,null,null,"sheet 3"]
[null,null,null,null,null,null,null,"sheet 3"]
[null,null,null,null,null,null,null,"sheet 3"]
[null,null,null,null,null,null,null,"sheet 3"]
[null,null,null,null,null,null,null,"sheet 3"]
[null,null,null,null,null,null,null,"sheet 3"]
[null,null,null,null,null,null,null,"sheet 3"]
[null,null,null,null,null,null,null,"sheet 3"]
[null,null,null,null,null,null,null,"sheet 3"]
[null,null,null,null,null,null,null,"sheet 3"]
[null,null,null,null,null,null,null,"sheet 3"]
[null,null,null,null,null,null,null,"sheet 3"]
[null,null,null,null,null,null,null,"sheet 3"]
[null,null,null,null,null,null,null,"sheet 3"]
[null,null,null,null,null,null,null,"sheet 3"]
[null,null,null,null,null,null,null,"sheet 3"]
[null,null,null,null,null,null,null,"sheet 3"]
[null,null,null,null,null,null,null,"sheet 3"]
[null,null,null,null,null,null,null,"sheet 3"]
[null,null,null,null,null,null,null,"sheet 3"]
[null,null,null,null,null,null,null,"sheet 3"]
[null,null,null,null,null,null,null,"sheet 3"]
[null,null,null,null,null,null,null,"sheet 3"]
[null,null,null,null,null,null,null,"sheet 3"]
[null,null,null,null,null,null,null,"sheet 3"]
[null,null,null,null,null,null,null,"sheet 3"]
[null,null,null,null,null,null,null,"sheet 3"]
[null,null,null,null,null,null,null,"sheet 3"]
[null,null,null,null,null,null,null,"sheet 3"]
[null,null,null,null,null,null,null,"sheet 3"]
[null,null,null,null,null,null,null,"sheet 3"]
[null,null,null,null,null,null,null,"sheet 3"]
[null,null,null,null,null,null,null,"sheet 3"]
[null,null,null,null,null,null,null,"sheet 3"]
[null,null,null,null,null,null,null,"sheet 3"]
[null,null,null,null,null,null,null,"sheet 3"]
[null,null,null,null,null,null,null,"sheet 3"]
[null,null,null,null,null,null,null,"sheet 3"]
[null,null,null,null,null,null,null,"sheet 3"]
[null,null,null,null,null,null,null,"sheet 3"]
[null,null,null,null,null,null,null,"sheet 3"]
[null,null,null,null,null,null,null,"sheet 3"]
[null,null,null,null,null,null,null,"sheet 3"]
[null,null,null,null,null,null,null,"sheet 3"]
[null,null,null,null,null,null,null,"sheet 3"]
[null,null,null,null,null,null,null,"sheet 3"]
[null,null,null,null,null,null,null,"sheet 3"]
[null,null,null,null,null,null,null,"sheet 3"]
[null,null,null,null,null,null,null,"sheet 3"]
[null,null,null,null,null,null,null,"sheet 3"]
[null,null,null,null,null,null,null,"sheet 3"]
[null,null,null,null,null,null,null,"sheet 3"]
[null,null,null,null,null,null,null,"sheet 3"]
[null,null,null,null,null,null,null,"sheet 3"]
[null,null,null,null,null,null,null,"sheet 3"]
[null,null,null,null,null,null,null,"sheet 3"]
[null,null,null,null,null,null,null,"sheet 3"]
[null,null,null,null,null,null,null,"sheet 3"]
[null,null,null,null,null,null,null,"sheet 3"]
[null,null,null,null,null,null,null,"sheet 3"]
[null,null,null,null,null,null,null,"sheet 3"]
[null,null,null,null,null,null,null,"sheet 3"]
[null,null,null,null,null,null,null,"sheet 3"]
[null,null,null,null,null,null,null,"sheet 3"]
[null,null,null,null,null,null,null,"sheet 3"]
[null,null,null,null,null,null,null,"sheet 3"]
[null,null,null,null,null,null,null,"sheet 3"]
[null,null,null,null,null,null,null,"sheet 3"]
[null,null,null,null,null,null,null,"sheet 3"]
[null,null,null,null,null,null,null,"sheet 3"]
[null,null,null,null,null,null,null,"sheet 3"]
[null,null,null,null,null,null,null,"sheet 3"]
[null,null,null,null,null,null,null,"sheet 3"]
[null,null,null,null,null,null,null,"sheet 3"]
[null,null,null,null,null,null,null,"sheet 3"]
[null,null,null,null,null,null,null,"sheet 3"]
[null,null,null,null,null,null,null,"sheet 3"]
[null,null,null,null,null,null,null,"sheet 3"]
[null,null,null,null,null,null,null,"sheet 3"]
[null,null,null,null,null,null,null,"sheet 3"]
[null,null,null,null,null,null,null,"sheet 3"]
[null,null,null,null,null,null,null,"sheet 3"]
[null,null,null,null,null,null,null,"sheet 3"]
[null,null,null,null,null,null,null,"sheet 3"]
[null,null,null,null,null,null,null,"sheet 3"]
[null,null,null,null,null,null,null,"sheet 3"]
[null,null,null,null,null,null,null,"sheet 3"]
[null,null,null,null,null,null,null,"sheet 3"]
[null,null,null,null,null,null,null,"sheet 3"]
[null,null,null,null,null,null,null,"sheet 3"]
[null,null,null,null,null,null,null,"sheet 3"]
[null,null,null,null,null,null,null,"sheet 3"]
[null,null,null,null,null,null,null,"sheet 3"]
[null,null,null,null,null,null,null,"sheet 3"]
[null,null,null,null,null,null,null,"sheet 3"]
[null,null,null,null,null,null,null,"sheet 3"]
[null,null,null,null,null,null,null,"sheet 3"]
[null,null,null,null,null,null,null,"sheet 3"]
[null,null,null,null,null,null,null,"sheet 3"]
[null,null,null,null,null,null,null,"sheet 3"]
[null,null,null,null,null,null,null,"sheet 3"]
[null,null,null,null,null,null,null,"sheet 3"]
[null,null,null,null,null,null,null,"sheet 3"]
[null,null,null,null,null,null,null,"sheet 3"]
[null,null,null,null,null,null,null,"sheet 3"]
[null,null,null,null,null,null,null,"sheet 3"]
[null,null,null,null,null,null,null,"sheet 3"]
[null,null,null,null,null,null,null,"sheet 3"]
[null,null,null,null,null,null,null,"sheet 3"]
[null,null,null,null,null,null,null,"sheet 3"]
[null,null,null,null,null,null,null,"sheet 3"]
[null,null,null,null,null,null,null,"sheet 3"]
[null,null,null,null,null,null,null,"sheet 3"]
[null,null,null,null,null,null,null,"sheet 3"]
[null,null,null,null,null,null,null,"sheet 3"]
[null,null,null,null,null,null,null,"sheet 3"]
[null,null,null,null,null,null,null,"sheet 3"]
[null,null,null,null,null,null,null,"sheet 3"]
[null,null,null,null,null,null,null,"sheet 3"]
[null,null,null,null,null,null,null,"sheet 3"]
[null,null,null,null,null,null,null,"sheet 3"]
[null,null,null,null,null,null,null,"sheet 3"]
[null,null,null,null,null,null,null,"sheet 3"]
[null,null,null,null,null,null,null,"sheet 3"]
[null,null,null,null,null,null,null,"sheet 3"]
[null,null,null,null,null,null,null,"sheet 3"]
[null,null,null,null,null,null,null,"sheet 3"]
[null,null,null,null,null,null,null,"sheet 3"]
[null,null,null,null,null,null,null,"sheet 3"]
[null,null,null,null,null,null,null,"sheet 3"]
[null,null,null,null,null,null,null,"sheet 3"]
[null,null,null,null,null,null,null,"sheet 3"]
[null,null,null,null,null,null,null,"sheet 3"]
[null,null,null,null,null,null,null,"sheet 3"]
[null,null,null,null,null,null,null,"sheet 3"]
[null,null,null,null,null,null,null,"sheet 3"]
[null,null,null,null,null,null,null,"sheet 3"]
[null,null,null,null,null,null,null,"sheet 3"]
[null,null,null,null,null,null,null,"sheet 3"]
[null,null,null,null,null,null,null,"sheet 3"]
[null,null,null,null,null,null,null,"sheet 3"]
[null,null,null,null,null,null,null,"sheet 3"]
[null,null,null,null,null,null,null,"sheet 3"]
[null,null,null,null,null,null,null,"sheet 3"]
[null,null,null,null,null,null,null,"sheet 3"]
[null,null,null,null,null,null,null,"sheet 3"]
[null,null,null,null,null,null,null,"sheet 3"]
[null,null,null,null,null,null,null,"sheet 3"]
[null,null,null,null,null,null,null,"sheet 3"]
[null,null,null,null,null,null,null,"sheet 3"]
[null,null,null,null,null,null,null,"sheet 3"]
[null,null,null,null,null,null,null,"sheet 3"]
[null,null,null,null,null,null,null,"sheet 3"]
[null,null,null,null,null,null,null,"sheet 3"]
[null,null,null,null,null,null,null,"sheet 3"]
[null,null,null,null,null,null,null,"sheet 3"]
[null,null,null,null,null,null,null,"sheet 3"]
[null,null,null,null,null,null,null,"sheet 3"]
[null,null,null,null,null,null,null,"sheet 3"]
[null,null,null,null,null,null,null,"sheet 3"]
[null,null,null,null,null,null,null,"sheet 3"]
[null,null,null,null,null,null,null,"sheet 3"]
[null,null,null,null,null,null,null,"sheet 3"]
[null,null,null,null,null,null,null,"sheet 3"]
[null,null,null,null,null,null,null,"sheet 3"]
[null,null,null,null,null,null,null,"sheet 3"]
[null,null,null,null,null,null,null,"sheet 3"]
[null,null,null,null,null,null,null,"sheet 3"]
[null,null,null,null,null,null,null,"sheet 3"]
[null,null,null,null,null,null,null,"sheet 3"]
[null,null,null,null,null,null,null,"sheet 3"]
[null,null,null,null,null,null,null,"sheet 3"]
[null,null,null,null,null,null,null,"sheet 3"]
[null,null,null,null,null,null,null,"sheet 3"]
[null,null,null,null,null,null,null,"sheet 3"]
[null,null,null,null,null,null,null,"sheet 3"]
[null,null,null,null,null,null,null,"sheet 3"]
[null,null,null,null,null,null,null,"sheet 3"]
[null,null,null,null,null,null,null,"sheet 3"]
[null,null,null,null,null,null,null,"sheet 3"]
[null,null,null,null,null,null,null,"sheet 3"]
[null,null,null,null,null,null,null,"sheet 3"]
[null,null,null,null,null,null,null,"sheet 3"]
[null,null,null,null,null,null,null,"sheet 3"]
[null,null,null,null,null,null,null,"sheet 3"]
[null,null,null,null,null,null,null,"sheet 3"]
[null,null,null,null,null,null,null,"sheet 3"]
[null,null,null,null,null,null,null,"sheet 3"]
[null,null,null,null,null,null,null,"sheet 3"]
[null,null,null,null,null,null,null,"sheet 3"]
[null,null,null,null,null,null,null,"sheet 3"]
[null,null,null,null,null,null,null,"sheet 3"]
[null,null,null,null,null,null,null,"sheet 3"]
[null,null,null,null,null,null,null,"sheet 3"]
[null,null,null,null,null,null,null,"sheet 3"]
[null,null,null,null,null,null,null,"sheet 3"]
[null,null,null,null,null,null,null,"sheet 3"]
[null,null,null,null,null,null,null,"sheet 3"]
[null,null,null,null,null,null,null,"sheet 3"]
[null,null,null,null,null,null,null,"sheet 3"]
[null,null,null,null,null,null,null,"sheet 3"]
[null,null,null,null,null,null,null,"sheet 3"]
[null,null,null,null,null,null,null,"sheet 3"]
[null,null,null,null,null,null,null,"sheet 3"]
[null,null,null,null,null,null,null,"sheet 3"]
[null,null,null,null,null,null,null,"sheet 3"]
[null,null,null,null,null,null,null,"sheet 3"]
[null,null,null,null,null,null,null,"sheet 3"]
[null,null,null,null,null,null,null,"sheet 3"]
[null,null,null,null,null,null,null,"sheet 3"]
[null,null,null,null,null,null,null,"sheet 3"]
[null,null,null,null,null,null,null,"sheet 3"]
[null,null,null,null,null,null,null,"sheet 3"]
[null,null,null,null,null,null,null,"sheet 3"]
[null,null,null,null,null,null,null,"sheet 3"]
[null,null,null,null,null,null,null,"sheet 3"]
[null,null,null,null,null,null,null,"sheet 3"]
[null,null,null,null,null,null,null,"sheet 3"]
[null,null,null,null,null,null,null,"sheet 3"]
[null,null,null,null,null,null,null,"sheet 3"]
[null,null,null,null,null,null,null,"sheet 3"]
[null,null,null,null,null,null,null,"sheet 3"]
[null,null,null,null,null,null,null,"sheet 3"]
[null,null,null,null,null,null,null,"sheet 3"]
[null,null,null,null,null,null,null,"sheet 3"]
[null,null,null,null,null,null,null,"sheet 3"]
[null,null,null,null,null,null,null,"sheet 3"]
[null,null,null,null,null,null,null,"sheet 3"]
[null,null,null,null,null,null,null,"sheet 3"]
[null,null,null,null,null,null,null,"sheet 3"]
[null,null,null,null,null,null,null,"sheet 3"]
[null,null,null,null,null,null,null,"sheet 3"]
[null,null,null,null,null,null,null,"sheet 3"]
[null,null,null,null,null,null,null,"sheet 3"]
[null,null,null,null,null,null,null,"sheet 3"]
[null,null,null,null,null,null,null,"sheet 3"]
[null,null,null,null,null,null,null,"sheet 3"]
[null,null,null,null,null,null,null,"sheet 3"]
[null,null,null,null,null,null,null,"sheet 3"]
[null,null,null,null,null,null,null,"sheet 3"]
[null,null,null,null,null,null,null,"sheet 3"]
[null,null,null,null,null,null,null,"sheet 3"]
[null,null,null,null,null,null,null,"sheet 3"]
[null,null,null,null,null,null,null,"sheet 3"]
[null,null,null,null,null,null,null,"sheet 3"]
[null,null,null,null,null,null,null,"sheet 3"]
[null,null,null,null,null,null,null,"sheet 3"]
[null,null,null,null,null,null,null,"sheet 3"]
[null,null,null,null,null,null,null,"sheet 3"]
[null,null,null,null,null,null,null,"sheet 3"]
[null,null,null,null,null,null,null,"sheet 3"]
[null,null,null,null,null,null,null,"sheet 3"]
[null,null,null,null,null,null,null,"sheet 3"]
[null,null,null,null,null,null,null,"sheet 3"]
[null,null,null,null,null,null,null,"sheet 3"]
[null,null,null,null,null,null,null,"sheet 3"]
[null,null,null,null,null,null,null,"sheet 3"]
[null,null,null,null,null,null,null,"sheet 3"]
[null,null,null,null,null,null,null,"sheet 3"]
[null,null,null,null,null,null,null,"sheet 3"]
[null,null,null,null,null,null,null,"sheet 3"]
[null,null,null,null,null,null,null,"sheet 3"]
[null,null,null,null,null,null,null,"sheet 3"]
[null,null,null,null,null,null,null,"sheet 3"]
[null,null,null,null,null,null,null,"sheet 3"]
[null,null,null,null,null,null,null,"sheet 3"]
[null,null,null,null,null,null,null,"sheet 3"]
[null,null,null,null,null,null,null,"sheet 3"]
[null,null,null,null,null,null,null,"sheet 3"]
[null,null,null,null,null,null,null,"sheet 3"]
[null,null,null,null,null,null,null,"sheet 3"]
[null,null,null,null,null,null,null,"sheet 3"]
[null,null,null,null,null,null,null,"sheet 3"]
[null,null,null,null,null,null,null,"sheet 3"]
[null,null,null,null,null,null,null,"sheet 3"]
[null,null,null,null,null,null,null,"sheet 3"]
[null,null,null,null,null,null,null,"sheet 3"]
[null,null,null,null,null,null,null,"sheet 3"]
[null,null,null,null,null,null,null,"sheet 3"]
[null,null,null,null,null,null,null,"sheet 3"]
[null,null,null,null,null,null,null,"sheet 3"]
[null,null,null,null,null,null,null,"sheet 3"]
[null,null,null,null,null,null,null,"sheet 3"]
[null,null,null,null,null,null,null,"sheet 3"]
[null,null,null,null,null,null,null,"sheet 3"]
[null,null,null,null,null,null,null,"sheet 3"]
[null,null,null,null,null,null,null,"sheet 3"]
[null,null,null,null,null,null,null,"sheet 3"]
[null,null,null,null,null,null,null,"sheet 3"]
[null,null,null,null,null,null,null,"sheet 3"]
[null,null,null,null,null,null,null,"sheet 3"]
[null,null,null,null,null,null,null,"sheet 3"]
[null,null,null,null,null,null,null,"sheet 3"]
[null,null,null,null,null,null,null,"sheet 3"]
[null,null,null,null,null,null,null,"sheet 3"]
[null,null,null,null,null,null,null,"sheet 3"]
[null,null,null,null,null,null,null,"sheet 3"]
[null,null,null,null,null,null,null,"sheet 3"]
[null,null,null,null,null,null,null,"sheet 3"]
[null,null,null,null,null,null,null,"sheet 3"]
[null,null,null,null,null,null,null,"sheet 3"]
[null,null,null,null,null,null,null,"sheet 3"]
[null,null,null,null,null,null,null,"sheet 3"]
[null,null,null,null,null,null,null,"sheet 3"]
[null,null,null,null,null,null,null,"sheet 3"]
[null,null,null,null,null,null,null,"sheet 3"]
[null,null,null,null,null,null,null,"sheet 3"]
[null,null,null,null,null,null,null,"sheet 3"]
[null,null,null,null,null,null,null,"sheet 3"]
[null,null,null,null,null,null,null,"sheet 3"]
[null,null,null,null,null,null,null,"sheet 3"]
[null,null,null,null,null,null,null,"sheet 3"]
[null,null,null,null,null,null,null,"sheet 3"]
[null,null,null,null,null,null,null,"sheet 3"]
[null,null,null,null,null,null,null,"sheet 3"]
[null,null,null,null,null,null,null,"sheet 3"]
[null,null,null,null,null,null,null,"sheet 3"]
[null,null,null,null,null,null,null,"sheet 3"]
[null,null,null,null,null,null,null,"sheet 3"]
[null,null,null,null,null,null,null,"sheet 3"]
[null,null,null,null,null,null,null,"sheet 3"]
[null,null,null,null,null,null,null,"sheet 3"]
[null,null,null,null,null,null,null,"sheet 3"]
[null,null,null,null,null,null,null,"sheet 3"]
[null,null,null,null,null,null,null,"sheet 3"]
[null,null,null,null,null,null,null,"sheet 3"]
[null,null,null,null,null,null,null,"sheet 3"]
[null,null,null,null,null,null,null,"sheet 3"]
[null,null,null,null,null,null,null,"sheet 3"]
[null,null,null,null,null,null,null,"sheet 3"]
[null,null,null,null,null,null,null,"sheet 3"]
[null,null,null,null,null,null,null,"sheet 3"]
[null,null,null,null,null,null,null,"sheet 3"]
[null,null,null,null,null,null,null,"sheet 3"]
[null,null,null,null,null,null,null,"sheet 3"]
[null,null,null,null,null,null,null,"sheet 3"]
[null,null,null,null,null,null,null,"sheet 3"]
[null,null,null,null,null,null,null,"sheet 3"]
[null,null,null,null,null,null,null,"sheet 3"]
[null,null,null,null,null,null,null,"sheet 3"]
[null,null,null,null,null,null,null,"sheet 3"]
[null,null,null,null,null,null,null,"sheet 3"]
[null,null,null,null,null,null,null,"sheet 3"]
[null,null,null,null,null,null,null,"sheet 3"]
[null,null,null,null,null,null,null,"sheet 3"]
[null,null,null,null,null,null,null,"sheet 3"]
[null,null,null,null,null,null,null,"sheet 3"]
[null,null,null,null,null,null,null,"sheet 3"]
[null,null,null,null,null,null,null,"sheet 3"]
[null,null,null,null,null,null,null,"sheet 3"]
[null,null,null,null,null,null,null,"sheet 3"]
[null,null,null,null,null,null,null,"sheet 3"]
[null,null,null,null,null,null,null,"sheet 3"]
[null,null,null,null,null,null,null,"sheet 3"]
[null,null,null,null,null,null,null,"sheet 3"]
[null,null,null,null,null,null,null,"sheet 3"]
[null,null,null,null,null,null,null,"sheet 3"]
[null,null,null,null,null,null,null,"sheet 3"]
[null,null,null,null,null,null,null,"sheet 3"]
[null,null,null,null,null,null,null,"sheet 3"]
[null,null,null,null,null,null,null,"sheet 3"]
[null,null,null,null,null,null,null,"sheet 3"]
[null,null,null,null,null,null,null,"sheet 3"]
[null,null,null,null,null,null,null,"sheet 3"]
[null,null,null,null,null,null,null,"sheet 3"]
[null,null,null,null,null,null,null,"sheet 3"]
[null,null,null,null,null,null,null,"sheet 3"]
[null,null,null,null,null,null,null,"sheet 3"]
[null,null,null,null,null,null,null,"sheet 3"]
[null,null,null,null,null,null,null,"sheet 3"]
[null,null,null,null,null,null,null,"sheet 3"]
[null,null,null,null,null,null,null,"sheet 3"]
[null,null,null,null,null,null,null,"sheet 3"]
[null,null,null,null,null,null,null,"sheet 3"]
[null,null,null,null,null,null,null,"sheet 3"]
[null,null,null,null,null,null,null,"sheet 3"]
[null,null,null,null,null,null,null,"sheet 3"]
[null,null,null,null,null,null,null,"sheet 3"]
[null,null,null,null,null,null,null,"sheet 3"]
[null,null,null,null,null,null,null,"sheet 3"]
[null,null,null,null,null,null,null,"sheet 3"]
[null,null,null,null,null,null,null,"sheet 3"]
[null,null,null,null,null,null,null,"sheet 3"]
[null,null,null,null,null,null,null,"sheet 3"]
[null,null,null,null,null,null,null,"sheet 3"]
[null,null,null,null,null,null,null,"sheet 3"]
[null,null,null,null,null,null,null,"sheet 3"]
[null,null,null,null,null,null,null,"sheet 3"]
[null,null,null,null,null,null,null,"sheet 3"]
[null,null,null,null,null,null,null,"sheet 3"]
[null,null,null,null,null,null,null,"sheet 3"]
[null,null,null,null,null,null,null,"sheet 3"]
[null,null,null,null,null,null,null,"sheet 3"]
[null,null,null,null,null,null,null,"sheet 3"]
[null,null,null,null,null,null,null,"sheet 3"]
[null,null,null,null,null,null,null,"sheet 3"]
[null,null,null,null,null,null,null,"sheet 3"]
[null,null,null,null,null,null,null,"sheet 3"]
[null,null,null,null,null,null,null,"sheet 3"]
[null,null,null,null,null,null,null,"sheet 3"]
[null,null,null,null,null,null,null,"sheet 3"]
[null,null,null,null,null,null,null,"sheet 3"]
[null,null,null,null,null,null,null,"sheet 3"]
[null,null,null,null,null,null,null,"sheet 3"]
[null,null,null,null,null,null,null,"sheet 3"]
[null,null,null,null,null,null,null,"sheet 3"]
[null,null,null,null,null,null,null,"sheet 3"]
[null,null,null,null,null,null,null,"sheet 3"]
[null,null,null,null,null,null,null,"sheet 3"]
[null,null,null,null,null,null,null,"sheet 3"]
[null,null,null,null,null,null,null,"sheet 3"]
[null,null,null,null,null,null,null,"sheet 3"]
[null,null,null,null,null,null,null,"sheet 3"]
[null,null,null,null,null,null,null,"sheet 3"]
[null,null,null,null,null,null,null,"sheet 3"]
[null,null,null,null,null,null,null,"sheet 3"]
[null,null,null,null,null,null,null,"sheet 3"]
[null,null,null,null,null,null,null,"sheet 3"]
[null,null,null,null,null,null,null,"sheet 3"]
[null,null,null,null,null,null,null,"sheet 3"]
[null,null,null,null,null,null,null,"sheet 3"]
[null,null,null,null,null,null,null,"sheet 3"]
[null,null,null,null,null,null,null,"sheet 3"]
[null,null,null,null,null,null,null,"sheet 3"]
[null,null,null,null,null,null,null,"sheet 3"]
[null,null,null,null,null,null,null,"sheet 3"]
[null,null,null,null,null,null,null,"sheet 3"]
[null,null,null,null,null,null,null,"sheet 3"]
[null,null,null,null,null,null,null,"sheet 3"]
[null,null,null,null,null,null,null,"sheet 3"]
[null,null,null,null,null,null,null,"sheet 3"]
[null,null,null,null,null,null,null,"sheet 3"]
[null,null,null,null,null,null,null,"sheet 3"]
[null,null,null,null,null,null,null,"sheet 3"]
[null,null,null,null,null,null,null,"sheet 3"]
[null,null,null,null,null,null,null,"sheet 3"]
[null,null,null,null,null,null,null,"sheet 3"]
[null,null,null,null,null,null,null,"sheet 3"]
[null,null,null,null,null,null,null,"sheet 3"]
[null,null,null,null,null,null,null,"sheet 3"]
[null,null,null,null,null,null,null,"sheet 3"]
[null,null,null,null,null,null,null,"sheet 3"]
[null,null,null,null,null,null,null,"sheet 3"]
[null,null,null,null,null,null,null,"sheet 3"]
[null,null,null,null,null,null,null,"sheet 3"]
[null,null,null,null,null,null,null,"sheet 3"]
[null,null,null,null,null,null,null,"sheet 3"]
[null,null,null,null,null,null,null,"sheet 3"]
[null,null,null,null,null,null,null,"sheet 3"]
[null,null,null,null,null,null,null,"sheet 3"]
[null,null,null,null,null,null,null,"sheet 3"]
[null,null,null,null,null,null,null,"sheet 3"]
[null,null,null,null,null,null,null,"sheet 3"]
[null,null,null,null,null,null,null,"sheet 3"]
[null,null,null,null,null,null,null,"sheet 3"]
[null,null,null,null,null,null,null,"sheet 3"]
[null,null,null,null,null,null,null,"sheet 3"]
[null,null,null,null,null,null,null,"sheet 3"]
[null,null,null,null,null,null,null,"sheet 3"]
[null,null,null,null,null,null,null,"sheet 3"]
[null,null,null,null,null,null,null,"sheet 3"]
[null,null,null,null,null,null,null,"sheet 3"]
[null,null,null,null,null,null,null,"sheet 3"]
[null,null,null,null,null,null,null,"sheet 3"]
[null,null,null,null,null,null,null,"sheet 3"]
[null,null,null,null,null,null,null,"sheet 3"]
[null,null,null,null,null,null,null,"sheet 3"]
[null,null,null,null,null,null,null,"sheet 3"]
[null,null,null,null,null,null,null,"sheet 3"]
[null,null,null,null,null,null,null,"sheet 3"]
[null,null,null,null,null,null,null,"sheet 3"]
[null,null,null,null,null,null,null,"sheet 3"]
[null,null,null,null,null,null,null,"sheet 3"]
[null,null,null,null,null,null,null,"sheet 3"]
[null,null,null,null,null,null,null,"sheet 3"]
[null,null,null,null,null,null,null,"sheet 3"]
[null,null,null,null,null,null,null,"sheet 3"]
[null,null,null,null,null,null,null,"sheet 3"]
[null,null,null,null,null,null,null,"sheet 3"]
[null,null,null,null,null,null,null,"sheet 3"]
[null,null,null,null,null,null,null,"sheet 3"]
[null,null,null,null,null,null,null,"sheet 3"]
[null,null,null,null,null,null,null,"sheet 3"]
[null,null,null,null,null,null,null,"sheet 3"]
[null,null,null,null,null,null,null,"sheet 3"]
[null,null,null,null,null,null,null,"sheet 3"]
[null,null,null,null,null,null,null,"sheet 3"]
[null,null,null,null,null,null,null,"sheet 3"]
[null,null,null,null,null,null,null,"sheet 3"]
[null,null,null,null,null,null,null,"sheet 3"]
[null,null,null,null,null,null,null,"sheet 3"]
[null,null,null,null,null,null,null,"sheet 3"]
[null,null,null,null,null,null,null,"sheet 3"]
[null,null,null,null,null,null,null,"sheet 3"]
[null,null,null,null,null,null,null,"sheet 3"]
[null,null,null,null,null,null,null,"sheet 3"]
[null,null,null,null,null,null,null,"sheet 3"]
[null,null,null,null,null,null,null,"sheet 3"]
[null,null,null,null,null,null,null,"sheet 3"]
[null,null,null,null,null,null,null,"sheet 3"]
[null,null,null,null,null,null,null,"sheet 3"]
[null,null,null,null,null,null,null,"sheet 3"]
[null,null,null,null,null,null,null,"sheet 3"]
[null,null,null,null,null,null,null,"sheet 3"]
[null,null,null,null,null,null,null,"sheet 3"]
[null,null,null,null,null,null,null,"sheet 3"]
[null,null,null,null,null,null,null,"sheet 3"]
[null,null,null,null,null,null,null,"sheet 3"]
[null,null,null,null,null,null,null,"sheet 3"]
[null,null,null,null,null,null,null,"sheet 3"]
[null,null,null,null,null,null,null,"sheet 3"]
[null,null,null,null,null,null,null,"sheet 3"]
[null,null,null,null,null,null,null,"sheet 3"]
[null,null,null,null,null,null,null,"sheet 3"]
[null,null,null,null,null,null,null,"sheet 3"]
[null,null,null,null,null,null,null,"sheet 3"]
[null,null,null,null,null,null,null,"sheet 3"]
[null,null,null,null,null,null,null,"sheet 3"]
[null,null,null,null,null,null,null,"sheet 3"]
[null,null,null,null,null,null,null,"sheet 3"]
[null,null,null,null,null,null,null,"sheet 3"]
[null,null,null,null,null,null,null,"sheet 3"]
[null,null,null,null,null,null,null,"sheet 3"]
[null,null,null,null,null,null,null,"sheet 3"]
[null,null,null,null,null,null,null,"sheet 3"]
[null,null,null,null,null,null,null,"sheet 3"]
[null,null,null,null,null,null,null,"sheet 3"]
[null,null,null,null,null,null,null,"sheet 3"]
[null,null,null,null,null,null,null,"sheet 3"]
[null,null,null,null,null,null,null,"sheet 3"]
[null,null,null,null,null,null,null,"sheet 3"]
[null,null,null,null,null,null,null,"sheet 3"]
[null,null,null,null,null,null,null,"sheet 3"]
[null,null,null,null,null,null,null,"sheet 3"]
[null,null,null,null,null,null,null,"sheet 3"]
[null,null,null,null,null,null,null,"sheet 3"]
[null,null,null,null,null,null,null,"sheet 3"]
[null,null,null,null,null,null,null,"sheet 3"]
[null,null,null,null,null,null,null,"sheet 3"]
[null,null,null,null,null,null,null,"sheet 3"]
[null,null,null,null,null,null,null,"sheet 3"]
[null,null,null,null,null,null,null,"sheet 3"]
[null,null,null,null,null,null,null,"sheet 3"]
[null,null,null,null,null,null,null,"sheet 3"]
[null,null,null,null,null,null,null,"sheet 3"]
[null,null,null,null,null,null,null,"sheet 3"]
[null,null,null,null,null,null,null,"sheet 3"]
[null,null,null,null,null,null,null,"sheet 3"]
[null,null,null,null,null,null,null,"sheet 3"]
[null,null,null,null,null,null,null,"sheet 3"]
[null,null,null,null,null,null,null,"sheet 3"]
[null,null,null,null,null,null,null,"sheet 3"]
[null,null,null,null,null,null,null,"sheet 3"]
[null,null,null,null,null,null,null,"sheet 3"]
[null,null,null,null,null,null,null,"sheet 3"]
[null,null,null,null,null,null,null,"sheet 3"]
[null,null,null,null,null,null,null,"sheet 3"]
[null,null,null,null,null,null,null,"sheet 3"]
[null,null,null,null,null,null,null,"sheet 3"]
[null,null,null,null,null,null,null,"sheet 3"]
[null,null,null,null,null,null,null,"sheet 3"]
[null,null,null,null,null,null,null,"sheet 3"]
[null,null,null,null,null,null,null,"sheet 3"]
[null,null,null,null,null,null,null,"sheet 3"]
[null,null,null,null,null,null,null,"sheet 3"]
[null,null,null,null,null,null,null,"sheet 3"]
[null,null,null,null,null,null,null,"sheet 3"]
[null,null,null,null,null,null,null,"sheet 3"]
[null,null,null,null,null,null,null,"sheet 3"]
[null,null,null,null,null,null,null,"sheet 3"]
[null,null,null,null,null,null,null,"sheet 3"]
[null,null,null,null,null,null,null,"sheet 3"]
[null,null,null,null,null,null,null,"sheet 3"]
[null,null,null,null,null,null,null,"sheet 3"]
[null,null,null,null,null,null,null,"sheet 3"]
[null,null,null,null,null,null,null,"sheet 3"]
[null,null,null,null,null,null,null,"sheet 3"]
[null,null,null,null,null,null,null,"sheet 3"]
[null,null,null,null,null,null,null,"sheet 3"]
[null,null,null,null,null,null,null,"sheet 3"]
[null,null,null,null,null,null,null,"sheet 3"]
[null,null,null,null,null,null,null,"sheet 3"]
[null,null,null,null,null,null,null,"sheet 3"]
[null,null,null,null,null,null,null,"sheet 3"]
[null,null,null,null,null,null,null,"sheet 3"]
[null,null,null,null,null,null,null,"sheet 3"]
[null,null,null,null,null,null,null,"sheet 3"]
[null,null,null,null,null,null,null,"sheet 3"]
[null,null,null,null,null,null,null,"sheet 3"]
[null,null,null,null,null,null,null,"sheet 3"]
[null,null,null,null,null,null,null,"sheet 3"]
[null,null,null,null,null,null,null,"sheet 3"]
[null,null,null,null,null,null,null,"sheet 3"]
[null,null,null,null,null,null,null,"sheet 3"]
[null,null,null,null,null,null,null,"sheet 3"]
[null,null,null,null,null,null,null,"sheet 3"]
[null,null,null,null,null,null,null,"sheet 3"]
[null,null,null,null,null,null,null,"sheet 3"]
[null,null,null,null,null,null,null,"sheet 3"]
[null,null,null,null,null,null,null,"sheet 3"]
[null,null,null,null,null,null,null,"sheet 3"]
[null,null,null,null,null,null,null,"sheet 3"]
[null,null,null,null,null,null,null,"sheet 3"]
[null,null,null,null,null,null,null,"sheet 3"]
[null,null,null,null,null,null,null,"sheet 3"]
[null,null,null,null,null,null,null,"sheet 3"]
[null,null,null,null,null,null,null,"sheet 3"]
[null,null,null,null,null,null,null,"sheet 3"]
[null,null,null,null,null,null,null,"sheet 3"]
[null,null,null,null,null,null,null,"sheet 3"]
[null,null,null,null,null,null,null,"sheet 3"]
[null,null,null,null,null,null,null,"sheet 3"]
[null,null,null,null,null,null,null,"sheet 3"]
[null,null,null,null,null,null,null,"sheet 3"]
[null,null,null,null,null,null,null,"sheet 3"]
[null,null,null,null,null,null,null,"sheet 3"]
[null,null,null,null,null,null,null,"sheet 3"]
[null,null,null,null,null,null,null,"sheet 3"]
[null,null,null,null,null,null,null,"sheet 3"]
[null,null,null,null,null,null,null,"sheet 3"]
[null,null,null,null,null,null,null,"sheet 3"]
[null,null,null,null,null,null,null,"sheet 3"]
[null,null,null,null,null,null,null,"sheet 3"]
[null,null,null,null,null,null,null,"sheet 3"]
[null,null,null,null,null,null,null,"sheet 3"]
[null,null,null,null,null,null,null,"sheet 3"]
[null,null,null,null,null,null,null,"sheet 3"]
[null,null,null,null,null,null,null,"sheet 3"]
[null,null,null,null,null,null,null,"sheet 3"]
[null,null,null,null,null,null,null,"sheet 3"]
[null,null,null,null,null,null,null,"sheet 3"]
[null,null,null,null,null,null,null,"sheet 3"]
[null,null,null,null,null,null,null,"sheet 3"]
[null,null,null,null,null,null,null,"sheet 3"]
[null,null,null,null,null,null,null,"sheet 3"]
[null,null,null,null,null,null,null,"sheet 3"]
[null,null,null,null,null,null,null,"sheet 3"]
[null,null,null,null,null,null,null,"sheet 3"]
[null,null,null,null,null,null,null,"sheet 3"]
[null,null,null,null,null,null,null,"sheet 3"]
[null,null,null,null,null,null,null,"sheet 3"]
[null,null,null,null,null,null,null,"sheet 3"]
[null,null,null,null,null,null,null,"sheet 3"]
[null,null,null,null,null,null,null,"sheet 3"]
[null,null,null,null,null,null,null,"sheet 3"]
[null,null,null,null,null,null,null,"sheet 3"]
[null,null,null,null,null,null,null,"sheet 3"]
[null,null,null,null,null,null,null,"sheet 3"]
[null,null,null,null,null,null,null,"sheet 3"]
[null,null,null,null,null,null,null,"sheet 3"]
[null,null,null,null,null,null,null,"sheet 3"]
[null,null,null,null,null,null,null,"sheet 3"]
[null,null,null,null,null,null,null,"sheet 3"]
[null,null,null,null,null,null,null,"sheet 3"]
[null,null,null,null,null,null,null,"sheet 3"]
[null,null,null,null,null,null,null,"sheet 3"]
[null,null,null,null,null,null,null,"sheet 3"]
[null,null,null,null,null,null,null,"sheet 3"]
[null,null,null,null,null,null,null,"sheet 3"]
[null,null,null,null,null,null,null,"sheet 3"]
[null,null,null,null,null,null,null,"sheet 3"]
[null,null,null,null,null,null,null,"sheet 3"]
[null,null,null,null,null,null,null,"sheet 3"]
[null,null,null,null,null,null,null,"sheet 3"]
[null,null,null,null,null,null,null,"sheet 3"]
[null,null,null,null,null,null,null,"sheet 3"]
[null,null,null,null,null,null,null,"sheet 3"]
[null,null,null,null,null,null,null,"sheet 3"]
[null,null,null,null,null,null,null,"sheet 3"]
[null,null,null,null,null,null,null,"sheet 3"]
[null,null,null,null,null,null,null,"sheet 3"]
[null,null,null,null,null,null,null,"sheet 3"]
[null,null,null,null,null,null,null,"sheet 3"]
[null,null,null,null,null,null,null,"sheet 3"]
[null,null,null,null,null,null,null,"sheet 3"]
[null,null,null,null,null,null,null,"sheet 3"]
[null,null,null,null,null,null,null,"sheet 3"]
[null,null,null,null,null,null,null,"sheet 3"]
[null,null,null,null,null,null,null,"sheet 3"]
[null,null,null,null,null,null,null,"sheet 3"]
[null,null,null,null,null,null,null,"sheet 3"]
[null,null,null,null,null,null,null,"sheet 3"]
[null,null,null,null,null,null,null,"sheet 3"]
[null,null,null,null,null,null,null,"sheet 3"]
[null,null,null,null,null,null,null,"sheet 3"]
[null,null,null,null,null,null,null,"sheet 3"]
[null,null,null,null,null,null,null,"sheet 3"]
[null,null,null,null,null,null,null,"sheet 3"]
[null,null,null,null,null,null,null,"sheet 3"]
[null,null,null,null,null,null,null,"sheet 3"]
[null,null,null,null,null,null,null,"sheet 3"]
[null,null,null,null,null,null,null,"sheet 3"]
[null,null,null,null,null,null,null,"sheet 3"]
[null,null,null,null,null,null,null,"sheet 3"]
[null,null,null,null,null,null,null,"sheet 3"]
[null,null,null,null,null,null,null,"sheet 3"]
[null,null,null,null,null,null,null,"sheet 3"]
[null,null,null,null,null,null,null,"sheet 3"]
[null,null,null,null,null,null,null,"sheet 3"]
[null,null,null,null,null,null,null,"sheet 3"]
[null,null,null,null,null,null,null,"sheet 3"]
[null,null,null,null,null,null,null,"sheet 3"]
[null,null,null,null,null,null,null,"sheet 3"]
[null,null,null,null,null,null,null,"sheet 3"]
[null,null,null,null,null,null,null,"sheet 3"]
[null,null,null,null,null,null,null,"sheet 3"]
[null,null,null,null,null,null,null,"sheet 3"]
[null,null,null,null,null,null,null,"sheet 3"]
[null,null,null,null,null,null,null,"sheet 3"]
[null,null,null,null,null,null,null,"sheet 3"]
[null,null,null,null,null,null,null,"sheet 3"]
[null,null,null,null,null,null,null,"sheet 3"]
[null,null,null,null,null,null,null,"sheet 3"]
[null,null,null,null,null,null,null,"sheet 3"]
[null,null,null,null,null,null,null,"sheet 3"]
[null,null,null,null,null,null,null,"sheet 3"]
[null,null,null,null,null,null,null,"sheet 3"]
[null,null,null,null,null,null,null,"sheet 3"]
[null,null,null,null,null,null,null,"sheet 3"]
[null,null,null,null,null,null,null,"sheet 3"]
[null,null,null,null,null,null,null,"sheet 3"]
[null,null,null,null,null,null,null,"sheet 3"]
[null,null,null,null,null,null,null,"sheet 3"]
[null,null,null,null,null,null,null,"sheet 3"]
[null,null,null,null,null,null,null,"sheet 3"]
[null,null,null,null,null,null,null,"sheet 3"]
[null,null,null,null,null,null,null,"sheet 3"]
[null,null,null,null,null,null,null,"sheet 3"]
[null,null,null,null,null,null,null,"sheet 3"]
[null,null,null,null,null,null,null,"sheet 3"]
[null,null,null,null,null,null,null,"sheet 3"]
[null,null,null,null,null,null,null,"sheet 3"]
[null,null,null,null,null,null,null,"sheet 3"]
[null,null,null,null,null,null,null,"sheet 3"]
[null,null,null,null,null,null,null,"sheet 3"]
[null,null,null,null,null,null,null,"sheet 3"]
[null,null,null,null,null,null,null,"sheet 3"]
[null,null,null,null,null,null,null,"sheet 3"]
[null,null,null,null,null,null,null,"sheet 3"]
[null,null,null,null,null,null,null,"sheet 3"]
[null,null,null,null,null,null,null,"sheet 3"]
[null,null,null,null,null,null,null,"sheet 3"]
[null,null,null,null,null,null,null,"sheet 3"]
[null,null,null,null,null,null,null,"sheet 3"]
[null,null,null,null,null,null,null,"sheet 3"]
[null,null,null,null,null,null,null,"sheet 3"]
[null,null,null,null,null,null,null,"sheet 3"]
[null,null,null,null,null,null,null,"sheet 3"]
[null,null,null,null,null,null,null,"sheet 3"]
[null,null,null,null,null,null,null,"sheet 3"]
[null,null,null,null,null,null,null,"sheet 3"]
[null,null,null,null,null,null,null,"sheet 3"]
[null,null,null,null,null,null,null,"sheet 3"]
[null,null,null,null,null,null,null,"sheet 3"]
[null,null,null,null,null,null,null,"sheet 3"]
[null,null,null,null,null,null,null,"sheet 3"]
[null,null,null,null,null,null,null,"sheet 3"]
[null,null,null,null,null,null,null,"sheet 3"]
[null,null,null,null,null,null,null,"sheet 3"]
[null,null,null,null,null,null,null,"sheet 3"]
[null,null,null,null,null,null,null,"sheet 3"]
[null,null,null,null,null,null,null,"sheet 3"]
[null,null,null,null,null,null,null,"sheet 3"]
[null,null,null,null,null,null,null,"sheet 3"]
[null,null,null,null,null,null,null,"sheet 3"]
[null,null,null,null,null,null,null,"sheet 3"]
[null,null,null,null,null,null,null,"sheet 3"]
[null,null,null,null,null,null,null,"sheet 3"]
[null,null,null,null,null,null,null,"sheet 3"]
[null,null,null,null,null,null,null,"sheet 3"]
[null,null,null,null,null,null,null,"sheet 3"]
[null,null,null,null,null,null,null,"sheet 3"]
[null,null,null,null,null,null,null,"sheet 3"]
[null,null,null,null,null,null,null,"sheet 3"]
[null,null,null,null,null,null,null,"sheet 3"]
[null,null,null,null,null,null,null,"sheet 3"]
[null,null,null,null,null,null,null,"sheet 3"]
[null,null,null,null,null,null,null,"sheet 3"]
[null,null,null,null,null,null,null,"sheet 3"]
[null,null,null,null,null,null,null,"sheet 3"]
[null,null,null,null,null,null,null,"sheet 3"]
[null,null,null,null,null,null,null,"sheet 3"]
[null,null,null,null,null,null,null,"sheet 3"]
[null,null,null,null,null,null,null,"sheet 3"]
[null,null,null,null,null,null,null,"sheet 3"]
[null,null,null,null,null,null,null,"sheet 3"]
[null,null,null,null,null,null,null,"sheet 3"]
[null,null,null,null,null,null,null,"sheet 3"]
[null,null,null,null,null,null,null,"sheet 3"]
[null,null,null,null,null,null,null,"sheet 3"]
[null,null,null,null,null,null,null,"sheet 3"]
[null,null,null,null,null,null,null,"sheet 3"]
[null,null,null,null,null,null,null,"sheet 3"]
[null,null,null,null,null,null,null,"sheet 3"]
[null,null,null,null,null,null,null,"sheet 3"]
[null,null,null,null,null,null,null,"sheet 3"]
[null,null,null,null,null,null,null,"sheet 3"]
[null,null,null,null,null,null,null,"sheet 3"]
[null,null,null,null,null,null,null,"sheet 3"]
[null,null,null,null,null,null,null,"sheet 3"]
[null,null,null,null,null,null,null,"sheet 3"]
[null,null,null,null,null,null,null,"sheet 3"]
[null,null,null,null,null,null,null,"sheet 3"]
[null,null,null,null,null,null,null,"sheet 3"]
[null,null,null,null,null,null,null,"sheet 3"]
[null,null,null,null,null,null,null,"sheet 3"]
[null,null,null,null,null,null,null,"sheet 3"]
[null,null,null,null,null,null,null,"sheet 3"]
[null,null,null,null,null,null,null,"sheet 3"]
[null,null,null,null,null,null,null,"sheet 3"]
[null,null,null,null,null,null,null,"sheet 3"]
[null,null,null,null,null,null,null,"sheet 3"]
[null,null,null,null,null,null,null,"sheet 3"]
[null,null,null,null,null,null,null,"sheet 3"]
[null,null,null,null,null,null,null,"sheet 3"]
[null,null,null,null,null,null,null,"sheet 3"]
[null,null,null,null,null,null,null,"sheet 3"]
[null,null,null,null,null,null,null,"sheet 3"]
[null,null,null,null,null,null,null,"sheet 3"]
[null,null,null,null,null,null,null,"sheet 3"]
[null,null,null,null,null,null,null,"sheet 3"]
[null,null,null,null,null,null,null,"sheet 3"]
[null,null,null,null,null,null,null,"sheet 3"]
[null,null,null,null,null,null,null,"sheet 3"]
[null,null,null,null,null,null,null,"sheet 3"]
[null,null,null,null,null,null,null,"sheet 3"]
[null,null,null,null,null,null,null,"sheet 3"]
[null,null,null,null,null,null,null,"sheet 3"]
[null,null,null,null,null,null,null,"sheet 3"]
[null,null,null,null,null,null,null,"sheet 3"]
[null,null,null,null,null,null,null,"sheet 3"]
[null,null,null,null,null,null,null,"sheet 3"]
[null,null,null,null,null,null,null,"sheet 3"]
[null,null,null,null,null,null,null,"sheet 3"]
[null,null,null,null,null,null,null,"sheet 3"]
[null,null,null,null,null,null,null,"sheet 3"]
[null,null,null,null,null,null,null,"sheet 3"]
[null,null,null,null,null,null,null,"sheet 3"]
[null,null,null,null,null,null,null,"sheet 3"]
[null,null,null,null,null,null,null,"sheet 3"]
[null,null,null,null,null,null,null,"sheet 3"]
[null,null,null,null,null,null,null,"sheet 3"]
[null,null,null,null,null,null,null,"sheet 3"]
[null,null,null,null,null,null,null,"sheet 3"]
[null,null,null,null,null,null,null,"sheet 3"]
[null,null,null,null,null,null,null,"sheet 3"]
[null,null,null,null,null,null,null,"sheet 3"]
[null,null,null,null,null,null,null,"sheet 3"]
[null,null,null,null,null,null,null,"sheet 3"]
[null,null,null,null,null,null,null,"sheet 3"]
[null,null,null,null,null,null,null,"sheet 3"]
[null,null,null,null,null,null,null,"sheet 3"]
[null,null,null,null,null,null,null,"sheet 3"]
[null,null,null,null,null,null,null,"sheet 3"]
[null,null,null,null,null,null,null,"sheet 3"]
[null,null,null,null,null,null,null,"sheet 3"]
[null,null,null,null,null,null,null,"sheet 3"]
[null,null,null,null,null,null,null,"sheet 3"]
[null,null,null,null,null,null,null,"sheet 3"]
[null,null,null,null,null,null,null,"sheet 3"]
[null,null,null,null,null,null,null,"sheet 3"]
[null,null,null,null,null,null,null,"sheet 3"]
[null,null,null,null,null,null,null,"sheet 3"]
[null,null,null,null,null,null,null,"sheet 3"]
[null,null,null,null,null,null,null,"sheet 3"]
[null,null,null,null,null,null,null,"sheet 3"]
[null,null,null,null,null,null,null,"sheet 3"]
[null,null,null,null,null,null,null,"sheet 3"]
[null,null,null,null,null,null,null,"sheet 3"]
[null,null,null,null,null,null,null,"sheet 3"]
[null,null,null,null,null,null,null,"sheet 3"]
[null,null,null,null,null,null,null,"sheet 3"]
[null,null,null,null,null,null,null,"sheet 3"]
[null,null,null,null,null,null,null,"sheet 3"]
[null,null,null,null,null,null,null,"sheet 3"]
[null,null,null,null,null,null,null,"sheet 3"]
[null,null,null,null,null,null,null,"sheet 3"]
[null,null,null,null,null,null,null,"sheet 3"]
[null,null,null,null,null,null,null,"sheet 3"]
[null,null,null,null,null,null,null,"sheet 3"]
[null,null,null,null,null,null,null,"sheet 3"]
[null,null,null,null,null,null,null,"sheet 3"]
[null,null,null,null,null,null,null,"sheet 3"]
[null,null,null,null,null,null,null,"sheet 3"]
[null,null,null,null,null,null,null,"sheet 3"]
[null,null,null,null,null,null,null,"sheet 3"]
[null,null,null,null,null,null,null,"sheet 3"]
[null,null,null,null,null,null,null,"sheet 3"]
[null,null,null,null,null,null,null,"sheet 3"]
[null,null,null,null,null,null,null,"sheet 3"]
[null,null,null,null,null,null,null,"sheet 3"]
[null,null,null,null,null,null,null,"sheet 3"]
[null,null,null,null,null,null,null,"sheet 3"]
[null,null,null,null,null,null,null,"sheet 3"]
[null,null,null,null,null,null,null,"sheet 3"]
[null,null,null,null,null,null,null,"sheet 3"]
[null,null,null,null,null,null,null,"sheet 3"]
[null,null,null,null,null,null,null,"sheet 3"]
[null,null,null,null,null,null,null,"sheet 3"]
[null,null,null,null,null,null,null,"sheet 3"]
[null,null,null,null,null,null,null,"sheet 3"]
[null,null,null,null,null,null,null,"sheet 3"]
[null,null,null,null,null,null,null,"sheet 3"]
[null,null,null,null,null,null,null,"sheet 3"]
[null,null,null,null,null,null,null,"sheet 3"]
[null,null,null,null,null,null,null,"sheet 3"]
[null,null,null,null,null,null,null,"sheet 3"]
[null,null,null,null,null,null,null,"sheet 3"]
[null,null,null,null,null,null,null,"sheet 3"]
[null,null,null,null,null,null,null,"sheet 3"]
[null,null,null,null,null,null,null,"sheet 3"]
[null,null,null,null,null,null,null,"sheet 3"]
[null,null,null,null,null,null,null,"sheet 3"]
[null,null,null,null,null,null,null,"sheet 3"]
[null,null,null,null,null,null,null,"sheet 3"]
[null,null,null,null,null,null,null,"sheet 3"]
[null,null,null,null,null,null,null,"sheet 3"]
[null,null,null,null,null,null,null,"sheet 3"]
[null,null,null,null,null,null,null,"sheet 3"]
[null,null,null,null,null,null,null,"sheet 3"]
[null,null,null,null,null,null,null,"sheet 3"]
[null,null,null,null,null,null,null,"sheet 3"]
[null,null,null,null,null,null,null,"sheet 3"]
[null,null,null,null,null,null,null,"sheet 3"]
[null,null,null,null,null,null,null,"sheet 3"]
[null,null,null,null,null,null,null,"sheet 3"]
[null,null,null,null,null,null,null,"sheet 3"]
[null,null,null,null,null,null,null,"sheet 3"]
[null,null,null,null,null,null,null,"sheet 3"]
[null,null,null,null,null,null,null,"sheet 3"]
[null,null,null,null,null,null,null,"sheet 3"]
[null,null,null,null,null,null,null,"sheet 3"]
[null,null,null,null,null,null,null,"sheet 3"]
[null,null,null,null,null,null,null,"sheet 3"]
[null,null,null,null,null,null,null,"sheet 3"]
[null,null,null,null,null,null,null,"sheet 3"]
[null,null,null,null,null,null,null,"sheet 3"]
[null,null,null,null,null,null,null,"sheet 3"]
[null,null,null,null,null,null,null,"sheet 3"]
[null,null,null,null,null,null,null,"sheet 3"]
[null,null,null,null,null,null,null,"sheet 3"]
[null,null,null,null,null,null,null,"sheet 3"]
[null,null,null,null,null,null,null,"sheet 3"]
[null,null,null,null,null,null,null,"sheet 3"]
[null,null,null,null,null,null,null,"sheet 3"]
[null,null,null,null,null,null,null,"sheet 3"]
[null,null,null,null,null,null,null,"sheet 3"]
[null,null,null,null,null,null,null,"sheet 3"]
[null,null,null,null,null,null,null,"sheet 3"]
[null,null,null,null,null,null,null,"sheet 3"]
[null,null,null,null,null,null,null,"sheet 3"]
[null,null,null,null,null,null,null,"sheet 3"]
[null,null,null,null,null,null,null,"sheet 3"]
[null,null,null,null,null,null,null,"sheet 3"]
[null,null,null,null,null,null,null,"sheet 3"]
[null,null,null,null,null,null,null,"sheet 3"]
[null,null,null,null,null,null,null,"sheet 3"]
[null,null,null,null,null,null,null,"sheet 3"]
[null,null,null,null,null,null,null,"sheet 3"]
[null,null,null,null,null,null,null,"sheet 3"]
[null,null,null,null,null,null,null,"sheet 3"]
[null,null,null,null,null,null,null,"sheet 3"]
[null,null,null,null,null,null,null,"sheet 3"]
[null,null,null,null,null,null,null,"sheet 3"]
[null,null,null,null,null,null,null,"sheet 3"]
[null,null,null,null,null,null,null,"sheet 3"]
[null,null,null,null,null,null,null,"sheet 3"]
[null,null,null,null,null,null,null,"sheet 3"]
[null,null,null,null,null,null,null,"sheet 3"]
[null,null,null,null,null,null,null,"sheet 3"]
[null,null,null,null,null,null,null,"sheet 3"]
[null,null,null,null,null,null,null,"sheet 3"]
[null,null,null,null,null,null,null,"sheet 3"]
[null,null,null,null,null,null,null,"sheet 3"]
[null,null,null,null,null,null,null,"sheet 3"]
[null,null,null,null,null,null,null,"sheet 3"]
[null,null,null,null,null,null,null,"sheet 3"]
[null,null,null,null,null,null,null,"sheet 3"]
[null,null,null,null,null,null,null,"sheet 3"]
[null,null,null,null,null,null,null,"sheet 3"]
[null,null,null,null,null,null,null,"sheet 3"]
[null,null,null,null,null,null,null,"sheet 3"]
[null,null,null,null,null,null,null,"sheet 3"]
[null,null,null,null,null,null,null,"sheet 3"]
[null,null,null,null,null,null,null,"sheet 3"]
[null,null,null,null,null,null,null,"sheet 3"]
[null,null,null,null,null,null,null,"sheet 3"]
[null,null,null,null,null,null,null,"sheet 3"]
[null,null,null,null,null,null,null,"sheet 3"]
[null,null,null,null,null,null,null,"sheet 3"]
[null,null,null,null,null,null,null,"sheet 3"]
[null,null,null,null,null,null,null,"sheet 3"]
[null,null,null,null,null,null,null,"sheet 3"]
[null,null,null,null,null,null,null,"sheet 3"]
[null,null,null,null,null,null,null,"sheet 3"]
[null,null,null,null,null,null,null,"sheet 3"]
[null,null,null,null,null,null,null,"sheet 3"]
[null,null,null,null,null,null,null,"sheet 3"]
[null,null,null,null,null,null,null,"sheet 3"]
[null,null,null,null,null,null,null,"sheet 3"]
[null,null,null,null,null,null,null,"sheet 3"]
[null,null,null,null,null,null,null,"sheet 3"]
[null,null,null,null,null,null,null,"sheet 3"]
[null,null,null,null,null,null,null,"sheet 3"]
[null,null,null,null,null,null,null,"sheet 3"]
[null,null,null,null,null,null,null,"sheet 3"]
[null,null,null,null,null,null,null,"sheet 3"]
[null,null,null,null,null,null,null,"sheet 3"]
[null,null,null,null,null,null,null,"sheet 3"]
[null,null,null,null,null,null,null,"sheet 3"]
[null,null,null,null,null,null,null,"sheet 3"]
[null,null,null,null,null,null,null,"sheet 3"]
[null,null,null,null,null,null,null,"sheet 3"]
[null,null,null,null,null,null,null,"sheet 3"]
[null,null,null,null,null,null,null,"sheet 3"]
[null,null,null,null,null,null,null,"sheet 3"]
[null,null,null,null,null,null,null,"sheet 3"]
[null,null,null,null,null,null,null,"sheet 3"]
[null,null,null,null,null,null,null,"sheet 3"]
[null,null,null,null,null,null,null,"sheet 3"]
[null,null,null,null,null,null,null,"sheet 3"]
[null,null,null,null,null,null,null,"sheet 3"]
[null,null,null,null,null,null,null,"sheet 3"]
[null,null,null,null,null,null,null,"sheet 3"]
[null,null,null,null,null,null,null,"sheet 3"]
[null,null,null,null,null,null,null,"sheet 3"]
[null,null,null,null,null,null,null,"sheet 3"]
[null,null,null,null,null,null,null,"sheet 3"]
[null,null,null,null,null,null,null,"sheet 3"]
[null,null,null,null,null,null,null,"sheet 3"]
[null,null,null,null,null,null,null,"sheet 3"]
[null,null,null,null,null,null,null,"sheet 3"]
[null,null,null,null,null,null,null,"sheet 3"]
[null,null,null,null,null,null,null,"sheet 3"]
[null,null,null,null,null,null,null,"sheet 3"]
[null,null,null,null,null,null,null,"sheet 3"]
[null,null,null,null,null,null,null,"sheet 3"]
[null,null,null,null,null,null,null,"sheet 3"]
[null,null,null,null,null,null,null,"sheet 3"]
[null,null,null,null,null,null,null,"sheet 3"]
[null,null,null,null,null,null,null,"sheet 3"]
[null,null,null,null,null,null,null,"sheet 3"]
[null,null,null,null,null,null,null,"sheet 3"]
[null,null,null,null,null,null,null,"sheet 3"]
[null,null,null,null,null,null,null,"sheet 3"]
[null,null,null,null,null,null,null,"sheet 3"]
[null,null,null,null,null,null,null,"sheet 3"]
[null,null,null,null,null,null,null,"sheet 3"]
[null,null,null,null,null,null,null,"sheet 3"]
[null,null,null,null,null,null,null,"sheet 3"]
[null,null,null,null,null,null,null,"sheet 3"]
[null,null,null,null,null,null,null,"sheet 3"]
[null,null,null,null,null,null,null,"sheet 3"]
[null,null,null,null,null,null,null,"sheet 3"]
[null,null,null,null,null,null,null,"sheet 3"]
[null,null,null,null,null,null,null,"sheet 3"]
[null,null,null,null,null,null,null,"sheet 3"]
[null,null,null,null,null,null,null,"sheet 3"]
[null,null,null,null,null,null,null,"sheet 3"]
[null,null,null,null,null,null,null,"sheet 3"]
[null,null,null,null,null,null,null,"sheet 3"]
[null,null,null,null,null,null,null,"sheet 3"]
[null,null,null,null,null,null,null,"sheet 3"]
[null,null,null,null,null,null,null,"sheet 3"]
[null,null,null,null,null,null,null,"sheet 3"]
[null,null,null,null,null,null,null,"sheet 3"]
[null,null,null,null,null,null,null,"sheet 3"]
[null,null,null,null,null,null,null,"sheet 3"]
[null,null,null,null,null,null,null,"sheet 3"]
[null,null,null,null,null,null,null,"sheet 3"]
[null,null,null,null,null,null,null,"sheet 3"]
[null,null,null,null,null,null,null,"sheet 3"]
[null,null,null,null,null,null,null,"sheet 3"]
[null,null,null,null,null,null,null,"sheet 3"]
[null,null,null,null,null,null,null,"sheet 3"]
[null,null,null,null,null,null,null,"sheet 3"]
[null,null,null,null,null,null,null,"sheet 3"]
[null,null,null,null,null,null,null,"sheet 3"]
[null,null,null,null,null,null,null,"sheet 3"]
[null,null,null,null,null,null,null,"sheet 3"]
[null,null,null,null,null,null,null,"sheet 3"]
[null,null,null,null,null,null,null,"sheet 3"]
[null,null,null,null,null,null,null,"sheet 3"]
[null,null,null,null,null,null,null,"sheet 3"]
[null,null,null,null,null,null,null,"sheet 3"]
[null,null,null,null,null,null,null,"sheet 3"]
[null,null,null,null,null,null,null,"sheet 3"]
[null,null,null,null,null,null,null,"sheet 3"]
[null,null,null,null,null,null,null,"sheet 3"]
[null,null,null,null,null,null,null,"sheet 3"]
[null,null,null,null,null,null,null,"sheet 3"]
[null,null,null,null,null,null,null,"sheet 3"]
[null,null,null,null,null,null,null,"sheet 3"]
[null,null,null,null,null,null,null,"sheet 3"]
[null,null,null,null,null,null,null,"sheet 3"]
[null,null,null,null,null,null,null,"sheet 3"]
[null,null,null,null,null,null,null,"sheet 3"]
[null,null,null,null,null,null,null,"sheet 3"]
[null,null,null,null,null,null,null,"sheet 3"]
[null,null,null,null,null,null,null,"sheet 3"]
[null,null,null,null,null,null,null,"sheet 3"]
[null,null,null,null,null,null,null,"sheet 3"]
[null,null,null,null,null,null,null,"sheet 3"]
[null,null,null,null,null,null,null,"sheet 3"]
[null,null,null,null,null,null,null,"sheet 3"]
[null,null,null,null,null,null,null,"sheet 3"]
[null,null,null,null,null,null,null,"sheet 3"]
[null,null,null,null,null,null,null,"sheet 3"]
[null,null,null,null,null,null,null,"sheet 3"]
[null,null,null,null,null,null,null,"sheet 3"]
[null,null,null,null,null,null,null,"sheet 3"]
[null,null,null,null,null,null,null,"sheet 3"]
[null,null,null,null,null,null,null,"sheet 3"]
[null,null,null,null,null,null,null,"sheet 3"]
[null,null,null,null,null,null,null,"sheet 3"]
[null,null,null,null,null,null,null,"sheet 3"]
[null,null,null,null,null,null,null,"sheet 3"]
[null,null,null,null,null,null,null,"sheet 3"]
[null,null,null,null,null,null,null,"sheet 3"]
[null,null,null,null,null,null,null,"sheet 3"]
[null,null,null,null,null,null,null,"sheet 3"]
[null,null,null,null,null,null,null,"sheet 3"]
[null,null,null,null,null,null,null,"sheet 3"]
[null,null,null,null,null,null,null,"sheet 3"]
[null,null,null,null,null,null,null,"sheet 3"]
[null,null,null,null,null,null,null,"sheet 3"]
[null,null,null,null,null,null,null,"sheet 3"]
[null,null,null,null,null,null,null,"sheet 3"]
[null,null,null,null,null,null,null,"sheet 3"]
[null,null,null,null,null,null,null,"sheet 3"]
[null,null,null,null,null,null,null,"sheet 3"]
[null,null,null,null,null,null,null,"sheet 3"]
[null,null,null,null,null,null,null,"sheet 3"]
[null,null,null,null,null,null,null,"sheet 3"]
[null,null,null,null,null,null,null,"sheet 3"]
[null,null,null,null,null,null,null,"sheet 3"]
[null,null,null,null,null,null,null,"sheet 3"]
[null,null,null,null,null,null,null,"sheet 3"]
[null,null,null,null,null,null,null,"sheet 3"]
[null,null,null,null,null,null,null,"sheet 3"]
[null,null,null,null,null,null,null,"sheet 3"]
[null,null,null,null,null,null,null,"sheet 3"]
[null,null,null,null,null,null,null,"sheet 3"]
[null,null,null,null,null,null,null,"sheet 3"]
[null,null,null,null,null,null,null,"sheet 3"]
[null,null,null,null,null,null,null,"sheet 3"]
[null,null,null,null,null,null,null,"sheet 3"]
[null,null,null,null,null,null,null,"sheet 3"]
[null,null,null,null,null,null,null,"sheet 3"]
[null,null,null,null,null,null,null,"sheet 3"]
[null,null,null,null,null,null,null,"sheet 3"]
[null,null,null,null,null,null,null,"sheet 3"]
[null,null,null,null,null,null,null,"sheet 3"]
[null,null,null,null,null,null,null,"sheet 3"]
[null,null,null,null,null,null,null,"sheet 3"]
[null,null,null,null,null,null,null,"sheet 3"]
[null,null,null,null,null,null,null,"sheet 3"]
[null,null,null,null,null,null,null,"sheet 3"]
[null,null,null,null,null,null,null,"sheet 3"]
[null,null,null,null,null,null,null,"sheet 3"]
[null,null,null,null,null,null,null,"sheet 3"]
[null,null,null,null,null,null,null,"sheet 3"]
[null,null,null,null,null,null,null,"sheet 3"]
[null,null,null,null,null,null,null,"sheet 3"]
[null,null,null,null,null,null,null,"sheet 3"]
[null,null,null,null,null,null,null,"sheet 3"]
[null,null,null,null,null,null,null,"sheet 3"]
[null,null,null,null,null,null,null,"sheet 3"]
[null,null,null,null,null,null,null,"sheet 3"]
[null,null,null,null,null,null,null,"sheet 3"]
[null,null,null,null,null,null,null,"sheet 3"]
[null,null,null,null,null,null,null,"sheet 3"]
[null,null,null,null,null,null,null,"sheet 3"]
[null,null,null,null,null,null,null,"sheet 3"]
[null,null,null,null,null,null,null,"sheet 3"]
[null,null,null,null,null,null,null,"sheet 3"]
[null,null,null,null,null,null,null,"sheet 3"]
[null,null,null,null,null,null,null,"sheet 3"]
[null,null,null,null,null,null,null,"sheet 3"]
[null,null,null,null,null,null,null,"sheet 3"]
[null,null,null,null,null,null,null,"sheet 3"]
[null,null,null,null,null,null,null,"sheet 3"]
[null,null,null,null,null,null,null,"sheet 3"]
[null,null,null,null,null,null,null,"sheet 3"]
[null,null,null,null,null,null,null,"sheet 3"]
[null,null,null,null,null,null,null,"sheet 3"]
[null,null,null,null,null,null,null,"sheet 3"]
[null,null,null,null,null,null,null,"sheet 3"]
[null,null,null,null,null,null,null,"sheet 3"]
[null,null,null,null,null,null,null,"sheet 3"]
[null,null,null,null,null,null,null,"sheet 3"]
[null,null,null,null,null,null,null,"sheet 3"]
[null,null,null,null,null,null,null,"sheet 3"]
[null,null,null,null,null,null,null,"sheet 3"]
[null,null,null,null,null,null,null,"sheet 3"]
[null,null,null,null,null,null,null,"sheet 3"]
[null,null,null,null,null,null,null,"sheet 3"]
[null,null,null,null,null,null,null,"sheet 3"]
[null,null,null,null,null,null,null,"sheet 3"]
[null,null,null,null,null,null,null,"sheet 3"]
[null,null,null,null,null,null,null,"sheet 3"]
[null,null,null,null,null,null,null,"sheet 3"]
[null,null,null,null,null,null,null,"sheet 3"]
[null,null,null,null,null,null,null,"sheet 3"]
[null,null,null,null,null,null,null,"sheet 3"]
[null,null,null,null,null,null,null,"sheet 3"]
[null,null,null,null,null,null,null,"sheet 3"]
[null,null,null,null,null,null,null,"sheet 3"]
[null,null,null,null,null,null,null,"sheet 3"]
[null,null,null,null,null,null,null,"sheet 3"]
[null,null,null,null,null,null,null,"sheet 3"]
[null,null,null,null,null,null,null,"sheet 3"]
[null,null,null,null,null,null,null,"sheet 3"]
[null,null,null,null,null,null,null,"sheet 3"]
[null,null,null,null,null,null,null,"sheet 3"]
[null,null,null,null,null,null,null,"sheet 3"]
[null,null,null,null,null,null,null,"sheet 3"]
[null,null,null,null,null,null,null,"sheet 3"]
[null,null,null,null,null,null,null,"sheet 3"]
[null,null,null,null,null,null,null,"sheet 3"]
[null,null,null,null,null,null,null,"sheet 3"]
[null,null,null,null,null,null,null,"sheet 3"]
[null,null,null,null,null,null,null,"sheet 3"]
[null,null,null,null,null,null,null,"sheet 3"]
[null,null,null,null,null,null,null,"sheet 3"]
[null,null,null,null,null,null,null,"sheet 3"]
[null,null,null,null,null,null,null,"sheet 3"]
[null,null,null,null,null,null,null,"sheet 3"]
[null,null,null,null,null,null,null,"sheet 3"]
[null,null,null,null,null,null,null,"sheet 3"]
[null,null,null,null,null,null,null,"sheet 3"]
[null,null,null,null,null,null,null,"sheet 3"]
[null,null,null,null,null,null,null,"sheet 3"]
[null,null,null,null,null,null,null,"sheet 3"]
[null,null,null,null,null,null,null,"sheet 3"]
[null,null,null,null,null,null,null,"sheet 3"]
[null,null,null,null,null,null,null,"sheet 3"]
[null,null,null,null,null,null,null,"sheet 3"]
[null,null,null,null,null,null,null,"sheet 3"]
[null,null,null,null,null,null,null,"sheet 3"]
[null,null,null,null,null,null,null,"sheet 3"]
[null,null,null,null,null,null,null,"sheet 3"]
[null,null,null,null,null,null,null,"sheet 3"]
[null,null,null,null,null,null,null,"sheet 3"]
[null,null,null,null,null,null,null,"sheet 3"]
[null,null,null,null,null,null,null,"sheet 3"]
[null,null,null,null,null,null,null,"sheet 3"]
[null,null,null,null,null,null,null,"sheet 3"]
[null,null,null,null,null,null,null,"sheet 3"]
[null,null,null,null,null,null,null,"sheet 3"]
[null,null,null,null,null,null,null,"sheet 3"]
[null,null,null,null,null,null,null,"sheet 3"]
[null,null,null,null,null,null,null,"sheet 3"]
[null,null,null,null,null,null,null,"sheet 3"]
[null,null,null,null,null,null,null,"sheet 3"]
[null,null,null,null,null,null,null,"sheet 3"]
[null,null,null,null,null,null,null,"sheet 3"]
[null,null,null,null,null,null,null,"sheet 3"]
[null,null,null,null,null,null,null,"sheet 3"]
[null,null,null,null,null,null,null,"sheet 3"]
[null,null,null,null,null,null,null,"sheet 3"]
[null,null,null,null,null,null,null,"sheet 3"]
[null,null,null,null,null,null,null,"sheet 3"]
[null,null,null,null,null,null,null,"sheet 3"]
[null,null,null,null,null,null,null,"sheet 3"]
[null,null,null,null,null,null,null,"sheet 3"]
[null,null,null,null,null,null,null,"sheet 3"]
[null,null,null,null,null,null,null,"sheet 3"]
[null,null,null,null,null,null,null,"sheet 3"]
[null,null,null,null,null,null,null,"sheet 3"]
[null,null,null,null,null,null,null,"sheet 3"]
[null,null,null,null,null,null,null,"sheet 3"]
[null,null,null,null,null,null,null,"sheet 3"]
[null,null,null,null,null,null,null,"sheet 3"]
[null,null,null,null,null,null,null,"sheet 3"]
[null,null,null,null,null,null,null,"sheet 3"]
[null,null,null,null,null,null,null,"sheet 3"]
[null,null,null,null,null,null,null,"sheet 3"]
[null,null,null,null,null,null,null,"sheet 3"]
[null,null,null,null,null,null,null,"sheet 3"]
[null,null,null,null,null,null,null,"sheet 3"]
[null,null,null,null,null,null,null,"sheet 3"]
[null,null,null,null,null,null,null,"sheet 3"]
[null,null,null,null,null,null,null,"sheet 3"]
[null,null,null,null,null,null,null,"sheet 3"]
[null,null,null,null,null,null,null,"sheet 3"]
[null,null,null,null,null,null,null,"sheet 3"]
[null,null,null,null,null,null,null,"sheet 3"]
[null,null,null,null,null,null,null,"sheet 3"]
[null,null,null,null,null,null,null,"sheet 3"]
[null,null,null,null,null,null,null,"sheet 3"]
[null,null,null,null,null,null,null,"sheet 3"]
[null,null,null,null,null,null,null,"sheet 3"]
[null,null,null,null,null,null,null,"sheet 3"]
[null,null,null,null,null,null,null,"sheet 3"]
[null,null,null,null,null,null,null,"sheet 3"]
[null,null,null,null,null,null,null,"sheet 3"]
[null,null,null,null,null,null,null,"sheet 3"]
[null,null,null,null,null,null,null,"sheet 3"]
[null,null,null,null,null,null,null,"sheet 3"]
[null,null,null,null,null,null,null,"sheet 3"]
[null,null,null,null,null,null,null,"sheet 3"]
[null,null,null,null,null,null,null,"sheet 3"]
[null,null,null,null,null,null,null,"sheet 3"]
[null,null,null,null,null,null,null,"sheet 3"]
[null,null,null,null,null,null,null,"sheet 3"]
[null,null,null,null,null,null,null,"sheet 3"]
[null,null,null,null,null,null,null,"sheet 3"]
[null,null,null,null,null,null,null,"sheet 3"]
[null,null,null,null,null,null,null,"sheet 3"]
[null,null,null,null,null,null,null,"sheet 3"]
[null,null,null,null,null,null,null,"sheet 3"]
[null,null,null,null,null,null,null,"sheet 3"]
[null,null,null,null,null,null,null,"sheet 3"]
[null,null,null,null,null,null,null,"sheet 3"]
[null,null,null,null,null,null,null,"sheet 3"]
[null,null,null,null,null,null,null,"sheet 3"]
[null,null,null,null,null,null,null,"sheet 3"]
[null,null,null,null,null,null,null,"sheet 3"]
[null,null,null,null,null,null,null,"sheet 3"]
[null,null,null,null,null,null,null,"sheet 3"]
[null,null,null,null,null,null,null,"sheet 3"]
[null,null,null,null,null,null,null,"sheet 3"]
[null,null,null,null,null,null,null,"sheet 3"]
[null,null,null,null,null,null,null,"sheet 3"]
[null,null,null,null,null,null,null,"sheet 3"]
[null,null,null,null,null,null,null,"sheet 3"]
[null,null,null,null,null,null,null,"sheet 3"]
[null,null,null,null,null,null,null,"sheet 3"]
[null,null,null,null,null,null,null,"sheet 3"]
[null,null,null,null,null,null,null,"sheet 3"]
[null,null,null,null,null,null,null,"sheet 3"]
[null,null,null,null,null,null,null,"sheet 3"]
[null,null,null,null,null,null,null,"sheet 3"]
[null,null,null,null,null,null,null,"sheet 3"]
[null,null,null,null,null,null,null,"sheet 3"]
[null,null,null,null,null,null,null,"sheet 3"]
[null,null,null,null,null,null,null,"sheet 3"]
[null,null,null,null,null,null,null,"sheet 3"]
[null,null,null,null,null,null,null,"sheet 3"]
[null,null,null,null,null,null,null,"sheet 3"]
[null,null,null,null,null,null,null,"sheet 3"]
[null,null,null,null,null,null,null,"sheet 3"]
[null,null,null,null,null,null,null,"sheet 3"]
[null,null,null,null,null,null,null,"sheet 3"]
[null,null,null,null,null,null,null,"sheet 3"]
[null,null,null,null,null,null,null,"sheet 3"]
[null,null,null,null,null,null,null,"sheet 3"]
[null,null,null,null,null,null,null,"sheet 3"]
[null,null,null,null,null,null,null,"sheet 3"]
[null,null,null,null,null,null,null,"sheet 3"]
[null,null,null,null,null,null,null,"sheet 3"]
[null,null,null,null,null,null,null,"sheet 3"]
[null,null,null,null,null,null,null,"sheet 3"]
[null,null,null,null,null,null,null,"sheet 3"]
[null,null,null,null,null,null,null,"sheet 3"]
[null,null,null,null,null,null,null,"sheet 3"]
[null,null,null,null,null,null,null,"sheet 3"]
[null,null,null,null,null,null,null,"sheet 3"]
[null,null,null,null,null,null,null,"sheet 3"]
[null,null,null,null,null,null,null,"sheet 3"]
[null,null,null,null,null,null,null,"sheet 3"]
[null,null,null,null,null,null,null,"sheet 3"]
[null,null,null,null,null,null,null,"sheet 3"]
[null,null,null,null,null,null,null,"sheet 3"]
[null,null,null,null,null,null,null,"sheet 3"]
[null,null,null,null,null,null,null,"sheet 3"]
[null,null,null,null,null,null,null,"sheet 3"]
[null,null,null,null,null,null,null,"sheet 3"]
[null,null,null,null,null,null,null,"sheet 3"]
[null,null,null,null,null,null,null,"sheet 3"]
[null,null,null,null,null,null,null,"sheet 3"]
[null,null,null,null,null,null,null,"sheet 3"]
[null,null,null,null,null,null,null,"sheet 3"]
[null,null,null,null,null,null,null,"sheet 3"]
[null,null,null,null,null,null,null,"sheet 3"]
[null,null,null,null,null,null,null,"sheet 3"]
[null,null,null,null,null,null,null,"sheet 3"]
[null,null,null,null,null,null,null,"sheet 3"]
[null,null,null,null,null,null,null,"sheet 3"]
[null,null,null,null,null,null,null,"sheet 3"]
[null,null,null,null,null,null,null,"sheet 3"]
[null,null,null,null,null,null,null,"sheet 3"]
[null,null,null,null,null,null,null,"sheet 3"]
[null,null,null,null,null,null,null,"sheet 3"]
[null,null,null,null,null,null,null,"sheet 3"]
[null,null,null,null,null,null,null,"sheet 3"]
[null,null,null,null,null,null,null,"sheet 3"]
[null,null,null,null,null,null,null,"sheet 3"]
[null,null,null,null,null,null,null,"sheet 3"]
[null,null,null,null,null,null,null,"sheet 3"]
[null,null,null,null,null,null,null,"sheet 3"]
[null,null,null,null,null,null,null,"sheet 3"]
[null,null,null,null,null,null,null,"sheet 3"]
[null,null,null,null,null,null,null,"sheet 3"]
[null,null,null,null,null,null,null,"sheet 3"]
[null,null,null,null,null,null,null,"sheet 3"]
[null,null,null,null,null,null,null,"sheet 3"]
[null,null,null,null,null,null,null,"sheet 3"]
[null,null,null,null,null,null,null,"sheet 3"]
[null,null,null,null,null,null,null,"sheet 3"]
[null,null,null,null,null,null,null,"sheet 3"]
[null,null,null,null,null,null,null,"sheet 3"]
[null,null,null,null,null,null,null,"sheet 3"]
[null,null,null,null,null,null,null,"sheet 3"]
[null,null,null,null,null,null,null,"sheet 3"]
[null,null,null,null,null,null,null,"sheet 3"]
[null,null,null,null,null,null,null,"sheet 3"]
[null,null,null,null,null,null,null,"sheet 3"]
[null,null,null,null,null,null,null,"sheet 3"]
[null,null,null,null,null,null,null,"sheet 3"]
[null,null,null,null,null,null,null,"sheet 3"]
[null,null,null,null,null,null,null,"sheet 3"]
[null,null,null,null,null,null,null,"sheet 3"]
[null,null,null,null,null,null,null,"sheet 3"]
[null,null,null,null,null,null,null,"sheet 3"]
[null,null,null,null,null,null,null,"sheet 3"]
[null,null,null,null,null,null,null,"sheet 3"]
[null,null,null,null,null,null,null,"sheet 3"]
[null,null,null,null,null,null,null,"sheet 3"]
[null,null,null,null,null,null,null,"sheet 3"]
[null,null,null,null,null,null,null,"sheet 3"]
[null,null,null,null,null,null,null,"sheet 3"]
[null,null,null,null,null,null,null,"sheet 3"]
[null,null,null,null,null,null,null,"sheet 3"]
[null,null,null,null,null,null,null,"sheet 3"]
[null,null,null,null,null,null,null,"sheet 3"]
[null,null,null,null,null,null,null,"sheet 3"]
[null,null,null,null,null,null,null,"sheet 3"]
[null,null,null,null,null,null,null,"sheet 3"]
[null,null,null,null,null,null,null,"sheet 3"]
[null,null,null,null,null,null,null,"sheet 3"]
[null,null,null,null,null,null,null,"sheet 3"]
[null,null,null,null,null,null,null,"sheet 3"]
[null,null,null,null,null,null,null,"sheet 3"]
[null,null,null,null,null,null,null,"sheet 3"]
[null,null,null,null,null,null,null,"sheet 3"]
[null,null,null,null,null,null,null,"sheet 3"]
[null,null,null,null,null,null,null,"sheet 3"]
[null,null,null,null,null,null,null,"sheet 3"]
[null,null,null,null,null,null,null,"sheet 3"]
[null,null,null,null,null,null,null,"sheet 3"]
[null,null,null,null,null,null,null,"sheet 3"]
[null,null,null,null,null,null,null,"sheet 3"]
[null,null,null,null,null,null,null,"sheet 3"]
[null,null,null,null,null,null,null,"sheet 3"]
[null,null,null,null,null,null,null,"sheet 3"]
[null,null,null,null,null,null,null,"sheet 3"]
[null,null,null,null,null,null,null,"sheet 3"]
[null,null,null,null,null,null,null,"sheet 3"]
[null,null,null,null,null,null,null,"sheet 3"]
[null,null,null,null,null,null,null,"sheet 3"]
[null,null,null,null,null,null,null,"sheet 3"]
[null,null,null,null,null,null,null,"sheet 3"]
[null,null,null,null,null,null,null,"sheet 3"]
[null,null,null,null,null,null,null,"sheet 3"]
[null,null,null,null,null,null,null,"sheet 3"]
[null,null,null,null,null,null,null,"sheet 3"]
[null,null,null,null,null,null,null,"sheet 3"]
[null,null,null,null,null,null,null,"sheet 3"]
[null,null,null,null,null,null,null,"sheet 3"]
[null,null,null,null,null,null,null,"sheet 3"]
[null,null,null,null,null,null,null,"sheet 3"]
[null,null,null,null,null,null,null,"sheet 3"]
[null,null,null,null,null,null,null,"sheet 3"]
[null,null,null,null,null,null,null,"sheet 3"]
[null,null,null,null,null,null,null,"sheet 3"]
[null,null,null,null,null,null,null,"sheet 3"]
[null,null,null,null,null,null,null,"sheet 3"]
[null,null,null,null,null,null,null,"sheet 3"]
[null,null,null,null,null,null,null,"sheet 3"]
[null,null,null,null,null,null,null,"sheet 3"]
[null,null,null,null,null,null,null,"sheet 3"]
[null,null,null,null,null,null,null,"sheet 3"]
[null,null,null,null,null,null,null,"sheet 3"]
[null,null,null,null,null,null,null,"sheet 3"]
[null,null,null,null,null,null,null,"sheet 3"]
[null,null,null,null,null,null,null,"sheet 3"]
[null,null,null,null,null,null,null,"sheet 3"]
[null,null,null,null,null,null,null,"sheet 3"]
[null,null,null,null,null,null,null,"sheet 3"]
[null,null,null,null,null,null,null,"sheet 3"]
[null,null,null,null,null,null,null,"sheet 3"]
[null,null,null,null,null,null,null,"sheet 3"]
[null,null,null,null,null,null,null,"sheet 3"]
[null,null,null,null,null,null,null,"sheet 3"]
[null,null,null,null,null,null,null,"sheet 3"]
[null,null,null,null,null,null,null,"sheet 3"]
[null,null,null,null,null,null,null,"sheet 3"]
[null,null,null,null,null,null,null,"sheet 3"]
[null,null,null,null,null,null,null,"sheet 3"]
[null,null,null,null,null,null,null,"sheet 3"]
[null,null,null,null,null,null,null,"sheet 3"]
[null,null,null,null,null,null,null,"sheet 3"]
[null,null,null,null,null,null,null,"sheet 3"]
[null,null,null,null,null,null,null,"sheet 3"]
[null,null,null,null,null,null,null,"sheet 3"]
[null,null,null,null,null,null,null,"sheet 3"]
[null,null,null,null,null,null,null,"sheet 3"]
[null,null,null,null,null,null,null,"sheet 3"]
[null,null,null,null,null,null,null,"sheet 3"]
[null,null,null,null,null,null,null,"sheet 3"]
[null,null,null,null,null,null,null,"sheet 3"]
[null,null,null,null,null,null,null,"sheet 3"]
[null,null,null,null,null,null,null,"sheet 3"]
[null,null,null,null,null,null,null,"sheet 3"]
[null,null,null,null,null,null,null,"sheet 3"]
[null,null,null,null,null,null,null,"sheet 3"]
[null,null,null,null,null,null,null,"sheet 3"]
[null,null,null,null,null,null,null,"sheet 3"]
[null,null,null,null,null,null,null,"sheet 3"]
[null,null,null,null,null,null,null,"sheet 3"]
[null,null,null,null,null,null,null,"sheet 3"]
[null,null,null,null,null,null,null,"sheet 3"]
[null,null,null,null,null,null,null,"sheet 3"]
[null,null,null,null,null,null,null,"sheet 3"]
[null,null,null,null,null,null,null,"sheet 3"]
[null,null,null,null,null,null,null,"sheet 3"]
[null,null,null,null,null,null,null,"sheet 3"]
[null,null,null,null,null,null,null,"sheet 3"]
[null,null,null,null,null,null,null,"sheet 3"]
[null,null,null,null,null,null,null,"sheet 3"]
[null,null,null,null,null,null,null,"sheet 3"]
[null,null,null,null,null,null,null,"sheet 3"]
[null,null,null,null,null,null,null,"sheet 3"]
[null,null,null,null,null,null,null,"sheet 3"]
[null,null,null,null,null,null,null,"sheet 3"]
[null,null,null,null,null,null,null,"sheet 3"]
[null,null,null,null,null,null,null,"sheet 3"]
[null,null,null,null,null,null,null,"sheet 3"]
[null,null,null,null,null,null,null,"sheet 3"]
[null,null,null,null,null,null,null,"sheet 3"]
[null,null,null,null,null,null,null,"sheet 3"]
[null,null,null,null,null,null,null,"sheet 3"]
[null,null,null,null,null,null,null,"sheet 3"]
[null,null,null,null,null,null,null,"sheet 3"]
[null,null,null,null,null,null,null,"sheet 3"]
[null,null,null,null,null,null,null,"sheet 3"]
[null,null,null,null,null,null,null,"sheet 3"]
[null,null,null,null,null,null,null,"sheet 3"]
[null,null,null,null,null,null,null,"sheet 3"]
[null,null,null,null,null,null,null,"sheet 3"]
[null,null,null,null,null,null,null,"sheet 3"]
[null,null,null,null,null,null,null,"sheet 3"]
[null,null,null,null,null,null,null,"sheet 3"]
[null,null,null,null,null,null,null,"sheet 3"]
[null,null,null,null,null,null,null,"sheet 3"]
[null,null,null,null,null,null,null,"sheet 3"]
[null,null,null,null,null,null,null,"sheet 3"]
[null,null,null,null,null,null,null,"sheet 3"]
[null,null,null,null,null,null,null,"sheet 3"]
[null,null,null,null,null,null,null,"sheet 3"]
[null,null,null,null,null,null,null,"sheet 3"]
[null,null,null,null,null,null,null,"sheet 3"]
[null,null,null,null,null,null,null,"sheet 3"]
[null,null,null,null,null,null,null,"sheet 3"]
[null,null,null,null,null,null,null,"sheet 3"]
[null,null,null,null,null,null,null,"sheet 3"]
[null,null,null,null,null,null,null,"sheet 3"]
[null,null,null,null,null,null,null,"sheet 3"]
[null,null,null,null,null,null,null,"sheet 3"]
[null,null,null,null,null,null,null,"sheet 3"]
[null,null,null,null,null,null,null,"sheet 3"]
[null,null,null,null,null,null,null,"sheet 3"]
[null,null,null,null,null,null,null,"sheet 3"]
[null,null,null,null,null,null,null,"sheet 3"]
[null,null,null,null,null,null,null,"sheet 3"]
[null,null,null,null,null,null,null,"sheet 3"]
[null,null,null,null,null,null,null,"sheet 3"]
[null,null,null,null,null,null,null,"sheet 3"]
[null,null,null,null,null,null,null,"sheet 3"]
[null,null,null,null,null,null,null,"sheet 3"]
[null,null,null,null,null,null,null,"sheet 3"]
[null,null,null,null,null,null,null,"sheet 3"]
[null,null,null,null,null,null,null,"sheet 3"]
[null,null,null,null,null,null,null,"sheet 3"]
[null,null,null,null,null,null,null,"sheet 3"]
[null,null,null,null,null,null,null,"sheet 3"]
[null,null,null,null,null,null,null,"sheet 3"]
[null,null,null,null,null,null,null,"sheet 3"]
[null,null,null,null,null,null,null,"sheet 3"]
[null,null,null,null,null,null,null,"sheet 3"]
[null,null,null,null,null,null,null,"sheet 3"]
[null,null,null,null,null,null,null,"sheet 3"]
[null,null,null,null,null,null,null,"sheet 3"]
[null,null,null,null,null,null,null,"sheet 3"]
[null,null,null,null,null,null,null,"sheet 3"]
[null,null,null,null,null,null,null,"sheet 3"]
[null,null,null,null,null,null,null,"sheet 3"]
[null,null,null,null,null,null,null,"sheet 3"]
[null,null,null,null,null,null,null,"sheet 3"]
[null,null,null,null,null,null,null,"sheet 3"]
[null,null,null,null,null,null,null,"sheet 3"]
[null,null,null,null,null,null,null,"sheet 3"]
[null,null,null,null,null,null,null,"sheet 3"]
[null,null,null,null,null,null,null,"sheet 3"]
[null,null,null,null,null,null,null,"sheet 3"]
[null,null,null,null,null,null,null,"sheet 3"]
[null,null,null,null,null,null,null,"sheet 3"]
[null,null,null,null,null,null,null,"sheet 3"]
[null,null,null,null,null,null,null,"sheet 3"]
[null,null,null,null,null,null,null,"sheet 3"]
[null,null,null,null,null,null,null,"sheet 3"]
[null,null,null,null,null,null,null,"sheet 3"]
[null,null,null,null,null,null,null,"sheet 3"]
[null,null,null,null,null,null,null,"sheet 3"]
[null,null,null,null,null,null,null,"sheet 3"]
[null,null,null,null,null,null,null,"sheet 3"]
[null,null,null,null,null,null,null,"sheet 3"]
[null,null,null,null,null,null,null,"sheet 3"]
[null,null,null,null,null,null,null,"sheet 3"]
[null,null,null,null,null,null,null,"sheet 3"]
[null,null,null,null,null,null,null,"sheet 3"]
[null,null,null,null,null,null,null,"sheet 3"]
[null,null,null,null,null,null,null,"sheet 3"]
[null,null,null,null,null,null,null,"sheet 3"]
[null,null,null,null,null,null,null,"sheet 3"]
[null,null,null,null,null,null,null,"sheet 3"]
[null,null,null,null,null,null,null,"sheet 3"]
[null,null,null,null,null,null,null,"sheet 3"]
[null,null,null,null,null,null,null,"sheet 3"]
[null,null,null,null,null,null,null,"sheet 3"]
[null,null,null,null,null,null,null,"sheet 3"]
[null,null,null,null,null,null,null,"sheet 3"]
[null,null,null,null,null,null,null,"sheet 3"]
[null,null,null,null,null,null,null,"sheet 3"]
[null,null,null,null,null,null,null,"sheet 3"]
[null,null,null,null,null,null,null,"sheet 3"]
[null,null,null,null,null,null,null,"sheet 3"]
[null,null,null,null,null,null,null,"sheet 3"]
[null,null,null,null,null,null,null,"sheet 3"]
[null,null,null,null,null,null,null,"sheet 3"]
[null,null,null,null,null,null,null,"sheet 3"]
[null,null,null,null,null,null,null,"sheet 3"]
[null,null,null,null,null,null,null,"sheet 3"]
[null,null,null,null,null,null,null,"sheet 3"]
[null,null,null,null,null,null,null,"sheet 3"]
[null,null,null,null,null,null,null,"sheet 3"]
[null,null,null,null,null,null,null,"sheet 3"]
[null,null,null,null,null,null,null,"sheet 3"]
[null,null,null,null,null,null,null,"sheet 3"]
[null,null,null,null,null,null,null,"sheet 3"]
[null,null,null,null,null,null,null,"sheet 3"]
[null,null,null,null,null,null,null,"sheet 3"]
[null,null,null,null,null,null,null,"sheet 3"]
[null,null,null,null,null,null,null,"sheet 3"]
[null,null,null,null,null,null,null,"sheet 3"]
[null,null,null,null,null,null,null,"sheet 3"]
[null,null,null,null,null,null,null,"sheet 3"]
[null,null,null,null,null,null,null,"sheet 3"]
[null,null,null,null,null,null,null,"sheet 3"]
[null,null,null,null,null,null,null,"sheet 3"]
[null,null,null,null,null,null,null,"sheet 3"]
[null,null,null,null,null,null,null,"sheet 3"]
[null,null,null,null,null,null,null,"sheet 3"]
[null,null,null,null,null,null,null,"sheet 3"]
[null,null,null,null,null,null,null,"sheet 3"]
[null,null,null,null,null,null,null,"sheet 3"]
[null,null,null,null,null,null,null,"sheet 3"]
[null,null,null,null,null,null,null,"sheet 3"]
[null,null,null,null,null,null,null,"sheet 3"]
[null,null,null,null,null,null,null,"sheet 3"]
[null,null,null,null,null,null,null,"sheet 3"]
[null,null,null,null,null,null,null,"sheet 3"]
[null,null,null,null,null,null,null,"sheet 3"]
[null,null,null,null,null,null,null,"sheet 3"]
[null,null,null,null,null,null,null,"sheet 3"]
[null,null,null,null,null,null,null,"sheet 3"]
[null,null,null,null,null,null,null,"sheet 3"]
[null,null,null,null,null,null,null,"sheet 3"]
[null,null,null,null,null,null,null,"sheet 3"]
[null,null,null,null,null,null,null,"sheet 3"]
[null,null,null,null,null,null,null,"sheet 3"]
[null,null,null,null,null,null,null,"sheet 3"]
[null,null,null,null,null,null,null,"sheet 3"]
[null,null,null,null,null,null,null,"sheet 3"]
[null,null,null,null,null,null,null,"sheet 3"]
[null,null,null,null,null,null,null,"sheet 3"]
[null,null,null,null,null,null,null,"sheet 3"]
[null,null,null,null,null,null,null,"sheet 3"]
[null,null,null,null,null,null,null,"sheet 3"]
[null,null,null,null,null,null,null,"sheet 3"]
[null,null,null,null,null,null,null,"sheet 3"]
[null,null,null,null,null,null,null,"sheet 3"]
[null,null,null,null,null,null,null,"sheet 3"]
[null,null,null,null,null,null,null,"sheet 3"]
[null,null,null,null,null,null,null,"sheet 3"]
[null,null,null,null,null,null,null,"sheet 3"]
[null,null,null,null,null,null,null,"sheet 3"]
[null,null,null,null,null,null,null,"sheet 3"]
[null,null,null,null,null,null,null,"sheet 3"]
[null,null,null,null,null,null,null,"sheet 3"]
[null,null,null,null,null,null,null,"sheet 3"]
[null,null,null,null,null,null,null,"sheet 3"]
[null,null,null,null,null,null,null,"sheet 3"]
[null,null,null,null,null,null,null,"sheet 3"]
[null,null,null,null,null,null,null,"sheet 3"]
[null,null,null,null,null,null,null,"sheet 3"]
[null,null,null,null,null,null,null,"sheet 3"]
[null,null,null,null,null,null,null,"sheet 3"]
[null,null,null,null,null,null,null,"sheet 3"]
[null,null,null,null,null,null,null,"sheet 3"]
[null,null,null,null,null,null,null,"sheet 3"]
[null,null,null,null,null,null,null,"sheet 3"]
[null,null,null,null,null,null,null,"sheet 3"]
[null,null,null,null,null,null,null,"sheet 3"]
[null,null,null,null,null,null,null,"sheet 3"]
[null,null,null,null,null,null,null,"sheet 3"]
[null,null,null,null,null,null,null,"sheet 3"]
[null,null,null,null,null,null,null,"sheet 3"]
[null,null,null,null,null,null,null,"sheet 3"]
[null,null,null,null,null,null,null,"sheet 3"]
[null,null,null,null,null,null,null,"sheet 3"]
[null,null,null,null,null,null,null,"sheet 3"]
[null,null,null,null,null,null,null,"sheet 3"]
[null,null,null,null,null,null,null,"sheet 3"]
[null,null,null,null,null,null,null,"sheet 3"]
[null,null,null,null,null,null,null,"sheet 3"]
[null,null,null,null,null,null,null,"sheet 3"]
[null,null,null,null,null,null,null,"sheet 3"]
[null,null,null,null,null,null,null,"sheet 3"]
[null,null,null,null,null,null,null,"sheet 3"]
[null,null,null,null,null,null,null,"sheet 3"]
[null,null,null,null,null,null,null,"sheet 3"]
[null,null,null,null,null,null,null,"sheet 3"]
[null,null,null,null,null,null,null,"sheet 3"]
[null,null,null,null,null,null,null,"sheet 3"]
[null,null,null,null,null,null,null,"sheet 3"]
[null,null,null,null,null,null,null,"sheet 3"]
[null,null,null,null,null,null,null,"sheet 3"]
[null,null,null,null,null,null,null,"sheet 3"]
[null,null,null,null,null,null,null,"sheet 3"]
[null,null,null,null,null,null,null,"sheet 3"]
[null,null,null,null,null,null,null,"sheet 3"]
[null,null,null,null,null,null,null,"sheet 3"]
[null,null,null,null,null,null,null,"sheet 3"]
[null,null,null,null,null,null,null,"sheet 3"]
[null,null,null,null,null,null,null,"sheet 3"]
[null,null,null,null,null,null,null,"sheet 3"]
[null,null,null,null,null,null,null,"sheet 3"]
[null,null,null,null,null,null,null,"sheet 3"]
[null,null,null,null,null,null,null,"sheet 3"]
[null,null,null,null,null,null,null,"sheet 3"]
[null,null,null,null,null,null,null,"sheet 3"]
[null,null,null,null,null,null,null,"sheet 3"]
[null,null,null,null,null,null,null,"sheet 3"]
[null,null,null,null,null,null,null,"sheet 3"]
[null,null,null,null,null,null,null,"sheet 3"]
[null,null,null,null,null,null,null,"sheet 3"]
[null,null,null,null,null,null,null,"sheet 3"]
[null,null,null,null,null,null,null,"sheet 3"]
[null,null,null,null,null,null,null,"sheet 3"]
[null,null,null,null,null,null,null,"sheet 3"]
[null,null,null,null,null,null,null,"sheet 3"]
[null,null,null,null,null,null,null,"sheet 3"]
[null,null,null,null,null,null,null,"sheet 3"]
[null,null,null,null,null,null,null,"sheet 3"]
[null,null,null,null,null,null,null,"sheet 3"]
[null,null,null,null,null,null,null,"sheet 3"]
[null,null,null,null,null,null,null,"sheet 3"]
[null,null,null,null,null,null,null,"sheet 3"]
[null,null,null,null,null,null,null,"sheet 3"]
[null,null,null,null,null,null,null,"sheet 3"]
[null,null,null,null,null,null,null,"sheet 3"]
[null,null,null,null,null,null,null,"sheet 3"]
[null,null,null,null,null,null,null,"sheet 3"]
[null,null,null,null,null,null,null,"sheet 3"]
[null,null,null,null,null,null,null,"sheet 3"]
[null,null,null,null,null,null,null,"sheet 3"]
[null,null,null,null,null,null,null,"sheet 3"]
[null,null,null,null,null,null,null,"sheet 3"]
[null,null,null,null,null,null,null,"sheet 3"]
[null,null,null,null,null,null,null,"sheet 3"]
[null,null,null,null,null,null,null,"sheet 3"]
[null,null,null,null,null,null,null,"sheet 3"]
[null,null,null,null,null,null,null,"sheet 3"]
[null,null,null,null,null,null,null,"sheet 3"]
[null,null,null,null,null,null,null,"sheet 3"]
[null,null,null,null,null,null,null,"sheet 3"]
[null,null,null,null,null,null,null,"sheet 3"]
[null,null,null,null,null,null,null,"sheet 3"]
[null,null,null,null,null,null,null,"sheet 3"]
[null,null,null,null,null,null,null,"sheet 3"]
[null,null,null,null,null,null,null,"sheet 3"]
[null,null,null,null,null,null,null,"sheet 3"]
[null,null,null,null,null,null,null,"sheet 3"]
[null,null,null,null,null,null,null,"sheet 3"]
[null,null,null,null,null,null,null,"sheet 3"]
[null,null,null,null,null,null,null,"sheet 3"]
[null,null,null,null,null,null,null,"sheet 3"]
[null,null,null,null,null,null,null,"sheet 3"]
[null,null,null,null,null,null,null,"sheet 3"]
[null,null,null,null,null,null,null,"sheet 3"]
[null,null,null,null,null,null,null,"sheet 3"]
[null,null,null,null,null,null,null,"sheet 3"]
[null,null,null,null,null,null,null,"sheet 3"]
[null,null,null,null,null,null,null,"sheet 3"]
[null,null,null,null,null,null,null,"sheet 3"]
[null,null,null,null,null,null,null,"sheet 3"]
[null,null,null,null,null,null,null,"sheet 3"]
[null,null,null,null,null,null,null,"sheet 3"]
[null,null,null,null,null,null,null,"sheet 3"]
[null,null,null,null,null,null,null,"sheet 3"]
[null,null,null,null,null,null,null,"sheet 3"]
[null,null,null,null,null,null,null,"sheet 3"]
[null,null,null,null,null,null,null,"sheet 3"]
[null,null,null,null,null,null,null,"sheet 3"]
[null,null,null,null,null,null,null,"sheet 3"]
[null,null,null,null,null,null,null,"sheet 3"]
[null,null,null,null,null,null,null,"sheet 3"]
[null,null,null,null,null,null,null,"sheet 3"]
[null,null,null,null,null,null,null,"sheet 3"]
[null,null,null,null,null,null,null,"sheet 3"]
[null,null,null,null,null,null,null,"sheet 3"]
[null,null,null,null,null,null,null,"sheet 3"]
[null,null,null,null,null,null,null,"sheet 3"]
[null,null,null,null,null,null,null,"sheet 3"]
[null,null,null,null,null,null,null,"sheet 3"]
[null,null,null,null,null,null,null,"sheet 3"]
[null,null,null,null,null,null,null,"sheet 3"]
[null,null,null,null,null,null,null,"sheet 3"]
[null,null,null,null,null,null,null,"sheet 3"]
[null,null,null,null,null,null,null,"sheet 3"]
[null,null,null,null,null,null,null,"sheet 3"]
[null,null,null,null,null,null,null,"sheet 3"]
[null,null,null,null,null,null,null,"sheet 3"]
[null,null,null,null,null,null,null,"sheet 3"]
[null,null,null,null,null,null,null,"sheet 3"]
[null,null,null,null,null,null,null,"sheet 3"]
[null,null,null,null,null,null,null,"sheet 3"]
[null,null,null,null,null,null,null,"sheet 3"]
[null,null,null,null,null,null,null,"sheet 3"]
[null,null,null,null,null,null,null,"sheet 3"]
[null,null,null,null,null,null,null,"sheet 3"]
[null,null,null,null,null,null,null,"sheet 3"]
[null,null,null,null,null,null,null,"sheet 3"]
[null,null,null,null,null,null,null,"sheet 3"]
[null,null,null,null,null,null,null,"sheet 3"]
[null,null,null,null,null,null,null,"sheet 3"]
[null,null,null,null,null,null,null,"sheet 3"]
[null,null,null,null,null,null,null,"sheet 3"]
[null,null,null,null,null,null,null,"sheet 3"]
[null,null,null,null,null,null,null,"sheet 3"]
[null,null,null,null,null,null,null,"sheet 3"]
[null,null,null,null,null,null,null,"sheet 3"]
[null,null,null,null,null,null,null,"sheet 3"]
[null,null,null,null,null,null,null,"sheet 3"]
[null,null,null,null,null,null,null,"sheet 3"]
[null,null,null,null,null,null,null,"sheet 3"]
[null,null,null,null,null,null,null,"sheet 3"]
[null,null,null,null,null,null,null,"sheet 3"]
[null,null,null,null,null,null,null,"sheet 3"]
[null,null,null,null,null,null,null,"sheet 3"]
[null,null,null,null,null,null,null,"sheet 3"]
[null,null,null,null,null,null,null,"sheet 3"]
[null,null,null,null,null,null,null,"sheet 3"]
[null,null,null,null,null,null,null,"sheet 3"]
[null,null,null,null,null,null,null,"sheet 3"]
[null,null,null,null,null,null,null,"sheet 3"]
[null,null,null,null,null,null,null,"sheet 3"]
[null,null,null,null,null,null,null,"sheet 3"]
[null,null,null,null,null,null,null,"sheet 3"]
[null,null,null,null,null,null,null,"sheet 3"]
[null,null,null,null,null,null,null,"sheet 3"]
[null,null,null,null,null,null,null,"sheet 3"]
[null,null,null,null,null,null,null,"sheet 3"]
[null,null,null,null,null,null,null,"sheet 3"]
[null,null,null,null,null,null,null,"sheet 3"]
[null,null,null,null,null,null,null,"sheet 3"]
[null,null,null,null,null,null,null,"sheet 3"]
[null,null,null,null,null,null,null,"sheet 3"]
[null,null,null,null,null,null,null,"sheet 3"]
[null,null,null,null,null,null,null,"sheet 3"]
[null,null,null,null,null,null,null,"sheet 3"]
[null,null,null,null,null,null,null,"sheet 3"]
[null,null,null,null,null,null,null,"sheet 3"]
[null,null,null,null,null,null,null,"sheet 3"]
[null,null,null,null,null,null,null,"sheet 3"]
[null,null,null,null,null,null,null,"sheet 3"]
[null,null,null,null,null,null,null,"sheet 3"]
[null,null,null,null,null,null,null,"sheet 3"]
[null,null,null,null,null,null,null,"sheet 3"]
[null,null,null,null,null,null,null,"sheet 3"]
[null,null,null,null,null,null,null,"sheet 3"]
[null,null,null,null,null,null,null,"sheet 3"]
[null,null,null,null,null,null,null,"sheet 3"]
[null,null,null,null,null,null,null,"sheet 3"]
[null,null,null,null,null,null,null,"sheet 3"]
[null,null,null,null,null,null,null,"sheet 3"]
[null,null,null,null,null,null,null,"sheet 3"]
[null,null,null,null,null,null,null,"sheet 3"]
[null,null,null,null,null,null,null,"sheet 3"]
[null,null,null,null,null,null,null,"sheet 3"]
[null,null,null,null,null,null,null,"sheet 3"]
[null,null,null,null,null,null,null,"sheet 3"]
[null,null,null,null,null,null,null,"sheet 3"]
[null,null,null,null,null,null,null,"sheet 3"]
[null,null,null,null,null,null,null,"sheet 3"]
[null,null,null,null,null,null,null,"sheet 3"]
[null,null,null,null,null,null,null,"sheet 3"]
[null,null,null,null,null,null,null,"sheet 3"]
[null,null,null,null,null,null,null,"sheet 3"]
[null,null,null,null,null,null,null,"sheet 3"]
[null,null,null,null,null,null,null,"sheet 3"]
[null,null,null,null,null,null,null,"sheet 3"]
[null,null,null,null,null,null,null,"sheet 3"]
[null,null,null,null,null,null,null,"sheet 3"]
[null,null,null,null,null,null,null,"sheet 3"]
[null,null,null,null,null,null,null,"sheet 3"]
[null,null,null,null,null,null,null,"sheet 3"]
[null,null,null,null,null,null,null,"sheet 3"]
[null,null,null,null,null,null,null,"sheet 3"]
[null,null,null,null,null,null,null,"sheet 3"]
[null,null,null,null,null,null,null,"sheet 3"]

{"sheet":"Sheet 4","index":7,"n_rows":102,"n_cols":11,"rows_kept":102,"cut":false,"hidden":false,"merged":[[2,0,2,2]]}
["4. Client Base (CSP Services)"]
[null,null,"Back to Contents"]
["General Guidance: UBO of multiple entities should be counted as one."]
[null,"Response","Comments"]
["a) Total number of currently serviced UBOs: ",null,null,{"$f":"IF(ISBLANK(B5),0,1)","v":0},"a"]
[]
["b) Total number of UBOs on boarded during the reporting period",null,null,{"$f":"IF(ISBLANK(B7),0,1)","v":0},"b"]
[]
["c) Total Number of currently serviced UBOs met face to face",null,null,{"$f":"IF(ISBLANK(B9),0,1)","v":0},"c"]
[]
["d) Total Number of currently serviced UBOs not met face to face ",null,null,{"$f":"IF(ISBLANK(B11),0,1)","v":0},"d"]
[]
["e)Total Number of currently serviced Maltese Resident UBOs ",null,null,{"$f":"IF(ISBLANK(B13),0,1)","v":0},"e"]
[]
["f) Total Number of currently serviced UBOs residing in other-EU jurisdictions",null,null,{"$f":"IF(ISBLANK(B15),0,1)","v":0},"f"]
[]
["g) Total Number of currently serviced UBOs residing in Non-EU jurisdictions ",null,null,{"$f":"IF(ISBLANK(B17),0,1)","v":0},"g"]
[]
["h)Total Number of currently serviced UBOs coming from high-risk jurisdictions (as classified by the CSP)",null,null,{"$f":"IF(ISBLANK(B19),0,1)","v":0},"h"]
[]
["i) Total number of currently serviced UBOs originating from and/or dealing with non-reputable jurisdictions \n[Guidance: as per FATF recommendations]",null,null,{"$f":"IF(ISBLANK(B21),0,1)","v":0},"i"]
[]
["j) In cases of UBOs indicated in question(h), specify such jurisdictions and the reason why they are classifed as high risk.",null,null,{"$f":"IF(AND($B$19<>\"\",$B$19=0),1,IF(ISBLANK(B23),0,1))","v":0},"j"]
[]
["k) Number of currently serviced UBOs classified as PEPs:\n[Guidance: please also provide details of the jurisdiction from which such PEPs emanate accordingly]",null,null,{"$f":"IF(ISBLANK(B25),0,1)","v":0},"k"]
[]
["l)Number of currently serviced non-resident UBOs emanating from jurisdictions that have a CPI lower than 50\n\n[Guidance: CSPs may wish to refer to the Transparency International Website as one of the possible sources of Corruption Percentage Index.]",null,null,{"$f":"IF(ISBLANK(B27),0,1)","v":0},"l"]
[]
["m) Number of currently serviced UBOs introduced by third parties",null,null,{"$f":"IF(ISBLANK(B29),0,1)","v":0},"m"]
[]
["n) In case of UBOs who were introduced by third parties, what due diligence has been undertaken on the Introducer?",null,null,{"$f":"IF(AND($B$29<>\"\",$B$29=0),1,IF(ISBLANK(B31),0,1))","v":0},"n"]
[]
["o) Are the introducers regulated by the MFSA or any other Authority?",null,null,{"$f":"IF(AND($B$29<>\"\",$B$29=0),1,IF(ISBLANK(B33),0,1))","v":0},"o"]
[]
["p) What measures are taken to mitigate risks emanating from clients from high risk jurisdictions and/or clients who are PEPs.\n\n[Guidance: if more than one applies, kindly tick the relevant ones and include others in the Comments section]",null,null,{"$f":"IF(ISBLANK(B35),0,1)","v":0},"p"]
[]
["q) How do you describe your approach to new business? ",null,null,{"$f":"IF(ISBLANK(B37),0,1)","v":0},"q"]
[]
["r) Is management focused on rapid growth/pursuing or protecting market share? ",null,null,{"$f":"IF(ISBLANK(B39),0,1)","v":0},"r"]
[]
["s) What is the CSP's Target Market?",null,null,{"$f":"IF(ISBLANK(B41),0,1)","v":0},"s"]
[]
[]
[]
[]
[]
[]
[]
[]
[]
[]
[]
[]
[]
[]
[]
[]
[]
[]
[]
[]
[]
[]
[]
[]
[]
[]
[]
[]
[]
[]
[]
[]
[]
[]
[]
[]
[]
[]
[]
[]
[]
[]
[]
[]
[]
[]
[]
[]
[]
[]
[]
[]
[]
[]
[]
[]
[]
[]
[]
[]
[null,null,null,null,null,null,null,null,null,null,{"$f":"SUM(D5:D41)","v":0}]

{"sheet":"Sheet 5","index":8,"n_rows":100,"n_cols":11,"rows_kept":100,"cut":false,"hidden":false,"merged":[]}
["5. Organisation "]
[null,null,"Back to Contents"]
[null,"Response","Comments"]
["a) Does the CSP form part of a group?",null,null,{"$f":"IF('Cover Sheet'!$E$28=Sheet1!$U$16,1,IF(ISBLANK(B4),0,1))","v":0},"a.1"]
["Provide details of the relationship that the CSP has with the other members of the group and if appropriate. \n[Guidance: in the comments section explain any centralised functions and the degree of control and influence exercised by the parent or other member of the group.]",null,null,{"$f":"IF(OR('Cover Sheet'!$E$28=Sheet1!$U$16,$B$4=Sheet1!$N$13,$B$4=\"Not applicable for individual CSPs\"),1,IF(ISBLANK(B5),0,1))","v":0},"a.2"]
[]
["A group organigram of the CSP showing the ownership structure and UBOs should be attached to this return.\n[Guidance: \n1: Indicate the percentage of shares held in the organigram\n2: Choose N/A only for individual CSPs]",null,null,{"$f":"IF($B$4=\"Not applicable for individual CSPs\",1,IF(ISBLANK(B7),0,1))","v":0},"a.3"]
[]
["b) Does the CSP share any resources with any entities within the group or with other external / related entities? \n\n[Guidance: All CSPs, whether individuals or body corporates, are to include information on resources which are shared with third parties, such as office space, IT services, staff and utilities etc]",null,null,{"$f":"IF(ISBLANK(B9),0,1)","v":0},"b.1"]
["Please identify resources and in the case where staff is being shared, please include details of the method of operations.",null,null,{"$f":"IF($B$9=Sheet1!$N$13,1,IF(ISBLANK(B10),0,1))","v":0},"b.2"]
[]
["c) Does the CSP have resource sharing agreements in place? ",null,null,{"$f":"IF($B$9=\"No\",1,IF(ISBLANK(B12),0,1))","v":0},"c.1"]
["ii) Do such agreements include a confidentiality clause?",null,null,{"$f":"IF(OR(B12= \"No\", B12=\"N/A\",$B$9=\"No\"),1,IF(ISBLANK(B13),0,1))","v":0},"c.2"]
[]
[]
[]
[]
[]
[]
[]
[]
[]
[]
[]
[]
[]
[]
[]
[]
[]
[]
[]
[]
[]
[]
[]
[]
[]
[]
[]
[]
[]
[]
[]
[]
[]
[]
[]
[]
[]
[]
[]
[]
[]
[]
[]
[]
[]
[]
[]
[]
[]
[]
[]
[]
[]
[]
[]
[]
[]
[]
[]
[]
[]
[]
[]
[]
[]
[]
[]
[]
[]
[]
[]
[]
[]
[]
[]
[]
[]
[]
[]
[]
[]
[]
[]
[]
[]
[]
[null,null,null,null,null,null,null,null,null,null,{"$f":"SUM(D4:D13)","v":0}]

{"sheet":"Sheet 6","index":9,"n_rows":100,"n_cols":11,"rows_kept":100,"cut":false,"hidden":false,"merged":[[0,0,0,1]]}
["6. Management "]
["General Guidance: kindly note that Questions (a) to (e) below do not apply to individual CSP's",null,"Back to Contents"]
[null,"Response","Comments"]
["a)1)Has the Board of Directors assigned some of its functions and duties to sub-committees?",null,null,{"$f":"IF('Cover Sheet'!$E$28=Sheet1!$U$16,1,IF(ISBLANK(B4),0,1))","v":0},"a.1"]
["2) Kindly provide details of the composition of these sub-committees and the responsibilities assigned to them.",null,null,{"$f":"IF(OR('Cover Sheet'!$E$28=Sheet1!$U$16,$B$4=Sheet1!$E$13,,$B$4=Sheet1!$E$14),1,IF(ISBLANK(B5),0,1))","v":0},"a.2"]
[]
["b) How often does the CSP`s Board of Directors meet?",null,null,{"$f":"IF('Cover Sheet'!$E$28=Sheet1!$U$16,1,IF(ISBLANK(B7),0,1))","v":0},"b"]
[]
["c) Are minutes of such meetings kept?",null,null,{"$f":"IF(OR('Cover Sheet'!$E$28=\"Class B under threshold\",$B$7=\"Not applicable for individual CSPs\"),1,IF(ISBLANK(B9),0,1))","v":0},"c"]
[]
["d) What measures does the CSP have in place to ensure that the 'four-eyes' principle is complied with? \n\n[Guidance: if more than one applies, kindly tick the relevant ones and include others in the comments section]",null,null,{"$f":"IF(OR('Cover Sheet'!$E$28=\"Class B under threshold\",$B$7=\"Not applicable for individual CSPs\"),1,IF(ISBLANK(B11),0,1))","v":0},"d"]
[]
["e)How is the rest of the Board kept abreast of all developments and/or decisions taken by the CSP? \n\n[Guidance: if more than one applies, kindly tick the relevant ones and include others in the Comments section]",null,null,{"$f":"IF(OR('Cover Sheet'!$E$28=\"Class B under threshold\",$B$7=\"Not applicable for individual CSPs\"),1,IF(ISBLANK(B13),0,1))","v":0},"e"]
[]
["f)1) Does the CSP have any Conflict of Interest (COI) rules/ policy in place?\n\n[Guidance: If you choose N/A, please indicate why in the Comments section]",null,null,{"$f":"IF(ISBLANK(B15),0,1)","v":0},"f.1"]
["2) Where the CSP has employees, have these rules been issued to employees?\n\n[Guidance: If you choose N/A, please indicate why in the Comments section]",null,null,{"$f":"IF(ISBLANK(B16),0,1)","v":0},"f.2"]
["3) Please indicate the frequency as to when the employees are reminded of the Conflicts of Interest rules.",null,null,{"$f":"IF(ISBLANK(B17),0,1)","v":0},"f.3"]
["4) Have there been instances where conflicts of interest have been declared?",null,null,{"$f":"IF(ISBLANK(B18),0,1)","v":0},"f.4"]
["5) How were these identified and addressed?",null,null,{"$f":"IF($B$18=Sheet1!$N$13,1,IF(ISBLANK(B19),0,1))","v":0},"f.5"]
["6) Provide details of the manner in which these were addressed.",null,null,{"$f":"IF($B$18=Sheet1!$N$13,1,IF(ISBLANK(B20),0,1))","v":0},"f.6"]
[]
["g)1) Does the CSP have a personal transaction policy in place in terms of the CSP Rulebook?",null,null,{"$f":"IF(ISBLANK(B22),0,1)","v":0},"g.1"]
["2) If there is a personal transaction policy in place, is this signed by employees? \n\n [Guidance: If the No or N/A is selected, indicate why in the Comments section]",null,null,{"$f":"IF($B$22=Sheet1!$N$13,1,IF(ISBLANK(B23),0,1))","v":0},"g.2"]
[]
["h)1) Have any written confidentiality rules been issued to employees?",null,null,{"$f":"IF(ISBLANK(B25),0,1)","v":0},"h.1"]
["2) Do these have to be signed by employees? \n\n [Guidance: If the No or N/A is selected, indicate why in the Comments section]",null,null,{"$f":"IF($B$25=Sheet1!$N$13,1,IF(ISBLANK(B26),0,1))","v":0},"h.2"]
["3)Please indicate the frequency as to when the employees are reminded of the confidentiality rules.\n\n [Guidance: If \"Other\" or \"N/A\" is selected, indicate why in the Comments section]",null,null,{"$f":"IF($B$25=Sheet1!$N$13,1,IF(ISBLANK(B27),0,1))","v":0},"h.3"]
[]
[]
[]
[]
[]
[]
[]
[]
[]
[]
[]
[]
[]
[]
[]
[]
[]
[]
[]
[]
[]
[]
[]
[]
[]
[]
[]
[]
[]
[]
[]
[]
[]
[]
[]
[]
[]
[]
[]
[]
[]
[]
[]
[]
[]
[]
[]
[]
[]
[]
[]
[]
[]
[]
[]
[]
[]
[]
[]
[]
[]
[]
[]
[]
[]
[]
[]
[]
[]
[]
[]
[]
[null,null,null,null,null,null,null,null,null,null,{"$f":"SUM(D4:D27)","v":0}]

{"sheet":"Sheet 7","index":10,"n_rows":100,"n_cols":11,"rows_kept":100,"cut":false,"hidden":false,"merged":[[0,0,1,1],[0,3,1,3]]}
["7. Risk Management "]
[null,null,"Back to Contents"]
[null,"Response","Comments"]
["a) How is the risk of the CSP being assessed?",null,null,{"$f":"IF(ISBLANK(B4),0,1)","v":0},"a"]
[]
["b) What risks have been identified by the CSP with respect to its activities, processes and systems?\n\n[Guidance: The CSP should identify all risks associated with its business model and target market including but not limited to those related to customer risk, product/service risk, interface risk, geographical risk, reputational risk, cyber security risk, operational risk etc. CSPs should take into account the different types of services they offer and the jurisdiction of the client.]",null,null,{"$f":"IF(ISBLANK(B6),0,1)","v":0},"b"]
[]
["c) Has this risk assessment been documented? (Yes/No)",null,null,{"$f":"IF(ISBLANK(B8),0,1)","v":0},"c"]
[]
["d) Please provide details of the management policies and procedures adopted by the CSP to mitigate the risks identified.",null,null,{"$f":"IF(ISBLANK(B10),0,1)","v":0},"d"]
[]
["e)1) Is a risk profile rating of all clients undertaken?",null,null,{"$f":"IF(ISBLANK(B12),0,1)","v":0},"e.1"]
["2) Please indicate the frequency of the risk profile update.",null,null,{"$f":"IF($B$12=Sheet1!$N$13,1,IF(ISBLANK(B13),0,1))","v":0},"e.2"]
[]
["f) Who is involved in client onboarding and deciding whether to accept business?\n [Guidance: meeting prospective clients, carrying out the due diligence, assessing risk at the induction stage]",null,null,{"$f":"IF('Cover Sheet'!$E$28=Sheet1!$U$16,1,IF(ISBLANK(B15),0,1))","v":0},"f"]
[]
["g) Who are the persons responsible for assessing risk on an on-going basis?",null,null,{"$f":"IF('Cover Sheet'!$E$28=Sheet1!$U$16,1,IF(ISBLANK(B17),0,1))","v":0},"g"]
[]
["h) What measures are in place with respect to the on-going monitoring of clients that have a high risk profile rating?",null,null,{"$f":"IF(ISBLANK(B19),0,1)","v":0},"h"]
[]
["i) Has the CSP established a Risk Register in terms of R.3-7.1 (vi) and R.3-7.6?",null,null,{"$f":"IF(ISBLANK(B21),0,1)","v":0},"i"]
[]
["j) Has the CSP established an independent risk management function in terms of the CSP Rulebook?",null,null,{"$f":"IF(OR('Cover Sheet'!$E$28=Sheet1!$U$12,'Cover Sheet'!$E$28=Sheet1!$U$13,'Cover Sheet'!$E$28=Sheet1!$U$15,'Cover Sheet'!$E$28=Sheet1!$U$16),1,IF(ISBLANK(B23),0,1))","v":0},"j"]
[]
["k)If the CSP has not established an independent risk management function, has the CSP submitted a request for a derogation?",null,null,{"$f":"IF(OR('Cover Sheet'!$E$28=Sheet1!$U$12,'Cover Sheet'!$E$28=Sheet1!$U$13,'Cover Sheet'!$E$28=Sheet1!$U$15,'Cover Sheet'!$E$28=Sheet1!$U$16),1,IF(ISBLANK(B25),0,1))","v":0},"k"]
[]
["l)Has the CSP carried out a re-assessment exercise to confirm if the conditions for the derogation still subsist? \n\n[Guidance: Kindly indicate the outcome of this assessment in the comments]",null,null,{"$f":"IF(OR('Cover Sheet'!$E$28=Sheet1!$U$12,'Cover Sheet'!$E$28=Sheet1!$U$13,'Cover Sheet'!$E$28=Sheet1!$U$15,'Cover Sheet'!$E$28=Sheet1!$U$16),1,IF(ISBLANK(B27),0,1))","v":0},"l"]
[]
["m) How many risk management reports were passed on to the Board of Directors and/or senior management?\n \n[Guidance: Please provide copies of such reports prepared during the reporting year.]",null,null,{"$f":"IF(OR('Cover Sheet'!$E$28=Sheet1!$U$12,'Cover Sheet'!$E$28=Sheet1!$U$13,'Cover Sheet'!$E$28=Sheet1!$U$15,'Cover Sheet'!$E$28=Sheet1!$U$16),1,IF(ISBLANK(B29),0,1))","v":0},"m"]
[]
[]
[]
[]
[]
[]
[]
[]
[]
[]
[]
[]
[]
[]
[]
[]
[]
[]
[]
[]
[]
[]
[]
[]
[]
[]
[]
[]
[]
[]
[]
[]
[]
[]
[]
[]
[]
[]
[]
[]
[]
[]
[]
[]
[]
[]
[]
[]
[]
[]
[]
[]
[]
[]
[]
[]
[]
[]
[]
[]
[]
[]
[]
[]
[]
[]
[]
[]
[]
[]
[null,null,null,null,null,null,null,null,null,null,{"$f":"SUM(D3:D29)","v":0}]

{"sheet":"Sheet 8","index":11,"n_rows":102,"n_cols":11,"rows_kept":102,"cut":false,"hidden":false,"merged":[]}
["8. Compliance "]
[null,null,"Back to Contents"]
[null,"Response","Comments"]
["a) Is the compliance function internal or is it outsourced? ",null,null,{"$f":"IF(ISBLANK(B4),0,1)","v":0},"a"]
[]
["b)1) Does the Compliance Officer prepare a compliance monitoring programme? ",null,null,{"$f":"IF(ISBLANK(B6),0,1)","v":0},"b.1"]
["2) How frequently is this prepared? ",null,null,{"$f":"IF($B$6=Sheet1!$N$13,1,IF(ISBLANK(B7),0,1))","v":0},"b.2"]
["3) Is testing carried out and recommendations put forward in terms of the compliance monitoring programme documented?",null,null,{"$f":"IF($B$6=Sheet1!$N$13,1,IF(ISBLANK(B8),0,1))","v":0},"b.3"]
[]
["c)1)Has regular monitoring been carried out to ensure compliance with all applicable legislative and regulatory requirements?",null,null,{"$f":"IF(ISBLANK(B10),0,1)","v":0},"c.1"]
["2) Did the CSP identify any deficiencies in the systems in place? ",null,null,{"$f":"IF(ISBLANK(B11),0,1)","v":0},"c.2"]
["3) Has action been taken by the CSP to address any such deficiencies? ",null,null,{"$f":"IF(OR($B$11=Sheet1!$N$13,$B$11=Sheet1!$N$14),1,IF(ISBLANK(B12),0,1))","v":0},"c.3"]
["4) Please provide details:",null,null,{"$f":"IF(OR($B$11=Sheet1!$N$13,$B$11=Sheet1!$N$13,$B$11=Sheet1!$N$14,$B$12=\"No\"),1,IF(ISBLANK(B13),0,1))","v":0},"c.4"]
[]
["d) Who has been responsible for the conducting of regular monitoring/compliance risk assessments?",null,null,{"$f":"IF('Cover Sheet'!$E$28=Sheet1!$U$16,1,IF(ISBLANK(B15),0,1))","v":0},"d"]
[]
["e) Does the Compliance Officer report directly to the Board of Directors? If No, please clarify in comments section. \n\n[Guidance: Not applicable to individual CSPs]",null,null,{"$f":"IF('Cover Sheet'!$E$28=Sheet1!$U$16,1,IF(ISBLANK(B17),0,1))","v":0},"e"]
[]
["f) During the reporting period, how many compliance reports were prepared?\n[Guidance: Indicate the number of reports prepared by the individual CSP or presented to the Board of Directors or senior management, in the case of body corporate CSPs. Please provide copies of such reports]",null,null,{"$f":"IF(ISBLANK(B19),0,1)","v":0},"f"]
[]
["g) Who has been responsible for the compilation of the compliance report/s?",null,null,{"$f":"IF(ISBLANK(B21),0,1)","v":0},"g"]
[]
["h) Kindly provide details of the actions taken following any recommendation made in the compliance report/s.",null,null,{"$f":"IF(ISBLANK(B23),0,1)","v":0},"h"]
[]
["i)1) Does the CSP keep a record of occurrences which have, or may have, involved a breach of regulatory requirements? ",null,null,{"$f":"IF(ISBLANK(B25),0,1)","v":0},"i.1"]
["2) Was the Authority informed of such breaches? If no, please provide details in the Comments section.",null,null,{"$f":"IF($B$25=Sheet1!$N$13,1,IF(ISBLANK(B26),0,1))","v":0},"i.2"]
["3) How were such breaches rectified?",null,null,{"$f":"IF($B$25=Sheet1!$N$13,1,IF(ISBLANK(B27),0,1))","v":0},"i.3"]
[]
["j)Confirm whether CO is not involved in (a) any activities which s/he is required to monitor; & (b)client onboarding process [unless to provide guidance with respect to compliance issues]",null,null,{"$f":"IF('Cover Sheet'!$E$28=Sheet1!$U$16,1,IF(ISBLANK(B29),0,1))","v":0},"j"]
[]
["k) How many staff (other than the compliance officer), if any, are involved in the compliance function?",null,null,{"$f":"IF(ISBLANK(B31),0,1)","v":0},"k"]
[]
[]
[]
[]
[]
[]
[]
[]
[]
[]
[]
[]
[]
[]
[]
[]
[]
[]
[]
[]
[]
[]
[]
[]
[]
[]
[]
[]
[]
[]
[]
[]
[]
[]
[]
[]
[]
[]
[]
[]
[]
[]
[]
[]
[]
[]
[]
[]
[]
[]
[]
[]
[]
[]
[]
[]
[]
[]
[]
[]
[]
[]
[]
[]
[]
[]
[]
[]
[]
[]
[null,null,null,null,null,null,null,null,null,null,{"$f":"SUM(D4:D31)","v":0}]

{"sheet":"Sheet 9","index":12,"n_rows":101,"n_cols":11,"rows_kept":101,"cut":false,"hidden":false,"merged":[[0,0,0,1]]}
["9. Internal Complaints Procedure"]
[null,null,"Back to Contents"]
[null,"Response","Comments"]
["a) Does the CSP keep a record of complaints that it received, the action taken to address these complaints and the person responsible to deal with the respective complaint [in the form of a Complaints Register]?",null,null,{"$f":"IF(ISBLANK(B4),0,1)","v":0},"a"]
[]
["b) How many complaints has the CSP received during the current reporting period?",null,null,{"$f":"IF(ISBLANK(B6),0,1)","v":0},"b"]
[" "]
["c) From the total number of complaints how many of them are related to:"]
["i) Service Fees",null,null,{"$f":"IF(AND($B$6=0,NOT(ISBLANK($B$6))),1,IF(ISBLANK(B9),0,1))","v":0},"c1"]
["ii) Delay in Execution of Instruction",null,null,0,"c2"]
["iii) Disagreement in the choice of third parties",null,null,0,"c3"]
["iv) Disagreement in the decision taken by third parties involved in the client structure",null,null,0,"c4"]
["v) Complaints in relation to clients not being provided regulated services",null,null,0,"c5"]
["vi) Other type of complaints (please provide details in the Comments section)",null,null,0,"c6"]
[]
["d) Kindly indicate how these are typically resolved, including details as to the time taken to resolve complaints. ",null,null,{"$f":"IF(ISBLANK(B16),0,1)","v":0},"d"]
[]
["e) Please provide details of the time taken, in terms of the internal procedure, to communicate to the complainant.",null,null,{"$f":"IF(ISBLANK(B18),0,1)","v":0},"e"]
[]
["f) How many complaints has the CSP received in the previous reporting period?",null,null,{"$f":"IF(ISBLANK(B20),0,1)","v":0},"f"]
[]
["g) From the total number of unresolved complaints for the current reporting period, how many of them are related to:"]
["i) Service Fees",null,null,{"$f":"IF(AND($B$6=0,NOT(ISBLANK($B$6))),1,IF(ISBLANK(B23),0,1))","v":0},"g.1"]
["ii) Delay in Execution of Instruction",null,null,0,"g.2"]
["iii) Disagreement in the choice of third parties",null,null,0,"g.3"]
["iv) Disagreement in the decision taken by third parties involved in the client structure",null,null,0,"g.4"]
["v) Complaints in relation to clients not being provided regulated services",null,null,0,"g.5"]
["vi) Other type of complaints (please provide details in the Comments section)",null,null,0,"g.6"]
[]
["h)Does the LH have written procedures for prompt handling of complaints & measures undertaken to resolve complaints received? [please provide details in the Comments section]",null,null,{"$f":"IF(ISBLANK(B30),0,1)","v":0},"h"]
[]
[]
[]
[]
[]
[]
[]
[]
[]
[]
[]
[]
[]
[]
[]
[]
[]
[]
[]
[]
[]
[]
[]
[]
[]
[]
[]
[]
[]
[]
[]
[]
[]
[]
[]
[]
[]
[]
[]
[]
[]
[]
[]
[]
[]
[]
[]
[]
[]
[]
[]
[]
[]
[]
[]
[]
[]
[]
[]
[]
[]
[]
[]
[]
[]
[]
[]
[]
[]
[]
[null,null,null,null,null,null,null,null,null,null,{"$f":"SUM(D4:D30)","v":0}]

{"sheet":"Sheet 10","index":13,"n_rows":102,"n_cols":11,"rows_kept":102,"cut":false,"hidden":false,"merged":[]}
["10. Litigation/ Legal Proceedings"]
[null,null,"Back to Contents"]
[null,"Response","Comments"]
["a) Has the CSP, during the reporting period, been involved in any governmental, legal or arbitration proceedings? \n[Guidance: Including any such proceedings which are pending or threatened, of which the CSP is aware]",null,null,{"$f":"IF(ISBLANK(B4),0,1)","v":0},"a"]
[]
["b)1) Was the MFSA duly notified of these proceedings/litigation?",null,null,{"$f":"IF($B$4=Sheet1!$N$13,1,IF(ISBLANK(B6),0,1))","v":0},"b.1"]
["2) If no, please provide details of such legal proceedings/ litigation. \n\n[Guidance: If possible, include the potential liability of the authorised person and the reason why the MFSA was not notified.]",null,null,{"$f":"IF(OR($B$4=Sheet1!$N$13, $B$6=Sheet1!$N$12, $B$6=Sheet1!$N$14),1,IF(ISBLANK(B7),0,1))","v":0},"b.2"]
[]
["c)1) Is the CSP aware of any dispute/complaint that might result in litigation/legal proceedings in the next twelve months?",null,null,{"$f":"IF(ISBLANK(B9),0,1)","v":0},"c.1"]
["2) Please provide details of such dispute/complaint.",null,null,{"$f":"IF($B$9=Sheet1!$N$13,1,IF(ISBLANK(B10),0,1))","v":0},"c.2"]
[]
["d)1)Are any of the CSP officials involved in civil/criminal legal proceedings or aware that they are being investigated?\n\n[Guidance: Directors or senior management. In the case of individual CSPs, please select N/A from the drop down list]",null,null,{"$f":"IF('Cover Sheet'!$E$28=Sheet1!$U$16,1,IF(ISBLANK(B12),0,1))","v":0},"d.1"]
["2) Please provide details of such legal proceedings and/or investigations.",null,null,{"$f":"IF(OR('Cover Sheet'!$E$28=Sheet1!$U$16,$B$12=Sheet1!$N$13,$B$12=Sheet1!$N$14),1,IF(ISBLANK(B13),0,1))","v":0},"d.2"]
[]
[]
[]
[]
[]
[]
[]
[]
[]
[]
[]
[]
[]
[]
[]
[]
[]
[]
[]
[]
[]
[]
[]
[]
[]
[]
[]
[]
[]
[]
[]
[]
[]
[]
[]
[]
[]
[]
[]
[]
[]
[]
[]
[]
[]
[]
[]
[]
[]
[]
[]
[]
[]
[]
[]
[]
[]
[]
[]
[]
[]
[]
[]
[]
[]
[]
[]
[]
[]
[]
[]
[]
[]
[]
[]
[]
[]
[]
[]
[]
[]
[]
[]
[]
[]
[]
[]
[]
[null,null,null,null,null,null,null,null,null,null,{"$f":"SUM(D4:D13)","v":0}]

{"sheet":"Sheet 11","index":14,"n_rows":101,"n_cols":11,"rows_kept":101,"cut":false,"hidden":false,"merged":[[3,5,9,5],[0,0,0,1]]}
["11. Breaches "]
[null,null,"Back to Contents"]
[null,"Response","Comments"]
["a)1) Are you aware of situations wherein the CSP was/still is in breach of the CSP Act, rules or regulations issued?",null,null,{"$f":"IF(ISBLANK(B4),0,1)","v":0},"a.1"]
["2) Was this breach disclosed to the MFSA? \n[Guidance: Provide details in the Comments section regarding the nature of the breach, the date when the breach took place and the date of disclosure of said breach to the MFSA]",null,null,{"$f":"IF($B$4=Sheet1!$N$13,1,IF(ISBLANK(B5),0,1))","v":0},"a.2"]
["3) If not disclosed to the MFSA please provide details of such breach and the reason why such breach was not disclosed. ",null,null,{"$f":"IF($B$4=Sheet1!$N$13,1,IF($B$5=Sheet1!$N$12,1,IF(ISBLANK(B6),0,1)))","v":0},"a.3"]
["b) Does the CSP have a Breaches Log in place?",null,null,{"$f":"IF(ISBLANK(B7),0,1)","v":0},"b"]
[]
[]
[]
[]
[]
[]
[]
[]
[]
[]
[]
[]
[]
[]
[]
[]
[]
[]
[]
[]
[]
[]
[]
[]
[]
[]
[]
[]
[]
[]
[]
[]
[]
[]
[]
[]
[]
[]
[]
[]
[]
[]
[]
[]
[]
[]
[]
[]
[]
[]
[]
[]
[]
[]
[]
[]
[]
[]
[]
[]
[]
[]
[]
[]
[]
[]
[]
[]
[]
[]
[]
[]
[]
[]
[]
[]
[]
[]
[]
[]
[]
[]
[]
[]
[]
[]
[]
[]
[]
[]
[]
[]
[]
[null,null,null,null,null,null,null,null,null,null,{"$f":"SUM(D4:D8)","v":0}]

{"sheet":"Sheet 12","index":15,"n_rows":101,"n_cols":11,"rows_kept":101,"cut":false,"hidden":false,"merged":[[0,0,0,1]]}
["12. Internal Controls"]
[null,null,"Back to Contents"]
[null,"Response","Comments"]
["a) Does the CSP have written procedures on decision-making and organisational procedures ?",null,null,{"$f":"IF(ISBLANK(B4),0,1)","v":0},"a"]
[]
["b)Has the CSP established procedures designed to ensure that staff comply with decisions & procedures of the management/CSP?\n\n[Guidance: -  Applicable only where the CSP has staff in employment and if 'No' is selected please explain why in the Comments section]",null,null,{"$f":"IF(ISBLANK(B6),0,1)","v":0},"b"]
[]
["c) Does the CSP make its documented internal procedures manual available to all its officers and employees?\n\n[Guidance: Choose N/A only if there are no officers and/or employees]",null,null,{"$f":"IF($B$6=Sheet1!$N$14,1,IF(ISBLANK(B8),0,1))","v":0},"c"]
[]
["d) How does the CSP monitor the adequacy and effectiveness of its systems, internal controls and arrangements? \n\n[Guidance: if more than one applies, kindly select the relevant ones and include others in the comments section]",null,null,{"$f":"IF(ISBLANK(B10),0,1)","v":0},"d"]
[]
["e)1) Has the CSP reviewed the internal procedures manual during the reporting period?\n\n[Guidance: If you choose N/A or No, please explain why in the Comments section]",null,null,{"$f":"IF(ISBLANK(B12),0,1)","v":0},"e.1"]
["2) Please indicate the areas that have been reviewed and the reason why the CSP reviewed these procedures.",null,null,{"$f":"IF(OR($B$12=Sheet1!$N$13, $B$12=Sheet1!$N$14),1,IF(ISBLANK(B13),0,1))","v":0},"e.2"]
[]
["f)1) Does the CSP have a business continuity and/or disaster recovery plan in place?\n[Guidance: If you choose 'No', please explain why in the Comments section]",null,null,{"$f":"IF(ISBLANK(B15),0,1)","v":0},"f.1"]
["2) Is it aimed at ensuring continuity in the case of an interruption to its systems and procedures? \n[Guidance: eg. the CSP and/or its staff can work remotely]",null,null,{"$f":"IF($B$15=Sheet1!$N$13,1,IF(ISBLANK(B16),0,1))","v":0},"f.2"]
["3) Is it aimed at ensuring the preservation of essential data (such as back-up on external hard drives)?",null,null,{"$f":"IF($B$15=Sheet1!$N$13,1,IF(ISBLANK(B17),0,1))","v":0},"f.3"]
["4) Does it include an alternative location to work from?",null,null,{"$f":"IF($B$15=Sheet1!$N$13,1,IF(ISBLANK(B18),0,1))","v":0},"f.4"]
["5) Does it include reporting lines in case of emergency?",null,null,{"$f":"IF($B$15=Sheet1!$N$13,1,IF(ISBLANK(B19),0,1))","v":0},"f.5"]
["6) Please provide details of who is responsible for the business disaster recovery or continuity plan. \n[Guidance: Including developing, amending, updating and testing of the business disaster recovery or continuity plan and who is accountable for the said plan.]",null,null,{"$f":"IF($B$15=Sheet1!$N$13,1,IF(ISBLANK(B20),0,1))","v":0},"f.6"]
["7) Kindly indicate the frequency of the testing related to the business continuity plan which is currently being undertaken.",null,null,{"$f":"IF($B$15=Sheet1!$N$13,1,IF(ISBLANK(B21),0,1))","v":0},"f.7"]
["8) Please indicate any other aspects which have been covered by the business disaster recovery plan.",null,null,{"$f":"IF($B$15=Sheet1!$N$13,1,IF(ISBLANK(B22),0,1))","v":0},"f.8"]
[]
[]
[]
[]
[]
[]
[]
[]
[]
[]
[]
[]
[]
[]
[]
[]
[]
[]
[]
[]
[]
[]
[]
[]
[]
[]
[]
[]
[]
[]
[]
[]
[]
[]
[]
[]
[]
[]
[]
[]
[]
[]
[]
[]
[]
[]
[]
[]
[]
[]
[]
[]
[]
[]
[]
[]
[]
[]
[]
[]
[]
[]
[]
[]
[]
[]
[]
[]
[]
[]
[]
[]
[]
[]
[]
[]
[]
[]
[null,null,null,null,null,null,null,null,null,null,{"$f":"SUM(D4:D22)","v":0}]

{"sheet":"Sheet 13","index":16,"n_rows":102,"n_cols":11,"rows_kept":102,"cut":false,"hidden":false,"merged":[]}
["13. Outsourcing/Resource Sharing/Power of Attorney"]
[null,null,"Back to Contents"]
[null,"Response","Comments"]
["a)1) Does the CSP outsource any regulated functions and/or duties to third parties? ",null,null,{"$f":"IF(ISBLANK(B4),0,1)","v":0},"a.1"]
["2) Kindly indicate which regulated functions and/or duties are being outsourced.",null,null,{"$f":"IF($B$4=Sheet1!$N$13,1,IF(ISBLANK(B5),0,1))","v":0},"a.2"]
["3)Has the CSP entered into written outsourcing agreements detailing any outsourced functions & confidentiality issues?",null,null,{"$f":"IF($B$4=Sheet1!$N$13,1,IF(ISBLANK(B6),0,1))","v":0},"a.3"]
["4) What controls are in place to ensure that these functions, services or activities (duties) are properly performed?",null,null,{"$f":"IF($B$4=Sheet1!$N$13,1,IF(ISBLANK(B7),0,1))","v":0},"a.4"]
[]
["b)1) Does the CSP outsource any unregulated material or non-material functions, services or activities?",null,null,{"$f":"IF(ISBLANK(B9),0,1)","v":0},"b.1"]
["2) Are outsourcing/resource sharing/ secondment (service) agreements in place? \n[Guidance: If you choose 'N/A' please explain why in the Comments section]",null,null,{"$f":"IF($B$9=Sheet1!$N$13,1,IF(ISBLANK(B10),0,1))","v":0},"b.2"]
["3) If no agreements are in place, please provide details as to why.",null,null,{"$f":"IF($B$9=Sheet1!$N$13,1,IF(ISBLANK(B11),0,1))","v":0},"b.3"]
[]
["c)1) Does the CSP have service agreements with third parties who provide support services? [Guidance: Eg: IT services or Accountancy]",null,null,{"$f":"IF(ISBLANK(B13),0,1)","v":0},"c.1"]
["2) What support services are being provided by third parties?",null,null,{"$f":"IF(ISBLANK(B14),0,1)","v":0},"c.2"]
["3) Does the service agreement include confidentiality clauses?",null,null,{"$f":"IF($B$13=Sheet1!$N$13,1,IF(ISBLANK(B15),0,1))","v":0},"c.3"]
[]
["d)How does the CSP assess third parties to whom adminstrative functions relating to CSP activities have been delegated. ",null,null,{"$f":"IF(ISBLANK(B17),0,1)","v":0},"d"]
[]
["e)1) Does the CSP grant any Power of Attorney to third parties? ",null,null,{"$f":"IF(ISBLANK(B19),0,1)","v":0},"e.1"]
["2) Is this a general or special Power of Attorney (POA)?",null,null,{"$f":"IF($B$19=Sheet1!$N$13,1,IF(ISBLANK(B20),0,1))","v":0},"e.2"]
["3)In case of Special Power of Attorney, kindly provide details of what the attorney is authorised to do in terms of the POA.",null,null,{"$f":"IF($B$19=Sheet1!$N$13,1,IF(ISBLANK(B21),0,1))","v":0},"e.3"]
["4) What measures are undertaken by the CSP to monitor the activities of the parties that hold a Power of Attorney? ",null,null,{"$f":"IF($B$19=Sheet1!$N$13,1,IF(ISBLANK(B22),0,1))","v":0},"e.4"]
["5) In case where the CSP is reviewing the documentation, is this being done after each transaction or periodically?",null,null,{"$f":"IF($B$19=Sheet1!$N$13,1,IF(ISBLANK(B23),0,1))","v":0},"e.5"]
["6) In the case where the review is done periodically, how often is this being done?",null,null,{"$f":"IF(OR($B$19=Sheet1!N$13,B$23=Sheet1!I$45),1,IF(ISBLANK(B24),0,1))","v":0},"e.6"]
[]
[]
[]
[]
[]
[]
[]
[]
[]
[]
[]
[]
[]
[]
[]
[]
[]
[]
[]
[]
[]
[]
[]
[]
[]
[]
[]
[]
[]
[]
[]
[]
[]
[]
[]
[]
[]
[]
[]
[]
[]
[]
[]
[]
[]
[]
[]
[]
[]
[]
[]
[]
[]
[]
[]
[]
[]
[]
[]
[]
[]
[]
[]
[]
[]
[]
[]
[]
[]
[]
[]
[]
[]
[]
[]
[]
[]
[null,null,null,null,null,null,null,null,null,null,{"$f":"SUM(D4:D24)","v":0}]

{"sheet":"Sheet 14","index":17,"n_rows":100,"n_cols":11,"rows_kept":100,"cut":false,"hidden":false,"merged":[[0,0,0,1],[1,3,2,3]]}
["14. Establishment of Business Relationship"]
[null,null,"Back to Contents"]
[null,"Response","Comments"]
["a) Company Formation : "]
["1) Does the CSP carry out the necessary due diligence checks before accepting business?",null,null,{"$f":"IF(ISBLANK(B5),0,1)","v":0},"a.1"]
["2)What measures are taken prior to onboarding to determine whether the arrangement is being established for a lawful purpose?",null,null,{"$f":"IF(ISBLANK(B6),0,1)","v":0},"a.2"]
["3) Does the CSP have procedures in place as required by Rule R4-2.2? ",null,null,{"$f":"IF(OR('Cover Sheet'!$E$28=Sheet1!$U$13,'Cover Sheet'!$E$28=Sheet1!$U$16),1,IF(ISBLANK(B7),0,1))","v":0},"a.3"]
["4) Does the CSP assess the level of risk which the formation of company would present to the reputation of Malta? \n[Guidance: You may wish to refer to Rule R4-2.2 (c) for practical examples which may present a reputational risk]",null,null,{"$f":"IF(OR('Cover Sheet'!$E$28=Sheet1!$U$13,'Cover Sheet'!$E$28=Sheet1!$U$16),1,IF(ISBLANK(B8),0,1))","v":0},"a.4"]
[]
["b) Directorships/ Company Secretary Positions :"]
["1) Has the CSP resigned or had its engagement terminated or been hindered in performing its duties?",null,null,{"$f":"IF(OR('Cover Sheet'!$E$28=Sheet1!$U$12,'Cover Sheet'!$E$28=Sheet1!$U$15),1,IF(ISBLANK(B11),0,1))","v":0},"b.1"]
["2) If in the affirmative kindly provide relevant information.",null,null,{"$f":"IF(OR('Cover Sheet'!$E$28=Sheet1!$U$12,'Cover Sheet'!$E$28=Sheet1!$U$15,$B$11=Sheet1!$N$13),1,IF(ISBLANK(B12),0,1))","v":0},"b.2"]
["3) Has the CSP notified the Authority of any terminations? \n[Guidance: Terminations may relate to the possibility that the client company is/was being used for illegal purposes, trading wrongfully or breaking the law in other ways, subject to any legal restrictions as set out in Rule R4-3.1]",null,null,{"$f":"IF(OR('Cover Sheet'!$E$28=Sheet1!$U$12,'Cover Sheet'!$E$28=Sheet1!$U$15),1,IF(ISBLANK(B13),0,1))","v":0},"b.3"]
["4) If no, please explain and provide relevant details.",null,null,{"$f":"IF(OR($B$13=\"Yes\",$B$13=\"N/A\",'Cover Sheet'!$E$28=Sheet1!$U$12,'Cover Sheet'!$E$28=Sheet1!$U$15),1,IF(ISBLANK(B14),0,1))","v":0},"b.4"]
[]
["c) Registered Office :"]
["1)What mechanisms are in place to control the activities of the client in order to minimise the risk?",null,null,{"$f":"IF(OR('Cover Sheet'!$E$28=Sheet1!$U$13,'Cover Sheet'!$E$28=Sheet1!$U$16,'Cover Sheet'!$E$28=Sheet1!$U$15),1,IF(ISBLANK(B17),0,1))","v":0},"e.1"]
["2) What mechanisms are in place to deal with issues of 'lost contact' clients in order to change the registered address?",null,null,{"$f":"IF(OR('Cover Sheet'!$E$28=Sheet1!$U$13,'Cover Sheet'!$E$28=Sheet1!$U$16,'Cover Sheet'!$E$28=Sheet1!$U$15),1,IF(ISBLANK(B18),0,1))","v":0},"e.2"]
[]
["d) Client Agreements "]
["1)Does the CSP enter into written agreements with all clients specifying the requisites set out in the CSP Rulebook?\n[Guidance: R3-11.7 of the CSP Rulebook]",null,null,{"$f":"IF(ISBLANK(B21),0,1)","v":0},"d.1"]
["2) By whom are the client agreements signed?",null,null,{"$f":"IF($B$21=Sheet1!$N$13,1,IF(ISBLANK(B22),0,1))","v":0},"d.2"]
["3) Are the grounds, procedure and the consequences of termination set out in the client agreements?",null,null,{"$f":"IF($B$21=Sheet1!$N$13,1,IF(ISBLANK(B23),0,1))","v":0},"d.3"]
[]
[]
[]
[]
[]
[]
[]
[]
[]
[]
[]
[]
[]
[]
[]
[]
[]
[]
[]
[]
[]
[]
[]
[]
[]
[]
[]
[]
[]
[]
[]
[]
[]
[]
[]
[]
[]
[]
[]
[]
[]
[]
[]
[]
[]
[]
[]
[]
[]
[]
[]
[]
[]
[]
[]
[]
[]
[]
[]
[]
[]
[]
[]
[]
[]
[]
[]
[]
[]
[]
[]
[]
[]
[]
[]
[]
[null,null,null,null,null,null,null,null,null,null,{"$f":"SUM(D4:D23)","v":0}]

{"sheet":"Sheet1","index":18,"n_rows":50,"n_cols":26,"rows_kept":50,"cut":false,"hidden":true,"merged":[]}
[]
[]
[]
[]
[]
[]
[]
[]
[]
[null,"Sheet 3",null,null,null,null,null,null,null,null,null,null,null,null,null,null,null,null,null,null,null,null,null,"Day","Month","Year"]
[null,"Director",null,null,null,null,null,null,null,null,null,null,null,null,null,null,null,null,null,null,null,null,null,1,1,2020]
[null,"Company Secretary",null,null,"Yes",null,"Requesting Information through website",null,null,null,null,null,null,"Yes",null,"Cash",null,"Internal ",null,null,"Class A",null,null,2,2,2021]
[null,null,null,null,"No",null,"Submission of Document through an online system",null,null,null,null,null,null,"No",null,"Liquid Assets",null,"Outsourced",null,null,"Class B",null,null,3,3,2022]
[null,null,null,null,"Not applicable for individual CSPs",null,"Payments of invoices",null,null,null,null,null,null,"N/A",null,"N/A",null,null,null,null,"Class C",null,null,4,4,2023]
[null,null,null,null,null,null,"Other - Please specify in Comments section ",null,null,null,null,null,null,null,null,null,null,null,null,null,"Class A under threshold",null,null,5,5,2024]
[null,null,null,null,null,null,null,null,null,null,null,null,null,null,null,null,null,null,null,null,"Class B under threshold",null,null,6,6,2025]
[null,null,null,null,null,null,null,null,null,null,null,null,null,null,null,null,null,null,null,null,null,null,null,7,7,2026]
[null,null,null,null,null,null,null,null,null,null,null,null,null,null,null,null,null,null,null,null,null,null,null,8,8,2027]
[null,null,null,null,"Monthly",null,"Documents signed by two directors",null,null,null,null,null,"Decision taken are discussed during the board meetings",null,null,null,null,null,null,null,null,null,null,9,9,2028]
[null,null,null,null,"Quarterly",null,"Reviewer and Preparer Policy",null,null,null,null,null,"Decisions are discussed informally with other directors",null,null,null,null,null,null,null,null,null,null,10,10,2029]
[null,null,null,null,"Semi-Annually",null,"Meetings attended by at least two directors/senior officers",null,null,null,null,null,"Relevant documentation are circulated to other directors",null,null,null,null,null,null,null,null,null,null,11,11,2030]
[null,null,null,null,"Annually",null,"All of the above",null,null,null,null,null,"All of the above",null,null,null,null,null,null,null,null,null,null,12,12,2031]
[null,null,null,null,"Other - Please specify in Comments section ",null,"Other - Please specify in Comments section ",null,null,null,null,null,"Other - Please specify in Comments section ",null,null,null,null,null,null,"Account for each Client",null,null,null,13,null,2032]
[null,null,null,null,"Not applicable for individual CSPs",null,"Not applicable for individual CSPs",null,null,null,null,null,null,null,null,null,null,null,null,"Common Clients' Account",null,null,null,14,null,2033]
[null,null,null,null,null,null,null,null,null,null,null,null,null,null,null,null,null,null,null,"N/A",null,null,null,15,null,2034]
[null,null,null,null,null,"Regular Meetings with Staff",null,null,null,null,null,null,"Yes, agreements in place",null,null,"Director",null,null,null,null,null,null,null,16,null,2035]
[null,null,null,null,null,"Spot Checks of the day to day operations",null,null,null,null,null,null,"Yes, agreements not in place",null,null,"Company Secretary",null,null,null,null,null,null,null,17,null,2036]
[null,null,null,null,null,"Review and updates of agreements with third parties",null,null,null,null,null,null,"No",null,null,null,null,null,null,null,null,null,null,18,null,2037]
[null,null,null,null,null,"Frequent Testing of the IT System",null,null,null,null,null,null,null,null,null,null,null,null,null,null,null,null,null,19,null,2038]
[null,null,null,null,null,"All of the above",null,null,null,null,null,null,null,null,null,null,null,null,null,null,null,null,null,20,null,2039]
[null,null,null,null,null,"Other - Please specify in comments column ",null,null,null,null,null,null,null,null,null,null,null,null,null,null,null,null,null,21,null,2040]
[null,null,null,null,null,null,null,null,null,null,null,null,null,null,null,null,null,null,null,null,null,null,null,22,null,2041]
[null,null,null,null,null,"General POA",null,null,"Review of any Documentation",null,null,null,null,null,null,null,"Password Access",null,null,null,null,null,null,23,null,2042]
[null,null,null,null,null,"Special POA",null,null,"Regular meetings with Third Parties performing the assigned duties",null,null,null,null,null,null,null,"Audit Trail of changes done by staff",null,null,null,null,null,null,24,null,2043]
[null,null,null,null,null,"N/A",null,null,"All of the above",null,null,null,null,null,null,null,"Ensuring that all information is updated",null,null,null,null,null,null,25,null,2044]
[null,null,null,null,null,null,null,null,"Other - Please specify in Comments section ",null,null,null,null,null,null,null,"Agreements with third parties include confidentiality clauses",null,null,null,null,null,null,26,null,2045]
[null,null,null,null,null,null,null,null,"N/A",null,null,null,null,null,null,null,"Other - Please specify in Comments section ",null,null,null,null,null,null,27,null,2046]
[null,null,null,null,null,"Rapid Growth",null,null,null,null,"Disclosed by Staff (including directors)",null,null,null,null,null,null,null,null,null,null,null,null,28,null,2047]
[null,null,null,null,null,"Protecting Market Share",null,null,null,null,"Through Compliance Checks",null,null,null,null,null,"Domestic",null,"Attached",null,null,null,null,29,null,2048]
[null,null,null,null,null,"Pursuing Market Share",null,null,null,null,"All of the above",null,null,null,null,null,"Foreign",null,"N/A",null,null,null,null,30,null,2049]
[null,null,null,null,null,"Other - Please specify in Comments section ",null,null,null,null,"Other - Please specify in Comments section ",null,null,null,null,null,"N/A",null,null,null,null,null,null,31,null,2050]
[null,null,null,null,null,null,null,null,null,null,"N/A"]
[]
[]
[null,null,null,null,"Monthly",null,"Monthly",null,"After each transaction"]
[null,null,null,null,"Quarterly",null,"Quarterly",null,"Periodically"]
[null,null,null,null,"Semi-Annually",null,"Semi-Annually"]
[null,null,null,null,"Annually",null,"Annually"]
[null,null,null,null,"Other - Please specify in Comments section ",null,"Other"]
[null,null,null,null,"N/A",null,"N/A"]

{"sheet":"Sheet 15","index":19,"n_rows":102,"n_cols":11,"rows_kept":102,"cut":false,"hidden":false,"merged":[]}
["15. Accounts and Record Keeping"]
[null,null,"Back to Contents"]
[null,"Response","Comments"]
["a) Please provide details of the external auditor of the CSP\n\n[Guidance: This is N/A for individual CSPs - Kindly indicate this by typing \"N/A\" in the Response field]",null,null,{"$f":"IF(OR('Cover Sheet'!$E$28=Sheet1!$U$15,'Cover Sheet'!$E$28=Sheet1!$U$16),1,IF(ISBLANK(B4),0,1))","v":0},"a"]
[]
["b)1) Has the CSP changed the auditor during the reporting period?",null,null,{"$f":"IF(OR('Cover Sheet'!$E$28=\"Class A Under Threshold\",'Cover Sheet'!$E$28=\"Class B Under Threshold\",$B$4=\"N/A\"),1,IF(ISBLANK(B6),0,1))","v":0},"b.1"]
["2) Please provide details why there was a change in the auditor.",null,null,{"$f":"IF(OR('Cover Sheet'!$E$28=\"Class A Under Threshold\",'Cover Sheet'!$E$28=\"Class B Under Threshold\",$B$4=\"N/A\",$B$6=\"No\",$B$6=\"Not applicable for individual CSPs\"),1,IF(ISBLANK(B7),0,1))","v":0},"b.2"]
[]
["c)What measures has the CSP adopted to ensure that the security, integrity and confidentiality of information are preserved? \n[Guidance: If more than one applies, kindly select the relevant ones and include others in the Comments section]",null,null,{"$f":"IF(ISBLANK(B9),0,1)","v":0},"c"]
[]
["d)1) Do you have an internal audit function in place?",null,null,{"$f":"IF($B$4=\"N/A\",1,IF(ISBLANK(B11),0,1))","v":0},"d.1"]
["2) Who are the persons responsible for conducting such an audit?",null,null,{"$f":"IF(OR($B$4=\"N/A\",$B$11=\"No\",$B$11=\"Not applicable for individual CSPs\"),1,IF(ISBLANK(B12),0,1))","v":0},"d.2"]
[]
["e)Does the CSP maintain records to enable the MFSA to monitor compliance with applicable record keeping requirements?",null,null,{"$f":"IF(ISBLANK(B14),0,1)","v":0},"e"]
[]
["f) Are the records of the CSP retained in a centralised location?",null,null,{"$f":"IF(ISBLANK(B16),0,1)","v":0},"f"]
[]
["g) Do they cover the minimum requisites set out in the CSP Rulebook in relation to the medium used to store information?",null,null,{"$f":"IF(ISBLANK(B18),0,1)","v":0},"g"]
[]
["h) Are documents retained in hard copy or soft copy format or both?",null,null,{"$f":"IF(ISBLANK(B20),0,1)","v":0},"h"]
[]
[]
[]
[]
[]
[]
[]
[]
[]
[]
[]
[]
[]
[]
[]
[]
[]
[]
[]
[]
[]
[]
[]
[]
[]
[]
[]
[]
[]
[]
[]
[]
[]
[]
[]
[]
[]
[]
[]
[]
[]
[]
[]
[]
[]
[]
[]
[]
[]
[]
[]
[]
[]
[]
[]
[]
[]
[]
[]
[]
[]
[]
[]
[]
[]
[]
[]
[]
[]
[]
[]
[]
[]
[]
[]
[]
[]
[]
[]
[]
[]
[null,null,null,null,null,null,null,null,null,null,{"$f":"SUM(D2:D20)","v":0}]

{"sheet":"Sheet 16","index":20,"n_rows":101,"n_cols":11,"rows_kept":101,"cut":false,"hidden":false,"merged":[[0,0,0,1]]}
["16. Controls - clients' monies "]
[null,null,"Back to Contents"]
[null,"Response","Comments"]
["a) Does the CSP hold or control clients' monies?\n\n[Guidance: Kindly indicate in the Comments section whether \ni) clients' monies are held by the CSP and/or\nii) if the CSP acts as a signatory (or has viewing rights) on bank accounts in the clients' own name]",null,null,{"$f":"IF(ISBLANK(B4),0,1)","v":0},"a"]
["b)Does the CSP keep a client account for each and every client or is only one account kept in which clients' monies are held?",null,null,{"$f":"IF($B$4=Sheet1!$N$13,1,IF(ISBLANK(B5),0,1))","v":0},"b"]
[]
[" c) In the case where an account is opened for each client:"]
["1) Is the balance on each client's bank account reconciled with the balance on that account as set out in the bank statement?",null,null,{"$f":"IF(OR($B$4=\"No\",$B$5=\"Common Clients' Monies Account \"),1,IF(ISBLANK(B8),0,1))","v":0},"c.1"]
["2) How often are reconciliations carried out?",null,null,{"$f":"IF(OR($B$4=\"No\",$B$5=\"Common Clients' Monies Account \"),1,IF(ISBLANK(B9),0,1))","v":0},"c.2"]
["3) If no reconciliations are carried out, kindly explain the reason why these are not being conducted? ",null,null,{"$f":"IF(OR($B$4=\"No\",$B$5=\"Common Clients' Monies Account \"),1,IF(ISBLANK(B10),0,1))","v":0},"c.3"]
[]
["d) In the case where one common clients' account is being used by the CSP and all client monies are being deposited in such account:"]
["1) How often are reconciliations carried out?",null,null,{"$f":"IF($B$4=\"No\",1,IF(ISBLANK(B13),0,1))","v":0},"d.1"]
["2) By whom are these reconciliations being done?",null,null,0,"d.2"]
["3) Are such reconciliations being dated and reviewed by a senior official?",null,null,0,"d.3"]
["4) Who are the bank signatories in respect of client accounts?",null,null,0,"d.4"]
["5) Are there circumstances under which the client can authorise movements on any account without the knowledge of the CSP?",null,null,0,"d.5"]
["6) Please provide details of such instances, the number of such movements and how monitoring of such movements are being done by the CSP.",null,null,0,"d.6"]
[]
[]
[]
[]
[]
[]
[]
[]
[]
[]
[]
[]
[]
[]
[]
[]
[]
[]
[]
[]
[]
[]
[]
[]
[]
[]
[]
[]
[]
[]
[]
[]
[]
[]
[]
[]
[]
[]
[]
[]
[]
[]
[]
[]
[]
[]
[]
[]
[]
[]
[]
[]
[]
[]
[]
[]
[]
[]
[]
[]
[]
[]
[]
[]
[]
[]
[]
[]
[]
[]
[]
[]
[]
[]
[]
[]
[]
[]
[]
[]
[]
[]
[null,null,null,null,null,null,null,null,null,null,{"$f":"SUM(D4:D19)","v":0}]

{"sheet":"Sheet2","index":21,"n_rows":42,"n_cols":17,"rows_kept":42,"cut":false,"hidden":true,"merged":[]}
["Yes","Cash",null,null,null,null,null,null,null,null,"Confirmed"]
["No","Liquid Assets",null,null,null,null,null,null,null,null,"Not Confirmed",null,null,null,null,null,"No"]
["N/A","N/A",null,null,null,null,null,null,null,null,null,null,null,null,null,null,"Bank account per client"]
[null,null,null,null,null,null,null,null,null,null,"Immediately (Same Day)",null,null,null,null,null,"Common Clients' Monies Account "]
[null,null,null,null,null,null,null,null,null,null,"Few Days (2 to 4 days)",null,null,null,null,null,"Both"]
[null,null,null,null,null,null,null,null,null,null,"One Week",null,null,null,null,null,"N/A"]
[null,null,null,null,null,null,null,null,null,null,"Other - Please specify in Comments section "]
[]
[null,null,null,null,null,null,null,null,null,null,"Increase"]
[null,null,null,null,null,null,null,null,null,null,"Decrease"]
[null,null,null,null,null,null,null,null,null,null,"No Change"]
["Regular Meetings with Staff"]
["Spot Checks of the day to day operations"]
["Review and updates of agreements with third parties",null,null,null,null,null,null,null,null,null,"Initial Due Diligence conducted on Third Party"]
["Frequent Testing of the IT System",null,null,null,null,null,null,null,null,null,"Ongoing Due Diligence conducted on Third Party"]
["Carrying out of Internal Audit",null,null,null,null,null,null,null,null,null,"Both Initial and Ongoing Due Diligence conducted on Third Party"]
["Other - Please specify in Comments section ",null,null,null,null,null,null,null,null,null,"Other - Please specify in Comments section "]
[]
[]
["Conservative"]
["Accept all proposed clients"]
["Accept only medium/low risk clients",null,null,null,null,null,null,null,null,null,"Hard copy"]
["Other - Please specify in Comments section ",null,null,null,null,null,null,null,null,null,"Soft copy"]
[null,null,null,null,null,null,null,null,null,null,"Both"]
["Service Fees"]
["Delay in execution of instructions",null,null,null,null,null,null,null,null,null,"PII"]
["Disagreement in the choice of third parties",null,null,null,null,null,null,null,null,null,"D&O"]
["Other - Please specify in Comments section ",null,null,null,null,null,null,null,null,null,"Both"]
[null,null,null,null,null,null,null,null,null,null,"N/A"]
["Conduct Enhanced Due Diligence "]
["More frequent ongoing monitoring",null,null,null,null,null,null,null,null,null,"Increase"]
["Always be signatory on bank accounts",null,null,null,null,null,null,null,null,null,"Decrease"]
["Always be part of the board of directors",null,null,null,null,null,null,null,null,null,"No change"]
["All of the above"]
["Other - Please specify in Comments section "]
[]
["Money Market Instruments"]
["Sovereign Bonds"]
["Government Bonds"]
["Listed Equity"]
["Other - Please specify in Comments section "]
["N/A"]

{"sheet":"Sheet 17","index":22,"n_rows":100,"n_cols":11,"rows_kept":100,"cut":false,"hidden":false,"merged":[[0,0,0,1]]}
["17. Financial Resources"]
[null,null,"Back to Contents"]
[null,"Response","Comments"]
["a) Has there been any increase or decrease in the CSP's share capital or capital contribution, as applicable? ",null,null,{"$f":"IF(ISBLANK(B4),0,1)","v":0},"a"]
[]
["b) Kindly confirm that the CSP satisfies the minimum share capital or capital contribution requirement. \n[Guidance: In line with the levels and form as established in the CSP Rulebook, and as applicable to the relevant Class.]",null,null,{"$f":"IF(ISBLANK(B6),0,1)","v":0},"b"]
[]
[]
[]
[]
[]
[]
[]
[]
[]
[]
[]
[]
[]
[]
[]
[]
[]
[]
[]
[]
[]
[]
[]
[]
[]
[]
[]
[]
[]
[]
[]
[]
[]
[]
[]
[]
[]
[]
[]
[]
[]
[]
[]
[]
[]
[]
[]
[]
[]
[]
[]
[]
[]
[]
[]
[]
[]
[]
[]
[]
[]
[]
[]
[]
[]
[]
[]
[]
[]
[]
[]
[]
[]
[]
[]
[]
[]
[]
[]
[]
[]
[]
[]
[]
[]
[]
[]
[]
[]
[]
[]
[]
[]
[null,null,null,null,null,null,null,null,null,null,{"$f":"SUM(D4:D7)","v":0}]

{"sheet":"Sheet 18","index":23,"n_rows":104,"n_cols":11,"rows_kept":104,"cut":false,"hidden":false,"merged":[]}
["18. Financial Information"]
[null,null,"Back to Contents"]
[null,"Response","Comments"]
["General Guidance: Kindly ensure that the below figures correspond to those included in the financial statements or equivalent submitted to the Authority, where applicable. \n\nPlease indicate the following details for the CSP:"]
[]
["a) Total value of assets of the CSP in Euro\n\n[Guidance: For Individual CSPs: The value should include total current and fixed assets at net book value covering both personal and business assets]",null,null,{"$f":"IF(ISBLANK(B6),0,1)","v":0},"a"]
[]
["b) Total value of current assets of the CSP in Euro\n\n[Guidance: For Individual CSPs: The value should include all amounts receivable and any other current assets of the CSP, whether personal or business assets.]",null,null,{"$f":"IF(ISBLANK(B8),0,1)","v":0},"b"]
[]
["c) Total value of liabilities of the CSP in Euro\n\n[Guidance: For Individual CSPs: The value should include total current and fixed liabilities covering both personal and business liabilities of the CSP.]",null,null,{"$f":"IF(ISBLANK(B10),0,1)","v":0},"c"]
[]
["d) Total value of current liabilities of the CSP in Euro\n\n[Guidance: For Individual CSPs: The value should include all amounts payable and any other current liabilities of the CSP, whether personal or business liabilities.]",null,null,{"$f":"IF(ISBLANK(B12),0,1)","v":0},"d"]
[]
["e) Net profit/loss before tax generated by the CSP during the reporting period in Euro\n\n[Guidance: for Under Threshold Class B CSPs: Kindly provide data in relation to CSP relevant activity only.]",null,null,{"$f":"IF(ISBLANK(B14),0,1)","v":0},"e"]
[]
["f) Total value of revenue generated by the CSP during the reporting period for the following: "]
[" - from authorised CSP activities\n \n[Guidance: For Individual CSPs: Therefore excluding any revenue from exempt CSP activity - example, directorship/secretary in licenced entities etc]",null,null,{"$f":"IF(ISBLANK(B17),0,1)","v":0},"f.1"]
[" - from other business activities\n\n[Guidance: For Individual CSPs: Therefore including any revenue from exempt CSP activity - example, directorship/secretary in licenced entities etc, as well as any other non-CSP related business activities.]",null,null,{"$f":"IF(OR( 'Cover Sheet'!$E$28=Sheet1!$U$16),1,IF(ISBLANK(B18),0,1))","v":0},"f.2"]
[]
["g) Net profit/loss after tax generated by the CSP during the reporting period in Euro\n\n[Guidance: For Under Threshold Class B CSPs: Kindly provide data in relation to CSP relevant activity only.]",null,null,{"$f":"IF(ISBLANK(B20),0,1)","v":0},"g"]
[]
["h) Please indicate the type of insurance which the CSP has in place.",null,null,{"$f":"IF(OR('Cover Sheet'!$E$28=Sheet1!$U$12,'Cover Sheet'!$E$28=Sheet1!$U$15,'Cover Sheet'!$E$28=Sheet1!$U$16),1,IF(ISBLANK(B22),0,1))","v":0},"h"]
[]
["i) Please indicate the value of the PII / D&O insurance cover in place in Euro",null,null,{"$f":"IF(OR('Cover Sheet'!$E$28=Sheet1!$U$12,'Cover Sheet'!$E$28=Sheet1!$U$15,'Cover Sheet'!$E$28=Sheet1!$U$16),1,IF(ISBLANK(B24),0,1))","v":0},"i"]
[]
["j) Has the CSP made any claim on the PII / D&O in place? If yes, please provide details in the comments section",null,null,{"$f":"IF(OR('Cover Sheet'!$E$28=Sheet1!$U$12,'Cover Sheet'!$E$28=Sheet1!$U$15,'Cover Sheet'!$E$28=Sheet1!$U$16),1,IF(ISBLANK(B26),0,1))","v":0},"j"]
[]
[]
[]
[]
[]
[]
[]
[]
[]
[]
[]
[]
[]
[]
[]
[]
[]
[]
[]
[]
[]
[]
[]
[]
[]
[]
[]
[]
[]
[]
[]
[]
[]
[]
[]
[]
[]
[]
[]
[]
[]
[]
[]
[]
[]
[]
[]
[]
[]
[]
[]
[]
[]
[]
[]
[]
[]
[]
[]
[]
[]
[]
[]
[]
[]
[]
[]
[]
[]
[]
[]
[]
[]
[]
[]
[]
[]
[null,null,null,null,null,null,null,null,null,null,{"$f":"SUM($D$6:$D$52)","v":0}]

{"sheet":"Sheet 19","index":24,"n_rows":101,"n_cols":11,"rows_kept":101,"cut":false,"hidden":false,"merged":[[0,0,0,1]]}
["19. Completeness of information"]
[null,null,"Back to Contents"]
[null,"Response","Comments"]
["a)Are there any material matters concerning the CSP's business which have not been disclosed to the Authority?",null,null,{"$f":"IF(ISBLANK(B4),0,1)","v":0},"a.1"]
["      Please provide details:",null,null,{"$f":"IF($B$4=Sheet1!$N$13,1,IF(ISBLANK(B5),0,1))","v":0},"a.2"]
[]
["b)Are there any matters relating to an earlier return or qualification in an auditor's report which have remained unresolved?",null,null,{"$f":"IF(ISBLANK(B7),0,1)","v":0},"b.1"]
["      Please provide details: ",null,null,{"$f":"IF($B$7=Sheet1!$N$13,1,IF(ISBLANK(B8),0,1))","v":0},"b.2"]
[]
[]
[]
[]
[]
[]
[]
[]
[]
[]
[]
[]
[]
[]
[]
[]
[]
[]
[]
[]
[]
[]
[]
[]
[]
[]
[]
[]
[]
[]
[]
[]
[]
[]
[]
[]
[]
[]
[]
[]
[]
[]
[]
[]
[]
[]
[]
[]
[]
[]
[]
[]
[]
[]
[]
[]
[]
[]
[]
[]
[]
[]
[]
[]
[]
[]
[]
[]
[]
[]
[]
[]
[]
[]
[]
[]
[]
[]
[]
[]
[]
[]
[]
[]
[]
[]
[]
[]
[]
[]
[]
[]
[null,null,null,null,null,null,null,null,null,null,{"$f":"SUM(D1:D8)","v":0}]

{"sheet":"Sheet 20","index":25,"n_rows":100,"n_cols":11,"rows_kept":100,"cut":false,"hidden":false,"merged":[[24,0,24,2],[28,0,28,2],[30,0,30,2],[13,0,13,2],[14,0,14,1],[16,0,16,1],[17,0,17,2],[20,0,20,2],[22,0,22,2],[12,0,12,1],[0,0,0,1],[1,0,1,2],[2,0,2,1],[3,0,3,2],[4,0,4,1],[5,0,5,2],[6,0,6,1],[7,0,7,1],[8,0,8,1],[9,0,9,2],[10,0,10,1]]}
["20. Declaration by the Individual CSP / Directors of the Body Corporate CSP",null,"Back to Contents"]
[]
[" I/We hereby declare that to the best of my/our knowledge that:"]
[]
["The CSP is able, and will be able for the foreseeable future, to meet all of its liabilities as they fall due for payment."]
[]
["All matters (including contingent liabilities, claims and litigation) which may reasonably be expected to have a material effect on the CSP's financial position at the date of submission of this return have been declared herewith or notified in writing to the MFSA."]
[]
["The CSP has carried out all business activity in accordance with the requirements of the Company Service Providers Act, the regulations and the rules issued thereunder, and any conditions, directives or recommendations issued by the Authority as well as any other relevant legal and regulatory requirements including inter alia the Prevention of Money Laundering Act, Chapter 373 of the Laws of Malta, as well as any regulations and rules issued thereunder."]
[]
["The information given in and with this Annual Compliance Return (including the supporting documents) submitted both electronically and in hard copy is complete and correct to the best of my/our knowledge and there are no other facts or matters of which the Authority should be informed. "]
[]
["The Authority has been notified of all matters which may influence its decision to allow the authorisation to continue, or which could have a bearing on the fitness and properness of the CSP and/or Approved Persons of the CSP."]
[]
["The CSP still satisfies the applicable threshold to qualify as an Under Threshold Class A CSP (as defined in the Glossary)."]
[]
["The CSP still satisfies the applicable threshold to qualify as an Under Threshold Class B CSP (as defined in the Glossary). "]
[]
["If the Individual CSP/Directors of the Body Corporate CSP are not in a position to declare the above, kindly provide reasons for the same:"]
["Declaration to be signed by two directors, if applicable"]
[]
["Name (1):",null,{"$f":"IF(ISBLANK(B22),0,1)","v":0}]
[]
["Signature (1):"]
[]
["Date",null,{"$f":"IF(ISBLANK(B26),0,1)","v":0}]
[]
["Name (2):",null,{"$f":"IF(ISBLANK(B28),0,1)","v":0}]
[]
["Signature (2):"]
[]
["Date",null,{"$f":"IF(ISBLANK(B32),0,1)","v":0}]
[]
[]
[]
[]
[]
[]
[]
[]
[]
[]
[]
[]
[]
[]
[]
[]
[]
[]
[]
[]
[]
[]
[]
[]
[]
[]
[]
[]
[]
[]
[]
[]
[]
[]
[]
[]
[]
[]
[]
[]
[]
[]
[]
[]
[]
[]
[]
[]
[]
[]
[]
[]
[]
[]
[]
[]
[]
[]
[]
[]
[]
[]
[]
[]
[]
[]
[]
[null,null,null,null,null,null,null,null,null,null,{"$f":"SUM(C22,C26,C28,C32)","v":0}]

{"sheet":"Sheet 21","index":26,"n_rows":98,"n_cols":11,"rows_kept":98,"cut":false,"hidden":false,"merged":[[2,1,2,2],[3,1,3,2],[4,0,4,2]]}
["21. Statement of Solvency"]
[null,null,"Back to Contents"]
[null,"Response"]
["Are you an individual CSP:",null,null,{"$f":"IF(ISBLANK(B4),0,1)","v":0}]
["I certify, that to the best of my knowledge and belief, and based on reasonable inquiries, the total of my personal and business assets exceeds the total of my personal and business liabilities and that I am able to meet those liabilities as they fall due. \n\nI have made provision for taxation on the whole of my profits up to 31st December for the reportable year.\n\nBy signing this Statement of Solvency, I confirm that I understand that if this statement is found to be materially false, inaccurate or misleading in any respect, I may be prohibited from conducting company services business and may be subject to disciplinary proceedings."]
[]
["Name :"]
[]
["Signature :"]
[]
["Date",null,null,{"$f":"IF($B$4=\"No\",1,IF(ISBLANK(B11),0,1))","v":0}]
[]
[]
[]
[]
[]
[]
[]
[]
[]
[]
[]
[]
[]
[]
[]
[]
[]
[]
[]
[]
[]
[]
[]
[]
[]
[]
[]
[]
[]
[]
[]
[]
[]
[]
[]
[]
[]
[]
[]
[]
[]
[]
[]
[]
[]
[]
[]
[]
[]
[]
[]
[]
[]
[]
[]
[]
[]
[]
[]
[]
[]
[]
[]
[]
[]
[]
[]
[]
[]
[]
[]
[]
[]
[]
[]
[]
[]
[]
[]
[]
[]
[]
[]
[]
[]
[]
[null,null,null,null,null,null,null,null,null,null,{"$f":"SUM(D1:D11)","v":0}]

{"sheet":"List of Docs for submission","index":27,"n_rows":16,"n_cols":1,"rows_kept":16,"cut":false,"hidden":false,"merged":[]}
["Documents to be submitted with this return: "]
["Back to Contents"]
[]
["1. Resolution of the Board of Directors approving the Annual Compliance Return"]
[]
["2. Up-to-date Shareholding Structure including direct and indirect shareholding. In the cases of Corporate Shareholders, the country of incorporation of the company is to be clearly identified whilst in the case of individual shareholders, the nationality needs to be clearly identified. The percentage of shareholding must also be indicated."]
[]
["3. Organisation Chart including staff (if any) responsibilities. \n[including staff roles and reporting lines. The Chart should be dated and signed by two directors (where applicable) and attached as Annex to the ACR.]"]
[]
["4. Audited Annual Financial Statements as at the date of the reporting period duly signed by at least two directors and the Auditor for Body Corporate CSPs"]
[]
["5. Auditors Management Letter for Body Corporate CSPs"]
[]
["6. Signed Risk Management reports"]
[]
["7. Signed Compliance reports"]

{"sheet":"Validation Sheet","index":28,"n_rows":23,"n_cols":3,"rows_kept":23,"cut":false,"hidden":false,"merged":[[0,3,23,3],[23,0,23,2],[0,0,0,1]]}
["Validations",null,"Back to Contents"]
["Cover Sheet",null,{"$f":"IF('Cover Sheet'!$K$104=4,1,0)","v":0}]
["Sheet",1,{"$f":"IF('Sheet 1'!$K$100=7,1,0)","v":0}]
["Sheet",{"$f":"B3+1","v":2},{"$f":"IF('Sheet 2'!$K$100=22,1,0)","v":0}]
["Sheet",3,{"$f":"IF('Sheet 3'!$K$100=30,1,0)","v":0}]
["Sheet",4,{"$f":"IF('Sheet 4'!$K$102=19,1,0)","v":0}]
["Sheet",5,{"$f":"IF('Sheet 5'!$K$100=7,1,0)","v":0}]
["Sheet",6,{"$f":"IF('Sheet 6'!$K$100=17,1,0)","v":0}]
["Sheet",7,{"$f":"IF('Sheet 7'!$K$100=14,1,0)","v":0}]
["Sheet",8,{"$f":"IF('Sheet 8'!$K$102=18,1,0)","v":0}]
["Sheet",9,{"$f":"IF('Sheet 9'!$K$101=18,1,0)","v":0}]
["Sheet",10,{"$f":"IF('Sheet 10'!$K$102=7,1,0)","v":0}]
["Sheet",11,{"$f":"IF('Sheet 11'!$K$101=4,1,0)","v":0}]
["Sheet",12,{"$f":"IF('Sheet 12'!$K$101=14,1,0)","v":0}]
["Sheet",13,{"$f":"IF('Sheet 13'!$K$102=17,1,0)","v":0}]
["Sheet",14,{"$f":"IF('Sheet 14'!$K$100=13,1,0)","v":0}]
["Sheet",15,{"$f":"IF('Sheet 15'!$K$102=10,1,0)","v":0}]
["Sheet",16,{"$f":"IF('Sheet 16'!$K$101=11,1,0)","v":0}]
["Sheet",17,{"$f":"IF('Sheet 17'!$K$100=2,1,0)","v":0}]
["Sheet",18,{"$f":"IF('Sheet 18'!$K$104=11,1,0)","v":0}]
["Sheet",19,{"$f":"IF('Sheet 19'!$K$101=4,1,0)","v":0}]
["Sheet",20,{"$f":"IF('Sheet 20'!$K$100=4,1,0)","v":0}]
["Sheet",21,{"$f":"IF('Sheet 21'!$K$98=2,1,0)","v":0}]